{"text_format":"3","workbook":"xlsx","n_sheets":4,"sheets":["Bewertung","work","Erläuterungen","Faktorisierung"],"not_rendered":{"images":1,"defined_names":1},"read":"whole","date_system":"1900"}

{"sheet":"Bewertung","index":0,"n_rows":37,"n_cols":10,"rows_kept":37,"merged":[[0,2,0,7],[1,2,1,5],[1,7,1,9],[2,3,2,5],[7,3,7,5],[8,3,8,5],[9,2,11,2],[9,3,11,5],[12,4,12,5],[14,2,17,5],[27,2,27,9],[28,5,28,6],[28,7,28,8],[29,5,29,6],[29,7,29,8],[30,5,30,6],[30,7,30,8],[31,5,31,6],[31,7,31,8],[36,1,73,1],[36,2,73,10]]}
[null,null,"Bewertung von Veranstaltungen"]
[null,null,"Angaben zur Veranstaltung",{"$nulls":4},"Bewertung"]
[null,null,"Name der Veranstaltung ",{"$nulls":4},"Faktor","Auswahl"]
[null,null,"Datum","von (tt.mm.jjjj)","bis (tt.mm.jjjj)",null,null,"1. Anfahrtswege","günstig"]
[null,null,"Zeitraum ","von (hh:mm)","bis (hh:mm)",null,null,"2. Zu- und Durchfahrten","günstig",{"$f":"IF(I5=\"sehr ungünstig\",\"Kann Ausschlusskriterium sein\",\"\")","v":""}]
[null,null,"Veranstaltungsort","Straße","Hausnummer","PLZ",null,"3. Löschwasserversorgung","günstig",{"$f":"IF(I6=\"sehr ungünstig\",\"AUSSCHLUSSKRITERIUM!!\",\"\")","v":""}]
[null,null,"Veranstaltungsart","…","Besucher",null,null,"4. Flucht- und Rettungswege","günstig"]
[null,null,"Veranstalter \n(Name, Vorname)",{"$nulls":4},"5. Kommunikationswege","günstig"]
[null,null,"Name Vereins- bzw. \nVorstandsvorsitzende/r",{"$nulls":4},"6. Brandszenarien","günstig"]
[null,null,"Anschrift",{"$nulls":4},"7. Zuschauerverhalten","günstig"]
[{"$nulls":7},"8. Feuergefährliche Handlungen","günstig"]
[{"$nulls":7},"9. Veranstalter","günstig"]
[null,null,"Telefon, E-Mail",{"$nulls":4},"10. Anfahrtswege für die Besucher","günstig"]
[{"$nulls":7},"11a) Orientierung/Einschränkung für Besucher/ Besucherströme","günstig"]
[null,null,"Bitte beachten Sie beim Ausfüllen die Hinweise \nder Reiter \"Erläuterungen\" und \"Faktorisierung\". \nSollten Voraussetzungen für ein Ausschluss-\nkriterium gegeben sein, ist die Veranstaltung nicht genehmigungsfähig.",{"$nulls":4},"11b) Behinderung des norm. Lebens außerhalb der VA, Verkehr kreuzt VA Fläche","günstig"]
[{"$nulls":7},"11c) Flächenbeschaffenheit","günstig",{"$f":"IF(I16=\"sehr ungünstig\",\"AUSSCHLUSSKRITERIUM!!\",\"\")","v":""}]
[{"$nulls":7},"11d) Beeinträchtigung der Anlieger innerhalb der VA-Fläche","günstig",{"$f":"IF(I17=\"sehr ungünstig\",\"Kann Ausschlusskriterium sein\",\"\")","v":""}]
[{"$nulls":7},"11e) Besucher der VA außerhalb der VA-Fläche zu erwarten","günstig"]
[{"$nulls":7},"12. medizinische Absicherung","günstig"]
[{"$nulls":7},"13. Beeinflussung des Regelrettungsdienstes","günstig"]
[]
[]
[{"$nulls":7},"Risikogruppe",{"$f":"IF(OR(AND(OR(D7=Faktorisierung!K9,D7=Faktorisierung!K10,D7=Faktorisierung!K11,D7=Faktorisierung!K12,D7=Faktorisierung!K13,D7=Faktorisierung!K15,D7=Faktorisierung!K16,D7=Faktorisierung!K18),Bewertung!F7<1000),AND(D7=Faktorisierung!K14,Bewertung!F7<500),AND(D7=Faktorisierung!K17,Bewertung!F7<200)),\"1\",IF(OR(D7=Faktorisierung!K53,Bewertung!F7>4999),\"3\",\"2\"))","v":"2"}]
[{"$nulls":7},"Sicherheitskoeffizient",{"$f":"(work!E28*IF(I23=2,Faktorisierung!$N$25,IF(I23=3,Faktorisierung!$N$42,Faktorisierung!$N$8)))/IF(AND(I14=\"\",I15=\"\",I16=\"\",I17=\"\",I18=\"\"),COUNTA(I4:I13,I19:I22),(COUNTA(I4:I13,I19:I22)+1))","v":0.5384615384615384}]
[{"$nulls":7},"Bewertung",{"$f":"IF(OR(I7=\"sehr ungünstig\",I16=\"sehr ungünstig\"),\"Rot\",IF(OR(I10=\"ungünstig\",I10=\"sehr ungünstig\"),\"gelb\",IF(I24>=$D$32,\"Rot\",IF(I24<$D$31,\"Grün\",\"Gelb\"))))","v":"Grün"},{"$f":"IF(J16=\"Ausschlusskriterium\",\"AMT\",\"\")","v":""}]
[]
[]
[null,null,"Veranstaltungsbewertung"]
[null,null,"Klassifizierung","ab Sich.-koeffizient","Gefährdungs- potential","Sicherheits-\nkonzept",null,"Maßnahmen notwendig",null,"Ergebnis"]
[null,null,"Grün",0,"Nicht erhöht","Nein, evt. VA-Beschreibung",null,"Nein",null,"Genehmigung"]
[null,null,"Gelb",2,"Erhöht","Ja",null,"Nachbesserung in SiKo, Auflagen",null,"Genehmigung möglich"]
[null,null,"Rot",4,"Stark Erhöht","ja",null,"Veränderung der Veranstaltung",null,"Keine Genehmigung"]
[]
[]
[]
[]
[null,"Veranstaltungsbeschreibung"]

{"sheet":"work","index":1,"n_rows":35,"n_cols":66,"rows_kept":35,"hidden":true}
["Bewertungsmatrix",null,"Risikofaktor"]
["Günstig",{"$f":"Bewertung!E29","v":"Gefährdungs- potential"},1]
["Normal",{"$f":"Bewertung!E30","v":"Nicht erhöht"},2]
["Ungünstig",{"$f":"Bewertung!E31","v":"Erhöht"},3]
["Sehr ungünstig",{"$f":"Bewertung!E32","v":"Stark Erhöht"}]
[]
[]
[{"$nulls":3},"1. Anfahrtswege",{"$f":"IF(Bewertung!I4=\"\",\"\",IF(Bewertung!I4=Faktorisierung!$A$7,Faktorisierung!$C$7,(IF(Bewertung!I4=Faktorisierung!$A$8,Faktorisierung!$C$8,IF(Bewertung!I4=Faktorisierung!$A$9,Faktorisierung!$C$9,IF(Bewertung!I4=Faktorisierung!$A$10,Faktorisierung!$C$10,0))))))","v":0.5},{"$f":"IF(Bewertung!J4=\"\",\"\",IF(Bewertung!J4=Faktorisierung!$A$7,Faktorisierung!$C$7,(IF(Bewertung!J4=Faktorisierung!$A$8,Faktorisierung!$C$8,IF(Bewertung!J4=Faktorisierung!$A$9,Faktorisierung!$C$9,IF(Bewertung!J4=Faktorisierung!$A$10,Faktorisierung!$C$10,0))))))","v":""},{"$f":"IF(Bewertung!#REF!=\"\",\"\",IF(Bewertung!#REF!=Faktorisierung!$A$7,Faktorisierung!$C$7,(IF(Bewertung!#REF!=Faktorisierung!$A$8,Faktorisierung!$C$8,IF(Bewertung!#REF!=Faktorisierung!$A$9,Faktorisierung!$C$9,IF(Bewertung!#REF!=Faktorisierung!$A$10,Faktorisierung!$C$10,0))))))","v":{"$error":"#REF!"}},{"$f":"IF(Bewertung!#REF!=\"\",\"\",IF(Bewertung!#REF!=Faktorisierung!$A$7,Faktorisierung!$C$7,(IF(Bewertung!#REF!=Faktorisierung!$A$8,Faktorisierung!$C$8,IF(Bewertung!#REF!=Faktorisierung!$A$9,Faktorisierung!$C$9,IF(Bewertung!#REF!=Faktorisierung!$A$10,Faktorisierung!$C$10,0))))))","v":{"$error":"#REF!"}},{"$f":"IF(Bewertung!#REF!=\"\",\"\",IF(Bewertung!#REF!=Faktorisierung!$A$7,Faktorisierung!$C$7,(IF(Bewertung!#REF!=Faktorisierung!$A$8,Faktorisierung!$C$8,IF(Bewertung!#REF!=Faktorisierung!$A$9,Faktorisierung!$C$9,IF(Bewertung!#REF!=Faktorisierung!$A$10,Faktorisierung!$C$10,0))))))","v":{"$error":"#REF!"}},{"$f":"IF(Bewertung!#REF!=\"\",\"\",IF(Bewertung!#REF!=Faktorisierung!$A$7,Faktorisierung!$C$7,(IF(Bewertung!#REF!=Faktorisierung!$A$8,Faktorisierung!$C$8,IF(Bewertung!#REF!=Faktorisierung!$A$9,Faktorisierung!$C$9,IF(Bewertung!#REF!=Faktorisierung!$A$10,Faktorisierung!$C$10,0))))))","v":{"$error":"#REF!"}},{"$f":"IF(Bewertung!#REF!=\"\",\"\",IF(Bewertung!#REF!=Faktorisierung!$A$7,Faktorisierung!$C$7,(IF(Bewertung!#REF!=Faktorisierung!$A$8,Faktorisierung!$C$8,IF(Bewertung!#REF!=Faktorisierung!$A$9,Faktorisierung!$C$9,IF(Bewertung!#REF!=Faktorisierung!$A$10,Faktorisierung!$C$10,0))))))","v":{"$error":"#REF!"}},{"$f":"IF(Bewertung!#REF!=\"\",\"\",IF(Bewertung!#REF!=Faktorisierung!$A$7,Faktorisierung!$C$7,(IF(Bewertung!#REF!=Faktorisierung!$A$8,Faktorisierung!$C$8,IF(Bewertung!#REF!=Faktorisierung!$A$9,Faktorisierung!$C$9,IF(Bewertung!#REF!=Faktorisierung!$A$10,Faktorisierung!$C$10,0))))))","v":{"$error":"#REF!"}},{"$f":"IF(Bewertung!K4=\"\",\"\",IF(Bewertung!K4=Faktorisierung!$A$7,Faktorisierung!$C$7,(IF(Bewertung!K4=Faktorisierung!$A$8,Faktorisierung!$C$8,IF(Bewertung!K4=Faktorisierung!$A$9,Faktorisierung!$C$9,IF(Bewertung!K4=Faktorisierung!$A$10,Faktorisierung!$C$10,0))))))","v":""},{"$f":"IF(Bewertung!L4=\"\",\"\",IF(Bewertung!L4=Faktorisierung!$A$7,Faktorisierung!$C$7,(IF(Bewertung!L4=Faktorisierung!$A$8,Faktorisierung!$C$8,IF(Bewertung!L4=Faktorisierung!$A$9,Faktorisierung!$C$9,IF(Bewertung!L4=Faktorisierung!$A$10,Faktorisierung!$C$10,0))))))","v":""},{"$f":"IF(Bewertung!M4=\"\",\"\",IF(Bewertung!M4=Faktorisierung!$A$7,Faktorisierung!$C$7,(IF(Bewertung!M4=Faktorisierung!$A$8,Faktorisierung!$C$8,IF(Bewertung!M4=Faktorisierung!$A$9,Faktorisierung!$C$9,IF(Bewertung!M4=Faktorisierung!$A$10,Faktorisierung!$C$10,0))))))","v":""},{"$f":"IF(Bewertung!N4=\"\",\"\",IF(Bewertung!N4=Faktorisierung!$A$7,Faktorisierung!$C$7,(IF(Bewertung!N4=Faktorisierung!$A$8,Faktorisierung!$C$8,IF(Bewertung!N4=Faktorisierung!$A$9,Faktorisierung!$C$9,IF(Bewertung!N4=Faktorisierung!$A$10,Faktorisierung!$C$10,0))))))","v":""},{"$f":"IF(Bewertung!J6=\"\",\"\",IF(Bewertung!J6=Faktorisierung!$A$7,Faktorisierung!$C$7,(IF(Bewertung!J6=Faktorisierung!$A$8,Faktorisierung!$C$8,IF(Bewertung!J6=Faktorisierung!$A$9,Faktorisierung!$C$9,IF(Bewertung!J6=Faktorisierung!$A$10,Faktorisierung!$C$10,0))))))","v":""},{"$f":"IF(Bewertung!P4=\"\",\"\",IF(Bewertung!P4=Faktorisierung!$A$7,Faktorisierung!$C$7,(IF(Bewertung!P4=Faktorisierung!$A$8,Faktorisierung!$C$8,IF(Bewertung!P4=Faktorisierung!$A$9,Faktorisierung!$C$9,IF(Bewertung!P4=Faktorisierung!$A$10,Faktorisierung!$C$10,0))))))","v":""},{"$f":"IF(Bewertung!Q4=\"\",\"\",IF(Bewertung!Q4=Faktorisierung!$A$7,Faktorisierung!$C$7,(IF(Bewertung!Q4=Faktorisierung!$A$8,Faktorisierung!$C$8,IF(Bewertung!Q4=Faktorisierung!$A$9,Faktorisierung!$C$9,IF(Bewertung!Q4=Faktorisierung!$A$10,Faktorisierung!$C$10,0))))))","v":""},{"$f":"IF(Bewertung!R4=\"\",\"\",IF(Bewertung!R4=Faktorisierung!$A$7,Faktorisierung!$C$7,(IF(Bewertung!R4=Faktorisierung!$A$8,Faktorisierung!$C$8,IF(Bewertung!R4=Faktorisierung!$A$9,Faktorisierung!$C$9,IF(Bewertung!R4=Faktorisierung!$A$10,Faktorisierung!$C$10,0))))))","v":""},{"$f":"IF(Bewertung!S4=\"\",\"\",IF(Bewertung!S4=Faktorisierung!$A$7,Faktorisierung!$C$7,(IF(Bewertung!S4=Faktorisierung!$A$8,Faktorisierung!$C$8,IF(Bewertung!S4=Faktorisierung!$A$9,Faktorisierung!$C$9,IF(Bewertung!S4=Faktorisierung!$A$10,Faktorisierung!$C$10,0))))))","v":""},{"$f":"IF(Bewertung!T4=\"\",\"\",IF(Bewertung!T4=Faktorisierung!$A$7,Faktorisierung!$C$7,(IF(Bewertung!T4=Faktorisierung!$A$8,Faktorisierung!$C$8,IF(Bewertung!T4=Faktorisierung!$A$9,Faktorisierung!$C$9,IF(Bewertung!T4=Faktorisierung!$A$10,Faktorisierung!$C$10,0))))))","v":""},{"$f":"IF(Bewertung!U4=\"\",\"\",IF(Bewertung!U4=Faktorisierung!$A$7,Faktorisierung!$C$7,(IF(Bewertung!U4=Faktorisierung!$A$8,Faktorisierung!$C$8,IF(Bewertung!U4=Faktorisierung!$A$9,Faktorisierung!$C$9,IF(Bewertung!U4=Faktorisierung!$A$10,Faktorisierung!$C$10,0))))))","v":""},{"$f":"IF(Bewertung!V4=\"\",\"\",IF(Bewertung!V4=Faktorisierung!$A$7,Faktorisierung!$C$7,(IF(Bewertung!V4=Faktorisierung!$A$8,Faktorisierung!$C$8,IF(Bewertung!V4=Faktorisierung!$A$9,Faktorisierung!$C$9,IF(Bewertung!V4=Faktorisierung!$A$10,Faktorisierung!$C$10,0))))))","v":""},{"$f":"IF(Bewertung!W4=\"\",\"\",IF(Bewertung!W4=Faktorisierung!$A$7,Faktorisierung!$C$7,(IF(Bewertung!W4=Faktorisierung!$A$8,Faktorisierung!$C$8,IF(Bewertung!W4=Faktorisierung!$A$9,Faktorisierung!$C$9,IF(Bewertung!W4=Faktorisierung!$A$10,Faktorisierung!$C$10,0))))))","v":""},{"$f":"IF(Bewertung!X4=\"\",\"\",IF(Bewertung!X4=Faktorisierung!$A$7,Faktorisierung!$C$7,(IF(Bewertung!X4=Faktorisierung!$A$8,Faktorisierung!$C$8,IF(Bewertung!X4=Faktorisierung!$A$9,Faktorisierung!$C$9,IF(Bewertung!X4=Faktorisierung!$A$10,Faktorisierung!$C$10,0))))))","v":""},{"$f":"IF(Bewertung!Y4=\"\",\"\",IF(Bewertung!Y4=Faktorisierung!$A$7,Faktorisierung!$C$7,(IF(Bewertung!Y4=Faktorisierung!$A$8,Faktorisierung!$C$8,IF(Bewertung!Y4=Faktorisierung!$A$9,Faktorisierung!$C$9,IF(Bewertung!Y4=Faktorisierung!$A$10,Faktorisierung!$C$10,0))))))","v":""},{"$f":"IF(Bewertung!Z4=\"\",\"\",IF(Bewertung!Z4=Faktorisierung!$A$7,Faktorisierung!$C$7,(IF(Bewertung!Z4=Faktorisierung!$A$8,Faktorisierung!$C$8,IF(Bewertung!Z4=Faktorisierung!$A$9,Faktorisierung!$C$9,IF(Bewertung!Z4=Faktorisierung!$A$10,Faktorisierung!$C$10,0))))))","v":""},{"$f":"IF(Bewertung!AA4=\"\",\"\",IF(Bewertung!AA4=Faktorisierung!$A$7,Faktorisierung!$C$7,(IF(Bewertung!AA4=Faktorisierung!$A$8,Faktorisierung!$C$8,IF(Bewertung!AA4=Faktorisierung!$A$9,Faktorisierung!$C$9,IF(Bewertung!AA4=Faktorisierung!$A$10,Faktorisierung!$C$10,0))))))","v":""},{"$f":"IF(Bewertung!AB4=\"\",\"\",IF(Bewertung!AB4=Faktorisierung!$A$7,Faktorisierung!$C$7,(IF(Bewertung!AB4=Faktorisierung!$A$8,Faktorisierung!$C$8,IF(Bewertung!AB4=Faktorisierung!$A$9,Faktorisierung!$C$9,IF(Bewertung!AB4=Faktorisierung!$A$10,Faktorisierung!$C$10,0))))))","v":""},{"$f":"IF(Bewertung!AC4=\"\",\"\",IF(Bewertung!AC4=Faktorisierung!$A$7,Faktorisierung!$C$7,(IF(Bewertung!AC4=Faktorisierung!$A$8,Faktorisierung!$C$8,IF(Bewertung!AC4=Faktorisierung!$A$9,Faktorisierung!$C$9,IF(Bewertung!AC4=Faktorisierung!$A$10,Faktorisierung!$C$10,0))))))","v":""},{"$f":"IF(Bewertung!AD4=\"\",\"\",IF(Bewertung!AD4=Faktorisierung!$A$7,Faktorisierung!$C$7,(IF(Bewertung!AD4=Faktorisierung!$A$8,Faktorisierung!$C$8,IF(Bewertung!AD4=Faktorisierung!$A$9,Faktorisierung!$C$9,IF(Bewertung!AD4=Faktorisierung!$A$10,Faktorisierung!$C$10,0))))))","v":""},{"$f":"IF(Bewertung!AE4=\"\",\"\",IF(Bewertung!AE4=Faktorisierung!$A$7,Faktorisierung!$C$7,(IF(Bewertung!AE4=Faktorisierung!$A$8,Faktorisierung!$C$8,IF(Bewertung!AE4=Faktorisierung!$A$9,Faktorisierung!$C$9,IF(Bewertung!AE4=Faktorisierung!$A$10,Faktorisierung!$C$10,0))))))","v":""},{"$f":"IF(Bewertung!AF4=\"\",\"\",IF(Bewertung!AF4=Faktorisierung!$A$7,Faktorisierung!$C$7,(IF(Bewertung!AF4=Faktorisierung!$A$8,Faktorisierung!$C$8,IF(Bewertung!AF4=Faktorisierung!$A$9,Faktorisierung!$C$9,IF(Bewertung!AF4=Faktorisierung!$A$10,Faktorisierung!$C$10,0))))))","v":""},{"$f":"IF(Bewertung!AG4=\"\",\"\",IF(Bewertung!AG4=Faktorisierung!$A$7,Faktorisierung!$C$7,(IF(Bewertung!AG4=Faktorisierung!$A$8,Faktorisierung!$C$8,IF(Bewertung!AG4=Faktorisierung!$A$9,Faktorisierung!$C$9,IF(Bewertung!AG4=Faktorisierung!$A$10,Faktorisierung!$C$10,0))))))","v":""},{"$f":"IF(Bewertung!AH4=\"\",\"\",IF(Bewertung!AH4=Faktorisierung!$A$7,Faktorisierung!$C$7,(IF(Bewertung!AH4=Faktorisierung!$A$8,Faktorisierung!$C$8,IF(Bewertung!AH4=Faktorisierung!$A$9,Faktorisierung!$C$9,IF(Bewertung!AH4=Faktorisierung!$A$10,Faktorisierung!$C$10,0))))))","v":""},{"$f":"IF(Bewertung!AI4=\"\",\"\",IF(Bewertung!AI4=Faktorisierung!$A$7,Faktorisierung!$C$7,(IF(Bewertung!AI4=Faktorisierung!$A$8,Faktorisierung!$C$8,IF(Bewertung!AI4=Faktorisierung!$A$9,Faktorisierung!$C$9,IF(Bewertung!AI4=Faktorisierung!$A$10,Faktorisierung!$C$10,0))))))","v":""},{"$f":"IF(Bewertung!AJ4=\"\",\"\",IF(Bewertung!AJ4=Faktorisierung!$A$7,Faktorisierung!$C$7,(IF(Bewertung!AJ4=Faktorisierung!$A$8,Faktorisierung!$C$8,IF(Bewertung!AJ4=Faktorisierung!$A$9,Faktorisierung!$C$9,IF(Bewertung!AJ4=Faktorisierung!$A$10,Faktorisierung!$C$10,0))))))","v":""},{"$f":"IF(Bewertung!AK4=\"\",\"\",IF(Bewertung!AK4=Faktorisierung!$A$7,Faktorisierung!$C$7,(IF(Bewertung!AK4=Faktorisierung!$A$8,Faktorisierung!$C$8,IF(Bewertung!AK4=Faktorisierung!$A$9,Faktorisierung!$C$9,IF(Bewertung!AK4=Faktorisierung!$A$10,Faktorisierung!$C$10,0))))))","v":""},{"$f":"IF(Bewertung!AL4=\"\",\"\",IF(Bewertung!AL4=Faktorisierung!$A$7,Faktorisierung!$C$7,(IF(Bewertung!AL4=Faktorisierung!$A$8,Faktorisierung!$C$8,IF(Bewertung!AL4=Faktorisierung!$A$9,Faktorisierung!$C$9,IF(Bewertung!AL4=Faktorisierung!$A$10,Faktorisierung!$C$10,0))))))","v":""},{"$f":"IF(Bewertung!AM4=\"\",\"\",IF(Bewertung!AM4=Faktorisierung!$A$7,Faktorisierung!$C$7,(IF(Bewertung!AM4=Faktorisierung!$A$8,Faktorisierung!$C$8,IF(Bewertung!AM4=Faktorisierung!$A$9,Faktorisierung!$C$9,IF(Bewertung!AM4=Faktorisierung!$A$10,Faktorisierung!$C$10,0))))))","v":""},{"$f":"IF(Bewertung!AN4=\"\",\"\",IF(Bewertung!AN4=Faktorisierung!$A$7,Faktorisierung!$C$7,(IF(Bewertung!AN4=Faktorisierung!$A$8,Faktorisierung!$C$8,IF(Bewertung!AN4=Faktorisierung!$A$9,Faktorisierung!$C$9,IF(Bewertung!AN4=Faktorisierung!$A$10,Faktorisierung!$C$10,0))))))","v":""},{"$f":"IF(Bewertung!AO4=\"\",\"\",IF(Bewertung!AO4=Faktorisierung!$A$7,Faktorisierung!$C$7,(IF(Bewertung!AO4=Faktorisierung!$A$8,Faktorisierung!$C$8,IF(Bewertung!AO4=Faktorisierung!$A$9,Faktorisierung!$C$9,IF(Bewertung!AO4=Faktorisierung!$A$10,Faktorisierung!$C$10,0))))))","v":""},{"$f":"IF(Bewertung!AP4=\"\",\"\",IF(Bewertung!AP4=Faktorisierung!$A$7,Faktorisierung!$C$7,(IF(Bewertung!AP4=Faktorisierung!$A$8,Faktorisierung!$C$8,IF(Bewertung!AP4=Faktorisierung!$A$9,Faktorisierung!$C$9,IF(Bewertung!AP4=Faktorisierung!$A$10,Faktorisierung!$C$10,0))))))","v":""},{"$f":"IF(Bewertung!AQ4=\"\",\"\",IF(Bewertung!AQ4=Faktorisierung!$A$7,Faktorisierung!$C$7,(IF(Bewertung!AQ4=Faktorisierung!$A$8,Faktorisierung!$C$8,IF(Bewertung!AQ4=Faktorisierung!$A$9,Faktorisierung!$C$9,IF(Bewertung!AQ4=Faktorisierung!$A$10,Faktorisierung!$C$10,0))))))","v":""},{"$f":"IF(Bewertung!AR4=\"\",\"\",IF(Bewertung!AR4=Faktorisierung!$A$7,Faktorisierung!$C$7,(IF(Bewertung!AR4=Faktorisierung!$A$8,Faktorisierung!$C$8,IF(Bewertung!AR4=Faktorisierung!$A$9,Faktorisierung!$C$9,IF(Bewertung!AR4=Faktorisierung!$A$10,Faktorisierung!$C$10,0))))))","v":""},{"$f":"IF(Bewertung!AS4=\"\",\"\",IF(Bewertung!AS4=Faktorisierung!$A$7,Faktorisierung!$C$7,(IF(Bewertung!AS4=Faktorisierung!$A$8,Faktorisierung!$C$8,IF(Bewertung!AS4=Faktorisierung!$A$9,Faktorisierung!$C$9,IF(Bewertung!AS4=Faktorisierung!$A$10,Faktorisierung!$C$10,0))))))","v":""},{"$f":"IF(Bewertung!AT4=\"\",\"\",IF(Bewertung!AT4=Faktorisierung!$A$7,Faktorisierung!$C$7,(IF(Bewertung!AT4=Faktorisierung!$A$8,Faktorisierung!$C$8,IF(Bewertung!AT4=Faktorisierung!$A$9,Faktorisierung!$C$9,IF(Bewertung!AT4=Faktorisierung!$A$10,Faktorisierung!$C$10,0))))))","v":""},{"$f":"IF(Bewertung!AU4=\"\",\"\",IF(Bewertung!AU4=Faktorisierung!$A$7,Faktorisierung!$C$7,(IF(Bewertung!AU4=Faktorisierung!$A$8,Faktorisierung!$C$8,IF(Bewertung!AU4=Faktorisierung!$A$9,Faktorisierung!$C$9,IF(Bewertung!AU4=Faktorisierung!$A$10,Faktorisierung!$C$10,0))))))","v":""},{"$f":"IF(Bewertung!AV4=\"\",\"\",IF(Bewertung!AV4=Faktorisierung!$A$7,Faktorisierung!$C$7,(IF(Bewertung!AV4=Faktorisierung!$A$8,Faktorisierung!$C$8,IF(Bewertung!AV4=Faktorisierung!$A$9,Faktorisierung!$C$9,IF(Bewertung!AV4=Faktorisierung!$A$10,Faktorisierung!$C$10,0))))))","v":""},{"$f":"IF(Bewertung!AW4=\"\",\"\",IF(Bewertung!AW4=Faktorisierung!$A$7,Faktorisierung!$C$7,(IF(Bewertung!AW4=Faktorisierung!$A$8,Faktorisierung!$C$8,IF(Bewertung!AW4=Faktorisierung!$A$9,Faktorisierung!$C$9,IF(Bewertung!AW4=Faktorisierung!$A$10,Faktorisierung!$C$10,0))))))","v":""},{"$f":"IF(Bewertung!AX4=\"\",\"\",IF(Bewertung!AX4=Faktorisierung!$A$7,Faktorisierung!$C$7,(IF(Bewertung!AX4=Faktorisierung!$A$8,Faktorisierung!$C$8,IF(Bewertung!AX4=Faktorisierung!$A$9,Faktorisierung!$C$9,IF(Bewertung!AX4=Faktorisierung!$A$10,Faktorisierung!$C$10,0))))))","v":""},{"$f":"IF(Bewertung!AY4=\"\",\"\",IF(Bewertung!AY4=Faktorisierung!$A$7,Faktorisierung!$C$7,(IF(Bewertung!AY4=Faktorisierung!$A$8,Faktorisierung!$C$8,IF(Bewertung!AY4=Faktorisierung!$A$9,Faktorisierung!$C$9,IF(Bewertung!AY4=Faktorisierung!$A$10,Faktorisierung!$C$10,0))))))","v":""},{"$f":"IF(Bewertung!AZ4=\"\",\"\",IF(Bewertung!AZ4=Faktorisierung!$A$7,Faktorisierung!$C$7,(IF(Bewertung!AZ4=Faktorisierung!$A$8,Faktorisierung!$C$8,IF(Bewertung!AZ4=Faktorisierung!$A$9,Faktorisierung!$C$9,IF(Bewertung!AZ4=Faktorisierung!$A$10,Faktorisierung!$C$10,0))))))","v":""},{"$f":"IF(Bewertung!BA4=\"\",\"\",IF(Bewertung!BA4=Faktorisierung!$A$7,Faktorisierung!$C$7,(IF(Bewertung!BA4=Faktorisierung!$A$8,Faktorisierung!$C$8,IF(Bewertung!BA4=Faktorisierung!$A$9,Faktorisierung!$C$9,IF(Bewertung!BA4=Faktorisierung!$A$10,Faktorisierung!$C$10,0))))))","v":""},{"$f":"IF(Bewertung!BB4=\"\",\"\",IF(Bewertung!BB4=Faktorisierung!$A$7,Faktorisierung!$C$7,(IF(Bewertung!BB4=Faktorisierung!$A$8,Faktorisierung!$C$8,IF(Bewertung!BB4=Faktorisierung!$A$9,Faktorisierung!$C$9,IF(Bewertung!BB4=Faktorisierung!$A$10,Faktorisierung!$C$10,0))))))","v":""},{"$f":"IF(Bewertung!BC4=\"\",\"\",IF(Bewertung!BC4=Faktorisierung!$A$7,Faktorisierung!$C$7,(IF(Bewertung!BC4=Faktorisierung!$A$8,Faktorisierung!$C$8,IF(Bewertung!BC4=Faktorisierung!$A$9,Faktorisierung!$C$9,IF(Bewertung!BC4=Faktorisierung!$A$10,Faktorisierung!$C$10,0))))))","v":""},{"$f":"IF(Bewertung!BD4=\"\",\"\",IF(Bewertung!BD4=Faktorisierung!$A$7,Faktorisierung!$C$7,(IF(Bewertung!BD4=Faktorisierung!$A$8,Faktorisierung!$C$8,IF(Bewertung!BD4=Faktorisierung!$A$9,Faktorisierung!$C$9,IF(Bewertung!BD4=Faktorisierung!$A$10,Faktorisierung!$C$10,0))))))","v":""},{"$f":"IF(Bewertung!BE4=\"\",\"\",IF(Bewertung!BE4=Faktorisierung!$A$7,Faktorisierung!$C$7,(IF(Bewertung!BE4=Faktorisierung!$A$8,Faktorisierung!$C$8,IF(Bewertung!BE4=Faktorisierung!$A$9,Faktorisierung!$C$9,IF(Bewertung!BE4=Faktorisierung!$A$10,Faktorisierung!$C$10,0))))))","v":""},{"$f":"IF(Bewertung!BF4=\"\",\"\",IF(Bewertung!BF4=Faktorisierung!$A$7,Faktorisierung!$C$7,(IF(Bewertung!BF4=Faktorisierung!$A$8,Faktorisierung!$C$8,IF(Bewertung!BF4=Faktorisierung!$A$9,Faktorisierung!$C$9,IF(Bewertung!BF4=Faktorisierung!$A$10,Faktorisierung!$C$10,0))))))","v":""},{"$f":"IF(Bewertung!BG4=\"\",\"\",IF(Bewertung!BG4=Faktorisierung!$A$7,Faktorisierung!$C$7,(IF(Bewertung!BG4=Faktorisierung!$A$8,Faktorisierung!$C$8,IF(Bewertung!BG4=Faktorisierung!$A$9,Faktorisierung!$C$9,IF(Bewertung!BG4=Faktorisierung!$A$10,Faktorisierung!$C$10,0))))))","v":""},{"$f":"IF(Bewertung!BH4=\"\",\"\",IF(Bewertung!BH4=Faktorisierung!$A$7,Faktorisierung!$C$7,(IF(Bewertung!BH4=Faktorisierung!$A$8,Faktorisierung!$C$8,IF(Bewertung!BH4=Faktorisierung!$A$9,Faktorisierung!$C$9,IF(Bewertung!BH4=Faktorisierung!$A$10,Faktorisierung!$C$10,0))))))","v":""},{"$f":"IF(Bewertung!BI4=\"\",\"\",IF(Bewertung!BI4=Faktorisierung!$A$7,Faktorisierung!$C$7,(IF(Bewertung!BI4=Faktorisierung!$A$8,Faktorisierung!$C$8,IF(Bewertung!BI4=Faktorisierung!$A$9,Faktorisierung!$C$9,IF(Bewertung!BI4=Faktorisierung!$A$10,Faktorisierung!$C$10,0))))))","v":""},{"$f":"IF(Bewertung!BJ4=\"\",\"\",IF(Bewertung!BJ4=Faktorisierung!$A$7,Faktorisierung!$C$7,(IF(Bewertung!BJ4=Faktorisierung!$A$8,Faktorisierung!$C$8,IF(Bewertung!BJ4=Faktorisierung!$A$9,Faktorisierung!$C$9,IF(Bewertung!BJ4=Faktorisierung!$A$10,Faktorisierung!$C$10,0))))))","v":""},{"$f":"IF(Bewertung!BK4=\"\",\"\",IF(Bewertung!BK4=Faktorisierung!$A$7,Faktorisierung!$C$7,(IF(Bewertung!BK4=Faktorisierung!$A$8,Faktorisierung!$C$8,IF(Bewertung!BK4=Faktorisierung!$A$9,Faktorisierung!$C$9,IF(Bewertung!BK4=Faktorisierung!$A$10,Faktorisierung!$C$10,0))))))","v":""},{"$f":"IF(Bewertung!BL4=\"\",\"\",IF(Bewertung!BL4=Faktorisierung!$A$7,Faktorisierung!$C$7,(IF(Bewertung!BL4=Faktorisierung!$A$8,Faktorisierung!$C$8,IF(Bewertung!BL4=Faktorisierung!$A$9,Faktorisierung!$C$9,IF(Bewertung!BL4=Faktorisierung!$A$10,Faktorisierung!$C$10,0))))))","v":""}]
[{"$nulls":3},"2. Zu- und Durchfahrten",{"$f":"IF(Bewertung!I5=\"\",\"\",IF(Bewertung!I5=Faktorisierung!$E$7,Faktorisierung!$G$7,(IF(Bewertung!I5=Faktorisierung!$E$8,Faktorisierung!$G$8,IF(Bewertung!I5=Faktorisierung!$E$9,Faktorisierung!$G$9,IF(Bewertung!I5=Faktorisierung!$E$10,Faktorisierung!$G$10,0))))))","v":0.5},{"$f":"IF(Bewertung!J5=\"\",\"\",IF(Bewertung!J5=Faktorisierung!$E$7,Faktorisierung!$G$7,(IF(Bewertung!J5=Faktorisierung!$E$8,Faktorisierung!$G$8,IF(Bewertung!J5=Faktorisierung!$E$9,Faktorisierung!$G$9,IF(Bewertung!J5=Faktorisierung!$E$10,Faktorisierung!$G$10,0))))))","v":""},{"$f":"IF(Bewertung!#REF!=\"\",\"\",IF(Bewertung!#REF!=Faktorisierung!$E$7,Faktorisierung!$G$7,(IF(Bewertung!#REF!=Faktorisierung!$E$8,Faktorisierung!$G$8,IF(Bewertung!#REF!=Faktorisierung!$E$9,Faktorisierung!$G$9,IF(Bewertung!#REF!=Faktorisierung!$E$10,Faktorisierung!$G$10,0))))))","v":{"$error":"#REF!"}},{"$f":"IF(Bewertung!#REF!=\"\",\"\",IF(Bewertung!#REF!=Faktorisierung!$E$7,Faktorisierung!$G$7,(IF(Bewertung!#REF!=Faktorisierung!$E$8,Faktorisierung!$G$8,IF(Bewertung!#REF!=Faktorisierung!$E$9,Faktorisierung!$G$9,IF(Bewertung!#REF!=Faktorisierung!$E$10,Faktorisierung!$G$10,0))))))","v":{"$error":"#REF!"}},{"$f":"IF(Bewertung!#REF!=\"\",\"\",IF(Bewertung!#REF!=Faktorisierung!$E$7,Faktorisierung!$G$7,(IF(Bewertung!#REF!=Faktorisierung!$E$8,Faktorisierung!$G$8,IF(Bewertung!#REF!=Faktorisierung!$E$9,Faktorisierung!$G$9,IF(Bewertung!#REF!=Faktorisierung!$E$10,Faktorisierung!$G$10,0))))))","v":{"$error":"#REF!"}},{"$f":"IF(Bewertung!#REF!=\"\",\"\",IF(Bewertung!#REF!=Faktorisierung!$E$7,Faktorisierung!$G$7,(IF(Bewertung!#REF!=Faktorisierung!$E$8,Faktorisierung!$G$8,IF(Bewertung!#REF!=Faktorisierung!$E$9,Faktorisierung!$G$9,IF(Bewertung!#REF!=Faktorisierung!$E$10,Faktorisierung!$G$10,0))))))","v":{"$error":"#REF!"}},{"$f":"IF(Bewertung!#REF!=\"\",\"\",IF(Bewertung!#REF!=Faktorisierung!$E$7,Faktorisierung!$G$7,(IF(Bewertung!#REF!=Faktorisierung!$E$8,Faktorisierung!$G$8,IF(Bewertung!#REF!=Faktorisierung!$E$9,Faktorisierung!$G$9,IF(Bewertung!#REF!=Faktorisierung!$E$10,Faktorisierung!$G$10,0))))))","v":{"$error":"#REF!"}},{"$f":"IF(Bewertung!#REF!=\"\",\"\",IF(Bewertung!#REF!=Faktorisierung!$E$7,Faktorisierung!$G$7,(IF(Bewertung!#REF!=Faktorisierung!$E$8,Faktorisierung!$G$8,IF(Bewertung!#REF!=Faktorisierung!$E$9,Faktorisierung!$G$9,IF(Bewertung!#REF!=Faktorisierung!$E$10,Faktorisierung!$G$10,0))))))","v":{"$error":"#REF!"}},{"$f":"IF(Bewertung!K5=\"\",\"\",IF(Bewertung!K5=Faktorisierung!$E$7,Faktorisierung!$G$7,(IF(Bewertung!K5=Faktorisierung!$E$8,Faktorisierung!$G$8,IF(Bewertung!K5=Faktorisierung!$E$9,Faktorisierung!$G$9,IF(Bewertung!K5=Faktorisierung!$E$10,Faktorisierung!$G$10,0))))))","v":""},{"$f":"IF(Bewertung!L5=\"\",\"\",IF(Bewertung!L5=Faktorisierung!$E$7,Faktorisierung!$G$7,(IF(Bewertung!L5=Faktorisierung!$E$8,Faktorisierung!$G$8,IF(Bewertung!L5=Faktorisierung!$E$9,Faktorisierung!$G$9,IF(Bewertung!L5=Faktorisierung!$E$10,Faktorisierung!$G$10,0))))))","v":""},{"$f":"IF(Bewertung!M5=\"\",\"\",IF(Bewertung!M5=Faktorisierung!$E$7,Faktorisierung!$G$7,(IF(Bewertung!M5=Faktorisierung!$E$8,Faktorisierung!$G$8,IF(Bewertung!M5=Faktorisierung!$E$9,Faktorisierung!$G$9,IF(Bewertung!M5=Faktorisierung!$E$10,Faktorisierung!$G$10,0))))))","v":""},{"$f":"IF(Bewertung!N5=\"\",\"\",IF(Bewertung!N5=Faktorisierung!$E$7,Faktorisierung!$G$7,(IF(Bewertung!N5=Faktorisierung!$E$8,Faktorisierung!$G$8,IF(Bewertung!N5=Faktorisierung!$E$9,Faktorisierung!$G$9,IF(Bewertung!N5=Faktorisierung!$E$10,Faktorisierung!$G$10,0))))))","v":""},{"$f":"IF(Bewertung!O5=\"\",\"\",IF(Bewertung!O5=Faktorisierung!$E$7,Faktorisierung!$G$7,(IF(Bewertung!O5=Faktorisierung!$E$8,Faktorisierung!$G$8,IF(Bewertung!O5=Faktorisierung!$E$9,Faktorisierung!$G$9,IF(Bewertung!O5=Faktorisierung!$E$10,Faktorisierung!$G$10,0))))))","v":""},{"$f":"IF(Bewertung!P5=\"\",\"\",IF(Bewertung!P5=Faktorisierung!$E$7,Faktorisierung!$G$7,(IF(Bewertung!P5=Faktorisierung!$E$8,Faktorisierung!$G$8,IF(Bewertung!P5=Faktorisierung!$E$9,Faktorisierung!$G$9,IF(Bewertung!P5=Faktorisierung!$E$10,Faktorisierung!$G$10,0))))))","v":""},{"$f":"IF(Bewertung!Q5=\"\",\"\",IF(Bewertung!Q5=Faktorisierung!$E$7,Faktorisierung!$G$7,(IF(Bewertung!Q5=Faktorisierung!$E$8,Faktorisierung!$G$8,IF(Bewertung!Q5=Faktorisierung!$E$9,Faktorisierung!$G$9,IF(Bewertung!Q5=Faktorisierung!$E$10,Faktorisierung!$G$10,0))))))","v":""},{"$f":"IF(Bewertung!R5=\"\",\"\",IF(Bewertung!R5=Faktorisierung!$E$7,Faktorisierung!$G$7,(IF(Bewertung!R5=Faktorisierung!$E$8,Faktorisierung!$G$8,IF(Bewertung!R5=Faktorisierung!$E$9,Faktorisierung!$G$9,IF(Bewertung!R5=Faktorisierung!$E$10,Faktorisierung!$G$10,0))))))","v":""},{"$f":"IF(Bewertung!S5=\"\",\"\",IF(Bewertung!S5=Faktorisierung!$E$7,Faktorisierung!$G$7,(IF(Bewertung!S5=Faktorisierung!$E$8,Faktorisierung!$G$8,IF(Bewertung!S5=Faktorisierung!$E$9,Faktorisierung!$G$9,IF(Bewertung!S5=Faktorisierung!$E$10,Faktorisierung!$G$10,0))))))","v":""},{"$f":"IF(Bewertung!T5=\"\",\"\",IF(Bewertung!T5=Faktorisierung!$E$7,Faktorisierung!$G$7,(IF(Bewertung!T5=Faktorisierung!$E$8,Faktorisierung!$G$8,IF(Bewertung!T5=Faktorisierung!$E$9,Faktorisierung!$G$9,IF(Bewertung!T5=Faktorisierung!$E$10,Faktorisierung!$G$10,0))))))","v":""},{"$f":"IF(Bewertung!U5=\"\",\"\",IF(Bewertung!U5=Faktorisierung!$E$7,Faktorisierung!$G$7,(IF(Bewertung!U5=Faktorisierung!$E$8,Faktorisierung!$G$8,IF(Bewertung!U5=Faktorisierung!$E$9,Faktorisierung!$G$9,IF(Bewertung!U5=Faktorisierung!$E$10,Faktorisierung!$G$10,0))))))","v":""},{"$f":"IF(Bewertung!V5=\"\",\"\",IF(Bewertung!V5=Faktorisierung!$E$7,Faktorisierung!$G$7,(IF(Bewertung!V5=Faktorisierung!$E$8,Faktorisierung!$G$8,IF(Bewertung!V5=Faktorisierung!$E$9,Faktorisierung!$G$9,IF(Bewertung!V5=Faktorisierung!$E$10,Faktorisierung!$G$10,0))))))","v":""},{"$f":"IF(Bewertung!W5=\"\",\"\",IF(Bewertung!W5=Faktorisierung!$E$7,Faktorisierung!$G$7,(IF(Bewertung!W5=Faktorisierung!$E$8,Faktorisierung!$G$8,IF(Bewertung!W5=Faktorisierung!$E$9,Faktorisierung!$G$9,IF(Bewertung!W5=Faktorisierung!$E$10,Faktorisierung!$G$10,0))))))","v":""},{"$f":"IF(Bewertung!X5=\"\",\"\",IF(Bewertung!X5=Faktorisierung!$E$7,Faktorisierung!$G$7,(IF(Bewertung!X5=Faktorisierung!$E$8,Faktorisierung!$G$8,IF(Bewertung!X5=Faktorisierung!$E$9,Faktorisierung!$G$9,IF(Bewertung!X5=Faktorisierung!$E$10,Faktorisierung!$G$10,0))))))","v":""},{"$f":"IF(Bewertung!Y5=\"\",\"\",IF(Bewertung!Y5=Faktorisierung!$E$7,Faktorisierung!$G$7,(IF(Bewertung!Y5=Faktorisierung!$E$8,Faktorisierung!$G$8,IF(Bewertung!Y5=Faktorisierung!$E$9,Faktorisierung!$G$9,IF(Bewertung!Y5=Faktorisierung!$E$10,Faktorisierung!$G$10,0))))))","v":""},{"$f":"IF(Bewertung!Z5=\"\",\"\",IF(Bewertung!Z5=Faktorisierung!$E$7,Faktorisierung!$G$7,(IF(Bewertung!Z5=Faktorisierung!$E$8,Faktorisierung!$G$8,IF(Bewertung!Z5=Faktorisierung!$E$9,Faktorisierung!$G$9,IF(Bewertung!Z5=Faktorisierung!$E$10,Faktorisierung!$G$10,0))))))","v":""},{"$f":"IF(Bewertung!AA5=\"\",\"\",IF(Bewertung!AA5=Faktorisierung!$E$7,Faktorisierung!$G$7,(IF(Bewertung!AA5=Faktorisierung!$E$8,Faktorisierung!$G$8,IF(Bewertung!AA5=Faktorisierung!$E$9,Faktorisierung!$G$9,IF(Bewertung!AA5=Faktorisierung!$E$10,Faktorisierung!$G$10,0))))))","v":""},{"$f":"IF(Bewertung!AB5=\"\",\"\",IF(Bewertung!AB5=Faktorisierung!$E$7,Faktorisierung!$G$7,(IF(Bewertung!AB5=Faktorisierung!$E$8,Faktorisierung!$G$8,IF(Bewertung!AB5=Faktorisierung!$E$9,Faktorisierung!$G$9,IF(Bewertung!AB5=Faktorisierung!$E$10,Faktorisierung!$G$10,0))))))","v":""},{"$f":"IF(Bewertung!AC5=\"\",\"\",IF(Bewertung!AC5=Faktorisierung!$E$7,Faktorisierung!$G$7,(IF(Bewertung!AC5=Faktorisierung!$E$8,Faktorisierung!$G$8,IF(Bewertung!AC5=Faktorisierung!$E$9,Faktorisierung!$G$9,IF(Bewertung!AC5=Faktorisierung!$E$10,Faktorisierung!$G$10,0))))))","v":""},{"$f":"IF(Bewertung!AD5=\"\",\"\",IF(Bewertung!AD5=Faktorisierung!$E$7,Faktorisierung!$G$7,(IF(Bewertung!AD5=Faktorisierung!$E$8,Faktorisierung!$G$8,IF(Bewertung!AD5=Faktorisierung!$E$9,Faktorisierung!$G$9,IF(Bewertung!AD5=Faktorisierung!$E$10,Faktorisierung!$G$10,0))))))","v":""},{"$f":"IF(Bewertung!AE5=\"\",\"\",IF(Bewertung!AE5=Faktorisierung!$E$7,Faktorisierung!$G$7,(IF(Bewertung!AE5=Faktorisierung!$E$8,Faktorisierung!$G$8,IF(Bewertung!AE5=Faktorisierung!$E$9,Faktorisierung!$G$9,IF(Bewertung!AE5=Faktorisierung!$E$10,Faktorisierung!$G$10,0))))))","v":""},{"$f":"IF(Bewertung!AF5=\"\",\"\",IF(Bewertung!AF5=Faktorisierung!$E$7,Faktorisierung!$G$7,(IF(Bewertung!AF5=Faktorisierung!$E$8,Faktorisierung!$G$8,IF(Bewertung!AF5=Faktorisierung!$E$9,Faktorisierung!$G$9,IF(Bewertung!AF5=Faktorisierung!$E$10,Faktorisierung!$G$10,0))))))","v":""},{"$f":"IF(Bewertung!AG5=\"\",\"\",IF(Bewertung!AG5=Faktorisierung!$E$7,Faktorisierung!$G$7,(IF(Bewertung!AG5=Faktorisierung!$E$8,Faktorisierung!$G$8,IF(Bewertung!AG5=Faktorisierung!$E$9,Faktorisierung!$G$9,IF(Bewertung!AG5=Faktorisierung!$E$10,Faktorisierung!$G$10,0))))))","v":""},{"$f":"IF(Bewertung!AH5=\"\",\"\",IF(Bewertung!AH5=Faktorisierung!$E$7,Faktorisierung!$G$7,(IF(Bewertung!AH5=Faktorisierung!$E$8,Faktorisierung!$G$8,IF(Bewertung!AH5=Faktorisierung!$E$9,Faktorisierung!$G$9,IF(Bewertung!AH5=Faktorisierung!$E$10,Faktorisierung!$G$10,0))))))","v":""},{"$f":"IF(Bewertung!AI5=\"\",\"\",IF(Bewertung!AI5=Faktorisierung!$E$7,Faktorisierung!$G$7,(IF(Bewertung!AI5=Faktorisierung!$E$8,Faktorisierung!$G$8,IF(Bewertung!AI5=Faktorisierung!$E$9,Faktorisierung!$G$9,IF(Bewertung!AI5=Faktorisierung!$E$10,Faktorisierung!$G$10,0))))))","v":""},{"$f":"IF(Bewertung!AJ5=\"\",\"\",IF(Bewertung!AJ5=Faktorisierung!$E$7,Faktorisierung!$G$7,(IF(Bewertung!AJ5=Faktorisierung!$E$8,Faktorisierung!$G$8,IF(Bewertung!AJ5=Faktorisierung!$E$9,Faktorisierung!$G$9,IF(Bewertung!AJ5=Faktorisierung!$E$10,Faktorisierung!$G$10,0))))))","v":""},{"$f":"IF(Bewertung!AK5=\"\",\"\",IF(Bewertung!AK5=Faktorisierung!$E$7,Faktorisierung!$G$7,(IF(Bewertung!AK5=Faktorisierung!$E$8,Faktorisierung!$G$8,IF(Bewertung!AK5=Faktorisierung!$E$9,Faktorisierung!$G$9,IF(Bewertung!AK5=Faktorisierung!$E$10,Faktorisierung!$G$10,0))))))","v":""},{"$f":"IF(Bewertung!AL5=\"\",\"\",IF(Bewertung!AL5=Faktorisierung!$E$7,Faktorisierung!$G$7,(IF(Bewertung!AL5=Faktorisierung!$E$8,Faktorisierung!$G$8,IF(Bewertung!AL5=Faktorisierung!$E$9,Faktorisierung!$G$9,IF(Bewertung!AL5=Faktorisierung!$E$10,Faktorisierung!$G$10,0))))))","v":""},{"$f":"IF(Bewertung!AM5=\"\",\"\",IF(Bewertung!AM5=Faktorisierung!$E$7,Faktorisierung!$G$7,(IF(Bewertung!AM5=Faktorisierung!$E$8,Faktorisierung!$G$8,IF(Bewertung!AM5=Faktorisierung!$E$9,Faktorisierung!$G$9,IF(Bewertung!AM5=Faktorisierung!$E$10,Faktorisierung!$G$10,0))))))","v":""},{"$f":"IF(Bewertung!AN5=\"\",\"\",IF(Bewertung!AN5=Faktorisierung!$E$7,Faktorisierung!$G$7,(IF(Bewertung!AN5=Faktorisierung!$E$8,Faktorisierung!$G$8,IF(Bewertung!AN5=Faktorisierung!$E$9,Faktorisierung!$G$9,IF(Bewertung!AN5=Faktorisierung!$E$10,Faktorisierung!$G$10,0))))))","v":""},{"$f":"IF(Bewertung!AO5=\"\",\"\",IF(Bewertung!AO5=Faktorisierung!$E$7,Faktorisierung!$G$7,(IF(Bewertung!AO5=Faktorisierung!$E$8,Faktorisierung!$G$8,IF(Bewertung!AO5=Faktorisierung!$E$9,Faktorisierung!$G$9,IF(Bewertung!AO5=Faktorisierung!$E$10,Faktorisierung!$G$10,0))))))","v":""},{"$f":"IF(Bewertung!AP5=\"\",\"\",IF(Bewertung!AP5=Faktorisierung!$E$7,Faktorisierung!$G$7,(IF(Bewertung!AP5=Faktorisierung!$E$8,Faktorisierung!$G$8,IF(Bewertung!AP5=Faktorisierung!$E$9,Faktorisierung!$G$9,IF(Bewertung!AP5=Faktorisierung!$E$10,Faktorisierung!$G$10,0))))))","v":""},{"$f":"IF(Bewertung!AQ5=\"\",\"\",IF(Bewertung!AQ5=Faktorisierung!$E$7,Faktorisierung!$G$7,(IF(Bewertung!AQ5=Faktorisierung!$E$8,Faktorisierung!$G$8,IF(Bewertung!AQ5=Faktorisierung!$E$9,Faktorisierung!$G$9,IF(Bewertung!AQ5=Faktorisierung!$E$10,Faktorisierung!$G$10,0))))))","v":""},{"$f":"IF(Bewertung!AR5=\"\",\"\",IF(Bewertung!AR5=Faktorisierung!$E$7,Faktorisierung!$G$7,(IF(Bewertung!AR5=Faktorisierung!$E$8,Faktorisierung!$G$8,IF(Bewertung!AR5=Faktorisierung!$E$9,Faktorisierung!$G$9,IF(Bewertung!AR5=Faktorisierung!$E$10,Faktorisierung!$G$10,0))))))","v":""},{"$f":"IF(Bewertung!AS5=\"\",\"\",IF(Bewertung!AS5=Faktorisierung!$E$7,Faktorisierung!$G$7,(IF(Bewertung!AS5=Faktorisierung!$E$8,Faktorisierung!$G$8,IF(Bewertung!AS5=Faktorisierung!$E$9,Faktorisierung!$G$9,IF(Bewertung!AS5=Faktorisierung!$E$10,Faktorisierung!$G$10,0))))))","v":""},{"$f":"IF(Bewertung!AT5=\"\",\"\",IF(Bewertung!AT5=Faktorisierung!$E$7,Faktorisierung!$G$7,(IF(Bewertung!AT5=Faktorisierung!$E$8,Faktorisierung!$G$8,IF(Bewertung!AT5=Faktorisierung!$E$9,Faktorisierung!$G$9,IF(Bewertung!AT5=Faktorisierung!$E$10,Faktorisierung!$G$10,0))))))","v":""},{"$f":"IF(Bewertung!AU5=\"\",\"\",IF(Bewertung!AU5=Faktorisierung!$E$7,Faktorisierung!$G$7,(IF(Bewertung!AU5=Faktorisierung!$E$8,Faktorisierung!$G$8,IF(Bewertung!AU5=Faktorisierung!$E$9,Faktorisierung!$G$9,IF(Bewertung!AU5=Faktorisierung!$E$10,Faktorisierung!$G$10,0))))))","v":""},{"$f":"IF(Bewertung!AV5=\"\",\"\",IF(Bewertung!AV5=Faktorisierung!$E$7,Faktorisierung!$G$7,(IF(Bewertung!AV5=Faktorisierung!$E$8,Faktorisierung!$G$8,IF(Bewertung!AV5=Faktorisierung!$E$9,Faktorisierung!$G$9,IF(Bewertung!AV5=Faktorisierung!$E$10,Faktorisierung!$G$10,0))))))","v":""},{"$f":"IF(Bewertung!AW5=\"\",\"\",IF(Bewertung!AW5=Faktorisierung!$E$7,Faktorisierung!$G$7,(IF(Bewertung!AW5=Faktorisierung!$E$8,Faktorisierung!$G$8,IF(Bewertung!AW5=Faktorisierung!$E$9,Faktorisierung!$G$9,IF(Bewertung!AW5=Faktorisierung!$E$10,Faktorisierung!$G$10,0))))))","v":""},{"$f":"IF(Bewertung!AX5=\"\",\"\",IF(Bewertung!AX5=Faktorisierung!$E$7,Faktorisierung!$G$7,(IF(Bewertung!AX5=Faktorisierung!$E$8,Faktorisierung!$G$8,IF(Bewertung!AX5=Faktorisierung!$E$9,Faktorisierung!$G$9,IF(Bewertung!AX5=Faktorisierung!$E$10,Faktorisierung!$G$10,0))))))","v":""},{"$f":"IF(Bewertung!AY5=\"\",\"\",IF(Bewertung!AY5=Faktorisierung!$E$7,Faktorisierung!$G$7,(IF(Bewertung!AY5=Faktorisierung!$E$8,Faktorisierung!$G$8,IF(Bewertung!AY5=Faktorisierung!$E$9,Faktorisierung!$G$9,IF(Bewertung!AY5=Faktorisierung!$E$10,Faktorisierung!$G$10,0))))))","v":""},{"$f":"IF(Bewertung!AZ5=\"\",\"\",IF(Bewertung!AZ5=Faktorisierung!$E$7,Faktorisierung!$G$7,(IF(Bewertung!AZ5=Faktorisierung!$E$8,Faktorisierung!$G$8,IF(Bewertung!AZ5=Faktorisierung!$E$9,Faktorisierung!$G$9,IF(Bewertung!AZ5=Faktorisierung!$E$10,Faktorisierung!$G$10,0))))))","v":""},{"$f":"IF(Bewertung!BA5=\"\",\"\",IF(Bewertung!BA5=Faktorisierung!$E$7,Faktorisierung!$G$7,(IF(Bewertung!BA5=Faktorisierung!$E$8,Faktorisierung!$G$8,IF(Bewertung!BA5=Faktorisierung!$E$9,Faktorisierung!$G$9,IF(Bewertung!BA5=Faktorisierung!$E$10,Faktorisierung!$G$10,0))))))","v":""},{"$f":"IF(Bewertung!BB5=\"\",\"\",IF(Bewertung!BB5=Faktorisierung!$E$7,Faktorisierung!$G$7,(IF(Bewertung!BB5=Faktorisierung!$E$8,Faktorisierung!$G$8,IF(Bewertung!BB5=Faktorisierung!$E$9,Faktorisierung!$G$9,IF(Bewertung!BB5=Faktorisierung!$E$10,Faktorisierung!$G$10,0))))))","v":""},{"$f":"IF(Bewertung!BC5=\"\",\"\",IF(Bewertung!BC5=Faktorisierung!$E$7,Faktorisierung!$G$7,(IF(Bewertung!BC5=Faktorisierung!$E$8,Faktorisierung!$G$8,IF(Bewertung!BC5=Faktorisierung!$E$9,Faktorisierung!$G$9,IF(Bewertung!BC5=Faktorisierung!$E$10,Faktorisierung!$G$10,0))))))","v":""},{"$f":"IF(Bewertung!BD5=\"\",\"\",IF(Bewertung!BD5=Faktorisierung!$E$7,Faktorisierung!$G$7,(IF(Bewertung!BD5=Faktorisierung!$E$8,Faktorisierung!$G$8,IF(Bewertung!BD5=Faktorisierung!$E$9,Faktorisierung!$G$9,IF(Bewertung!BD5=Faktorisierung!$E$10,Faktorisierung!$G$10,0))))))","v":""},{"$f":"IF(Bewertung!BE5=\"\",\"\",IF(Bewertung!BE5=Faktorisierung!$E$7,Faktorisierung!$G$7,(IF(Bewertung!BE5=Faktorisierung!$E$8,Faktorisierung!$G$8,IF(Bewertung!BE5=Faktorisierung!$E$9,Faktorisierung!$G$9,IF(Bewertung!BE5=Faktorisierung!$E$10,Faktorisierung!$G$10,0))))))","v":""},{"$f":"IF(Bewertung!BF5=\"\",\"\",IF(Bewertung!BF5=Faktorisierung!$E$7,Faktorisierung!$G$7,(IF(Bewertung!BF5=Faktorisierung!$E$8,Faktorisierung!$G$8,IF(Bewertung!BF5=Faktorisierung!$E$9,Faktorisierung!$G$9,IF(Bewertung!BF5=Faktorisierung!$E$10,Faktorisierung!$G$10,0))))))","v":""},{"$f":"IF(Bewertung!BG5=\"\",\"\",IF(Bewertung!BG5=Faktorisierung!$E$7,Faktorisierung!$G$7,(IF(Bewertung!BG5=Faktorisierung!$E$8,Faktorisierung!$G$8,IF(Bewertung!BG5=Faktorisierung!$E$9,Faktorisierung!$G$9,IF(Bewertung!BG5=Faktorisierung!$E$10,Faktorisierung!$G$10,0))))))","v":""},{"$f":"IF(Bewertung!BH5=\"\",\"\",IF(Bewertung!BH5=Faktorisierung!$E$7,Faktorisierung!$G$7,(IF(Bewertung!BH5=Faktorisierung!$E$8,Faktorisierung!$G$8,IF(Bewertung!BH5=Faktorisierung!$E$9,Faktorisierung!$G$9,IF(Bewertung!BH5=Faktorisierung!$E$10,Faktorisierung!$G$10,0))))))","v":""},{"$f":"IF(Bewertung!BI5=\"\",\"\",IF(Bewertung!BI5=Faktorisierung!$E$7,Faktorisierung!$G$7,(IF(Bewertung!BI5=Faktorisierung!$E$8,Faktorisierung!$G$8,IF(Bewertung!BI5=Faktorisierung!$E$9,Faktorisierung!$G$9,IF(Bewertung!BI5=Faktorisierung!$E$10,Faktorisierung!$G$10,0))))))","v":""},{"$f":"IF(Bewertung!BJ5=\"\",\"\",IF(Bewertung!BJ5=Faktorisierung!$E$7,Faktorisierung!$G$7,(IF(Bewertung!BJ5=Faktorisierung!$E$8,Faktorisierung!$G$8,IF(Bewertung!BJ5=Faktorisierung!$E$9,Faktorisierung!$G$9,IF(Bewertung!BJ5=Faktorisierung!$E$10,Faktorisierung!$G$10,0))))))","v":""},{"$f":"IF(Bewertung!BK5=\"\",\"\",IF(Bewertung!BK5=Faktorisierung!$E$7,Faktorisierung!$G$7,(IF(Bewertung!BK5=Faktorisierung!$E$8,Faktorisierung!$G$8,IF(Bewertung!BK5=Faktorisierung!$E$9,Faktorisierung!$G$9,IF(Bewertung!BK5=Faktorisierung!$E$10,Faktorisierung!$G$10,0))))))","v":""},{"$f":"IF(Bewertung!BL5=\"\",\"\",IF(Bewertung!BL5=Faktorisierung!$E$7,Faktorisierung!$G$7,(IF(Bewertung!BL5=Faktorisierung!$E$8,Faktorisierung!$G$8,IF(Bewertung!BL5=Faktorisierung!$E$9,Faktorisierung!$G$9,IF(Bewertung!BL5=Faktorisierung!$E$10,Faktorisierung!$G$10,0))))))","v":""}]
[{"$nulls":3},"3. Löschwasserversorgung",{"$f":"IF(Bewertung!I6=\"\",\"\",IF(Bewertung!I6=Faktorisierung!$A$15,Faktorisierung!$C$15,(IF(Bewertung!I6=Faktorisierung!$A$16,Faktorisierung!$C$16,IF(Bewertung!I6=Faktorisierung!$A$17,Faktorisierung!$C$17,IF(Bewertung!I6=Faktorisierung!$A$18,Faktorisierung!$C$18,0))))))","v":0.5},{"$f":"IF(Bewertung!#REF!=\"\",\"\",IF(Bewertung!#REF!=Faktorisierung!$A$15,Faktorisierung!$C$15,(IF(Bewertung!#REF!=Faktorisierung!$A$16,Faktorisierung!$C$16,IF(Bewertung!#REF!=Faktorisierung!$A$17,Faktorisierung!$C$17,IF(Bewertung!#REF!=Faktorisierung!$A$18,Faktorisierung!$C$18,0))))))","v":{"$error":"#REF!"}},{"$f":"IF(Bewertung!#REF!=\"\",\"\",IF(Bewertung!#REF!=Faktorisierung!$A$15,Faktorisierung!$C$15,(IF(Bewertung!#REF!=Faktorisierung!$A$16,Faktorisierung!$C$16,IF(Bewertung!#REF!=Faktorisierung!$A$17,Faktorisierung!$C$17,IF(Bewertung!#REF!=Faktorisierung!$A$18,Faktorisierung!$C$18,0))))))","v":{"$error":"#REF!"}},{"$f":"IF(Bewertung!#REF!=\"\",\"\",IF(Bewertung!#REF!=Faktorisierung!$A$15,Faktorisierung!$C$15,(IF(Bewertung!#REF!=Faktorisierung!$A$16,Faktorisierung!$C$16,IF(Bewertung!#REF!=Faktorisierung!$A$17,Faktorisierung!$C$17,IF(Bewertung!#REF!=Faktorisierung!$A$18,Faktorisierung!$C$18,0))))))","v":{"$error":"#REF!"}},{"$f":"IF(Bewertung!#REF!=\"\",\"\",IF(Bewertung!#REF!=Faktorisierung!$A$15,Faktorisierung!$C$15,(IF(Bewertung!#REF!=Faktorisierung!$A$16,Faktorisierung!$C$16,IF(Bewertung!#REF!=Faktorisierung!$A$17,Faktorisierung!$C$17,IF(Bewertung!#REF!=Faktorisierung!$A$18,Faktorisierung!$C$18,0))))))","v":{"$error":"#REF!"}},{"$f":"IF(Bewertung!#REF!=\"\",\"\",IF(Bewertung!#REF!=Faktorisierung!$A$15,Faktorisierung!$C$15,(IF(Bewertung!#REF!=Faktorisierung!$A$16,Faktorisierung!$C$16,IF(Bewertung!#REF!=Faktorisierung!$A$17,Faktorisierung!$C$17,IF(Bewertung!#REF!=Faktorisierung!$A$18,Faktorisierung!$C$18,0))))))","v":{"$error":"#REF!"}},{"$f":"IF(Bewertung!#REF!=\"\",\"\",IF(Bewertung!#REF!=Faktorisierung!$A$15,Faktorisierung!$C$15,(IF(Bewertung!#REF!=Faktorisierung!$A$16,Faktorisierung!$C$16,IF(Bewertung!#REF!=Faktorisierung!$A$17,Faktorisierung!$C$17,IF(Bewertung!#REF!=Faktorisierung!$A$18,Faktorisierung!$C$18,0))))))","v":{"$error":"#REF!"}},{"$f":"IF(Bewertung!#REF!=\"\",\"\",IF(Bewertung!#REF!=Faktorisierung!$A$15,Faktorisierung!$C$15,(IF(Bewertung!#REF!=Faktorisierung!$A$16,Faktorisierung!$C$16,IF(Bewertung!#REF!=Faktorisierung!$A$17,Faktorisierung!$C$17,IF(Bewertung!#REF!=Faktorisierung!$A$18,Faktorisierung!$C$18,0))))))","v":{"$error":"#REF!"}},{"$f":"IF(Bewertung!K6=\"\",\"\",IF(Bewertung!K6=Faktorisierung!$A$15,Faktorisierung!$C$15,(IF(Bewertung!K6=Faktorisierung!$A$16,Faktorisierung!$C$16,IF(Bewertung!K6=Faktorisierung!$A$17,Faktorisierung!$C$17,IF(Bewertung!K6=Faktorisierung!$A$18,Faktorisierung!$C$18,0))))))","v":""},{"$f":"IF(Bewertung!L6=\"\",\"\",IF(Bewertung!L6=Faktorisierung!$A$15,Faktorisierung!$C$15,(IF(Bewertung!L6=Faktorisierung!$A$16,Faktorisierung!$C$16,IF(Bewertung!L6=Faktorisierung!$A$17,Faktorisierung!$C$17,IF(Bewertung!L6=Faktorisierung!$A$18,Faktorisierung!$C$18,0))))))","v":""},{"$f":"IF(Bewertung!M6=\"\",\"\",IF(Bewertung!M6=Faktorisierung!$A$15,Faktorisierung!$C$15,(IF(Bewertung!M6=Faktorisierung!$A$16,Faktorisierung!$C$16,IF(Bewertung!M6=Faktorisierung!$A$17,Faktorisierung!$C$17,IF(Bewertung!M6=Faktorisierung!$A$18,Faktorisierung!$C$18,0))))))","v":""},{"$f":"IF(Bewertung!N6=\"\",\"\",IF(Bewertung!N6=Faktorisierung!$A$15,Faktorisierung!$C$15,(IF(Bewertung!N6=Faktorisierung!$A$16,Faktorisierung!$C$16,IF(Bewertung!N6=Faktorisierung!$A$17,Faktorisierung!$C$17,IF(Bewertung!N6=Faktorisierung!$A$18,Faktorisierung!$C$18,0))))))","v":""},{"$f":"IF(Bewertung!O6=\"\",\"\",IF(Bewertung!O6=Faktorisierung!$A$15,Faktorisierung!$C$15,(IF(Bewertung!O6=Faktorisierung!$A$16,Faktorisierung!$C$16,IF(Bewertung!O6=Faktorisierung!$A$17,Faktorisierung!$C$17,IF(Bewertung!O6=Faktorisierung!$A$18,Faktorisierung!$C$18,0))))))","v":""},{"$f":"IF(Bewertung!P6=\"\",\"\",IF(Bewertung!P6=Faktorisierung!$A$15,Faktorisierung!$C$15,(IF(Bewertung!P6=Faktorisierung!$A$16,Faktorisierung!$C$16,IF(Bewertung!P6=Faktorisierung!$A$17,Faktorisierung!$C$17,IF(Bewertung!P6=Faktorisierung!$A$18,Faktorisierung!$C$18,0))))))","v":""},{"$f":"IF(Bewertung!Q6=\"\",\"\",IF(Bewertung!Q6=Faktorisierung!$A$15,Faktorisierung!$C$15,(IF(Bewertung!Q6=Faktorisierung!$A$16,Faktorisierung!$C$16,IF(Bewertung!Q6=Faktorisierung!$A$17,Faktorisierung!$C$17,IF(Bewertung!Q6=Faktorisierung!$A$18,Faktorisierung!$C$18,0))))))","v":""},{"$f":"IF(Bewertung!R6=\"\",\"\",IF(Bewertung!R6=Faktorisierung!$A$15,Faktorisierung!$C$15,(IF(Bewertung!R6=Faktorisierung!$A$16,Faktorisierung!$C$16,IF(Bewertung!R6=Faktorisierung!$A$17,Faktorisierung!$C$17,IF(Bewertung!R6=Faktorisierung!$A$18,Faktorisierung!$C$18,0))))))","v":""},{"$f":"IF(Bewertung!S6=\"\",\"\",IF(Bewertung!S6=Faktorisierung!$A$15,Faktorisierung!$C$15,(IF(Bewertung!S6=Faktorisierung!$A$16,Faktorisierung!$C$16,IF(Bewertung!S6=Faktorisierung!$A$17,Faktorisierung!$C$17,IF(Bewertung!S6=Faktorisierung!$A$18,Faktorisierung!$C$18,0))))))","v":""},{"$f":"IF(Bewertung!T6=\"\",\"\",IF(Bewertung!T6=Faktorisierung!$A$15,Faktorisierung!$C$15,(IF(Bewertung!T6=Faktorisierung!$A$16,Faktorisierung!$C$16,IF(Bewertung!T6=Faktorisierung!$A$17,Faktorisierung!$C$17,IF(Bewertung!T6=Faktorisierung!$A$18,Faktorisierung!$C$18,0))))))","v":""},{"$f":"IF(Bewertung!U6=\"\",\"\",IF(Bewertung!U6=Faktorisierung!$A$15,Faktorisierung!$C$15,(IF(Bewertung!U6=Faktorisierung!$A$16,Faktorisierung!$C$16,IF(Bewertung!U6=Faktorisierung!$A$17,Faktorisierung!$C$17,IF(Bewertung!U6=Faktorisierung!$A$18,Faktorisierung!$C$18,0))))))","v":""},{"$f":"IF(Bewertung!V6=\"\",\"\",IF(Bewertung!V6=Faktorisierung!$A$15,Faktorisierung!$C$15,(IF(Bewertung!V6=Faktorisierung!$A$16,Faktorisierung!$C$16,IF(Bewertung!V6=Faktorisierung!$A$17,Faktorisierung!$C$17,IF(Bewertung!V6=Faktorisierung!$A$18,Faktorisierung!$C$18,0))))))","v":""},{"$f":"IF(Bewertung!W6=\"\",\"\",IF(Bewertung!W6=Faktorisierung!$A$15,Faktorisierung!$C$15,(IF(Bewertung!W6=Faktorisierung!$A$16,Faktorisierung!$C$16,IF(Bewertung!W6=Faktorisierung!$A$17,Faktorisierung!$C$17,IF(Bewertung!W6=Faktorisierung!$A$18,Faktorisierung!$C$18,0))))))","v":""},{"$f":"IF(Bewertung!X6=\"\",\"\",IF(Bewertung!X6=Faktorisierung!$A$15,Faktorisierung!$C$15,(IF(Bewertung!X6=Faktorisierung!$A$16,Faktorisierung!$C$16,IF(Bewertung!X6=Faktorisierung!$A$17,Faktorisierung!$C$17,IF(Bewertung!X6=Faktorisierung!$A$18,Faktorisierung!$C$18,0))))))","v":""},{"$f":"IF(Bewertung!Y6=\"\",\"\",IF(Bewertung!Y6=Faktorisierung!$A$15,Faktorisierung!$C$15,(IF(Bewertung!Y6=Faktorisierung!$A$16,Faktorisierung!$C$16,IF(Bewertung!Y6=Faktorisierung!$A$17,Faktorisierung!$C$17,IF(Bewertung!Y6=Faktorisierung!$A$18,Faktorisierung!$C$18,0))))))","v":""},{"$f":"IF(Bewertung!Z6=\"\",\"\",IF(Bewertung!Z6=Faktorisierung!$A$15,Faktorisierung!$C$15,(IF(Bewertung!Z6=Faktorisierung!$A$16,Faktorisierung!$C$16,IF(Bewertung!Z6=Faktorisierung!$A$17,Faktorisierung!$C$17,IF(Bewertung!Z6=Faktorisierung!$A$18,Faktorisierung!$C$18,0))))))","v":""},{"$f":"IF(Bewertung!AA6=\"\",\"\",IF(Bewertung!AA6=Faktorisierung!$A$15,Faktorisierung!$C$15,(IF(Bewertung!AA6=Faktorisierung!$A$16,Faktorisierung!$C$16,IF(Bewertung!AA6=Faktorisierung!$A$17,Faktorisierung!$C$17,IF(Bewertung!AA6=Faktorisierung!$A$18,Faktorisierung!$C$18,0))))))","v":""},{"$f":"IF(Bewertung!AB6=\"\",\"\",IF(Bewertung!AB6=Faktorisierung!$A$15,Faktorisierung!$C$15,(IF(Bewertung!AB6=Faktorisierung!$A$16,Faktorisierung!$C$16,IF(Bewertung!AB6=Faktorisierung!$A$17,Faktorisierung!$C$17,IF(Bewertung!AB6=Faktorisierung!$A$18,Faktorisierung!$C$18,0))))))","v":""},{"$f":"IF(Bewertung!AC6=\"\",\"\",IF(Bewertung!AC6=Faktorisierung!$A$15,Faktorisierung!$C$15,(IF(Bewertung!AC6=Faktorisierung!$A$16,Faktorisierung!$C$16,IF(Bewertung!AC6=Faktorisierung!$A$17,Faktorisierung!$C$17,IF(Bewertung!AC6=Faktorisierung!$A$18,Faktorisierung!$C$18,0))))))","v":""},{"$f":"IF(Bewertung!AD6=\"\",\"\",IF(Bewertung!AD6=Faktorisierung!$A$15,Faktorisierung!$C$15,(IF(Bewertung!AD6=Faktorisierung!$A$16,Faktorisierung!$C$16,IF(Bewertung!AD6=Faktorisierung!$A$17,Faktorisierung!$C$17,IF(Bewertung!AD6=Faktorisierung!$A$18,Faktorisierung!$C$18,0))))))","v":""},{"$f":"IF(Bewertung!AE6=\"\",\"\",IF(Bewertung!AE6=Faktorisierung!$A$15,Faktorisierung!$C$15,(IF(Bewertung!AE6=Faktorisierung!$A$16,Faktorisierung!$C$16,IF(Bewertung!AE6=Faktorisierung!$A$17,Faktorisierung!$C$17,IF(Bewertung!AE6=Faktorisierung!$A$18,Faktorisierung!$C$18,0))))))","v":""},{"$f":"IF(Bewertung!AF6=\"\",\"\",IF(Bewertung!AF6=Faktorisierung!$A$15,Faktorisierung!$C$15,(IF(Bewertung!AF6=Faktorisierung!$A$16,Faktorisierung!$C$16,IF(Bewertung!AF6=Faktorisierung!$A$17,Faktorisierung!$C$17,IF(Bewertung!AF6=Faktorisierung!$A$18,Faktorisierung!$C$18,0))))))","v":""},{"$f":"IF(Bewertung!AG6=\"\",\"\",IF(Bewertung!AG6=Faktorisierung!$A$15,Faktorisierung!$C$15,(IF(Bewertung!AG6=Faktorisierung!$A$16,Faktorisierung!$C$16,IF(Bewertung!AG6=Faktorisierung!$A$17,Faktorisierung!$C$17,IF(Bewertung!AG6=Faktorisierung!$A$18,Faktorisierung!$C$18,0))))))","v":""},{"$f":"IF(Bewertung!AH6=\"\",\"\",IF(Bewertung!AH6=Faktorisierung!$A$15,Faktorisierung!$C$15,(IF(Bewertung!AH6=Faktorisierung!$A$16,Faktorisierung!$C$16,IF(Bewertung!AH6=Faktorisierung!$A$17,Faktorisierung!$C$17,IF(Bewertung!AH6=Faktorisierung!$A$18,Faktorisierung!$C$18,0))))))","v":""},{"$f":"IF(Bewertung!AI6=\"\",\"\",IF(Bewertung!AI6=Faktorisierung!$A$15,Faktorisierung!$C$15,(IF(Bewertung!AI6=Faktorisierung!$A$16,Faktorisierung!$C$16,IF(Bewertung!AI6=Faktorisierung!$A$17,Faktorisierung!$C$17,IF(Bewertung!AI6=Faktorisierung!$A$18,Faktorisierung!$C$18,0))))))","v":""},{"$f":"IF(Bewertung!AJ6=\"\",\"\",IF(Bewertung!AJ6=Faktorisierung!$A$15,Faktorisierung!$C$15,(IF(Bewertung!AJ6=Faktorisierung!$A$16,Faktorisierung!$C$16,IF(Bewertung!AJ6=Faktorisierung!$A$17,Faktorisierung!$C$17,IF(Bewertung!AJ6=Faktorisierung!$A$18,Faktorisierung!$C$18,0))))))","v":""},{"$f":"IF(Bewertung!AK6=\"\",\"\",IF(Bewertung!AK6=Faktorisierung!$A$15,Faktorisierung!$C$15,(IF(Bewertung!AK6=Faktorisierung!$A$16,Faktorisierung!$C$16,IF(Bewertung!AK6=Faktorisierung!$A$17,Faktorisierung!$C$17,IF(Bewertung!AK6=Faktorisierung!$A$18,Faktorisierung!$C$18,0))))))","v":""},{"$f":"IF(Bewertung!AL6=\"\",\"\",IF(Bewertung!AL6=Faktorisierung!$A$15,Faktorisierung!$C$15,(IF(Bewertung!AL6=Faktorisierung!$A$16,Faktorisierung!$C$16,IF(Bewertung!AL6=Faktorisierung!$A$17,Faktorisierung!$C$17,IF(Bewertung!AL6=Faktorisierung!$A$18,Faktorisierung!$C$18,0))))))","v":""},{"$f":"IF(Bewertung!AM6=\"\",\"\",IF(Bewertung!AM6=Faktorisierung!$A$15,Faktorisierung!$C$15,(IF(Bewertung!AM6=Faktorisierung!$A$16,Faktorisierung!$C$16,IF(Bewertung!AM6=Faktorisierung!$A$17,Faktorisierung!$C$17,IF(Bewertung!AM6=Faktorisierung!$A$18,Faktorisierung!$C$18,0))))))","v":""},{"$f":"IF(Bewertung!AN6=\"\",\"\",IF(Bewertung!AN6=Faktorisierung!$A$15,Faktorisierung!$C$15,(IF(Bewertung!AN6=Faktorisierung!$A$16,Faktorisierung!$C$16,IF(Bewertung!AN6=Faktorisierung!$A$17,Faktorisierung!$C$17,IF(Bewertung!AN6=Faktorisierung!$A$18,Faktorisierung!$C$18,0))))))","v":""},{"$f":"IF(Bewertung!AO6=\"\",\"\",IF(Bewertung!AO6=Faktorisierung!$A$15,Faktorisierung!$C$15,(IF(Bewertung!AO6=Faktorisierung!$A$16,Faktorisierung!$C$16,IF(Bewertung!AO6=Faktorisierung!$A$17,Faktorisierung!$C$17,IF(Bewertung!AO6=Faktorisierung!$A$18,Faktorisierung!$C$18,0))))))","v":""},{"$f":"IF(Bewertung!AP6=\"\",\"\",IF(Bewertung!AP6=Faktorisierung!$A$15,Faktorisierung!$C$15,(IF(Bewertung!AP6=Faktorisierung!$A$16,Faktorisierung!$C$16,IF(Bewertung!AP6=Faktorisierung!$A$17,Faktorisierung!$C$17,IF(Bewertung!AP6=Faktorisierung!$A$18,Faktorisierung!$C$18,0))))))","v":""},{"$f":"IF(Bewertung!AQ6=\"\",\"\",IF(Bewertung!AQ6=Faktorisierung!$A$15,Faktorisierung!$C$15,(IF(Bewertung!AQ6=Faktorisierung!$A$16,Faktorisierung!$C$16,IF(Bewertung!AQ6=Faktorisierung!$A$17,Faktorisierung!$C$17,IF(Bewertung!AQ6=Faktorisierung!$A$18,Faktorisierung!$C$18,0))))))","v":""},{"$f":"IF(Bewertung!AR6=\"\",\"\",IF(Bewertung!AR6=Faktorisierung!$A$15,Faktorisierung!$C$15,(IF(Bewertung!AR6=Faktorisierung!$A$16,Faktorisierung!$C$16,IF(Bewertung!AR6=Faktorisierung!$A$17,Faktorisierung!$C$17,IF(Bewertung!AR6=Faktorisierung!$A$18,Faktorisierung!$C$18,0))))))","v":""},{"$f":"IF(Bewertung!AS6=\"\",\"\",IF(Bewertung!AS6=Faktorisierung!$A$15,Faktorisierung!$C$15,(IF(Bewertung!AS6=Faktorisierung!$A$16,Faktorisierung!$C$16,IF(Bewertung!AS6=Faktorisierung!$A$17,Faktorisierung!$C$17,IF(Bewertung!AS6=Faktorisierung!$A$18,Faktorisierung!$C$18,0))))))","v":""},{"$f":"IF(Bewertung!AT6=\"\",\"\",IF(Bewertung!AT6=Faktorisierung!$A$15,Faktorisierung!$C$15,(IF(Bewertung!AT6=Faktorisierung!$A$16,Faktorisierung!$C$16,IF(Bewertung!AT6=Faktorisierung!$A$17,Faktorisierung!$C$17,IF(Bewertung!AT6=Faktorisierung!$A$18,Faktorisierung!$C$18,0))))))","v":""},{"$f":"IF(Bewertung!AU6=\"\",\"\",IF(Bewertung!AU6=Faktorisierung!$A$15,Faktorisierung!$C$15,(IF(Bewertung!AU6=Faktorisierung!$A$16,Faktorisierung!$C$16,IF(Bewertung!AU6=Faktorisierung!$A$17,Faktorisierung!$C$17,IF(Bewertung!AU6=Faktorisierung!$A$18,Faktorisierung!$C$18,0))))))","v":""},{"$f":"IF(Bewertung!AV6=\"\",\"\",IF(Bewertung!AV6=Faktorisierung!$A$15,Faktorisierung!$C$15,(IF(Bewertung!AV6=Faktorisierung!$A$16,Faktorisierung!$C$16,IF(Bewertung!AV6=Faktorisierung!$A$17,Faktorisierung!$C$17,IF(Bewertung!AV6=Faktorisierung!$A$18,Faktorisierung!$C$18,0))))))","v":""},{"$f":"IF(Bewertung!AW6=\"\",\"\",IF(Bewertung!AW6=Faktorisierung!$A$15,Faktorisierung!$C$15,(IF(Bewertung!AW6=Faktorisierung!$A$16,Faktorisierung!$C$16,IF(Bewertung!AW6=Faktorisierung!$A$17,Faktorisierung!$C$17,IF(Bewertung!AW6=Faktorisierung!$A$18,Faktorisierung!$C$18,0))))))","v":""},{"$f":"IF(Bewertung!AX6=\"\",\"\",IF(Bewertung!AX6=Faktorisierung!$A$15,Faktorisierung!$C$15,(IF(Bewertung!AX6=Faktorisierung!$A$16,Faktorisierung!$C$16,IF(Bewertung!AX6=Faktorisierung!$A$17,Faktorisierung!$C$17,IF(Bewertung!AX6=Faktorisierung!$A$18,Faktorisierung!$C$18,0))))))","v":""},{"$f":"IF(Bewertung!AY6=\"\",\"\",IF(Bewertung!AY6=Faktorisierung!$A$15,Faktorisierung!$C$15,(IF(Bewertung!AY6=Faktorisierung!$A$16,Faktorisierung!$C$16,IF(Bewertung!AY6=Faktorisierung!$A$17,Faktorisierung!$C$17,IF(Bewertung!AY6=Faktorisierung!$A$18,Faktorisierung!$C$18,0))))))","v":""},{"$f":"IF(Bewertung!AZ6=\"\",\"\",IF(Bewertung!AZ6=Faktorisierung!$A$15,Faktorisierung!$C$15,(IF(Bewertung!AZ6=Faktorisierung!$A$16,Faktorisierung!$C$16,IF(Bewertung!AZ6=Faktorisierung!$A$17,Faktorisierung!$C$17,IF(Bewertung!AZ6=Faktorisierung!$A$18,Faktorisierung!$C$18,0))))))","v":""},{"$f":"IF(Bewertung!BA6=\"\",\"\",IF(Bewertung!BA6=Faktorisierung!$A$15,Faktorisierung!$C$15,(IF(Bewertung!BA6=Faktorisierung!$A$16,Faktorisierung!$C$16,IF(Bewertung!BA6=Faktorisierung!$A$17,Faktorisierung!$C$17,IF(Bewertung!BA6=Faktorisierung!$A$18,Faktorisierung!$C$18,0))))))","v":""},{"$f":"IF(Bewertung!BB6=\"\",\"\",IF(Bewertung!BB6=Faktorisierung!$A$15,Faktorisierung!$C$15,(IF(Bewertung!BB6=Faktorisierung!$A$16,Faktorisierung!$C$16,IF(Bewertung!BB6=Faktorisierung!$A$17,Faktorisierung!$C$17,IF(Bewertung!BB6=Faktorisierung!$A$18,Faktorisierung!$C$18,0))))))","v":""},{"$f":"IF(Bewertung!BC6=\"\",\"\",IF(Bewertung!BC6=Faktorisierung!$A$15,Faktorisierung!$C$15,(IF(Bewertung!BC6=Faktorisierung!$A$16,Faktorisierung!$C$16,IF(Bewertung!BC6=Faktorisierung!$A$17,Faktorisierung!$C$17,IF(Bewertung!BC6=Faktorisierung!$A$18,Faktorisierung!$C$18,0))))))","v":""},{"$f":"IF(Bewertung!BD6=\"\",\"\",IF(Bewertung!BD6=Faktorisierung!$A$15,Faktorisierung!$C$15,(IF(Bewertung!BD6=Faktorisierung!$A$16,Faktorisierung!$C$16,IF(Bewertung!BD6=Faktorisierung!$A$17,Faktorisierung!$C$17,IF(Bewertung!BD6=Faktorisierung!$A$18,Faktorisierung!$C$18,0))))))","v":""},{"$f":"IF(Bewertung!BE6=\"\",\"\",IF(Bewertung!BE6=Faktorisierung!$A$15,Faktorisierung!$C$15,(IF(Bewertung!BE6=Faktorisierung!$A$16,Faktorisierung!$C$16,IF(Bewertung!BE6=Faktorisierung!$A$17,Faktorisierung!$C$17,IF(Bewertung!BE6=Faktorisierung!$A$18,Faktorisierung!$C$18,0))))))","v":""},{"$f":"IF(Bewertung!BF6=\"\",\"\",IF(Bewertung!BF6=Faktorisierung!$A$15,Faktorisierung!$C$15,(IF(Bewertung!BF6=Faktorisierung!$A$16,Faktorisierung!$C$16,IF(Bewertung!BF6=Faktorisierung!$A$17,Faktorisierung!$C$17,IF(Bewertung!BF6=Faktorisierung!$A$18,Faktorisierung!$C$18,0))))))","v":""},{"$f":"IF(Bewertung!BG6=\"\",\"\",IF(Bewertung!BG6=Faktorisierung!$A$15,Faktorisierung!$C$15,(IF(Bewertung!BG6=Faktorisierung!$A$16,Faktorisierung!$C$16,IF(Bewertung!BG6=Faktorisierung!$A$17,Faktorisierung!$C$17,IF(Bewertung!BG6=Faktorisierung!$A$18,Faktorisierung!$C$18,0))))))","v":""},{"$f":"IF(Bewertung!BH6=\"\",\"\",IF(Bewertung!BH6=Faktorisierung!$A$15,Faktorisierung!$C$15,(IF(Bewertung!BH6=Faktorisierung!$A$16,Faktorisierung!$C$16,IF(Bewertung!BH6=Faktorisierung!$A$17,Faktorisierung!$C$17,IF(Bewertung!BH6=Faktorisierung!$A$18,Faktorisierung!$C$18,0))))))","v":""},{"$f":"IF(Bewertung!BI6=\"\",\"\",IF(Bewertung!BI6=Faktorisierung!$A$15,Faktorisierung!$C$15,(IF(Bewertung!BI6=Faktorisierung!$A$16,Faktorisierung!$C$16,IF(Bewertung!BI6=Faktorisierung!$A$17,Faktorisierung!$C$17,IF(Bewertung!BI6=Faktorisierung!$A$18,Faktorisierung!$C$18,0))))))","v":""},{"$f":"IF(Bewertung!BJ6=\"\",\"\",IF(Bewertung!BJ6=Faktorisierung!$A$15,Faktorisierung!$C$15,(IF(Bewertung!BJ6=Faktorisierung!$A$16,Faktorisierung!$C$16,IF(Bewertung!BJ6=Faktorisierung!$A$17,Faktorisierung!$C$17,IF(Bewertung!BJ6=Faktorisierung!$A$18,Faktorisierung!$C$18,0))))))","v":""},{"$f":"IF(Bewertung!BK6=\"\",\"\",IF(Bewertung!BK6=Faktorisierung!$A$15,Faktorisierung!$C$15,(IF(Bewertung!BK6=Faktorisierung!$A$16,Faktorisierung!$C$16,IF(Bewertung!BK6=Faktorisierung!$A$17,Faktorisierung!$C$17,IF(Bewertung!BK6=Faktorisierung!$A$18,Faktorisierung!$C$18,0))))))","v":""},{"$f":"IF(Bewertung!BL6=\"\",\"\",IF(Bewertung!BL6=Faktorisierung!$A$15,Faktorisierung!$C$15,(IF(Bewertung!BL6=Faktorisierung!$A$16,Faktorisierung!$C$16,IF(Bewertung!BL6=Faktorisierung!$A$17,Faktorisierung!$C$17,IF(Bewertung!BL6=Faktorisierung!$A$18,Faktorisierung!$C$18,0))))))","v":""}]
[{"$nulls":3},"4. Flucht- und Rettungswege",{"$f":"IF(Bewertung!I7=\"\",\"\",IF(Bewertung!I7=Faktorisierung!$E$15,Faktorisierung!$G$15,(IF(Bewertung!I7=Faktorisierung!$E$16,Faktorisierung!$G$16,IF(Bewertung!I7=Faktorisierung!$E$17,Faktorisierung!$G$17,IF(Bewertung!I7=Faktorisierung!$E$18,Faktorisierung!$G$18,0))))))","v":0.5},{"$f":"IF(Bewertung!#REF!=\"\",\"\",IF(Bewertung!#REF!=Faktorisierung!$E$15,Faktorisierung!$G$15,(IF(Bewertung!#REF!=Faktorisierung!$E$16,Faktorisierung!$G$16,IF(Bewertung!#REF!=Faktorisierung!$E$17,Faktorisierung!$G$17,IF(Bewertung!#REF!=Faktorisierung!$E$18,Faktorisierung!$G$18,0))))))","v":{"$error":"#REF!"}},{"$f":"IF(Bewertung!#REF!=\"\",\"\",IF(Bewertung!#REF!=Faktorisierung!$E$15,Faktorisierung!$G$15,(IF(Bewertung!#REF!=Faktorisierung!$E$16,Faktorisierung!$G$16,IF(Bewertung!#REF!=Faktorisierung!$E$17,Faktorisierung!$G$17,IF(Bewertung!#REF!=Faktorisierung!$E$18,Faktorisierung!$G$18,0))))))","v":{"$error":"#REF!"}},{"$f":"IF(Bewertung!#REF!=\"\",\"\",IF(Bewertung!#REF!=Faktorisierung!$E$15,Faktorisierung!$G$15,(IF(Bewertung!#REF!=Faktorisierung!$E$16,Faktorisierung!$G$16,IF(Bewertung!#REF!=Faktorisierung!$E$17,Faktorisierung!$G$17,IF(Bewertung!#REF!=Faktorisierung!$E$18,Faktorisierung!$G$18,0))))))","v":{"$error":"#REF!"}},{"$f":"IF(Bewertung!#REF!=\"\",\"\",IF(Bewertung!#REF!=Faktorisierung!$E$15,Faktorisierung!$G$15,(IF(Bewertung!#REF!=Faktorisierung!$E$16,Faktorisierung!$G$16,IF(Bewertung!#REF!=Faktorisierung!$E$17,Faktorisierung!$G$17,IF(Bewertung!#REF!=Faktorisierung!$E$18,Faktorisierung!$G$18,0))))))","v":{"$error":"#REF!"}},{"$f":"IF(Bewertung!#REF!=\"\",\"\",IF(Bewertung!#REF!=Faktorisierung!$E$15,Faktorisierung!$G$15,(IF(Bewertung!#REF!=Faktorisierung!$E$16,Faktorisierung!$G$16,IF(Bewertung!#REF!=Faktorisierung!$E$17,Faktorisierung!$G$17,IF(Bewertung!#REF!=Faktorisierung!$E$18,Faktorisierung!$G$18,0))))))","v":{"$error":"#REF!"}},{"$f":"IF(Bewertung!#REF!=\"\",\"\",IF(Bewertung!#REF!=Faktorisierung!$E$15,Faktorisierung!$G$15,(IF(Bewertung!#REF!=Faktorisierung!$E$16,Faktorisierung!$G$16,IF(Bewertung!#REF!=Faktorisierung!$E$17,Faktorisierung!$G$17,IF(Bewertung!#REF!=Faktorisierung!$E$18,Faktorisierung!$G$18,0))))))","v":{"$error":"#REF!"}},{"$f":"IF(Bewertung!#REF!=\"\",\"\",IF(Bewertung!#REF!=Faktorisierung!$E$15,Faktorisierung!$G$15,(IF(Bewertung!#REF!=Faktorisierung!$E$16,Faktorisierung!$G$16,IF(Bewertung!#REF!=Faktorisierung!$E$17,Faktorisierung!$G$17,IF(Bewertung!#REF!=Faktorisierung!$E$18,Faktorisierung!$G$18,0))))))","v":{"$error":"#REF!"}},{"$f":"IF(Bewertung!K7=\"\",\"\",IF(Bewertung!K7=Faktorisierung!$E$15,Faktorisierung!$G$15,(IF(Bewertung!K7=Faktorisierung!$E$16,Faktorisierung!$G$16,IF(Bewertung!K7=Faktorisierung!$E$17,Faktorisierung!$G$17,IF(Bewertung!K7=Faktorisierung!$E$18,Faktorisierung!$G$18,0))))))","v":""},{"$f":"IF(Bewertung!L7=\"\",\"\",IF(Bewertung!L7=Faktorisierung!$E$15,Faktorisierung!$G$15,(IF(Bewertung!L7=Faktorisierung!$E$16,Faktorisierung!$G$16,IF(Bewertung!L7=Faktorisierung!$E$17,Faktorisierung!$G$17,IF(Bewertung!L7=Faktorisierung!$E$18,Faktorisierung!$G$18,0))))))","v":""},{"$f":"IF(Bewertung!M7=\"\",\"\",IF(Bewertung!M7=Faktorisierung!$E$15,Faktorisierung!$G$15,(IF(Bewertung!M7=Faktorisierung!$E$16,Faktorisierung!$G$16,IF(Bewertung!M7=Faktorisierung!$E$17,Faktorisierung!$G$17,IF(Bewertung!M7=Faktorisierung!$E$18,Faktorisierung!$G$18,0))))))","v":""},{"$f":"IF(Bewertung!N7=\"\",\"\",IF(Bewertung!N7=Faktorisierung!$E$15,Faktorisierung!$G$15,(IF(Bewertung!N7=Faktorisierung!$E$16,Faktorisierung!$G$16,IF(Bewertung!N7=Faktorisierung!$E$17,Faktorisierung!$G$17,IF(Bewertung!N7=Faktorisierung!$E$18,Faktorisierung!$G$18,0))))))","v":""},{"$f":"IF(Bewertung!O7=\"\",\"\",IF(Bewertung!O7=Faktorisierung!$E$15,Faktorisierung!$G$15,(IF(Bewertung!O7=Faktorisierung!$E$16,Faktorisierung!$G$16,IF(Bewertung!O7=Faktorisierung!$E$17,Faktorisierung!$G$17,IF(Bewertung!O7=Faktorisierung!$E$18,Faktorisierung!$G$18,0))))))","v":""},{"$f":"IF(Bewertung!P7=\"\",\"\",IF(Bewertung!P7=Faktorisierung!$E$15,Faktorisierung!$G$15,(IF(Bewertung!P7=Faktorisierung!$E$16,Faktorisierung!$G$16,IF(Bewertung!P7=Faktorisierung!$E$17,Faktorisierung!$G$17,IF(Bewertung!P7=Faktorisierung!$E$18,Faktorisierung!$G$18,0))))))","v":""},{"$f":"IF(Bewertung!Q7=\"\",\"\",IF(Bewertung!Q7=Faktorisierung!$E$15,Faktorisierung!$G$15,(IF(Bewertung!Q7=Faktorisierung!$E$16,Faktorisierung!$G$16,IF(Bewertung!Q7=Faktorisierung!$E$17,Faktorisierung!$G$17,IF(Bewertung!Q7=Faktorisierung!$E$18,Faktorisierung!$G$18,0))))))","v":""},{"$f":"IF(Bewertung!R7=\"\",\"\",IF(Bewertung!R7=Faktorisierung!$E$15,Faktorisierung!$G$15,(IF(Bewertung!R7=Faktorisierung!$E$16,Faktorisierung!$G$16,IF(Bewertung!R7=Faktorisierung!$E$17,Faktorisierung!$G$17,IF(Bewertung!R7=Faktorisierung!$E$18,Faktorisierung!$G$18,0))))))","v":""},{"$f":"IF(Bewertung!S7=\"\",\"\",IF(Bewertung!S7=Faktorisierung!$E$15,Faktorisierung!$G$15,(IF(Bewertung!S7=Faktorisierung!$E$16,Faktorisierung!$G$16,IF(Bewertung!S7=Faktorisierung!$E$17,Faktorisierung!$G$17,IF(Bewertung!S7=Faktorisierung!$E$18,Faktorisierung!$G$18,0))))))","v":""},{"$f":"IF(Bewertung!T7=\"\",\"\",IF(Bewertung!T7=Faktorisierung!$E$15,Faktorisierung!$G$15,(IF(Bewertung!T7=Faktorisierung!$E$16,Faktorisierung!$G$16,IF(Bewertung!T7=Faktorisierung!$E$17,Faktorisierung!$G$17,IF(Bewertung!T7=Faktorisierung!$E$18,Faktorisierung!$G$18,0))))))","v":""},{"$f":"IF(Bewertung!U7=\"\",\"\",IF(Bewertung!U7=Faktorisierung!$E$15,Faktorisierung!$G$15,(IF(Bewertung!U7=Faktorisierung!$E$16,Faktorisierung!$G$16,IF(Bewertung!U7=Faktorisierung!$E$17,Faktorisierung!$G$17,IF(Bewertung!U7=Faktorisierung!$E$18,Faktorisierung!$G$18,0))))))","v":""},{"$f":"IF(Bewertung!V7=\"\",\"\",IF(Bewertung!V7=Faktorisierung!$E$15,Faktorisierung!$G$15,(IF(Bewertung!V7=Faktorisierung!$E$16,Faktorisierung!$G$16,IF(Bewertung!V7=Faktorisierung!$E$17,Faktorisierung!$G$17,IF(Bewertung!V7=Faktorisierung!$E$18,Faktorisierung!$G$18,0))))))","v":""},{"$f":"IF(Bewertung!W7=\"\",\"\",IF(Bewertung!W7=Faktorisierung!$E$15,Faktorisierung!$G$15,(IF(Bewertung!W7=Faktorisierung!$E$16,Faktorisierung!$G$16,IF(Bewertung!W7=Faktorisierung!$E$17,Faktorisierung!$G$17,IF(Bewertung!W7=Faktorisierung!$E$18,Faktorisierung!$G$18,0))))))","v":""},{"$f":"IF(Bewertung!X7=\"\",\"\",IF(Bewertung!X7=Faktorisierung!$E$15,Faktorisierung!$G$15,(IF(Bewertung!X7=Faktorisierung!$E$16,Faktorisierung!$G$16,IF(Bewertung!X7=Faktorisierung!$E$17,Faktorisierung!$G$17,IF(Bewertung!X7=Faktorisierung!$E$18,Faktorisierung!$G$18,0))))))","v":""},{"$f":"IF(Bewertung!Y7=\"\",\"\",IF(Bewertung!Y7=Faktorisierung!$E$15,Faktorisierung!$G$15,(IF(Bewertung!Y7=Faktorisierung!$E$16,Faktorisierung!$G$16,IF(Bewertung!Y7=Faktorisierung!$E$17,Faktorisierung!$G$17,IF(Bewertung!Y7=Faktorisierung!$E$18,Faktorisierung!$G$18,0))))))","v":""},{"$f":"IF(Bewertung!Z7=\"\",\"\",IF(Bewertung!Z7=Faktorisierung!$E$15,Faktorisierung!$G$15,(IF(Bewertung!Z7=Faktorisierung!$E$16,Faktorisierung!$G$16,IF(Bewertung!Z7=Faktorisierung!$E$17,Faktorisierung!$G$17,IF(Bewertung!Z7=Faktorisierung!$E$18,Faktorisierung!$G$18,0))))))","v":""},{"$f":"IF(Bewertung!AA7=\"\",\"\",IF(Bewertung!AA7=Faktorisierung!$E$15,Faktorisierung!$G$15,(IF(Bewertung!AA7=Faktorisierung!$E$16,Faktorisierung!$G$16,IF(Bewertung!AA7=Faktorisierung!$E$17,Faktorisierung!$G$17,IF(Bewertung!AA7=Faktorisierung!$E$18,Faktorisierung!$G$18,0))))))","v":""},{"$f":"IF(Bewertung!AB7=\"\",\"\",IF(Bewertung!AB7=Faktorisierung!$E$15,Faktorisierung!$G$15,(IF(Bewertung!AB7=Faktorisierung!$E$16,Faktorisierung!$G$16,IF(Bewertung!AB7=Faktorisierung!$E$17,Faktorisierung!$G$17,IF(Bewertung!AB7=Faktorisierung!$E$18,Faktorisierung!$G$18,0))))))","v":""},{"$f":"IF(Bewertung!AC7=\"\",\"\",IF(Bewertung!AC7=Faktorisierung!$E$15,Faktorisierung!$G$15,(IF(Bewertung!AC7=Faktorisierung!$E$16,Faktorisierung!$G$16,IF(Bewertung!AC7=Faktorisierung!$E$17,Faktorisierung!$G$17,IF(Bewertung!AC7=Faktorisierung!$E$18,Faktorisierung!$G$18,0))))))","v":""},{"$f":"IF(Bewertung!AD7=\"\",\"\",IF(Bewertung!AD7=Faktorisierung!$E$15,Faktorisierung!$G$15,(IF(Bewertung!AD7=Faktorisierung!$E$16,Faktorisierung!$G$16,IF(Bewertung!AD7=Faktorisierung!$E$17,Faktorisierung!$G$17,IF(Bewertung!AD7=Faktorisierung!$E$18,Faktorisierung!$G$18,0))))))","v":""},{"$f":"IF(Bewertung!AE7=\"\",\"\",IF(Bewertung!AE7=Faktorisierung!$E$15,Faktorisierung!$G$15,(IF(Bewertung!AE7=Faktorisierung!$E$16,Faktorisierung!$G$16,IF(Bewertung!AE7=Faktorisierung!$E$17,Faktorisierung!$G$17,IF(Bewertung!AE7=Faktorisierung!$E$18,Faktorisierung!$G$18,0))))))","v":""},{"$f":"IF(Bewertung!AF7=\"\",\"\",IF(Bewertung!AF7=Faktorisierung!$E$15,Faktorisierung!$G$15,(IF(Bewertung!AF7=Faktorisierung!$E$16,Faktorisierung!$G$16,IF(Bewertung!AF7=Faktorisierung!$E$17,Faktorisierung!$G$17,IF(Bewertung!AF7=Faktorisierung!$E$18,Faktorisierung!$G$18,0))))))","v":""},{"$f":"IF(Bewertung!AG7=\"\",\"\",IF(Bewertung!AG7=Faktorisierung!$E$15,Faktorisierung!$G$15,(IF(Bewertung!AG7=Faktorisierung!$E$16,Faktorisierung!$G$16,IF(Bewertung!AG7=Faktorisierung!$E$17,Faktorisierung!$G$17,IF(Bewertung!AG7=Faktorisierung!$E$18,Faktorisierung!$G$18,0))))))","v":""},{"$f":"IF(Bewertung!AH7=\"\",\"\",IF(Bewertung!AH7=Faktorisierung!$E$15,Faktorisierung!$G$15,(IF(Bewertung!AH7=Faktorisierung!$E$16,Faktorisierung!$G$16,IF(Bewertung!AH7=Faktorisierung!$E$17,Faktorisierung!$G$17,IF(Bewertung!AH7=Faktorisierung!$E$18,Faktorisierung!$G$18,0))))))","v":""},{"$f":"IF(Bewertung!AI7=\"\",\"\",IF(Bewertung!AI7=Faktorisierung!$E$15,Faktorisierung!$G$15,(IF(Bewertung!AI7=Faktorisierung!$E$16,Faktorisierung!$G$16,IF(Bewertung!AI7=Faktorisierung!$E$17,Faktorisierung!$G$17,IF(Bewertung!AI7=Faktorisierung!$E$18,Faktorisierung!$G$18,0))))))","v":""},{"$f":"IF(Bewertung!AJ7=\"\",\"\",IF(Bewertung!AJ7=Faktorisierung!$E$15,Faktorisierung!$G$15,(IF(Bewertung!AJ7=Faktorisierung!$E$16,Faktorisierung!$G$16,IF(Bewertung!AJ7=Faktorisierung!$E$17,Faktorisierung!$G$17,IF(Bewertung!AJ7=Faktorisierung!$E$18,Faktorisierung!$G$18,0))))))","v":""},{"$f":"IF(Bewertung!AK7=\"\",\"\",IF(Bewertung!AK7=Faktorisierung!$E$15,Faktorisierung!$G$15,(IF(Bewertung!AK7=Faktorisierung!$E$16,Faktorisierung!$G$16,IF(Bewertung!AK7=Faktorisierung!$E$17,Faktorisierung!$G$17,IF(Bewertung!AK7=Faktorisierung!$E$18,Faktorisierung!$G$18,0))))))","v":""},{"$f":"IF(Bewertung!AL7=\"\",\"\",IF(Bewertung!AL7=Faktorisierung!$E$15,Faktorisierung!$G$15,(IF(Bewertung!AL7=Faktorisierung!$E$16,Faktorisierung!$G$16,IF(Bewertung!AL7=Faktorisierung!$E$17,Faktorisierung!$G$17,IF(Bewertung!AL7=Faktorisierung!$E$18,Faktorisierung!$G$18,0))))))","v":""},{"$f":"IF(Bewertung!AM7=\"\",\"\",IF(Bewertung!AM7=Faktorisierung!$E$15,Faktorisierung!$G$15,(IF(Bewertung!AM7=Faktorisierung!$E$16,Faktorisierung!$G$16,IF(Bewertung!AM7=Faktorisierung!$E$17,Faktorisierung!$G$17,IF(Bewertung!AM7=Faktorisierung!$E$18,Faktorisierung!$G$18,0))))))","v":""},{"$f":"IF(Bewertung!AN7=\"\",\"\",IF(Bewertung!AN7=Faktorisierung!$E$15,Faktorisierung!$G$15,(IF(Bewertung!AN7=Faktorisierung!$E$16,Faktorisierung!$G$16,IF(Bewertung!AN7=Faktorisierung!$E$17,Faktorisierung!$G$17,IF(Bewertung!AN7=Faktorisierung!$E$18,Faktorisierung!$G$18,0))))))","v":""},{"$f":"IF(Bewertung!AO7=\"\",\"\",IF(Bewertung!AO7=Faktorisierung!$E$15,Faktorisierung!$G$15,(IF(Bewertung!AO7=Faktorisierung!$E$16,Faktorisierung!$G$16,IF(Bewertung!AO7=Faktorisierung!$E$17,Faktorisierung!$G$17,IF(Bewertung!AO7=Faktorisierung!$E$18,Faktorisierung!$G$18,0))))))","v":""},{"$f":"IF(Bewertung!AP7=\"\",\"\",IF(Bewertung!AP7=Faktorisierung!$E$15,Faktorisierung!$G$15,(IF(Bewertung!AP7=Faktorisierung!$E$16,Faktorisierung!$G$16,IF(Bewertung!AP7=Faktorisierung!$E$17,Faktorisierung!$G$17,IF(Bewertung!AP7=Faktorisierung!$E$18,Faktorisierung!$G$18,0))))))","v":""},{"$f":"IF(Bewertung!AQ7=\"\",\"\",IF(Bewertung!AQ7=Faktorisierung!$E$15,Faktorisierung!$G$15,(IF(Bewertung!AQ7=Faktorisierung!$E$16,Faktorisierung!$G$16,IF(Bewertung!AQ7=Faktorisierung!$E$17,Faktorisierung!$G$17,IF(Bewertung!AQ7=Faktorisierung!$E$18,Faktorisierung!$G$18,0))))))","v":""},{"$f":"IF(Bewertung!AR7=\"\",\"\",IF(Bewertung!AR7=Faktorisierung!$E$15,Faktorisierung!$G$15,(IF(Bewertung!AR7=Faktorisierung!$E$16,Faktorisierung!$G$16,IF(Bewertung!AR7=Faktorisierung!$E$17,Faktorisierung!$G$17,IF(Bewertung!AR7=Faktorisierung!$E$18,Faktorisierung!$G$18,0))))))","v":""},{"$f":"IF(Bewertung!AS7=\"\",\"\",IF(Bewertung!AS7=Faktorisierung!$E$15,Faktorisierung!$G$15,(IF(Bewertung!AS7=Faktorisierung!$E$16,Faktorisierung!$G$16,IF(Bewertung!AS7=Faktorisierung!$E$17,Faktorisierung!$G$17,IF(Bewertung!AS7=Faktorisierung!$E$18,Faktorisierung!$G$18,0))))))","v":""},{"$f":"IF(Bewertung!AT7=\"\",\"\",IF(Bewertung!AT7=Faktorisierung!$E$15,Faktorisierung!$G$15,(IF(Bewertung!AT7=Faktorisierung!$E$16,Faktorisierung!$G$16,IF(Bewertung!AT7=Faktorisierung!$E$17,Faktorisierung!$G$17,IF(Bewertung!AT7=Faktorisierung!$E$18,Faktorisierung!$G$18,0))))))","v":""},{"$f":"IF(Bewertung!AU7=\"\",\"\",IF(Bewertung!AU7=Faktorisierung!$E$15,Faktorisierung!$G$15,(IF(Bewertung!AU7=Faktorisierung!$E$16,Faktorisierung!$G$16,IF(Bewertung!AU7=Faktorisierung!$E$17,Faktorisierung!$G$17,IF(Bewertung!AU7=Faktorisierung!$E$18,Faktorisierung!$G$18,0))))))","v":""},{"$f":"IF(Bewertung!AV7=\"\",\"\",IF(Bewertung!AV7=Faktorisierung!$E$15,Faktorisierung!$G$15,(IF(Bewertung!AV7=Faktorisierung!$E$16,Faktorisierung!$G$16,IF(Bewertung!AV7=Faktorisierung!$E$17,Faktorisierung!$G$17,IF(Bewertung!AV7=Faktorisierung!$E$18,Faktorisierung!$G$18,0))))))","v":""},{"$f":"IF(Bewertung!AW7=\"\",\"\",IF(Bewertung!AW7=Faktorisierung!$E$15,Faktorisierung!$G$15,(IF(Bewertung!AW7=Faktorisierung!$E$16,Faktorisierung!$G$16,IF(Bewertung!AW7=Faktorisierung!$E$17,Faktorisierung!$G$17,IF(Bewertung!AW7=Faktorisierung!$E$18,Faktorisierung!$G$18,0))))))","v":""},{"$f":"IF(Bewertung!AX7=\"\",\"\",IF(Bewertung!AX7=Faktorisierung!$E$15,Faktorisierung!$G$15,(IF(Bewertung!AX7=Faktorisierung!$E$16,Faktorisierung!$G$16,IF(Bewertung!AX7=Faktorisierung!$E$17,Faktorisierung!$G$17,IF(Bewertung!AX7=Faktorisierung!$E$18,Faktorisierung!$G$18,0))))))","v":""},{"$f":"IF(Bewertung!AY7=\"\",\"\",IF(Bewertung!AY7=Faktorisierung!$E$15,Faktorisierung!$G$15,(IF(Bewertung!AY7=Faktorisierung!$E$16,Faktorisierung!$G$16,IF(Bewertung!AY7=Faktorisierung!$E$17,Faktorisierung!$G$17,IF(Bewertung!AY7=Faktorisierung!$E$18,Faktorisierung!$G$18,0))))))","v":""},{"$f":"IF(Bewertung!AZ7=\"\",\"\",IF(Bewertung!AZ7=Faktorisierung!$E$15,Faktorisierung!$G$15,(IF(Bewertung!AZ7=Faktorisierung!$E$16,Faktorisierung!$G$16,IF(Bewertung!AZ7=Faktorisierung!$E$17,Faktorisierung!$G$17,IF(Bewertung!AZ7=Faktorisierung!$E$18,Faktorisierung!$G$18,0))))))","v":""},{"$f":"IF(Bewertung!BA7=\"\",\"\",IF(Bewertung!BA7=Faktorisierung!$E$15,Faktorisierung!$G$15,(IF(Bewertung!BA7=Faktorisierung!$E$16,Faktorisierung!$G$16,IF(Bewertung!BA7=Faktorisierung!$E$17,Faktorisierung!$G$17,IF(Bewertung!BA7=Faktorisierung!$E$18,Faktorisierung!$G$18,0))))))","v":""},{"$f":"IF(Bewertung!BB7=\"\",\"\",IF(Bewertung!BB7=Faktorisierung!$E$15,Faktorisierung!$G$15,(IF(Bewertung!BB7=Faktorisierung!$E$16,Faktorisierung!$G$16,IF(Bewertung!BB7=Faktorisierung!$E$17,Faktorisierung!$G$17,IF(Bewertung!BB7=Faktorisierung!$E$18,Faktorisierung!$G$18,0))))))","v":""},{"$f":"IF(Bewertung!BC7=\"\",\"\",IF(Bewertung!BC7=Faktorisierung!$E$15,Faktorisierung!$G$15,(IF(Bewertung!BC7=Faktorisierung!$E$16,Faktorisierung!$G$16,IF(Bewertung!BC7=Faktorisierung!$E$17,Faktorisierung!$G$17,IF(Bewertung!BC7=Faktorisierung!$E$18,Faktorisierung!$G$18,0))))))","v":""},{"$f":"IF(Bewertung!BD7=\"\",\"\",IF(Bewertung!BD7=Faktorisierung!$E$15,Faktorisierung!$G$15,(IF(Bewertung!BD7=Faktorisierung!$E$16,Faktorisierung!$G$16,IF(Bewertung!BD7=Faktorisierung!$E$17,Faktorisierung!$G$17,IF(Bewertung!BD7=Faktorisierung!$E$18,Faktorisierung!$G$18,0))))))","v":""},{"$f":"IF(Bewertung!BE7=\"\",\"\",IF(Bewertung!BE7=Faktorisierung!$E$15,Faktorisierung!$G$15,(IF(Bewertung!BE7=Faktorisierung!$E$16,Faktorisierung!$G$16,IF(Bewertung!BE7=Faktorisierung!$E$17,Faktorisierung!$G$17,IF(Bewertung!BE7=Faktorisierung!$E$18,Faktorisierung!$G$18,0))))))","v":""},{"$f":"IF(Bewertung!BF7=\"\",\"\",IF(Bewertung!BF7=Faktorisierung!$E$15,Faktorisierung!$G$15,(IF(Bewertung!BF7=Faktorisierung!$E$16,Faktorisierung!$G$16,IF(Bewertung!BF7=Faktorisierung!$E$17,Faktorisierung!$G$17,IF(Bewertung!BF7=Faktorisierung!$E$18,Faktorisierung!$G$18,0))))))","v":""},{"$f":"IF(Bewertung!BG7=\"\",\"\",IF(Bewertung!BG7=Faktorisierung!$E$15,Faktorisierung!$G$15,(IF(Bewertung!BG7=Faktorisierung!$E$16,Faktorisierung!$G$16,IF(Bewertung!BG7=Faktorisierung!$E$17,Faktorisierung!$G$17,IF(Bewertung!BG7=Faktorisierung!$E$18,Faktorisierung!$G$18,0))))))","v":""},{"$f":"IF(Bewertung!BH7=\"\",\"\",IF(Bewertung!BH7=Faktorisierung!$E$15,Faktorisierung!$G$15,(IF(Bewertung!BH7=Faktorisierung!$E$16,Faktorisierung!$G$16,IF(Bewertung!BH7=Faktorisierung!$E$17,Faktorisierung!$G$17,IF(Bewertung!BH7=Faktorisierung!$E$18,Faktorisierung!$G$18,0))))))","v":""},{"$f":"IF(Bewertung!BI7=\"\",\"\",IF(Bewertung!BI7=Faktorisierung!$E$15,Faktorisierung!$G$15,(IF(Bewertung!BI7=Faktorisierung!$E$16,Faktorisierung!$G$16,IF(Bewertung!BI7=Faktorisierung!$E$17,Faktorisierung!$G$17,IF(Bewertung!BI7=Faktorisierung!$E$18,Faktorisierung!$G$18,0))))))","v":""},{"$f":"IF(Bewertung!BJ7=\"\",\"\",IF(Bewertung!BJ7=Faktorisierung!$E$15,Faktorisierung!$G$15,(IF(Bewertung!BJ7=Faktorisierung!$E$16,Faktorisierung!$G$16,IF(Bewertung!BJ7=Faktorisierung!$E$17,Faktorisierung!$G$17,IF(Bewertung!BJ7=Faktorisierung!$E$18,Faktorisierung!$G$18,0))))))","v":""},{"$f":"IF(Bewertung!BK7=\"\",\"\",IF(Bewertung!BK7=Faktorisierung!$E$15,Faktorisierung!$G$15,(IF(Bewertung!BK7=Faktorisierung!$E$16,Faktorisierung!$G$16,IF(Bewertung!BK7=Faktorisierung!$E$17,Faktorisierung!$G$17,IF(Bewertung!BK7=Faktorisierung!$E$18,Faktorisierung!$G$18,0))))))","v":""},{"$f":"IF(Bewertung!BL7=\"\",\"\",IF(Bewertung!BL7=Faktorisierung!$E$15,Faktorisierung!$G$15,(IF(Bewertung!BL7=Faktorisierung!$E$16,Faktorisierung!$G$16,IF(Bewertung!BL7=Faktorisierung!$E$17,Faktorisierung!$G$17,IF(Bewertung!BL7=Faktorisierung!$E$18,Faktorisierung!$G$18,0))))))","v":""}]
[{"$nulls":3},"5. Kommunikationswege",{"$f":"IF(Bewertung!I8=\"\",\"\",IF(Bewertung!I8=Faktorisierung!$A$23,Faktorisierung!$C$23,(IF(Bewertung!I8=Faktorisierung!$A$24,Faktorisierung!$C$24,IF(Bewertung!I8=Faktorisierung!$A$25,Faktorisierung!$C$25,IF(Bewertung!I8=Faktorisierung!$A$26,Faktorisierung!$C$26,0))))))","v":0.5},{"$f":"IF(Bewertung!J8=\"\",\"\",IF(Bewertung!J8=Faktorisierung!$A$23,Faktorisierung!$C$23,(IF(Bewertung!J8=Faktorisierung!$A$24,Faktorisierung!$C$24,IF(Bewertung!J8=Faktorisierung!$A$25,Faktorisierung!$C$25,IF(Bewertung!J8=Faktorisierung!$A$26,Faktorisierung!$C$26,0))))))","v":""},{"$f":"IF(Bewertung!#REF!=\"\",\"\",IF(Bewertung!#REF!=Faktorisierung!$A$23,Faktorisierung!$C$23,(IF(Bewertung!#REF!=Faktorisierung!$A$24,Faktorisierung!$C$24,IF(Bewertung!#REF!=Faktorisierung!$A$25,Faktorisierung!$C$25,IF(Bewertung!#REF!=Faktorisierung!$A$26,Faktorisierung!$C$26,0))))))","v":{"$error":"#REF!"}},{"$f":"IF(Bewertung!#REF!=\"\",\"\",IF(Bewertung!#REF!=Faktorisierung!$A$23,Faktorisierung!$C$23,(IF(Bewertung!#REF!=Faktorisierung!$A$24,Faktorisierung!$C$24,IF(Bewertung!#REF!=Faktorisierung!$A$25,Faktorisierung!$C$25,IF(Bewertung!#REF!=Faktorisierung!$A$26,Faktorisierung!$C$26,0))))))","v":{"$error":"#REF!"}},{"$f":"IF(Bewertung!#REF!=\"\",\"\",IF(Bewertung!#REF!=Faktorisierung!$A$23,Faktorisierung!$C$23,(IF(Bewertung!#REF!=Faktorisierung!$A$24,Faktorisierung!$C$24,IF(Bewertung!#REF!=Faktorisierung!$A$25,Faktorisierung!$C$25,IF(Bewertung!#REF!=Faktorisierung!$A$26,Faktorisierung!$C$26,0))))))","v":{"$error":"#REF!"}},{"$f":"IF(Bewertung!#REF!=\"\",\"\",IF(Bewertung!#REF!=Faktorisierung!$A$23,Faktorisierung!$C$23,(IF(Bewertung!#REF!=Faktorisierung!$A$24,Faktorisierung!$C$24,IF(Bewertung!#REF!=Faktorisierung!$A$25,Faktorisierung!$C$25,IF(Bewertung!#REF!=Faktorisierung!$A$26,Faktorisierung!$C$26,0))))))","v":{"$error":"#REF!"}},{"$f":"IF(Bewertung!#REF!=\"\",\"\",IF(Bewertung!#REF!=Faktorisierung!$A$23,Faktorisierung!$C$23,(IF(Bewertung!#REF!=Faktorisierung!$A$24,Faktorisierung!$C$24,IF(Bewertung!#REF!=Faktorisierung!$A$25,Faktorisierung!$C$25,IF(Bewertung!#REF!=Faktorisierung!$A$26,Faktorisierung!$C$26,0))))))","v":{"$error":"#REF!"}},{"$f":"IF(Bewertung!#REF!=\"\",\"\",IF(Bewertung!#REF!=Faktorisierung!$A$23,Faktorisierung!$C$23,(IF(Bewertung!#REF!=Faktorisierung!$A$24,Faktorisierung!$C$24,IF(Bewertung!#REF!=Faktorisierung!$A$25,Faktorisierung!$C$25,IF(Bewertung!#REF!=Faktorisierung!$A$26,Faktorisierung!$C$26,0))))))","v":{"$error":"#REF!"}},{"$f":"IF(Bewertung!K8=\"\",\"\",IF(Bewertung!K8=Faktorisierung!$A$23,Faktorisierung!$C$23,(IF(Bewertung!K8=Faktorisierung!$A$24,Faktorisierung!$C$24,IF(Bewertung!K8=Faktorisierung!$A$25,Faktorisierung!$C$25,IF(Bewertung!K8=Faktorisierung!$A$26,Faktorisierung!$C$26,0))))))","v":""},{"$f":"IF(Bewertung!J25=\"\",\"\",IF(Bewertung!J25=Faktorisierung!$A$23,Faktorisierung!$C$23,(IF(Bewertung!J25=Faktorisierung!$A$24,Faktorisierung!$C$24,IF(Bewertung!J25=Faktorisierung!$A$25,Faktorisierung!$C$25,IF(Bewertung!J25=Faktorisierung!$A$26,Faktorisierung!$C$26,0))))))","v":""},{"$f":"IF(Bewertung!M8=\"\",\"\",IF(Bewertung!M8=Faktorisierung!$A$23,Faktorisierung!$C$23,(IF(Bewertung!M8=Faktorisierung!$A$24,Faktorisierung!$C$24,IF(Bewertung!M8=Faktorisierung!$A$25,Faktorisierung!$C$25,IF(Bewertung!M8=Faktorisierung!$A$26,Faktorisierung!$C$26,0))))))","v":""},{"$f":"IF(Bewertung!N8=\"\",\"\",IF(Bewertung!N8=Faktorisierung!$A$23,Faktorisierung!$C$23,(IF(Bewertung!N8=Faktorisierung!$A$24,Faktorisierung!$C$24,IF(Bewertung!N8=Faktorisierung!$A$25,Faktorisierung!$C$25,IF(Bewertung!N8=Faktorisierung!$A$26,Faktorisierung!$C$26,0))))))","v":""},{"$f":"IF(Bewertung!O8=\"\",\"\",IF(Bewertung!O8=Faktorisierung!$A$23,Faktorisierung!$C$23,(IF(Bewertung!O8=Faktorisierung!$A$24,Faktorisierung!$C$24,IF(Bewertung!O8=Faktorisierung!$A$25,Faktorisierung!$C$25,IF(Bewertung!O8=Faktorisierung!$A$26,Faktorisierung!$C$26,0))))))","v":""},{"$f":"IF(Bewertung!P8=\"\",\"\",IF(Bewertung!P8=Faktorisierung!$A$23,Faktorisierung!$C$23,(IF(Bewertung!P8=Faktorisierung!$A$24,Faktorisierung!$C$24,IF(Bewertung!P8=Faktorisierung!$A$25,Faktorisierung!$C$25,IF(Bewertung!P8=Faktorisierung!$A$26,Faktorisierung!$C$26,0))))))","v":""},{"$f":"IF(Bewertung!Q8=\"\",\"\",IF(Bewertung!Q8=Faktorisierung!$A$23,Faktorisierung!$C$23,(IF(Bewertung!Q8=Faktorisierung!$A$24,Faktorisierung!$C$24,IF(Bewertung!Q8=Faktorisierung!$A$25,Faktorisierung!$C$25,IF(Bewertung!Q8=Faktorisierung!$A$26,Faktorisierung!$C$26,0))))))","v":""},{"$f":"IF(Bewertung!R8=\"\",\"\",IF(Bewertung!R8=Faktorisierung!$A$23,Faktorisierung!$C$23,(IF(Bewertung!R8=Faktorisierung!$A$24,Faktorisierung!$C$24,IF(Bewertung!R8=Faktorisierung!$A$25,Faktorisierung!$C$25,IF(Bewertung!R8=Faktorisierung!$A$26,Faktorisierung!$C$26,0))))))","v":""},{"$f":"IF(Bewertung!S8=\"\",\"\",IF(Bewertung!S8=Faktorisierung!$A$23,Faktorisierung!$C$23,(IF(Bewertung!S8=Faktorisierung!$A$24,Faktorisierung!$C$24,IF(Bewertung!S8=Faktorisierung!$A$25,Faktorisierung!$C$25,IF(Bewertung!S8=Faktorisierung!$A$26,Faktorisierung!$C$26,0))))))","v":""},{"$f":"IF(Bewertung!T8=\"\",\"\",IF(Bewertung!T8=Faktorisierung!$A$23,Faktorisierung!$C$23,(IF(Bewertung!T8=Faktorisierung!$A$24,Faktorisierung!$C$24,IF(Bewertung!T8=Faktorisierung!$A$25,Faktorisierung!$C$25,IF(Bewertung!T8=Faktorisierung!$A$26,Faktorisierung!$C$26,0))))))","v":""},{"$f":"IF(Bewertung!U8=\"\",\"\",IF(Bewertung!U8=Faktorisierung!$A$23,Faktorisierung!$C$23,(IF(Bewertung!U8=Faktorisierung!$A$24,Faktorisierung!$C$24,IF(Bewertung!U8=Faktorisierung!$A$25,Faktorisierung!$C$25,IF(Bewertung!U8=Faktorisierung!$A$26,Faktorisierung!$C$26,0))))))","v":""},{"$f":"IF(Bewertung!V8=\"\",\"\",IF(Bewertung!V8=Faktorisierung!$A$23,Faktorisierung!$C$23,(IF(Bewertung!V8=Faktorisierung!$A$24,Faktorisierung!$C$24,IF(Bewertung!V8=Faktorisierung!$A$25,Faktorisierung!$C$25,IF(Bewertung!V8=Faktorisierung!$A$26,Faktorisierung!$C$26,0))))))","v":""},{"$f":"IF(Bewertung!W8=\"\",\"\",IF(Bewertung!W8=Faktorisierung!$A$23,Faktorisierung!$C$23,(IF(Bewertung!W8=Faktorisierung!$A$24,Faktorisierung!$C$24,IF(Bewertung!W8=Faktorisierung!$A$25,Faktorisierung!$C$25,IF(Bewertung!W8=Faktorisierung!$A$26,Faktorisierung!$C$26,0))))))","v":""},{"$f":"IF(Bewertung!X8=\"\",\"\",IF(Bewertung!X8=Faktorisierung!$A$23,Faktorisierung!$C$23,(IF(Bewertung!X8=Faktorisierung!$A$24,Faktorisierung!$C$24,IF(Bewertung!X8=Faktorisierung!$A$25,Faktorisierung!$C$25,IF(Bewertung!X8=Faktorisierung!$A$26,Faktorisierung!$C$26,0))))))","v":""},{"$f":"IF(Bewertung!Y8=\"\",\"\",IF(Bewertung!Y8=Faktorisierung!$A$23,Faktorisierung!$C$23,(IF(Bewertung!Y8=Faktorisierung!$A$24,Faktorisierung!$C$24,IF(Bewertung!Y8=Faktorisierung!$A$25,Faktorisierung!$C$25,IF(Bewertung!Y8=Faktorisierung!$A$26,Faktorisierung!$C$26,0))))))","v":""},{"$f":"IF(Bewertung!Z8=\"\",\"\",IF(Bewertung!Z8=Faktorisierung!$A$23,Faktorisierung!$C$23,(IF(Bewertung!Z8=Faktorisierung!$A$24,Faktorisierung!$C$24,IF(Bewertung!Z8=Faktorisierung!$A$25,Faktorisierung!$C$25,IF(Bewertung!Z8=Faktorisierung!$A$26,Faktorisierung!$C$26,0))))))","v":""},{"$f":"IF(Bewertung!AA8=\"\",\"\",IF(Bewertung!AA8=Faktorisierung!$A$23,Faktorisierung!$C$23,(IF(Bewertung!AA8=Faktorisierung!$A$24,Faktorisierung!$C$24,IF(Bewertung!AA8=Faktorisierung!$A$25,Faktorisierung!$C$25,IF(Bewertung!AA8=Faktorisierung!$A$26,Faktorisierung!$C$26,0))))))","v":""},{"$f":"IF(Bewertung!AB8=\"\",\"\",IF(Bewertung!AB8=Faktorisierung!$A$23,Faktorisierung!$C$23,(IF(Bewertung!AB8=Faktorisierung!$A$24,Faktorisierung!$C$24,IF(Bewertung!AB8=Faktorisierung!$A$25,Faktorisierung!$C$25,IF(Bewertung!AB8=Faktorisierung!$A$26,Faktorisierung!$C$26,0))))))","v":""},{"$f":"IF(Bewertung!AC8=\"\",\"\",IF(Bewertung!AC8=Faktorisierung!$A$23,Faktorisierung!$C$23,(IF(Bewertung!AC8=Faktorisierung!$A$24,Faktorisierung!$C$24,IF(Bewertung!AC8=Faktorisierung!$A$25,Faktorisierung!$C$25,IF(Bewertung!AC8=Faktorisierung!$A$26,Faktorisierung!$C$26,0))))))","v":""},{"$f":"IF(Bewertung!AD8=\"\",\"\",IF(Bewertung!AD8=Faktorisierung!$A$23,Faktorisierung!$C$23,(IF(Bewertung!AD8=Faktorisierung!$A$24,Faktorisierung!$C$24,IF(Bewertung!AD8=Faktorisierung!$A$25,Faktorisierung!$C$25,IF(Bewertung!AD8=Faktorisierung!$A$26,Faktorisierung!$C$26,0))))))","v":""},{"$f":"IF(Bewertung!AE8=\"\",\"\",IF(Bewertung!AE8=Faktorisierung!$A$23,Faktorisierung!$C$23,(IF(Bewertung!AE8=Faktorisierung!$A$24,Faktorisierung!$C$24,IF(Bewertung!AE8=Faktorisierung!$A$25,Faktorisierung!$C$25,IF(Bewertung!AE8=Faktorisierung!$A$26,Faktorisierung!$C$26,0))))))","v":""},{"$f":"IF(Bewertung!AF8=\"\",\"\",IF(Bewertung!AF8=Faktorisierung!$A$23,Faktorisierung!$C$23,(IF(Bewertung!AF8=Faktorisierung!$A$24,Faktorisierung!$C$24,IF(Bewertung!AF8=Faktorisierung!$A$25,Faktorisierung!$C$25,IF(Bewertung!AF8=Faktorisierung!$A$26,Faktorisierung!$C$26,0))))))","v":""},{"$f":"IF(Bewertung!AG8=\"\",\"\",IF(Bewertung!AG8=Faktorisierung!$A$23,Faktorisierung!$C$23,(IF(Bewertung!AG8=Faktorisierung!$A$24,Faktorisierung!$C$24,IF(Bewertung!AG8=Faktorisierung!$A$25,Faktorisierung!$C$25,IF(Bewertung!AG8=Faktorisierung!$A$26,Faktorisierung!$C$26,0))))))","v":""},{"$f":"IF(Bewertung!AH8=\"\",\"\",IF(Bewertung!AH8=Faktorisierung!$A$23,Faktorisierung!$C$23,(IF(Bewertung!AH8=Faktorisierung!$A$24,Faktorisierung!$C$24,IF(Bewertung!AH8=Faktorisierung!$A$25,Faktorisierung!$C$25,IF(Bewertung!AH8=Faktorisierung!$A$26,Faktorisierung!$C$26,0))))))","v":""},{"$f":"IF(Bewertung!AI8=\"\",\"\",IF(Bewertung!AI8=Faktorisierung!$A$23,Faktorisierung!$C$23,(IF(Bewertung!AI8=Faktorisierung!$A$24,Faktorisierung!$C$24,IF(Bewertung!AI8=Faktorisierung!$A$25,Faktorisierung!$C$25,IF(Bewertung!AI8=Faktorisierung!$A$26,Faktorisierung!$C$26,0))))))","v":""},{"$f":"IF(Bewertung!AJ8=\"\",\"\",IF(Bewertung!AJ8=Faktorisierung!$A$23,Faktorisierung!$C$23,(IF(Bewertung!AJ8=Faktorisierung!$A$24,Faktorisierung!$C$24,IF(Bewertung!AJ8=Faktorisierung!$A$25,Faktorisierung!$C$25,IF(Bewertung!AJ8=Faktorisierung!$A$26,Faktorisierung!$C$26,0))))))","v":""},{"$f":"IF(Bewertung!AK8=\"\",\"\",IF(Bewertung!AK8=Faktorisierung!$A$23,Faktorisierung!$C$23,(IF(Bewertung!AK8=Faktorisierung!$A$24,Faktorisierung!$C$24,IF(Bewertung!AK8=Faktorisierung!$A$25,Faktorisierung!$C$25,IF(Bewertung!AK8=Faktorisierung!$A$26,Faktorisierung!$C$26,0))))))","v":""},{"$f":"IF(Bewertung!AL8=\"\",\"\",IF(Bewertung!AL8=Faktorisierung!$A$23,Faktorisierung!$C$23,(IF(Bewertung!AL8=Faktorisierung!$A$24,Faktorisierung!$C$24,IF(Bewertung!AL8=Faktorisierung!$A$25,Faktorisierung!$C$25,IF(Bewertung!AL8=Faktorisierung!$A$26,Faktorisierung!$C$26,0))))))","v":""},{"$f":"IF(Bewertung!AM8=\"\",\"\",IF(Bewertung!AM8=Faktorisierung!$A$23,Faktorisierung!$C$23,(IF(Bewertung!AM8=Faktorisierung!$A$24,Faktorisierung!$C$24,IF(Bewertung!AM8=Faktorisierung!$A$25,Faktorisierung!$C$25,IF(Bewertung!AM8=Faktorisierung!$A$26,Faktorisierung!$C$26,0))))))","v":""},{"$f":"IF(Bewertung!AN8=\"\",\"\",IF(Bewertung!AN8=Faktorisierung!$A$23,Faktorisierung!$C$23,(IF(Bewertung!AN8=Faktorisierung!$A$24,Faktorisierung!$C$24,IF(Bewertung!AN8=Faktorisierung!$A$25,Faktorisierung!$C$25,IF(Bewertung!AN8=Faktorisierung!$A$26,Faktorisierung!$C$26,0))))))","v":""},{"$f":"IF(Bewertung!AO8=\"\",\"\",IF(Bewertung!AO8=Faktorisierung!$A$23,Faktorisierung!$C$23,(IF(Bewertung!AO8=Faktorisierung!$A$24,Faktorisierung!$C$24,IF(Bewertung!AO8=Faktorisierung!$A$25,Faktorisierung!$C$25,IF(Bewertung!AO8=Faktorisierung!$A$26,Faktorisierung!$C$26,0))))))","v":""},{"$f":"IF(Bewertung!AP8=\"\",\"\",IF(Bewertung!AP8=Faktorisierung!$A$23,Faktorisierung!$C$23,(IF(Bewertung!AP8=Faktorisierung!$A$24,Faktorisierung!$C$24,IF(Bewertung!AP8=Faktorisierung!$A$25,Faktorisierung!$C$25,IF(Bewertung!AP8=Faktorisierung!$A$26,Faktorisierung!$C$26,0))))))","v":""},{"$f":"IF(Bewertung!AQ8=\"\",\"\",IF(Bewertung!AQ8=Faktorisierung!$A$23,Faktorisierung!$C$23,(IF(Bewertung!AQ8=Faktorisierung!$A$24,Faktorisierung!$C$24,IF(Bewertung!AQ8=Faktorisierung!$A$25,Faktorisierung!$C$25,IF(Bewertung!AQ8=Faktorisierung!$A$26,Faktorisierung!$C$26,0))))))","v":""},{"$f":"IF(Bewertung!AR8=\"\",\"\",IF(Bewertung!AR8=Faktorisierung!$A$23,Faktorisierung!$C$23,(IF(Bewertung!AR8=Faktorisierung!$A$24,Faktorisierung!$C$24,IF(Bewertung!AR8=Faktorisierung!$A$25,Faktorisierung!$C$25,IF(Bewertung!AR8=Faktorisierung!$A$26,Faktorisierung!$C$26,0))))))","v":""},{"$f":"IF(Bewertung!AS8=\"\",\"\",IF(Bewertung!AS8=Faktorisierung!$A$23,Faktorisierung!$C$23,(IF(Bewertung!AS8=Faktorisierung!$A$24,Faktorisierung!$C$24,IF(Bewertung!AS8=Faktorisierung!$A$25,Faktorisierung!$C$25,IF(Bewertung!AS8=Faktorisierung!$A$26,Faktorisierung!$C$26,0))))))","v":""},{"$f":"IF(Bewertung!AT8=\"\",\"\",IF(Bewertung!AT8=Faktorisierung!$A$23,Faktorisierung!$C$23,(IF(Bewertung!AT8=Faktorisierung!$A$24,Faktorisierung!$C$24,IF(Bewertung!AT8=Faktorisierung!$A$25,Faktorisierung!$C$25,IF(Bewertung!AT8=Faktorisierung!$A$26,Faktorisierung!$C$26,0))))))","v":""},{"$f":"IF(Bewertung!AU8=\"\",\"\",IF(Bewertung!AU8=Faktorisierung!$A$23,Faktorisierung!$C$23,(IF(Bewertung!AU8=Faktorisierung!$A$24,Faktorisierung!$C$24,IF(Bewertung!AU8=Faktorisierung!$A$25,Faktorisierung!$C$25,IF(Bewertung!AU8=Faktorisierung!$A$26,Faktorisierung!$C$26,0))))))","v":""},{"$f":"IF(Bewertung!AV8=\"\",\"\",IF(Bewertung!AV8=Faktorisierung!$A$23,Faktorisierung!$C$23,(IF(Bewertung!AV8=Faktorisierung!$A$24,Faktorisierung!$C$24,IF(Bewertung!AV8=Faktorisierung!$A$25,Faktorisierung!$C$25,IF(Bewertung!AV8=Faktorisierung!$A$26,Faktorisierung!$C$26,0))))))","v":""},{"$f":"IF(Bewertung!AW8=\"\",\"\",IF(Bewertung!AW8=Faktorisierung!$A$23,Faktorisierung!$C$23,(IF(Bewertung!AW8=Faktorisierung!$A$24,Faktorisierung!$C$24,IF(Bewertung!AW8=Faktorisierung!$A$25,Faktorisierung!$C$25,IF(Bewertung!AW8=Faktorisierung!$A$26,Faktorisierung!$C$26,0))))))","v":""},{"$f":"IF(Bewertung!AX8=\"\",\"\",IF(Bewertung!AX8=Faktorisierung!$A$23,Faktorisierung!$C$23,(IF(Bewertung!AX8=Faktorisierung!$A$24,Faktorisierung!$C$24,IF(Bewertung!AX8=Faktorisierung!$A$25,Faktorisierung!$C$25,IF(Bewertung!AX8=Faktorisierung!$A$26,Faktorisierung!$C$26,0))))))","v":""},{"$f":"IF(Bewertung!AY8=\"\",\"\",IF(Bewertung!AY8=Faktorisierung!$A$23,Faktorisierung!$C$23,(IF(Bewertung!AY8=Faktorisierung!$A$24,Faktorisierung!$C$24,IF(Bewertung!AY8=Faktorisierung!$A$25,Faktorisierung!$C$25,IF(Bewertung!AY8=Faktorisierung!$A$26,Faktorisierung!$C$26,0))))))","v":""},{"$f":"IF(Bewertung!AZ8=\"\",\"\",IF(Bewertung!AZ8=Faktorisierung!$A$23,Faktorisierung!$C$23,(IF(Bewertung!AZ8=Faktorisierung!$A$24,Faktorisierung!$C$24,IF(Bewertung!AZ8=Faktorisierung!$A$25,Faktorisierung!$C$25,IF(Bewertung!AZ8=Faktorisierung!$A$26,Faktorisierung!$C$26,0))))))","v":""},{"$f":"IF(Bewertung!BA8=\"\",\"\",IF(Bewertung!BA8=Faktorisierung!$A$23,Faktorisierung!$C$23,(IF(Bewertung!BA8=Faktorisierung!$A$24,Faktorisierung!$C$24,IF(Bewertung!BA8=Faktorisierung!$A$25,Faktorisierung!$C$25,IF(Bewertung!BA8=Faktorisierung!$A$26,Faktorisierung!$C$26,0))))))","v":""},{"$f":"IF(Bewertung!BB8=\"\",\"\",IF(Bewertung!BB8=Faktorisierung!$A$23,Faktorisierung!$C$23,(IF(Bewertung!BB8=Faktorisierung!$A$24,Faktorisierung!$C$24,IF(Bewertung!BB8=Faktorisierung!$A$25,Faktorisierung!$C$25,IF(Bewertung!BB8=Faktorisierung!$A$26,Faktorisierung!$C$26,0))))))","v":""},{"$f":"IF(Bewertung!BC8=\"\",\"\",IF(Bewertung!BC8=Faktorisierung!$A$23,Faktorisierung!$C$23,(IF(Bewertung!BC8=Faktorisierung!$A$24,Faktorisierung!$C$24,IF(Bewertung!BC8=Faktorisierung!$A$25,Faktorisierung!$C$25,IF(Bewertung!BC8=Faktorisierung!$A$26,Faktorisierung!$C$26,0))))))","v":""},{"$f":"IF(Bewertung!BD8=\"\",\"\",IF(Bewertung!BD8=Faktorisierung!$A$23,Faktorisierung!$C$23,(IF(Bewertung!BD8=Faktorisierung!$A$24,Faktorisierung!$C$24,IF(Bewertung!BD8=Faktorisierung!$A$25,Faktorisierung!$C$25,IF(Bewertung!BD8=Faktorisierung!$A$26,Faktorisierung!$C$26,0))))))","v":""},{"$f":"IF(Bewertung!BE8=\"\",\"\",IF(Bewertung!BE8=Faktorisierung!$A$23,Faktorisierung!$C$23,(IF(Bewertung!BE8=Faktorisierung!$A$24,Faktorisierung!$C$24,IF(Bewertung!BE8=Faktorisierung!$A$25,Faktorisierung!$C$25,IF(Bewertung!BE8=Faktorisierung!$A$26,Faktorisierung!$C$26,0))))))","v":""},{"$f":"IF(Bewertung!BF8=\"\",\"\",IF(Bewertung!BF8=Faktorisierung!$A$23,Faktorisierung!$C$23,(IF(Bewertung!BF8=Faktorisierung!$A$24,Faktorisierung!$C$24,IF(Bewertung!BF8=Faktorisierung!$A$25,Faktorisierung!$C$25,IF(Bewertung!BF8=Faktorisierung!$A$26,Faktorisierung!$C$26,0))))))","v":""},{"$f":"IF(Bewertung!BG8=\"\",\"\",IF(Bewertung!BG8=Faktorisierung!$A$23,Faktorisierung!$C$23,(IF(Bewertung!BG8=Faktorisierung!$A$24,Faktorisierung!$C$24,IF(Bewertung!BG8=Faktorisierung!$A$25,Faktorisierung!$C$25,IF(Bewertung!BG8=Faktorisierung!$A$26,Faktorisierung!$C$26,0))))))","v":""},{"$f":"IF(Bewertung!BH8=\"\",\"\",IF(Bewertung!BH8=Faktorisierung!$A$23,Faktorisierung!$C$23,(IF(Bewertung!BH8=Faktorisierung!$A$24,Faktorisierung!$C$24,IF(Bewertung!BH8=Faktorisierung!$A$25,Faktorisierung!$C$25,IF(Bewertung!BH8=Faktorisierung!$A$26,Faktorisierung!$C$26,0))))))","v":""},{"$f":"IF(Bewertung!BI8=\"\",\"\",IF(Bewertung!BI8=Faktorisierung!$A$23,Faktorisierung!$C$23,(IF(Bewertung!BI8=Faktorisierung!$A$24,Faktorisierung!$C$24,IF(Bewertung!BI8=Faktorisierung!$A$25,Faktorisierung!$C$25,IF(Bewertung!BI8=Faktorisierung!$A$26,Faktorisierung!$C$26,0))))))","v":""},{"$f":"IF(Bewertung!BJ8=\"\",\"\",IF(Bewertung!BJ8=Faktorisierung!$A$23,Faktorisierung!$C$23,(IF(Bewertung!BJ8=Faktorisierung!$A$24,Faktorisierung!$C$24,IF(Bewertung!BJ8=Faktorisierung!$A$25,Faktorisierung!$C$25,IF(Bewertung!BJ8=Faktorisierung!$A$26,Faktorisierung!$C$26,0))))))","v":""},{"$f":"IF(Bewertung!BK8=\"\",\"\",IF(Bewertung!BK8=Faktorisierung!$A$23,Faktorisierung!$C$23,(IF(Bewertung!BK8=Faktorisierung!$A$24,Faktorisierung!$C$24,IF(Bewertung!BK8=Faktorisierung!$A$25,Faktorisierung!$C$25,IF(Bewertung!BK8=Faktorisierung!$A$26,Faktorisierung!$C$26,0))))))","v":""},{"$f":"IF(Bewertung!BL8=\"\",\"\",IF(Bewertung!BL8=Faktorisierung!$A$23,Faktorisierung!$C$23,(IF(Bewertung!BL8=Faktorisierung!$A$24,Faktorisierung!$C$24,IF(Bewertung!BL8=Faktorisierung!$A$25,Faktorisierung!$C$25,IF(Bewertung!BL8=Faktorisierung!$A$26,Faktorisierung!$C$26,0))))))","v":""}]
[{"$nulls":3},"6. Brandszenarien",{"$f":"IF(Bewertung!I9=\"\",\"\",IF(Bewertung!I9=Faktorisierung!$E$23,Faktorisierung!$G$23,(IF(Bewertung!I9=Faktorisierung!$E$24,Faktorisierung!$G$24,IF(Bewertung!I9=Faktorisierung!$E$25,Faktorisierung!$G$25,IF(Bewertung!I9=Faktorisierung!$E$26,Faktorisierung!$G$26,0))))))","v":0.5},{"$f":"IF(Bewertung!J9=\"\",\"\",IF(Bewertung!J9=Faktorisierung!$E$23,Faktorisierung!$G$23,(IF(Bewertung!J9=Faktorisierung!$E$24,Faktorisierung!$G$24,IF(Bewertung!J9=Faktorisierung!$E$25,Faktorisierung!$G$25,IF(Bewertung!J9=Faktorisierung!$E$26,Faktorisierung!$G$26,0))))))","v":""},{"$f":"IF(Bewertung!#REF!=\"\",\"\",IF(Bewertung!#REF!=Faktorisierung!$E$23,Faktorisierung!$G$23,(IF(Bewertung!#REF!=Faktorisierung!$E$24,Faktorisierung!$G$24,IF(Bewertung!#REF!=Faktorisierung!$E$25,Faktorisierung!$G$25,IF(Bewertung!#REF!=Faktorisierung!$E$26,Faktorisierung!$G$26,0))))))","v":{"$error":"#REF!"}},{"$f":"IF(Bewertung!#REF!=\"\",\"\",IF(Bewertung!#REF!=Faktorisierung!$E$23,Faktorisierung!$G$23,(IF(Bewertung!#REF!=Faktorisierung!$E$24,Faktorisierung!$G$24,IF(Bewertung!#REF!=Faktorisierung!$E$25,Faktorisierung!$G$25,IF(Bewertung!#REF!=Faktorisierung!$E$26,Faktorisierung!$G$26,0))))))","v":{"$error":"#REF!"}},{"$f":"IF(Bewertung!#REF!=\"\",\"\",IF(Bewertung!#REF!=Faktorisierung!$E$23,Faktorisierung!$G$23,(IF(Bewertung!#REF!=Faktorisierung!$E$24,Faktorisierung!$G$24,IF(Bewertung!#REF!=Faktorisierung!$E$25,Faktorisierung!$G$25,IF(Bewertung!#REF!=Faktorisierung!$E$26,Faktorisierung!$G$26,0))))))","v":{"$error":"#REF!"}},{"$f":"IF(Bewertung!#REF!=\"\",\"\",IF(Bewertung!#REF!=Faktorisierung!$E$23,Faktorisierung!$G$23,(IF(Bewertung!#REF!=Faktorisierung!$E$24,Faktorisierung!$G$24,IF(Bewertung!#REF!=Faktorisierung!$E$25,Faktorisierung!$G$25,IF(Bewertung!#REF!=Faktorisierung!$E$26,Faktorisierung!$G$26,0))))))","v":{"$error":"#REF!"}},{"$f":"IF(Bewertung!#REF!=\"\",\"\",IF(Bewertung!#REF!=Faktorisierung!$E$23,Faktorisierung!$G$23,(IF(Bewertung!#REF!=Faktorisierung!$E$24,Faktorisierung!$G$24,IF(Bewertung!#REF!=Faktorisierung!$E$25,Faktorisierung!$G$25,IF(Bewertung!#REF!=Faktorisierung!$E$26,Faktorisierung!$G$26,0))))))","v":{"$error":"#REF!"}},{"$f":"IF(Bewertung!#REF!=\"\",\"\",IF(Bewertung!#REF!=Faktorisierung!$E$23,Faktorisierung!$G$23,(IF(Bewertung!#REF!=Faktorisierung!$E$24,Faktorisierung!$G$24,IF(Bewertung!#REF!=Faktorisierung!$E$25,Faktorisierung!$G$25,IF(Bewertung!#REF!=Faktorisierung!$E$26,Faktorisierung!$G$26,0))))))","v":{"$error":"#REF!"}},{"$f":"IF(Bewertung!K9=\"\",\"\",IF(Bewertung!K9=Faktorisierung!$E$23,Faktorisierung!$G$23,(IF(Bewertung!K9=Faktorisierung!$E$24,Faktorisierung!$G$24,IF(Bewertung!K9=Faktorisierung!$E$25,Faktorisierung!$G$25,IF(Bewertung!K9=Faktorisierung!$E$26,Faktorisierung!$G$26,0))))))","v":""},{"$f":"IF(Bewertung!L9=\"\",\"\",IF(Bewertung!L9=Faktorisierung!$E$23,Faktorisierung!$G$23,(IF(Bewertung!L9=Faktorisierung!$E$24,Faktorisierung!$G$24,IF(Bewertung!L9=Faktorisierung!$E$25,Faktorisierung!$G$25,IF(Bewertung!L9=Faktorisierung!$E$26,Faktorisierung!$G$26,0))))))","v":""},{"$f":"IF(Bewertung!M9=\"\",\"\",IF(Bewertung!M9=Faktorisierung!$E$23,Faktorisierung!$G$23,(IF(Bewertung!M9=Faktorisierung!$E$24,Faktorisierung!$G$24,IF(Bewertung!M9=Faktorisierung!$E$25,Faktorisierung!$G$25,IF(Bewertung!M9=Faktorisierung!$E$26,Faktorisierung!$G$26,0))))))","v":""},{"$f":"IF(Bewertung!N9=\"\",\"\",IF(Bewertung!N9=Faktorisierung!$E$23,Faktorisierung!$G$23,(IF(Bewertung!N9=Faktorisierung!$E$24,Faktorisierung!$G$24,IF(Bewertung!N9=Faktorisierung!$E$25,Faktorisierung!$G$25,IF(Bewertung!N9=Faktorisierung!$E$26,Faktorisierung!$G$26,0))))))","v":""},{"$f":"IF(Bewertung!O9=\"\",\"\",IF(Bewertung!O9=Faktorisierung!$E$23,Faktorisierung!$G$23,(IF(Bewertung!O9=Faktorisierung!$E$24,Faktorisierung!$G$24,IF(Bewertung!O9=Faktorisierung!$E$25,Faktorisierung!$G$25,IF(Bewertung!O9=Faktorisierung!$E$26,Faktorisierung!$G$26,0))))))","v":""},{"$f":"IF(Bewertung!P9=\"\",\"\",IF(Bewertung!P9=Faktorisierung!$E$23,Faktorisierung!$G$23,(IF(Bewertung!P9=Faktorisierung!$E$24,Faktorisierung!$G$24,IF(Bewertung!P9=Faktorisierung!$E$25,Faktorisierung!$G$25,IF(Bewertung!P9=Faktorisierung!$E$26,Faktorisierung!$G$26,0))))))","v":""},{"$f":"IF(Bewertung!Q9=\"\",\"\",IF(Bewertung!Q9=Faktorisierung!$E$23,Faktorisierung!$G$23,(IF(Bewertung!Q9=Faktorisierung!$E$24,Faktorisierung!$G$24,IF(Bewertung!Q9=Faktorisierung!$E$25,Faktorisierung!$G$25,IF(Bewertung!Q9=Faktorisierung!$E$26,Faktorisierung!$G$26,0))))))","v":""},{"$f":"IF(Bewertung!R9=\"\",\"\",IF(Bewertung!R9=Faktorisierung!$E$23,Faktorisierung!$G$23,(IF(Bewertung!R9=Faktorisierung!$E$24,Faktorisierung!$G$24,IF(Bewertung!R9=Faktorisierung!$E$25,Faktorisierung!$G$25,IF(Bewertung!R9=Faktorisierung!$E$26,Faktorisierung!$G$26,0))))))","v":""},{"$f":"IF(Bewertung!S9=\"\",\"\",IF(Bewertung!S9=Faktorisierung!$E$23,Faktorisierung!$G$23,(IF(Bewertung!S9=Faktorisierung!$E$24,Faktorisierung!$G$24,IF(Bewertung!S9=Faktorisierung!$E$25,Faktorisierung!$G$25,IF(Bewertung!S9=Faktorisierung!$E$26,Faktorisierung!$G$26,0))))))","v":""},{"$f":"IF(Bewertung!T9=\"\",\"\",IF(Bewertung!T9=Faktorisierung!$E$23,Faktorisierung!$G$23,(IF(Bewertung!T9=Faktorisierung!$E$24,Faktorisierung!$G$24,IF(Bewertung!T9=Faktorisierung!$E$25,Faktorisierung!$G$25,IF(Bewertung!T9=Faktorisierung!$E$26,Faktorisierung!$G$26,0))))))","v":""},{"$f":"IF(Bewertung!U9=\"\",\"\",IF(Bewertung!U9=Faktorisierung!$E$23,Faktorisierung!$G$23,(IF(Bewertung!U9=Faktorisierung!$E$24,Faktorisierung!$G$24,IF(Bewertung!U9=Faktorisierung!$E$25,Faktorisierung!$G$25,IF(Bewertung!U9=Faktorisierung!$E$26,Faktorisierung!$G$26,0))))))","v":""},{"$f":"IF(Bewertung!V9=\"\",\"\",IF(Bewertung!V9=Faktorisierung!$E$23,Faktorisierung!$G$23,(IF(Bewertung!V9=Faktorisierung!$E$24,Faktorisierung!$G$24,IF(Bewertung!V9=Faktorisierung!$E$25,Faktorisierung!$G$25,IF(Bewertung!V9=Faktorisierung!$E$26,Faktorisierung!$G$26,0))))))","v":""},{"$f":"IF(Bewertung!W9=\"\",\"\",IF(Bewertung!W9=Faktorisierung!$E$23,Faktorisierung!$G$23,(IF(Bewertung!W9=Faktorisierung!$E$24,Faktorisierung!$G$24,IF(Bewertung!W9=Faktorisierung!$E$25,Faktorisierung!$G$25,IF(Bewertung!W9=Faktorisierung!$E$26,Faktorisierung!$G$26,0))))))","v":""},{"$f":"IF(Bewertung!X9=\"\",\"\",IF(Bewertung!X9=Faktorisierung!$E$23,Faktorisierung!$G$23,(IF(Bewertung!X9=Faktorisierung!$E$24,Faktorisierung!$G$24,IF(Bewertung!X9=Faktorisierung!$E$25,Faktorisierung!$G$25,IF(Bewertung!X9=Faktorisierung!$E$26,Faktorisierung!$G$26,0))))))","v":""},{"$f":"IF(Bewertung!Y9=\"\",\"\",IF(Bewertung!Y9=Faktorisierung!$E$23,Faktorisierung!$G$23,(IF(Bewertung!Y9=Faktorisierung!$E$24,Faktorisierung!$G$24,IF(Bewertung!Y9=Faktorisierung!$E$25,Faktorisierung!$G$25,IF(Bewertung!Y9=Faktorisierung!$E$26,Faktorisierung!$G$26,0))))))","v":""},{"$f":"IF(Bewertung!Z9=\"\",\"\",IF(Bewertung!Z9=Faktorisierung!$E$23,Faktorisierung!$G$23,(IF(Bewertung!Z9=Faktorisierung!$E$24,Faktorisierung!$G$24,IF(Bewertung!Z9=Faktorisierung!$E$25,Faktorisierung!$G$25,IF(Bewertung!Z9=Faktorisierung!$E$26,Faktorisierung!$G$26,0))))))","v":""},{"$f":"IF(Bewertung!AA9=\"\",\"\",IF(Bewertung!AA9=Faktorisierung!$E$23,Faktorisierung!$G$23,(IF(Bewertung!AA9=Faktorisierung!$E$24,Faktorisierung!$G$24,IF(Bewertung!AA9=Faktorisierung!$E$25,Faktorisierung!$G$25,IF(Bewertung!AA9=Faktorisierung!$E$26,Faktorisierung!$G$26,0))))))","v":""},{"$f":"IF(Bewertung!AB9=\"\",\"\",IF(Bewertung!AB9=Faktorisierung!$E$23,Faktorisierung!$G$23,(IF(Bewertung!AB9=Faktorisierung!$E$24,Faktorisierung!$G$24,IF(Bewertung!AB9=Faktorisierung!$E$25,Faktorisierung!$G$25,IF(Bewertung!AB9=Faktorisierung!$E$26,Faktorisierung!$G$26,0))))))","v":""},{"$f":"IF(Bewertung!AC9=\"\",\"\",IF(Bewertung!AC9=Faktorisierung!$E$23,Faktorisierung!$G$23,(IF(Bewertung!AC9=Faktorisierung!$E$24,Faktorisierung!$G$24,IF(Bewertung!AC9=Faktorisierung!$E$25,Faktorisierung!$G$25,IF(Bewertung!AC9=Faktorisierung!$E$26,Faktorisierung!$G$26,0))))))","v":""},{"$f":"IF(Bewertung!AD9=\"\",\"\",IF(Bewertung!AD9=Faktorisierung!$E$23,Faktorisierung!$G$23,(IF(Bewertung!AD9=Faktorisierung!$E$24,Faktorisierung!$G$24,IF(Bewertung!AD9=Faktorisierung!$E$25,Faktorisierung!$G$25,IF(Bewertung!AD9=Faktorisierung!$E$26,Faktorisierung!$G$26,0))))))","v":""},{"$f":"IF(Bewertung!AE9=\"\",\"\",IF(Bewertung!AE9=Faktorisierung!$E$23,Faktorisierung!$G$23,(IF(Bewertung!AE9=Faktorisierung!$E$24,Faktorisierung!$G$24,IF(Bewertung!AE9=Faktorisierung!$E$25,Faktorisierung!$G$25,IF(Bewertung!AE9=Faktorisierung!$E$26,Faktorisierung!$G$26,0))))))","v":""},{"$f":"IF(Bewertung!AF9=\"\",\"\",IF(Bewertung!AF9=Faktorisierung!$E$23,Faktorisierung!$G$23,(IF(Bewertung!AF9=Faktorisierung!$E$24,Faktorisierung!$G$24,IF(Bewertung!AF9=Faktorisierung!$E$25,Faktorisierung!$G$25,IF(Bewertung!AF9=Faktorisierung!$E$26,Faktorisierung!$G$26,0))))))","v":""},{"$f":"IF(Bewertung!AG9=\"\",\"\",IF(Bewertung!AG9=Faktorisierung!$E$23,Faktorisierung!$G$23,(IF(Bewertung!AG9=Faktorisierung!$E$24,Faktorisierung!$G$24,IF(Bewertung!AG9=Faktorisierung!$E$25,Faktorisierung!$G$25,IF(Bewertung!AG9=Faktorisierung!$E$26,Faktorisierung!$G$26,0))))))","v":""},{"$f":"IF(Bewertung!AH9=\"\",\"\",IF(Bewertung!AH9=Faktorisierung!$E$23,Faktorisierung!$G$23,(IF(Bewertung!AH9=Faktorisierung!$E$24,Faktorisierung!$G$24,IF(Bewertung!AH9=Faktorisierung!$E$25,Faktorisierung!$G$25,IF(Bewertung!AH9=Faktorisierung!$E$26,Faktorisierung!$G$26,0))))))","v":""},{"$f":"IF(Bewertung!AI9=\"\",\"\",IF(Bewertung!AI9=Faktorisierung!$E$23,Faktorisierung!$G$23,(IF(Bewertung!AI9=Faktorisierung!$E$24,Faktorisierung!$G$24,IF(Bewertung!AI9=Faktorisierung!$E$25,Faktorisierung!$G$25,IF(Bewertung!AI9=Faktorisierung!$E$26,Faktorisierung!$G$26,0))))))","v":""},{"$f":"IF(Bewertung!AJ9=\"\",\"\",IF(Bewertung!AJ9=Faktorisierung!$E$23,Faktorisierung!$G$23,(IF(Bewertung!AJ9=Faktorisierung!$E$24,Faktorisierung!$G$24,IF(Bewertung!AJ9=Faktorisierung!$E$25,Faktorisierung!$G$25,IF(Bewertung!AJ9=Faktorisierung!$E$26,Faktorisierung!$G$26,0))))))","v":""},{"$f":"IF(Bewertung!AK9=\"\",\"\",IF(Bewertung!AK9=Faktorisierung!$E$23,Faktorisierung!$G$23,(IF(Bewertung!AK9=Faktorisierung!$E$24,Faktorisierung!$G$24,IF(Bewertung!AK9=Faktorisierung!$E$25,Faktorisierung!$G$25,IF(Bewertung!AK9=Faktorisierung!$E$26,Faktorisierung!$G$26,0))))))","v":""},{"$f":"IF(Bewertung!AL9=\"\",\"\",IF(Bewertung!AL9=Faktorisierung!$E$23,Faktorisierung!$G$23,(IF(Bewertung!AL9=Faktorisierung!$E$24,Faktorisierung!$G$24,IF(Bewertung!AL9=Faktorisierung!$E$25,Faktorisierung!$G$25,IF(Bewertung!AL9=Faktorisierung!$E$26,Faktorisierung!$G$26,0))))))","v":""},{"$f":"IF(Bewertung!AM9=\"\",\"\",IF(Bewertung!AM9=Faktorisierung!$E$23,Faktorisierung!$G$23,(IF(Bewertung!AM9=Faktorisierung!$E$24,Faktorisierung!$G$24,IF(Bewertung!AM9=Faktorisierung!$E$25,Faktorisierung!$G$25,IF(Bewertung!AM9=Faktorisierung!$E$26,Faktorisierung!$G$26,0))))))","v":""},{"$f":"IF(Bewertung!AN9=\"\",\"\",IF(Bewertung!AN9=Faktorisierung!$E$23,Faktorisierung!$G$23,(IF(Bewertung!AN9=Faktorisierung!$E$24,Faktorisierung!$G$24,IF(Bewertung!AN9=Faktorisierung!$E$25,Faktorisierung!$G$25,IF(Bewertung!AN9=Faktorisierung!$E$26,Faktorisierung!$G$26,0))))))","v":""},{"$f":"IF(Bewertung!AO9=\"\",\"\",IF(Bewertung!AO9=Faktorisierung!$E$23,Faktorisierung!$G$23,(IF(Bewertung!AO9=Faktorisierung!$E$24,Faktorisierung!$G$24,IF(Bewertung!AO9=Faktorisierung!$E$25,Faktorisierung!$G$25,IF(Bewertung!AO9=Faktorisierung!$E$26,Faktorisierung!$G$26,0))))))","v":""},{"$f":"IF(Bewertung!AP9=\"\",\"\",IF(Bewertung!AP9=Faktorisierung!$E$23,Faktorisierung!$G$23,(IF(Bewertung!AP9=Faktorisierung!$E$24,Faktorisierung!$G$24,IF(Bewertung!AP9=Faktorisierung!$E$25,Faktorisierung!$G$25,IF(Bewertung!AP9=Faktorisierung!$E$26,Faktorisierung!$G$26,0))))))","v":""},{"$f":"IF(Bewertung!AQ9=\"\",\"\",IF(Bewertung!AQ9=Faktorisierung!$E$23,Faktorisierung!$G$23,(IF(Bewertung!AQ9=Faktorisierung!$E$24,Faktorisierung!$G$24,IF(Bewertung!AQ9=Faktorisierung!$E$25,Faktorisierung!$G$25,IF(Bewertung!AQ9=Faktorisierung!$E$26,Faktorisierung!$G$26,0))))))","v":""},{"$f":"IF(Bewertung!AR9=\"\",\"\",IF(Bewertung!AR9=Faktorisierung!$E$23,Faktorisierung!$G$23,(IF(Bewertung!AR9=Faktorisierung!$E$24,Faktorisierung!$G$24,IF(Bewertung!AR9=Faktorisierung!$E$25,Faktorisierung!$G$25,IF(Bewertung!AR9=Faktorisierung!$E$26,Faktorisierung!$G$26,0))))))","v":""},{"$f":"IF(Bewertung!AS9=\"\",\"\",IF(Bewertung!AS9=Faktorisierung!$E$23,Faktorisierung!$G$23,(IF(Bewertung!AS9=Faktorisierung!$E$24,Faktorisierung!$G$24,IF(Bewertung!AS9=Faktorisierung!$E$25,Faktorisierung!$G$25,IF(Bewertung!AS9=Faktorisierung!$E$26,Faktorisierung!$G$26,0))))))","v":""},{"$f":"IF(Bewertung!AT9=\"\",\"\",IF(Bewertung!AT9=Faktorisierung!$E$23,Faktorisierung!$G$23,(IF(Bewertung!AT9=Faktorisierung!$E$24,Faktorisierung!$G$24,IF(Bewertung!AT9=Faktorisierung!$E$25,Faktorisierung!$G$25,IF(Bewertung!AT9=Faktorisierung!$E$26,Faktorisierung!$G$26,0))))))","v":""},{"$f":"IF(Bewertung!AU9=\"\",\"\",IF(Bewertung!AU9=Faktorisierung!$E$23,Faktorisierung!$G$23,(IF(Bewertung!AU9=Faktorisierung!$E$24,Faktorisierung!$G$24,IF(Bewertung!AU9=Faktorisierung!$E$25,Faktorisierung!$G$25,IF(Bewertung!AU9=Faktorisierung!$E$26,Faktorisierung!$G$26,0))))))","v":""},{"$f":"IF(Bewertung!AV9=\"\",\"\",IF(Bewertung!AV9=Faktorisierung!$E$23,Faktorisierung!$G$23,(IF(Bewertung!AV9=Faktorisierung!$E$24,Faktorisierung!$G$24,IF(Bewertung!AV9=Faktorisierung!$E$25,Faktorisierung!$G$25,IF(Bewertung!AV9=Faktorisierung!$E$26,Faktorisierung!$G$26,0))))))","v":""},{"$f":"IF(Bewertung!AW9=\"\",\"\",IF(Bewertung!AW9=Faktorisierung!$E$23,Faktorisierung!$G$23,(IF(Bewertung!AW9=Faktorisierung!$E$24,Faktorisierung!$G$24,IF(Bewertung!AW9=Faktorisierung!$E$25,Faktorisierung!$G$25,IF(Bewertung!AW9=Faktorisierung!$E$26,Faktorisierung!$G$26,0))))))","v":""},{"$f":"IF(Bewertung!AX9=\"\",\"\",IF(Bewertung!AX9=Faktorisierung!$E$23,Faktorisierung!$G$23,(IF(Bewertung!AX9=Faktorisierung!$E$24,Faktorisierung!$G$24,IF(Bewertung!AX9=Faktorisierung!$E$25,Faktorisierung!$G$25,IF(Bewertung!AX9=Faktorisierung!$E$26,Faktorisierung!$G$26,0))))))","v":""},{"$f":"IF(Bewertung!AY9=\"\",\"\",IF(Bewertung!AY9=Faktorisierung!$E$23,Faktorisierung!$G$23,(IF(Bewertung!AY9=Faktorisierung!$E$24,Faktorisierung!$G$24,IF(Bewertung!AY9=Faktorisierung!$E$25,Faktorisierung!$G$25,IF(Bewertung!AY9=Faktorisierung!$E$26,Faktorisierung!$G$26,0))))))","v":""},{"$f":"IF(Bewertung!AZ9=\"\",\"\",IF(Bewertung!AZ9=Faktorisierung!$E$23,Faktorisierung!$G$23,(IF(Bewertung!AZ9=Faktorisierung!$E$24,Faktorisierung!$G$24,IF(Bewertung!AZ9=Faktorisierung!$E$25,Faktorisierung!$G$25,IF(Bewertung!AZ9=Faktorisierung!$E$26,Faktorisierung!$G$26,0))))))","v":""},{"$f":"IF(Bewertung!BA9=\"\",\"\",IF(Bewertung!BA9=Faktorisierung!$E$23,Faktorisierung!$G$23,(IF(Bewertung!BA9=Faktorisierung!$E$24,Faktorisierung!$G$24,IF(Bewertung!BA9=Faktorisierung!$E$25,Faktorisierung!$G$25,IF(Bewertung!BA9=Faktorisierung!$E$26,Faktorisierung!$G$26,0))))))","v":""},{"$f":"IF(Bewertung!BB9=\"\",\"\",IF(Bewertung!BB9=Faktorisierung!$E$23,Faktorisierung!$G$23,(IF(Bewertung!BB9=Faktorisierung!$E$24,Faktorisierung!$G$24,IF(Bewertung!BB9=Faktorisierung!$E$25,Faktorisierung!$G$25,IF(Bewertung!BB9=Faktorisierung!$E$26,Faktorisierung!$G$26,0))))))","v":""},{"$f":"IF(Bewertung!BC9=\"\",\"\",IF(Bewertung!BC9=Faktorisierung!$E$23,Faktorisierung!$G$23,(IF(Bewertung!BC9=Faktorisierung!$E$24,Faktorisierung!$G$24,IF(Bewertung!BC9=Faktorisierung!$E$25,Faktorisierung!$G$25,IF(Bewertung!BC9=Faktorisierung!$E$26,Faktorisierung!$G$26,0))))))","v":""},{"$f":"IF(Bewertung!BD9=\"\",\"\",IF(Bewertung!BD9=Faktorisierung!$E$23,Faktorisierung!$G$23,(IF(Bewertung!BD9=Faktorisierung!$E$24,Faktorisierung!$G$24,IF(Bewertung!BD9=Faktorisierung!$E$25,Faktorisierung!$G$25,IF(Bewertung!BD9=Faktorisierung!$E$26,Faktorisierung!$G$26,0))))))","v":""},{"$f":"IF(Bewertung!BE9=\"\",\"\",IF(Bewertung!BE9=Faktorisierung!$E$23,Faktorisierung!$G$23,(IF(Bewertung!BE9=Faktorisierung!$E$24,Faktorisierung!$G$24,IF(Bewertung!BE9=Faktorisierung!$E$25,Faktorisierung!$G$25,IF(Bewertung!BE9=Faktorisierung!$E$26,Faktorisierung!$G$26,0))))))","v":""},{"$f":"IF(Bewertung!BF9=\"\",\"\",IF(Bewertung!BF9=Faktorisierung!$E$23,Faktorisierung!$G$23,(IF(Bewertung!BF9=Faktorisierung!$E$24,Faktorisierung!$G$24,IF(Bewertung!BF9=Faktorisierung!$E$25,Faktorisierung!$G$25,IF(Bewertung!BF9=Faktorisierung!$E$26,Faktorisierung!$G$26,0))))))","v":""},{"$f":"IF(Bewertung!BG9=\"\",\"\",IF(Bewertung!BG9=Faktorisierung!$E$23,Faktorisierung!$G$23,(IF(Bewertung!BG9=Faktorisierung!$E$24,Faktorisierung!$G$24,IF(Bewertung!BG9=Faktorisierung!$E$25,Faktorisierung!$G$25,IF(Bewertung!BG9=Faktorisierung!$E$26,Faktorisierung!$G$26,0))))))","v":""},{"$f":"IF(Bewertung!BH9=\"\",\"\",IF(Bewertung!BH9=Faktorisierung!$E$23,Faktorisierung!$G$23,(IF(Bewertung!BH9=Faktorisierung!$E$24,Faktorisierung!$G$24,IF(Bewertung!BH9=Faktorisierung!$E$25,Faktorisierung!$G$25,IF(Bewertung!BH9=Faktorisierung!$E$26,Faktorisierung!$G$26,0))))))","v":""},{"$f":"IF(Bewertung!BI9=\"\",\"\",IF(Bewertung!BI9=Faktorisierung!$E$23,Faktorisierung!$G$23,(IF(Bewertung!BI9=Faktorisierung!$E$24,Faktorisierung!$G$24,IF(Bewertung!BI9=Faktorisierung!$E$25,Faktorisierung!$G$25,IF(Bewertung!BI9=Faktorisierung!$E$26,Faktorisierung!$G$26,0))))))","v":""},{"$f":"IF(Bewertung!BJ9=\"\",\"\",IF(Bewertung!BJ9=Faktorisierung!$E$23,Faktorisierung!$G$23,(IF(Bewertung!BJ9=Faktorisierung!$E$24,Faktorisierung!$G$24,IF(Bewertung!BJ9=Faktorisierung!$E$25,Faktorisierung!$G$25,IF(Bewertung!BJ9=Faktorisierung!$E$26,Faktorisierung!$G$26,0))))))","v":""},{"$f":"IF(Bewertung!BK9=\"\",\"\",IF(Bewertung!BK9=Faktorisierung!$E$23,Faktorisierung!$G$23,(IF(Bewertung!BK9=Faktorisierung!$E$24,Faktorisierung!$G$24,IF(Bewertung!BK9=Faktorisierung!$E$25,Faktorisierung!$G$25,IF(Bewertung!BK9=Faktorisierung!$E$26,Faktorisierung!$G$26,0))))))","v":""},{"$f":"IF(Bewertung!BL9=\"\",\"\",IF(Bewertung!BL9=Faktorisierung!$E$23,Faktorisierung!$G$23,(IF(Bewertung!BL9=Faktorisierung!$E$24,Faktorisierung!$G$24,IF(Bewertung!BL9=Faktorisierung!$E$25,Faktorisierung!$G$25,IF(Bewertung!BL9=Faktorisierung!$E$26,Faktorisierung!$G$26,0))))))","v":""}]
[{"$nulls":3},"7. Zuschauerverhalten",{"$f":"IF(Bewertung!I10=\"\",\"\",IF(Bewertung!I10=Faktorisierung!$A$32,Faktorisierung!$C$32,(IF(Bewertung!I10=Faktorisierung!$A$33,Faktorisierung!$C$33,IF(Bewertung!I10=Faktorisierung!$A$34,Faktorisierung!$C$34,IF(Bewertung!I10=Faktorisierung!$A$35,Faktorisierung!$C$35,0))))))","v":0.5},{"$f":"IF(Bewertung!J10=\"\",\"\",IF(Bewertung!J10=Faktorisierung!$A$32,Faktorisierung!$C$32,(IF(Bewertung!J10=Faktorisierung!$A$33,Faktorisierung!$C$33,IF(Bewertung!J10=Faktorisierung!$A$34,Faktorisierung!$C$34,IF(Bewertung!J10=Faktorisierung!$A$35,Faktorisierung!$C$35,0))))))","v":""},{"$f":"IF(Bewertung!#REF!=\"\",\"\",IF(Bewertung!#REF!=Faktorisierung!$A$32,Faktorisierung!$C$32,(IF(Bewertung!#REF!=Faktorisierung!$A$33,Faktorisierung!$C$33,IF(Bewertung!#REF!=Faktorisierung!$A$34,Faktorisierung!$C$34,IF(Bewertung!#REF!=Faktorisierung!$A$35,Faktorisierung!$C$35,0))))))","v":{"$error":"#REF!"}},{"$f":"IF(Bewertung!#REF!=\"\",\"\",IF(Bewertung!#REF!=Faktorisierung!$A$32,Faktorisierung!$C$32,(IF(Bewertung!#REF!=Faktorisierung!$A$33,Faktorisierung!$C$33,IF(Bewertung!#REF!=Faktorisierung!$A$34,Faktorisierung!$C$34,IF(Bewertung!#REF!=Faktorisierung!$A$35,Faktorisierung!$C$35,0))))))","v":{"$error":"#REF!"}},{"$f":"IF(Bewertung!#REF!=\"\",\"\",IF(Bewertung!#REF!=Faktorisierung!$A$32,Faktorisierung!$C$32,(IF(Bewertung!#REF!=Faktorisierung!$A$33,Faktorisierung!$C$33,IF(Bewertung!#REF!=Faktorisierung!$A$34,Faktorisierung!$C$34,IF(Bewertung!#REF!=Faktorisierung!$A$35,Faktorisierung!$C$35,0))))))","v":{"$error":"#REF!"}},{"$f":"IF(Bewertung!#REF!=\"\",\"\",IF(Bewertung!#REF!=Faktorisierung!$A$32,Faktorisierung!$C$32,(IF(Bewertung!#REF!=Faktorisierung!$A$33,Faktorisierung!$C$33,IF(Bewertung!#REF!=Faktorisierung!$A$34,Faktorisierung!$C$34,IF(Bewertung!#REF!=Faktorisierung!$A$35,Faktorisierung!$C$35,0))))))","v":{"$error":"#REF!"}},{"$f":"IF(Bewertung!#REF!=\"\",\"\",IF(Bewertung!#REF!=Faktorisierung!$A$32,Faktorisierung!$C$32,(IF(Bewertung!#REF!=Faktorisierung!$A$33,Faktorisierung!$C$33,IF(Bewertung!#REF!=Faktorisierung!$A$34,Faktorisierung!$C$34,IF(Bewertung!#REF!=Faktorisierung!$A$35,Faktorisierung!$C$35,0))))))","v":{"$error":"#REF!"}},{"$f":"IF(Bewertung!#REF!=\"\",\"\",IF(Bewertung!#REF!=Faktorisierung!$A$32,Faktorisierung!$C$32,(IF(Bewertung!#REF!=Faktorisierung!$A$33,Faktorisierung!$C$33,IF(Bewertung!#REF!=Faktorisierung!$A$34,Faktorisierung!$C$34,IF(Bewertung!#REF!=Faktorisierung!$A$35,Faktorisierung!$C$35,0))))))","v":{"$error":"#REF!"}},{"$f":"IF(Bewertung!K10=\"\",\"\",IF(Bewertung!K10=Faktorisierung!$A$32,Faktorisierung!$C$32,(IF(Bewertung!K10=Faktorisierung!$A$33,Faktorisierung!$C$33,IF(Bewertung!K10=Faktorisierung!$A$34,Faktorisierung!$C$34,IF(Bewertung!K10=Faktorisierung!$A$35,Faktorisierung!$C$35,0))))))","v":""},{"$f":"IF(Bewertung!L10=\"\",\"\",IF(Bewertung!L10=Faktorisierung!$A$32,Faktorisierung!$C$32,(IF(Bewertung!L10=Faktorisierung!$A$33,Faktorisierung!$C$33,IF(Bewertung!L10=Faktorisierung!$A$34,Faktorisierung!$C$34,IF(Bewertung!L10=Faktorisierung!$A$35,Faktorisierung!$C$35,0))))))","v":""},{"$f":"IF(Bewertung!M10=\"\",\"\",IF(Bewertung!M10=Faktorisierung!$A$32,Faktorisierung!$C$32,(IF(Bewertung!M10=Faktorisierung!$A$33,Faktorisierung!$C$33,IF(Bewertung!M10=Faktorisierung!$A$34,Faktorisierung!$C$34,IF(Bewertung!M10=Faktorisierung!$A$35,Faktorisierung!$C$35,0))))))","v":""},{"$f":"IF(Bewertung!N10=\"\",\"\",IF(Bewertung!N10=Faktorisierung!$A$32,Faktorisierung!$C$32,(IF(Bewertung!N10=Faktorisierung!$A$33,Faktorisierung!$C$33,IF(Bewertung!N10=Faktorisierung!$A$34,Faktorisierung!$C$34,IF(Bewertung!N10=Faktorisierung!$A$35,Faktorisierung!$C$35,0))))))","v":""},{"$f":"IF(Bewertung!O10=\"\",\"\",IF(Bewertung!O10=Faktorisierung!$A$32,Faktorisierung!$C$32,(IF(Bewertung!O10=Faktorisierung!$A$33,Faktorisierung!$C$33,IF(Bewertung!O10=Faktorisierung!$A$34,Faktorisierung!$C$34,IF(Bewertung!O10=Faktorisierung!$A$35,Faktorisierung!$C$35,0))))))","v":""},{"$f":"IF(Bewertung!P10=\"\",\"\",IF(Bewertung!P10=Faktorisierung!$A$32,Faktorisierung!$C$32,(IF(Bewertung!P10=Faktorisierung!$A$33,Faktorisierung!$C$33,IF(Bewertung!P10=Faktorisierung!$A$34,Faktorisierung!$C$34,IF(Bewertung!P10=Faktorisierung!$A$35,Faktorisierung!$C$35,0))))))","v":""},{"$f":"IF(Bewertung!Q10=\"\",\"\",IF(Bewertung!Q10=Faktorisierung!$A$32,Faktorisierung!$C$32,(IF(Bewertung!Q10=Faktorisierung!$A$33,Faktorisierung!$C$33,IF(Bewertung!Q10=Faktorisierung!$A$34,Faktorisierung!$C$34,IF(Bewertung!Q10=Faktorisierung!$A$35,Faktorisierung!$C$35,0))))))","v":""},{"$f":"IF(Bewertung!R10=\"\",\"\",IF(Bewertung!R10=Faktorisierung!$A$32,Faktorisierung!$C$32,(IF(Bewertung!R10=Faktorisierung!$A$33,Faktorisierung!$C$33,IF(Bewertung!R10=Faktorisierung!$A$34,Faktorisierung!$C$34,IF(Bewertung!R10=Faktorisierung!$A$35,Faktorisierung!$C$35,0))))))","v":""},{"$f":"IF(Bewertung!S10=\"\",\"\",IF(Bewertung!S10=Faktorisierung!$A$32,Faktorisierung!$C$32,(IF(Bewertung!S10=Faktorisierung!$A$33,Faktorisierung!$C$33,IF(Bewertung!S10=Faktorisierung!$A$34,Faktorisierung!$C$34,IF(Bewertung!S10=Faktorisierung!$A$35,Faktorisierung!$C$35,0))))))","v":""},{"$f":"IF(Bewertung!T10=\"\",\"\",IF(Bewertung!T10=Faktorisierung!$A$32,Faktorisierung!$C$32,(IF(Bewertung!T10=Faktorisierung!$A$33,Faktorisierung!$C$33,IF(Bewertung!T10=Faktorisierung!$A$34,Faktorisierung!$C$34,IF(Bewertung!T10=Faktorisierung!$A$35,Faktorisierung!$C$35,0))))))","v":""},{"$f":"IF(Bewertung!U10=\"\",\"\",IF(Bewertung!U10=Faktorisierung!$A$32,Faktorisierung!$C$32,(IF(Bewertung!U10=Faktorisierung!$A$33,Faktorisierung!$C$33,IF(Bewertung!U10=Faktorisierung!$A$34,Faktorisierung!$C$34,IF(Bewertung!U10=Faktorisierung!$A$35,Faktorisierung!$C$35,0))))))","v":""},{"$f":"IF(Bewertung!V10=\"\",\"\",IF(Bewertung!V10=Faktorisierung!$A$32,Faktorisierung!$C$32,(IF(Bewertung!V10=Faktorisierung!$A$33,Faktorisierung!$C$33,IF(Bewertung!V10=Faktorisierung!$A$34,Faktorisierung!$C$34,IF(Bewertung!V10=Faktorisierung!$A$35,Faktorisierung!$C$35,0))))))","v":""},{"$f":"IF(Bewertung!W10=\"\",\"\",IF(Bewertung!W10=Faktorisierung!$A$32,Faktorisierung!$C$32,(IF(Bewertung!W10=Faktorisierung!$A$33,Faktorisierung!$C$33,IF(Bewertung!W10=Faktorisierung!$A$34,Faktorisierung!$C$34,IF(Bewertung!W10=Faktorisierung!$A$35,Faktorisierung!$C$35,0))))))","v":""},{"$f":"IF(Bewertung!X10=\"\",\"\",IF(Bewertung!X10=Faktorisierung!$A$32,Faktorisierung!$C$32,(IF(Bewertung!X10=Faktorisierung!$A$33,Faktorisierung!$C$33,IF(Bewertung!X10=Faktorisierung!$A$34,Faktorisierung!$C$34,IF(Bewertung!X10=Faktorisierung!$A$35,Faktorisierung!$C$35,0))))))","v":""},{"$f":"IF(Bewertung!Y10=\"\",\"\",IF(Bewertung!Y10=Faktorisierung!$A$32,Faktorisierung!$C$32,(IF(Bewertung!Y10=Faktorisierung!$A$33,Faktorisierung!$C$33,IF(Bewertung!Y10=Faktorisierung!$A$34,Faktorisierung!$C$34,IF(Bewertung!Y10=Faktorisierung!$A$35,Faktorisierung!$C$35,0))))))","v":""},{"$f":"IF(Bewertung!Z10=\"\",\"\",IF(Bewertung!Z10=Faktorisierung!$A$32,Faktorisierung!$C$32,(IF(Bewertung!Z10=Faktorisierung!$A$33,Faktorisierung!$C$33,IF(Bewertung!Z10=Faktorisierung!$A$34,Faktorisierung!$C$34,IF(Bewertung!Z10=Faktorisierung!$A$35,Faktorisierung!$C$35,0))))))","v":""},{"$f":"IF(Bewertung!AA10=\"\",\"\",IF(Bewertung!AA10=Faktorisierung!$A$32,Faktorisierung!$C$32,(IF(Bewertung!AA10=Faktorisierung!$A$33,Faktorisierung!$C$33,IF(Bewertung!AA10=Faktorisierung!$A$34,Faktorisierung!$C$34,IF(Bewertung!AA10=Faktorisierung!$A$35,Faktorisierung!$C$35,0))))))","v":""},{"$f":"IF(Bewertung!AB10=\"\",\"\",IF(Bewertung!AB10=Faktorisierung!$A$32,Faktorisierung!$C$32,(IF(Bewertung!AB10=Faktorisierung!$A$33,Faktorisierung!$C$33,IF(Bewertung!AB10=Faktorisierung!$A$34,Faktorisierung!$C$34,IF(Bewertung!AB10=Faktorisierung!$A$35,Faktorisierung!$C$35,0))))))","v":""},{"$f":"IF(Bewertung!AC10=\"\",\"\",IF(Bewertung!AC10=Faktorisierung!$A$32,Faktorisierung!$C$32,(IF(Bewertung!AC10=Faktorisierung!$A$33,Faktorisierung!$C$33,IF(Bewertung!AC10=Faktorisierung!$A$34,Faktorisierung!$C$34,IF(Bewertung!AC10=Faktorisierung!$A$35,Faktorisierung!$C$35,0))))))","v":""},{"$f":"IF(Bewertung!AD10=\"\",\"\",IF(Bewertung!AD10=Faktorisierung!$A$32,Faktorisierung!$C$32,(IF(Bewertung!AD10=Faktorisierung!$A$33,Faktorisierung!$C$33,IF(Bewertung!AD10=Faktorisierung!$A$34,Faktorisierung!$C$34,IF(Bewertung!AD10=Faktorisierung!$A$35,Faktorisierung!$C$35,0))))))","v":""},{"$f":"IF(Bewertung!AE10=\"\",\"\",IF(Bewertung!AE10=Faktorisierung!$A$32,Faktorisierung!$C$32,(IF(Bewertung!AE10=Faktorisierung!$A$33,Faktorisierung!$C$33,IF(Bewertung!AE10=Faktorisierung!$A$34,Faktorisierung!$C$34,IF(Bewertung!AE10=Faktorisierung!$A$35,Faktorisierung!$C$35,0))))))","v":""},{"$f":"IF(Bewertung!AF10=\"\",\"\",IF(Bewertung!AF10=Faktorisierung!$A$32,Faktorisierung!$C$32,(IF(Bewertung!AF10=Faktorisierung!$A$33,Faktorisierung!$C$33,IF(Bewertung!AF10=Faktorisierung!$A$34,Faktorisierung!$C$34,IF(Bewertung!AF10=Faktorisierung!$A$35,Faktorisierung!$C$35,0))))))","v":""},{"$f":"IF(Bewertung!AG10=\"\",\"\",IF(Bewertung!AG10=Faktorisierung!$A$32,Faktorisierung!$C$32,(IF(Bewertung!AG10=Faktorisierung!$A$33,Faktorisierung!$C$33,IF(Bewertung!AG10=Faktorisierung!$A$34,Faktorisierung!$C$34,IF(Bewertung!AG10=Faktorisierung!$A$35,Faktorisierung!$C$35,0))))))","v":""},{"$f":"IF(Bewertung!AH10=\"\",\"\",IF(Bewertung!AH10=Faktorisierung!$A$32,Faktorisierung!$C$32,(IF(Bewertung!AH10=Faktorisierung!$A$33,Faktorisierung!$C$33,IF(Bewertung!AH10=Faktorisierung!$A$34,Faktorisierung!$C$34,IF(Bewertung!AH10=Faktorisierung!$A$35,Faktorisierung!$C$35,0))))))","v":""},{"$f":"IF(Bewertung!AI10=\"\",\"\",IF(Bewertung!AI10=Faktorisierung!$A$32,Faktorisierung!$C$32,(IF(Bewertung!AI10=Faktorisierung!$A$33,Faktorisierung!$C$33,IF(Bewertung!AI10=Faktorisierung!$A$34,Faktorisierung!$C$34,IF(Bewertung!AI10=Faktorisierung!$A$35,Faktorisierung!$C$35,0))))))","v":""},{"$f":"IF(Bewertung!AJ10=\"\",\"\",IF(Bewertung!AJ10=Faktorisierung!$A$32,Faktorisierung!$C$32,(IF(Bewertung!AJ10=Faktorisierung!$A$33,Faktorisierung!$C$33,IF(Bewertung!AJ10=Faktorisierung!$A$34,Faktorisierung!$C$34,IF(Bewertung!AJ10=Faktorisierung!$A$35,Faktorisierung!$C$35,0))))))","v":""},{"$f":"IF(Bewertung!AK10=\"\",\"\",IF(Bewertung!AK10=Faktorisierung!$A$32,Faktorisierung!$C$32,(IF(Bewertung!AK10=Faktorisierung!$A$33,Faktorisierung!$C$33,IF(Bewertung!AK10=Faktorisierung!$A$34,Faktorisierung!$C$34,IF(Bewertung!AK10=Faktorisierung!$A$35,Faktorisierung!$C$35,0))))))","v":""},{"$f":"IF(Bewertung!AL10=\"\",\"\",IF(Bewertung!AL10=Faktorisierung!$A$32,Faktorisierung!$C$32,(IF(Bewertung!AL10=Faktorisierung!$A$33,Faktorisierung!$C$33,IF(Bewertung!AL10=Faktorisierung!$A$34,Faktorisierung!$C$34,IF(Bewertung!AL10=Faktorisierung!$A$35,Faktorisierung!$C$35,0))))))","v":""},{"$f":"IF(Bewertung!AM10=\"\",\"\",IF(Bewertung!AM10=Faktorisierung!$A$32,Faktorisierung!$C$32,(IF(Bewertung!AM10=Faktorisierung!$A$33,Faktorisierung!$C$33,IF(Bewertung!AM10=Faktorisierung!$A$34,Faktorisierung!$C$34,IF(Bewertung!AM10=Faktorisierung!$A$35,Faktorisierung!$C$35,0))))))","v":""},{"$f":"IF(Bewertung!AN10=\"\",\"\",IF(Bewertung!AN10=Faktorisierung!$A$32,Faktorisierung!$C$32,(IF(Bewertung!AN10=Faktorisierung!$A$33,Faktorisierung!$C$33,IF(Bewertung!AN10=Faktorisierung!$A$34,Faktorisierung!$C$34,IF(Bewertung!AN10=Faktorisierung!$A$35,Faktorisierung!$C$35,0))))))","v":""},{"$f":"IF(Bewertung!AO10=\"\",\"\",IF(Bewertung!AO10=Faktorisierung!$A$32,Faktorisierung!$C$32,(IF(Bewertung!AO10=Faktorisierung!$A$33,Faktorisierung!$C$33,IF(Bewertung!AO10=Faktorisierung!$A$34,Faktorisierung!$C$34,IF(Bewertung!AO10=Faktorisierung!$A$35,Faktorisierung!$C$35,0))))))","v":""},{"$f":"IF(Bewertung!AP10=\"\",\"\",IF(Bewertung!AP10=Faktorisierung!$A$32,Faktorisierung!$C$32,(IF(Bewertung!AP10=Faktorisierung!$A$33,Faktorisierung!$C$33,IF(Bewertung!AP10=Faktorisierung!$A$34,Faktorisierung!$C$34,IF(Bewertung!AP10=Faktorisierung!$A$35,Faktorisierung!$C$35,0))))))","v":""},{"$f":"IF(Bewertung!AQ10=\"\",\"\",IF(Bewertung!AQ10=Faktorisierung!$A$32,Faktorisierung!$C$32,(IF(Bewertung!AQ10=Faktorisierung!$A$33,Faktorisierung!$C$33,IF(Bewertung!AQ10=Faktorisierung!$A$34,Faktorisierung!$C$34,IF(Bewertung!AQ10=Faktorisierung!$A$35,Faktorisierung!$C$35,0))))))","v":""},{"$f":"IF(Bewertung!AR10=\"\",\"\",IF(Bewertung!AR10=Faktorisierung!$A$32,Faktorisierung!$C$32,(IF(Bewertung!AR10=Faktorisierung!$A$33,Faktorisierung!$C$33,IF(Bewertung!AR10=Faktorisierung!$A$34,Faktorisierung!$C$34,IF(Bewertung!AR10=Faktorisierung!$A$35,Faktorisierung!$C$35,0))))))","v":""},{"$f":"IF(Bewertung!AS10=\"\",\"\",IF(Bewertung!AS10=Faktorisierung!$A$32,Faktorisierung!$C$32,(IF(Bewertung!AS10=Faktorisierung!$A$33,Faktorisierung!$C$33,IF(Bewertung!AS10=Faktorisierung!$A$34,Faktorisierung!$C$34,IF(Bewertung!AS10=Faktorisierung!$A$35,Faktorisierung!$C$35,0))))))","v":""},{"$f":"IF(Bewertung!AT10=\"\",\"\",IF(Bewertung!AT10=Faktorisierung!$A$32,Faktorisierung!$C$32,(IF(Bewertung!AT10=Faktorisierung!$A$33,Faktorisierung!$C$33,IF(Bewertung!AT10=Faktorisierung!$A$34,Faktorisierung!$C$34,IF(Bewertung!AT10=Faktorisierung!$A$35,Faktorisierung!$C$35,0))))))","v":""},{"$f":"IF(Bewertung!AU10=\"\",\"\",IF(Bewertung!AU10=Faktorisierung!$A$32,Faktorisierung!$C$32,(IF(Bewertung!AU10=Faktorisierung!$A$33,Faktorisierung!$C$33,IF(Bewertung!AU10=Faktorisierung!$A$34,Faktorisierung!$C$34,IF(Bewertung!AU10=Faktorisierung!$A$35,Faktorisierung!$C$35,0))))))","v":""},{"$f":"IF(Bewertung!AV10=\"\",\"\",IF(Bewertung!AV10=Faktorisierung!$A$32,Faktorisierung!$C$32,(IF(Bewertung!AV10=Faktorisierung!$A$33,Faktorisierung!$C$33,IF(Bewertung!AV10=Faktorisierung!$A$34,Faktorisierung!$C$34,IF(Bewertung!AV10=Faktorisierung!$A$35,Faktorisierung!$C$35,0))))))","v":""},{"$f":"IF(Bewertung!AW10=\"\",\"\",IF(Bewertung!AW10=Faktorisierung!$A$32,Faktorisierung!$C$32,(IF(Bewertung!AW10=Faktorisierung!$A$33,Faktorisierung!$C$33,IF(Bewertung!AW10=Faktorisierung!$A$34,Faktorisierung!$C$34,IF(Bewertung!AW10=Faktorisierung!$A$35,Faktorisierung!$C$35,0))))))","v":""},{"$f":"IF(Bewertung!AX10=\"\",\"\",IF(Bewertung!AX10=Faktorisierung!$A$32,Faktorisierung!$C$32,(IF(Bewertung!AX10=Faktorisierung!$A$33,Faktorisierung!$C$33,IF(Bewertung!AX10=Faktorisierung!$A$34,Faktorisierung!$C$34,IF(Bewertung!AX10=Faktorisierung!$A$35,Faktorisierung!$C$35,0))))))","v":""},{"$f":"IF(Bewertung!AY10=\"\",\"\",IF(Bewertung!AY10=Faktorisierung!$A$32,Faktorisierung!$C$32,(IF(Bewertung!AY10=Faktorisierung!$A$33,Faktorisierung!$C$33,IF(Bewertung!AY10=Faktorisierung!$A$34,Faktorisierung!$C$34,IF(Bewertung!AY10=Faktorisierung!$A$35,Faktorisierung!$C$35,0))))))","v":""},{"$f":"IF(Bewertung!AZ10=\"\",\"\",IF(Bewertung!AZ10=Faktorisierung!$A$32,Faktorisierung!$C$32,(IF(Bewertung!AZ10=Faktorisierung!$A$33,Faktorisierung!$C$33,IF(Bewertung!AZ10=Faktorisierung!$A$34,Faktorisierung!$C$34,IF(Bewertung!AZ10=Faktorisierung!$A$35,Faktorisierung!$C$35,0))))))","v":""},{"$f":"IF(Bewertung!BA10=\"\",\"\",IF(Bewertung!BA10=Faktorisierung!$A$32,Faktorisierung!$C$32,(IF(Bewertung!BA10=Faktorisierung!$A$33,Faktorisierung!$C$33,IF(Bewertung!BA10=Faktorisierung!$A$34,Faktorisierung!$C$34,IF(Bewertung!BA10=Faktorisierung!$A$35,Faktorisierung!$C$35,0))))))","v":""},{"$f":"IF(Bewertung!BB10=\"\",\"\",IF(Bewertung!BB10=Faktorisierung!$A$32,Faktorisierung!$C$32,(IF(Bewertung!BB10=Faktorisierung!$A$33,Faktorisierung!$C$33,IF(Bewertung!BB10=Faktorisierung!$A$34,Faktorisierung!$C$34,IF(Bewertung!BB10=Faktorisierung!$A$35,Faktorisierung!$C$35,0))))))","v":""},{"$f":"IF(Bewertung!BC10=\"\",\"\",IF(Bewertung!BC10=Faktorisierung!$A$32,Faktorisierung!$C$32,(IF(Bewertung!BC10=Faktorisierung!$A$33,Faktorisierung!$C$33,IF(Bewertung!BC10=Faktorisierung!$A$34,Faktorisierung!$C$34,IF(Bewertung!BC10=Faktorisierung!$A$35,Faktorisierung!$C$35,0))))))","v":""},{"$f":"IF(Bewertung!BD10=\"\",\"\",IF(Bewertung!BD10=Faktorisierung!$A$32,Faktorisierung!$C$32,(IF(Bewertung!BD10=Faktorisierung!$A$33,Faktorisierung!$C$33,IF(Bewertung!BD10=Faktorisierung!$A$34,Faktorisierung!$C$34,IF(Bewertung!BD10=Faktorisierung!$A$35,Faktorisierung!$C$35,0))))))","v":""},{"$f":"IF(Bewertung!BE10=\"\",\"\",IF(Bewertung!BE10=Faktorisierung!$A$32,Faktorisierung!$C$32,(IF(Bewertung!BE10=Faktorisierung!$A$33,Faktorisierung!$C$33,IF(Bewertung!BE10=Faktorisierung!$A$34,Faktorisierung!$C$34,IF(Bewertung!BE10=Faktorisierung!$A$35,Faktorisierung!$C$35,0))))))","v":""},{"$f":"IF(Bewertung!BF10=\"\",\"\",IF(Bewertung!BF10=Faktorisierung!$A$32,Faktorisierung!$C$32,(IF(Bewertung!BF10=Faktorisierung!$A$33,Faktorisierung!$C$33,IF(Bewertung!BF10=Faktorisierung!$A$34,Faktorisierung!$C$34,IF(Bewertung!BF10=Faktorisierung!$A$35,Faktorisierung!$C$35,0))))))","v":""},{"$f":"IF(Bewertung!BG10=\"\",\"\",IF(Bewertung!BG10=Faktorisierung!$A$32,Faktorisierung!$C$32,(IF(Bewertung!BG10=Faktorisierung!$A$33,Faktorisierung!$C$33,IF(Bewertung!BG10=Faktorisierung!$A$34,Faktorisierung!$C$34,IF(Bewertung!BG10=Faktorisierung!$A$35,Faktorisierung!$C$35,0))))))","v":""},{"$f":"IF(Bewertung!BH10=\"\",\"\",IF(Bewertung!BH10=Faktorisierung!$A$32,Faktorisierung!$C$32,(IF(Bewertung!BH10=Faktorisierung!$A$33,Faktorisierung!$C$33,IF(Bewertung!BH10=Faktorisierung!$A$34,Faktorisierung!$C$34,IF(Bewertung!BH10=Faktorisierung!$A$35,Faktorisierung!$C$35,0))))))","v":""},{"$f":"IF(Bewertung!BI10=\"\",\"\",IF(Bewertung!BI10=Faktorisierung!$A$32,Faktorisierung!$C$32,(IF(Bewertung!BI10=Faktorisierung!$A$33,Faktorisierung!$C$33,IF(Bewertung!BI10=Faktorisierung!$A$34,Faktorisierung!$C$34,IF(Bewertung!BI10=Faktorisierung!$A$35,Faktorisierung!$C$35,0))))))","v":""},{"$f":"IF(Bewertung!BJ10=\"\",\"\",IF(Bewertung!BJ10=Faktorisierung!$A$32,Faktorisierung!$C$32,(IF(Bewertung!BJ10=Faktorisierung!$A$33,Faktorisierung!$C$33,IF(Bewertung!BJ10=Faktorisierung!$A$34,Faktorisierung!$C$34,IF(Bewertung!BJ10=Faktorisierung!$A$35,Faktorisierung!$C$35,0))))))","v":""},{"$f":"IF(Bewertung!BK10=\"\",\"\",IF(Bewertung!BK10=Faktorisierung!$A$32,Faktorisierung!$C$32,(IF(Bewertung!BK10=Faktorisierung!$A$33,Faktorisierung!$C$33,IF(Bewertung!BK10=Faktorisierung!$A$34,Faktorisierung!$C$34,IF(Bewertung!BK10=Faktorisierung!$A$35,Faktorisierung!$C$35,0))))))","v":""},{"$f":"IF(Bewertung!BL10=\"\",\"\",IF(Bewertung!BL10=Faktorisierung!$A$32,Faktorisierung!$C$32,(IF(Bewertung!BL10=Faktorisierung!$A$33,Faktorisierung!$C$33,IF(Bewertung!BL10=Faktorisierung!$A$34,Faktorisierung!$C$34,IF(Bewertung!BL10=Faktorisierung!$A$35,Faktorisierung!$C$35,0))))))","v":""}]
[{"$nulls":3},"8. Feuergefährliche Handlungen",{"$f":"IF(Bewertung!I11=\"\",\"\",IF(Bewertung!I11=Faktorisierung!$E$32,Faktorisierung!$G$32,(IF(Bewertung!I11=Faktorisierung!$E$33,Faktorisierung!$G$33,IF(Bewertung!I11=Faktorisierung!$E$34,Faktorisierung!$G$34,IF(Bewertung!I11=Faktorisierung!$E$35,Faktorisierung!$G$35,0))))))","v":1},{"$f":"IF(Bewertung!J11=\"\",\"\",IF(Bewertung!J11=Faktorisierung!$E$32,Faktorisierung!$G$32,(IF(Bewertung!J11=Faktorisierung!$E$33,Faktorisierung!$G$33,IF(Bewertung!J11=Faktorisierung!$E$34,Faktorisierung!$G$34,IF(Bewertung!J11=Faktorisierung!$E$35,Faktorisierung!$G$35,0))))))","v":""},{"$f":"IF(Bewertung!#REF!=\"\",\"\",IF(Bewertung!#REF!=Faktorisierung!$E$32,Faktorisierung!$G$32,(IF(Bewertung!#REF!=Faktorisierung!$E$33,Faktorisierung!$G$33,IF(Bewertung!#REF!=Faktorisierung!$E$34,Faktorisierung!$G$34,IF(Bewertung!#REF!=Faktorisierung!$E$35,Faktorisierung!$G$35,0))))))","v":{"$error":"#REF!"}},{"$f":"IF(Bewertung!#REF!=\"\",\"\",IF(Bewertung!#REF!=Faktorisierung!$E$32,Faktorisierung!$G$32,(IF(Bewertung!#REF!=Faktorisierung!$E$33,Faktorisierung!$G$33,IF(Bewertung!#REF!=Faktorisierung!$E$34,Faktorisierung!$G$34,IF(Bewertung!#REF!=Faktorisierung!$E$35,Faktorisierung!$G$35,0))))))","v":{"$error":"#REF!"}},{"$f":"IF(Bewertung!#REF!=\"\",\"\",IF(Bewertung!#REF!=Faktorisierung!$E$32,Faktorisierung!$G$32,(IF(Bewertung!#REF!=Faktorisierung!$E$33,Faktorisierung!$G$33,IF(Bewertung!#REF!=Faktorisierung!$E$34,Faktorisierung!$G$34,IF(Bewertung!#REF!=Faktorisierung!$E$35,Faktorisierung!$G$35,0))))))","v":{"$error":"#REF!"}},{"$f":"IF(Bewertung!#REF!=\"\",\"\",IF(Bewertung!#REF!=Faktorisierung!$E$32,Faktorisierung!$G$32,(IF(Bewertung!#REF!=Faktorisierung!$E$33,Faktorisierung!$G$33,IF(Bewertung!#REF!=Faktorisierung!$E$34,Faktorisierung!$G$34,IF(Bewertung!#REF!=Faktorisierung!$E$35,Faktorisierung!$G$35,0))))))","v":{"$error":"#REF!"}},{"$f":"IF(Bewertung!#REF!=\"\",\"\",IF(Bewertung!#REF!=Faktorisierung!$E$32,Faktorisierung!$G$32,(IF(Bewertung!#REF!=Faktorisierung!$E$33,Faktorisierung!$G$33,IF(Bewertung!#REF!=Faktorisierung!$E$34,Faktorisierung!$G$34,IF(Bewertung!#REF!=Faktorisierung!$E$35,Faktorisierung!$G$35,0))))))","v":{"$error":"#REF!"}},{"$f":"IF(Bewertung!#REF!=\"\",\"\",IF(Bewertung!#REF!=Faktorisierung!$E$32,Faktorisierung!$G$32,(IF(Bewertung!#REF!=Faktorisierung!$E$33,Faktorisierung!$G$33,IF(Bewertung!#REF!=Faktorisierung!$E$34,Faktorisierung!$G$34,IF(Bewertung!#REF!=Faktorisierung!$E$35,Faktorisierung!$G$35,0))))))","v":{"$error":"#REF!"}},{"$f":"IF(Bewertung!K11=\"\",\"\",IF(Bewertung!K11=Faktorisierung!$E$32,Faktorisierung!$G$32,(IF(Bewertung!K11=Faktorisierung!$E$33,Faktorisierung!$G$33,IF(Bewertung!K11=Faktorisierung!$E$34,Faktorisierung!$G$34,IF(Bewertung!K11=Faktorisierung!$E$35,Faktorisierung!$G$35,0))))))","v":""},{"$f":"IF(Bewertung!L11=\"\",\"\",IF(Bewertung!L11=Faktorisierung!$E$32,Faktorisierung!$G$32,(IF(Bewertung!L11=Faktorisierung!$E$33,Faktorisierung!$G$33,IF(Bewertung!L11=Faktorisierung!$E$34,Faktorisierung!$G$34,IF(Bewertung!L11=Faktorisierung!$E$35,Faktorisierung!$G$35,0))))))","v":""},{"$f":"IF(Bewertung!M11=\"\",\"\",IF(Bewertung!M11=Faktorisierung!$E$32,Faktorisierung!$G$32,(IF(Bewertung!M11=Faktorisierung!$E$33,Faktorisierung!$G$33,IF(Bewertung!M11=Faktorisierung!$E$34,Faktorisierung!$G$34,IF(Bewertung!M11=Faktorisierung!$E$35,Faktorisierung!$G$35,0))))))","v":""},{"$f":"IF(Bewertung!N11=\"\",\"\",IF(Bewertung!N11=Faktorisierung!$E$32,Faktorisierung!$G$32,(IF(Bewertung!N11=Faktorisierung!$E$33,Faktorisierung!$G$33,IF(Bewertung!N11=Faktorisierung!$E$34,Faktorisierung!$G$34,IF(Bewertung!N11=Faktorisierung!$E$35,Faktorisierung!$G$35,0))))))","v":""},{"$f":"IF(Bewertung!O11=\"\",\"\",IF(Bewertung!O11=Faktorisierung!$E$32,Faktorisierung!$G$32,(IF(Bewertung!O11=Faktorisierung!$E$33,Faktorisierung!$G$33,IF(Bewertung!O11=Faktorisierung!$E$34,Faktorisierung!$G$34,IF(Bewertung!O11=Faktorisierung!$E$35,Faktorisierung!$G$35,0))))))","v":""},{"$f":"IF(Bewertung!P11=\"\",\"\",IF(Bewertung!P11=Faktorisierung!$E$32,Faktorisierung!$G$32,(IF(Bewertung!P11=Faktorisierung!$E$33,Faktorisierung!$G$33,IF(Bewertung!P11=Faktorisierung!$E$34,Faktorisierung!$G$34,IF(Bewertung!P11=Faktorisierung!$E$35,Faktorisierung!$G$35,0))))))","v":""},{"$f":"IF(Bewertung!Q11=\"\",\"\",IF(Bewertung!Q11=Faktorisierung!$E$32,Faktorisierung!$G$32,(IF(Bewertung!Q11=Faktorisierung!$E$33,Faktorisierung!$G$33,IF(Bewertung!Q11=Faktorisierung!$E$34,Faktorisierung!$G$34,IF(Bewertung!Q11=Faktorisierung!$E$35,Faktorisierung!$G$35,0))))))","v":""},{"$f":"IF(Bewertung!R11=\"\",\"\",IF(Bewertung!R11=Faktorisierung!$E$32,Faktorisierung!$G$32,(IF(Bewertung!R11=Faktorisierung!$E$33,Faktorisierung!$G$33,IF(Bewertung!R11=Faktorisierung!$E$34,Faktorisierung!$G$34,IF(Bewertung!R11=Faktorisierung!$E$35,Faktorisierung!$G$35,0))))))","v":""},{"$f":"IF(Bewertung!S11=\"\",\"\",IF(Bewertung!S11=Faktorisierung!$E$32,Faktorisierung!$G$32,(IF(Bewertung!S11=Faktorisierung!$E$33,Faktorisierung!$G$33,IF(Bewertung!S11=Faktorisierung!$E$34,Faktorisierung!$G$34,IF(Bewertung!S11=Faktorisierung!$E$35,Faktorisierung!$G$35,0))))))","v":""},{"$f":"IF(Bewertung!T11=\"\",\"\",IF(Bewertung!T11=Faktorisierung!$E$32,Faktorisierung!$G$32,(IF(Bewertung!T11=Faktorisierung!$E$33,Faktorisierung!$G$33,IF(Bewertung!T11=Faktorisierung!$E$34,Faktorisierung!$G$34,IF(Bewertung!T11=Faktorisierung!$E$35,Faktorisierung!$G$35,0))))))","v":""},{"$f":"IF(Bewertung!U11=\"\",\"\",IF(Bewertung!U11=Faktorisierung!$E$32,Faktorisierung!$G$32,(IF(Bewertung!U11=Faktorisierung!$E$33,Faktorisierung!$G$33,IF(Bewertung!U11=Faktorisierung!$E$34,Faktorisierung!$G$34,IF(Bewertung!U11=Faktorisierung!$E$35,Faktorisierung!$G$35,0))))))","v":""},{"$f":"IF(Bewertung!V11=\"\",\"\",IF(Bewertung!V11=Faktorisierung!$E$32,Faktorisierung!$G$32,(IF(Bewertung!V11=Faktorisierung!$E$33,Faktorisierung!$G$33,IF(Bewertung!V11=Faktorisierung!$E$34,Faktorisierung!$G$34,IF(Bewertung!V11=Faktorisierung!$E$35,Faktorisierung!$G$35,0))))))","v":""},{"$f":"IF(Bewertung!W11=\"\",\"\",IF(Bewertung!W11=Faktorisierung!$E$32,Faktorisierung!$G$32,(IF(Bewertung!W11=Faktorisierung!$E$33,Faktorisierung!$G$33,IF(Bewertung!W11=Faktorisierung!$E$34,Faktorisierung!$G$34,IF(Bewertung!W11=Faktorisierung!$E$35,Faktorisierung!$G$35,0))))))","v":""},{"$f":"IF(Bewertung!X11=\"\",\"\",IF(Bewertung!X11=Faktorisierung!$E$32,Faktorisierung!$G$32,(IF(Bewertung!X11=Faktorisierung!$E$33,Faktorisierung!$G$33,IF(Bewertung!X11=Faktorisierung!$E$34,Faktorisierung!$G$34,IF(Bewertung!X11=Faktorisierung!$E$35,Faktorisierung!$G$35,0))))))","v":""},{"$f":"IF(Bewertung!Y11=\"\",\"\",IF(Bewertung!Y11=Faktorisierung!$E$32,Faktorisierung!$G$32,(IF(Bewertung!Y11=Faktorisierung!$E$33,Faktorisierung!$G$33,IF(Bewertung!Y11=Faktorisierung!$E$34,Faktorisierung!$G$34,IF(Bewertung!Y11=Faktorisierung!$E$35,Faktorisierung!$G$35,0))))))","v":""},{"$f":"IF(Bewertung!Z11=\"\",\"\",IF(Bewertung!Z11=Faktorisierung!$E$32,Faktorisierung!$G$32,(IF(Bewertung!Z11=Faktorisierung!$E$33,Faktorisierung!$G$33,IF(Bewertung!Z11=Faktorisierung!$E$34,Faktorisierung!$G$34,IF(Bewertung!Z11=Faktorisierung!$E$35,Faktorisierung!$G$35,0))))))","v":""},{"$f":"IF(Bewertung!AA11=\"\",\"\",IF(Bewertung!AA11=Faktorisierung!$E$32,Faktorisierung!$G$32,(IF(Bewertung!AA11=Faktorisierung!$E$33,Faktorisierung!$G$33,IF(Bewertung!AA11=Faktorisierung!$E$34,Faktorisierung!$G$34,IF(Bewertung!AA11=Faktorisierung!$E$35,Faktorisierung!$G$35,0))))))","v":""},{"$f":"IF(Bewertung!AB11=\"\",\"\",IF(Bewertung!AB11=Faktorisierung!$E$32,Faktorisierung!$G$32,(IF(Bewertung!AB11=Faktorisierung!$E$33,Faktorisierung!$G$33,IF(Bewertung!AB11=Faktorisierung!$E$34,Faktorisierung!$G$34,IF(Bewertung!AB11=Faktorisierung!$E$35,Faktorisierung!$G$35,0))))))","v":""},{"$f":"IF(Bewertung!AC11=\"\",\"\",IF(Bewertung!AC11=Faktorisierung!$E$32,Faktorisierung!$G$32,(IF(Bewertung!AC11=Faktorisierung!$E$33,Faktorisierung!$G$33,IF(Bewertung!AC11=Faktorisierung!$E$34,Faktorisierung!$G$34,IF(Bewertung!AC11=Faktorisierung!$E$35,Faktorisierung!$G$35,0))))))","v":""},{"$f":"IF(Bewertung!AD11=\"\",\"\",IF(Bewertung!AD11=Faktorisierung!$E$32,Faktorisierung!$G$32,(IF(Bewertung!AD11=Faktorisierung!$E$33,Faktorisierung!$G$33,IF(Bewertung!AD11=Faktorisierung!$E$34,Faktorisierung!$G$34,IF(Bewertung!AD11=Faktorisierung!$E$35,Faktorisierung!$G$35,0))))))","v":""},{"$f":"IF(Bewertung!AE11=\"\",\"\",IF(Bewertung!AE11=Faktorisierung!$E$32,Faktorisierung!$G$32,(IF(Bewertung!AE11=Faktorisierung!$E$33,Faktorisierung!$G$33,IF(Bewertung!AE11=Faktorisierung!$E$34,Faktorisierung!$G$34,IF(Bewertung!AE11=Faktorisierung!$E$35,Faktorisierung!$G$35,0))))))","v":""},{"$f":"IF(Bewertung!AF11=\"\",\"\",IF(Bewertung!AF11=Faktorisierung!$E$32,Faktorisierung!$G$32,(IF(Bewertung!AF11=Faktorisierung!$E$33,Faktorisierung!$G$33,IF(Bewertung!AF11=Faktorisierung!$E$34,Faktorisierung!$G$34,IF(Bewertung!AF11=Faktorisierung!$E$35,Faktorisierung!$G$35,0))))))","v":""},{"$f":"IF(Bewertung!AG11=\"\",\"\",IF(Bewertung!AG11=Faktorisierung!$E$32,Faktorisierung!$G$32,(IF(Bewertung!AG11=Faktorisierung!$E$33,Faktorisierung!$G$33,IF(Bewertung!AG11=Faktorisierung!$E$34,Faktorisierung!$G$34,IF(Bewertung!AG11=Faktorisierung!$E$35,Faktorisierung!$G$35,0))))))","v":""},{"$f":"IF(Bewertung!AH11=\"\",\"\",IF(Bewertung!AH11=Faktorisierung!$E$32,Faktorisierung!$G$32,(IF(Bewertung!AH11=Faktorisierung!$E$33,Faktorisierung!$G$33,IF(Bewertung!AH11=Faktorisierung!$E$34,Faktorisierung!$G$34,IF(Bewertung!AH11=Faktorisierung!$E$35,Faktorisierung!$G$35,0))))))","v":""},{"$f":"IF(Bewertung!AI11=\"\",\"\",IF(Bewertung!AI11=Faktorisierung!$E$32,Faktorisierung!$G$32,(IF(Bewertung!AI11=Faktorisierung!$E$33,Faktorisierung!$G$33,IF(Bewertung!AI11=Faktorisierung!$E$34,Faktorisierung!$G$34,IF(Bewertung!AI11=Faktorisierung!$E$35,Faktorisierung!$G$35,0))))))","v":""},{"$f":"IF(Bewertung!AJ11=\"\",\"\",IF(Bewertung!AJ11=Faktorisierung!$E$32,Faktorisierung!$G$32,(IF(Bewertung!AJ11=Faktorisierung!$E$33,Faktorisierung!$G$33,IF(Bewertung!AJ11=Faktorisierung!$E$34,Faktorisierung!$G$34,IF(Bewertung!AJ11=Faktorisierung!$E$35,Faktorisierung!$G$35,0))))))","v":""},{"$f":"IF(Bewertung!AK11=\"\",\"\",IF(Bewertung!AK11=Faktorisierung!$E$32,Faktorisierung!$G$32,(IF(Bewertung!AK11=Faktorisierung!$E$33,Faktorisierung!$G$33,IF(Bewertung!AK11=Faktorisierung!$E$34,Faktorisierung!$G$34,IF(Bewertung!AK11=Faktorisierung!$E$35,Faktorisierung!$G$35,0))))))","v":""},{"$f":"IF(Bewertung!AL11=\"\",\"\",IF(Bewertung!AL11=Faktorisierung!$E$32,Faktorisierung!$G$32,(IF(Bewertung!AL11=Faktorisierung!$E$33,Faktorisierung!$G$33,IF(Bewertung!AL11=Faktorisierung!$E$34,Faktorisierung!$G$34,IF(Bewertung!AL11=Faktorisierung!$E$35,Faktorisierung!$G$35,0))))))","v":""},{"$f":"IF(Bewertung!AM11=\"\",\"\",IF(Bewertung!AM11=Faktorisierung!$E$32,Faktorisierung!$G$32,(IF(Bewertung!AM11=Faktorisierung!$E$33,Faktorisierung!$G$33,IF(Bewertung!AM11=Faktorisierung!$E$34,Faktorisierung!$G$34,IF(Bewertung!AM11=Faktorisierung!$E$35,Faktorisierung!$G$35,0))))))","v":""},{"$f":"IF(Bewertung!AN11=\"\",\"\",IF(Bewertung!AN11=Faktorisierung!$E$32,Faktorisierung!$G$32,(IF(Bewertung!AN11=Faktorisierung!$E$33,Faktorisierung!$G$33,IF(Bewertung!AN11=Faktorisierung!$E$34,Faktorisierung!$G$34,IF(Bewertung!AN11=Faktorisierung!$E$35,Faktorisierung!$G$35,0))))))","v":""},{"$f":"IF(Bewertung!AO11=\"\",\"\",IF(Bewertung!AO11=Faktorisierung!$E$32,Faktorisierung!$G$32,(IF(Bewertung!AO11=Faktorisierung!$E$33,Faktorisierung!$G$33,IF(Bewertung!AO11=Faktorisierung!$E$34,Faktorisierung!$G$34,IF(Bewertung!AO11=Faktorisierung!$E$35,Faktorisierung!$G$35,0))))))","v":""},{"$f":"IF(Bewertung!AP11=\"\",\"\",IF(Bewertung!AP11=Faktorisierung!$E$32,Faktorisierung!$G$32,(IF(Bewertung!AP11=Faktorisierung!$E$33,Faktorisierung!$G$33,IF(Bewertung!AP11=Faktorisierung!$E$34,Faktorisierung!$G$34,IF(Bewertung!AP11=Faktorisierung!$E$35,Faktorisierung!$G$35,0))))))","v":""},{"$f":"IF(Bewertung!AQ11=\"\",\"\",IF(Bewertung!AQ11=Faktorisierung!$E$32,Faktorisierung!$G$32,(IF(Bewertung!AQ11=Faktorisierung!$E$33,Faktorisierung!$G$33,IF(Bewertung!AQ11=Faktorisierung!$E$34,Faktorisierung!$G$34,IF(Bewertung!AQ11=Faktorisierung!$E$35,Faktorisierung!$G$35,0))))))","v":""},{"$f":"IF(Bewertung!AR11=\"\",\"\",IF(Bewertung!AR11=Faktorisierung!$E$32,Faktorisierung!$G$32,(IF(Bewertung!AR11=Faktorisierung!$E$33,Faktorisierung!$G$33,IF(Bewertung!AR11=Faktorisierung!$E$34,Faktorisierung!$G$34,IF(Bewertung!AR11=Faktorisierung!$E$35,Faktorisierung!$G$35,0))))))","v":""},{"$f":"IF(Bewertung!AS11=\"\",\"\",IF(Bewertung!AS11=Faktorisierung!$E$32,Faktorisierung!$G$32,(IF(Bewertung!AS11=Faktorisierung!$E$33,Faktorisierung!$G$33,IF(Bewertung!AS11=Faktorisierung!$E$34,Faktorisierung!$G$34,IF(Bewertung!AS11=Faktorisierung!$E$35,Faktorisierung!$G$35,0))))))","v":""},{"$f":"IF(Bewertung!AT11=\"\",\"\",IF(Bewertung!AT11=Faktorisierung!$E$32,Faktorisierung!$G$32,(IF(Bewertung!AT11=Faktorisierung!$E$33,Faktorisierung!$G$33,IF(Bewertung!AT11=Faktorisierung!$E$34,Faktorisierung!$G$34,IF(Bewertung!AT11=Faktorisierung!$E$35,Faktorisierung!$G$35,0))))))","v":""},{"$f":"IF(Bewertung!AU11=\"\",\"\",IF(Bewertung!AU11=Faktorisierung!$E$32,Faktorisierung!$G$32,(IF(Bewertung!AU11=Faktorisierung!$E$33,Faktorisierung!$G$33,IF(Bewertung!AU11=Faktorisierung!$E$34,Faktorisierung!$G$34,IF(Bewertung!AU11=Faktorisierung!$E$35,Faktorisierung!$G$35,0))))))","v":""},{"$f":"IF(Bewertung!AV11=\"\",\"\",IF(Bewertung!AV11=Faktorisierung!$E$32,Faktorisierung!$G$32,(IF(Bewertung!AV11=Faktorisierung!$E$33,Faktorisierung!$G$33,IF(Bewertung!AV11=Faktorisierung!$E$34,Faktorisierung!$G$34,IF(Bewertung!AV11=Faktorisierung!$E$35,Faktorisierung!$G$35,0))))))","v":""},{"$f":"IF(Bewertung!AW11=\"\",\"\",IF(Bewertung!AW11=Faktorisierung!$E$32,Faktorisierung!$G$32,(IF(Bewertung!AW11=Faktorisierung!$E$33,Faktorisierung!$G$33,IF(Bewertung!AW11=Faktorisierung!$E$34,Faktorisierung!$G$34,IF(Bewertung!AW11=Faktorisierung!$E$35,Faktorisierung!$G$35,0))))))","v":""},{"$f":"IF(Bewertung!AX11=\"\",\"\",IF(Bewertung!AX11=Faktorisierung!$E$32,Faktorisierung!$G$32,(IF(Bewertung!AX11=Faktorisierung!$E$33,Faktorisierung!$G$33,IF(Bewertung!AX11=Faktorisierung!$E$34,Faktorisierung!$G$34,IF(Bewertung!AX11=Faktorisierung!$E$35,Faktorisierung!$G$35,0))))))","v":""},{"$f":"IF(Bewertung!AY11=\"\",\"\",IF(Bewertung!AY11=Faktorisierung!$E$32,Faktorisierung!$G$32,(IF(Bewertung!AY11=Faktorisierung!$E$33,Faktorisierung!$G$33,IF(Bewertung!AY11=Faktorisierung!$E$34,Faktorisierung!$G$34,IF(Bewertung!AY11=Faktorisierung!$E$35,Faktorisierung!$G$35,0))))))","v":""},{"$f":"IF(Bewertung!AZ11=\"\",\"\",IF(Bewertung!AZ11=Faktorisierung!$E$32,Faktorisierung!$G$32,(IF(Bewertung!AZ11=Faktorisierung!$E$33,Faktorisierung!$G$33,IF(Bewertung!AZ11=Faktorisierung!$E$34,Faktorisierung!$G$34,IF(Bewertung!AZ11=Faktorisierung!$E$35,Faktorisierung!$G$35,0))))))","v":""},{"$f":"IF(Bewertung!BA11=\"\",\"\",IF(Bewertung!BA11=Faktorisierung!$E$32,Faktorisierung!$G$32,(IF(Bewertung!BA11=Faktorisierung!$E$33,Faktorisierung!$G$33,IF(Bewertung!BA11=Faktorisierung!$E$34,Faktorisierung!$G$34,IF(Bewertung!BA11=Faktorisierung!$E$35,Faktorisierung!$G$35,0))))))","v":""},{"$f":"IF(Bewertung!BB11=\"\",\"\",IF(Bewertung!BB11=Faktorisierung!$E$32,Faktorisierung!$G$32,(IF(Bewertung!BB11=Faktorisierung!$E$33,Faktorisierung!$G$33,IF(Bewertung!BB11=Faktorisierung!$E$34,Faktorisierung!$G$34,IF(Bewertung!BB11=Faktorisierung!$E$35,Faktorisierung!$G$35,0))))))","v":""},{"$f":"IF(Bewertung!BC11=\"\",\"\",IF(Bewertung!BC11=Faktorisierung!$E$32,Faktorisierung!$G$32,(IF(Bewertung!BC11=Faktorisierung!$E$33,Faktorisierung!$G$33,IF(Bewertung!BC11=Faktorisierung!$E$34,Faktorisierung!$G$34,IF(Bewertung!BC11=Faktorisierung!$E$35,Faktorisierung!$G$35,0))))))","v":""},{"$f":"IF(Bewertung!BD11=\"\",\"\",IF(Bewertung!BD11=Faktorisierung!$E$32,Faktorisierung!$G$32,(IF(Bewertung!BD11=Faktorisierung!$E$33,Faktorisierung!$G$33,IF(Bewertung!BD11=Faktorisierung!$E$34,Faktorisierung!$G$34,IF(Bewertung!BD11=Faktorisierung!$E$35,Faktorisierung!$G$35,0))))))","v":""},{"$f":"IF(Bewertung!BE11=\"\",\"\",IF(Bewertung!BE11=Faktorisierung!$E$32,Faktorisierung!$G$32,(IF(Bewertung!BE11=Faktorisierung!$E$33,Faktorisierung!$G$33,IF(Bewertung!BE11=Faktorisierung!$E$34,Faktorisierung!$G$34,IF(Bewertung!BE11=Faktorisierung!$E$35,Faktorisierung!$G$35,0))))))","v":""},{"$f":"IF(Bewertung!BF11=\"\",\"\",IF(Bewertung!BF11=Faktorisierung!$E$32,Faktorisierung!$G$32,(IF(Bewertung!BF11=Faktorisierung!$E$33,Faktorisierung!$G$33,IF(Bewertung!BF11=Faktorisierung!$E$34,Faktorisierung!$G$34,IF(Bewertung!BF11=Faktorisierung!$E$35,Faktorisierung!$G$35,0))))))","v":""},{"$f":"IF(Bewertung!BG11=\"\",\"\",IF(Bewertung!BG11=Faktorisierung!$E$32,Faktorisierung!$G$32,(IF(Bewertung!BG11=Faktorisierung!$E$33,Faktorisierung!$G$33,IF(Bewertung!BG11=Faktorisierung!$E$34,Faktorisierung!$G$34,IF(Bewertung!BG11=Faktorisierung!$E$35,Faktorisierung!$G$35,0))))))","v":""},{"$f":"IF(Bewertung!BH11=\"\",\"\",IF(Bewertung!BH11=Faktorisierung!$E$32,Faktorisierung!$G$32,(IF(Bewertung!BH11=Faktorisierung!$E$33,Faktorisierung!$G$33,IF(Bewertung!BH11=Faktorisierung!$E$34,Faktorisierung!$G$34,IF(Bewertung!BH11=Faktorisierung!$E$35,Faktorisierung!$G$35,0))))))","v":""},{"$f":"IF(Bewertung!BI11=\"\",\"\",IF(Bewertung!BI11=Faktorisierung!$E$32,Faktorisierung!$G$32,(IF(Bewertung!BI11=Faktorisierung!$E$33,Faktorisierung!$G$33,IF(Bewertung!BI11=Faktorisierung!$E$34,Faktorisierung!$G$34,IF(Bewertung!BI11=Faktorisierung!$E$35,Faktorisierung!$G$35,0))))))","v":""},{"$f":"IF(Bewertung!BJ11=\"\",\"\",IF(Bewertung!BJ11=Faktorisierung!$E$32,Faktorisierung!$G$32,(IF(Bewertung!BJ11=Faktorisierung!$E$33,Faktorisierung!$G$33,IF(Bewertung!BJ11=Faktorisierung!$E$34,Faktorisierung!$G$34,IF(Bewertung!BJ11=Faktorisierung!$E$35,Faktorisierung!$G$35,0))))))","v":""},{"$f":"IF(Bewertung!BK11=\"\",\"\",IF(Bewertung!BK11=Faktorisierung!$E$32,Faktorisierung!$G$32,(IF(Bewertung!BK11=Faktorisierung!$E$33,Faktorisierung!$G$33,IF(Bewertung!BK11=Faktorisierung!$E$34,Faktorisierung!$G$34,IF(Bewertung!BK11=Faktorisierung!$E$35,Faktorisierung!$G$35,0))))))","v":""},{"$f":"IF(Bewertung!BL11=\"\",\"\",IF(Bewertung!BL11=Faktorisierung!$E$32,Faktorisierung!$G$32,(IF(Bewertung!BL11=Faktorisierung!$E$33,Faktorisierung!$G$33,IF(Bewertung!BL11=Faktorisierung!$E$34,Faktorisierung!$G$34,IF(Bewertung!BL11=Faktorisierung!$E$35,Faktorisierung!$G$35,0))))))","v":""}]
[{"$nulls":3},"9. Veranstalter",{"$f":"IF(Bewertung!I12=\"\",\"\",IF(Bewertung!I12=Faktorisierung!$A$40,Faktorisierung!$C$40,(IF(Bewertung!I12=Faktorisierung!$A$41,Faktorisierung!$C$41,IF(Bewertung!I12=Faktorisierung!$A$42,Faktorisierung!$C$42,IF(Bewertung!I12=Faktorisierung!$A$43,Faktorisierung!$C$43,0))))))","v":0.5},{"$f":"IF(Bewertung!J12=\"\",\"\",IF(Bewertung!J12=Faktorisierung!$A$40,Faktorisierung!$C$40,(IF(Bewertung!J12=Faktorisierung!$A$41,Faktorisierung!$C$41,IF(Bewertung!J12=Faktorisierung!$A$42,Faktorisierung!$C$42,IF(Bewertung!J12=Faktorisierung!$A$43,Faktorisierung!$C$43,0))))))","v":""},{"$f":"IF(Bewertung!#REF!=\"\",\"\",IF(Bewertung!#REF!=Faktorisierung!$A$40,Faktorisierung!$C$40,(IF(Bewertung!#REF!=Faktorisierung!$A$41,Faktorisierung!$C$41,IF(Bewertung!#REF!=Faktorisierung!$A$42,Faktorisierung!$C$42,IF(Bewertung!#REF!=Faktorisierung!$A$43,Faktorisierung!$C$43,0))))))","v":{"$error":"#REF!"}},{"$f":"IF(Bewertung!#REF!=\"\",\"\",IF(Bewertung!#REF!=Faktorisierung!$A$40,Faktorisierung!$C$40,(IF(Bewertung!#REF!=Faktorisierung!$A$41,Faktorisierung!$C$41,IF(Bewertung!#REF!=Faktorisierung!$A$42,Faktorisierung!$C$42,IF(Bewertung!#REF!=Faktorisierung!$A$43,Faktorisierung!$C$43,0))))))","v":{"$error":"#REF!"}},{"$f":"IF(Bewertung!#REF!=\"\",\"\",IF(Bewertung!#REF!=Faktorisierung!$A$40,Faktorisierung!$C$40,(IF(Bewertung!#REF!=Faktorisierung!$A$41,Faktorisierung!$C$41,IF(Bewertung!#REF!=Faktorisierung!$A$42,Faktorisierung!$C$42,IF(Bewertung!#REF!=Faktorisierung!$A$43,Faktorisierung!$C$43,0))))))","v":{"$error":"#REF!"}},{"$f":"IF(Bewertung!#REF!=\"\",\"\",IF(Bewertung!#REF!=Faktorisierung!$A$40,Faktorisierung!$C$40,(IF(Bewertung!#REF!=Faktorisierung!$A$41,Faktorisierung!$C$41,IF(Bewertung!#REF!=Faktorisierung!$A$42,Faktorisierung!$C$42,IF(Bewertung!#REF!=Faktorisierung!$A$43,Faktorisierung!$C$43,0))))))","v":{"$error":"#REF!"}},{"$f":"IF(Bewertung!#REF!=\"\",\"\",IF(Bewertung!#REF!=Faktorisierung!$A$40,Faktorisierung!$C$40,(IF(Bewertung!#REF!=Faktorisierung!$A$41,Faktorisierung!$C$41,IF(Bewertung!#REF!=Faktorisierung!$A$42,Faktorisierung!$C$42,IF(Bewertung!#REF!=Faktorisierung!$A$43,Faktorisierung!$C$43,0))))))","v":{"$error":"#REF!"}},{"$f":"IF(Bewertung!#REF!=\"\",\"\",IF(Bewertung!#REF!=Faktorisierung!$A$40,Faktorisierung!$C$40,(IF(Bewertung!#REF!=Faktorisierung!$A$41,Faktorisierung!$C$41,IF(Bewertung!#REF!=Faktorisierung!$A$42,Faktorisierung!$C$42,IF(Bewertung!#REF!=Faktorisierung!$A$43,Faktorisierung!$C$43,0))))))","v":{"$error":"#REF!"}},{"$f":"IF(Bewertung!K12=\"\",\"\",IF(Bewertung!K12=Faktorisierung!$A$40,Faktorisierung!$C$40,(IF(Bewertung!K12=Faktorisierung!$A$41,Faktorisierung!$C$41,IF(Bewertung!K12=Faktorisierung!$A$42,Faktorisierung!$C$42,IF(Bewertung!K12=Faktorisierung!$A$43,Faktorisierung!$C$43,0))))))","v":""},{"$f":"IF(Bewertung!L12=\"\",\"\",IF(Bewertung!L12=Faktorisierung!$A$40,Faktorisierung!$C$40,(IF(Bewertung!L12=Faktorisierung!$A$41,Faktorisierung!$C$41,IF(Bewertung!L12=Faktorisierung!$A$42,Faktorisierung!$C$42,IF(Bewertung!L12=Faktorisierung!$A$43,Faktorisierung!$C$43,0))))))","v":""},{"$f":"IF(Bewertung!M12=\"\",\"\",IF(Bewertung!M12=Faktorisierung!$A$40,Faktorisierung!$C$40,(IF(Bewertung!M12=Faktorisierung!$A$41,Faktorisierung!$C$41,IF(Bewertung!M12=Faktorisierung!$A$42,Faktorisierung!$C$42,IF(Bewertung!M12=Faktorisierung!$A$43,Faktorisierung!$C$43,0))))))","v":""},{"$f":"IF(Bewertung!N12=\"\",\"\",IF(Bewertung!N12=Faktorisierung!$A$40,Faktorisierung!$C$40,(IF(Bewertung!N12=Faktorisierung!$A$41,Faktorisierung!$C$41,IF(Bewertung!N12=Faktorisierung!$A$42,Faktorisierung!$C$42,IF(Bewertung!N12=Faktorisierung!$A$43,Faktorisierung!$C$43,0))))))","v":""},{"$f":"IF(Bewertung!O12=\"\",\"\",IF(Bewertung!O12=Faktorisierung!$A$40,Faktorisierung!$C$40,(IF(Bewertung!O12=Faktorisierung!$A$41,Faktorisierung!$C$41,IF(Bewertung!O12=Faktorisierung!$A$42,Faktorisierung!$C$42,IF(Bewertung!O12=Faktorisierung!$A$43,Faktorisierung!$C$43,0))))))","v":""},{"$f":"IF(Bewertung!P12=\"\",\"\",IF(Bewertung!P12=Faktorisierung!$A$40,Faktorisierung!$C$40,(IF(Bewertung!P12=Faktorisierung!$A$41,Faktorisierung!$C$41,IF(Bewertung!P12=Faktorisierung!$A$42,Faktorisierung!$C$42,IF(Bewertung!P12=Faktorisierung!$A$43,Faktorisierung!$C$43,0))))))","v":""},{"$f":"IF(Bewertung!Q12=\"\",\"\",IF(Bewertung!Q12=Faktorisierung!$A$40,Faktorisierung!$C$40,(IF(Bewertung!Q12=Faktorisierung!$A$41,Faktorisierung!$C$41,IF(Bewertung!Q12=Faktorisierung!$A$42,Faktorisierung!$C$42,IF(Bewertung!Q12=Faktorisierung!$A$43,Faktorisierung!$C$43,0))))))","v":""},{"$f":"IF(Bewertung!R12=\"\",\"\",IF(Bewertung!R12=Faktorisierung!$A$40,Faktorisierung!$C$40,(IF(Bewertung!R12=Faktorisierung!$A$41,Faktorisierung!$C$41,IF(Bewertung!R12=Faktorisierung!$A$42,Faktorisierung!$C$42,IF(Bewertung!R12=Faktorisierung!$A$43,Faktorisierung!$C$43,0))))))","v":""},{"$f":"IF(Bewertung!S12=\"\",\"\",IF(Bewertung!S12=Faktorisierung!$A$40,Faktorisierung!$C$40,(IF(Bewertung!S12=Faktorisierung!$A$41,Faktorisierung!$C$41,IF(Bewertung!S12=Faktorisierung!$A$42,Faktorisierung!$C$42,IF(Bewertung!S12=Faktorisierung!$A$43,Faktorisierung!$C$43,0))))))","v":""},{"$f":"IF(Bewertung!T12=\"\",\"\",IF(Bewertung!T12=Faktorisierung!$A$40,Faktorisierung!$C$40,(IF(Bewertung!T12=Faktorisierung!$A$41,Faktorisierung!$C$41,IF(Bewertung!T12=Faktorisierung!$A$42,Faktorisierung!$C$42,IF(Bewertung!T12=Faktorisierung!$A$43,Faktorisierung!$C$43,0))))))","v":""},{"$f":"IF(Bewertung!U12=\"\",\"\",IF(Bewertung!U12=Faktorisierung!$A$40,Faktorisierung!$C$40,(IF(Bewertung!U12=Faktorisierung!$A$41,Faktorisierung!$C$41,IF(Bewertung!U12=Faktorisierung!$A$42,Faktorisierung!$C$42,IF(Bewertung!U12=Faktorisierung!$A$43,Faktorisierung!$C$43,0))))))","v":""},{"$f":"IF(Bewertung!V12=\"\",\"\",IF(Bewertung!V12=Faktorisierung!$A$40,Faktorisierung!$C$40,(IF(Bewertung!V12=Faktorisierung!$A$41,Faktorisierung!$C$41,IF(Bewertung!V12=Faktorisierung!$A$42,Faktorisierung!$C$42,IF(Bewertung!V12=Faktorisierung!$A$43,Faktorisierung!$C$43,0))))))","v":""},{"$f":"IF(Bewertung!W12=\"\",\"\",IF(Bewertung!W12=Faktorisierung!$A$40,Faktorisierung!$C$40,(IF(Bewertung!W12=Faktorisierung!$A$41,Faktorisierung!$C$41,IF(Bewertung!W12=Faktorisierung!$A$42,Faktorisierung!$C$42,IF(Bewertung!W12=Faktorisierung!$A$43,Faktorisierung!$C$43,0))))))","v":""},{"$f":"IF(Bewertung!X12=\"\",\"\",IF(Bewertung!X12=Faktorisierung!$A$40,Faktorisierung!$C$40,(IF(Bewertung!X12=Faktorisierung!$A$41,Faktorisierung!$C$41,IF(Bewertung!X12=Faktorisierung!$A$42,Faktorisierung!$C$42,IF(Bewertung!X12=Faktorisierung!$A$43,Faktorisierung!$C$43,0))))))","v":""},{"$f":"IF(Bewertung!Y12=\"\",\"\",IF(Bewertung!Y12=Faktorisierung!$A$40,Faktorisierung!$C$40,(IF(Bewertung!Y12=Faktorisierung!$A$41,Faktorisierung!$C$41,IF(Bewertung!Y12=Faktorisierung!$A$42,Faktorisierung!$C$42,IF(Bewertung!Y12=Faktorisierung!$A$43,Faktorisierung!$C$43,0))))))","v":""},{"$f":"IF(Bewertung!Z12=\"\",\"\",IF(Bewertung!Z12=Faktorisierung!$A$40,Faktorisierung!$C$40,(IF(Bewertung!Z12=Faktorisierung!$A$41,Faktorisierung!$C$41,IF(Bewertung!Z12=Faktorisierung!$A$42,Faktorisierung!$C$42,IF(Bewertung!Z12=Faktorisierung!$A$43,Faktorisierung!$C$43,0))))))","v":""},{"$f":"IF(Bewertung!AA12=\"\",\"\",IF(Bewertung!AA12=Faktorisierung!$A$40,Faktorisierung!$C$40,(IF(Bewertung!AA12=Faktorisierung!$A$41,Faktorisierung!$C$41,IF(Bewertung!AA12=Faktorisierung!$A$42,Faktorisierung!$C$42,IF(Bewertung!AA12=Faktorisierung!$A$43,Faktorisierung!$C$43,0))))))","v":""},{"$f":"IF(Bewertung!AB12=\"\",\"\",IF(Bewertung!AB12=Faktorisierung!$A$40,Faktorisierung!$C$40,(IF(Bewertung!AB12=Faktorisierung!$A$41,Faktorisierung!$C$41,IF(Bewertung!AB12=Faktorisierung!$A$42,Faktorisierung!$C$42,IF(Bewertung!AB12=Faktorisierung!$A$43,Faktorisierung!$C$43,0))))))","v":""},{"$f":"IF(Bewertung!AC12=\"\",\"\",IF(Bewertung!AC12=Faktorisierung!$A$40,Faktorisierung!$C$40,(IF(Bewertung!AC12=Faktorisierung!$A$41,Faktorisierung!$C$41,IF(Bewertung!AC12=Faktorisierung!$A$42,Faktorisierung!$C$42,IF(Bewertung!AC12=Faktorisierung!$A$43,Faktorisierung!$C$43,0))))))","v":""},{"$f":"IF(Bewertung!AD12=\"\",\"\",IF(Bewertung!AD12=Faktorisierung!$A$40,Faktorisierung!$C$40,(IF(Bewertung!AD12=Faktorisierung!$A$41,Faktorisierung!$C$41,IF(Bewertung!AD12=Faktorisierung!$A$42,Faktorisierung!$C$42,IF(Bewertung!AD12=Faktorisierung!$A$43,Faktorisierung!$C$43,0))))))","v":""},{"$f":"IF(Bewertung!AE12=\"\",\"\",IF(Bewertung!AE12=Faktorisierung!$A$40,Faktorisierung!$C$40,(IF(Bewertung!AE12=Faktorisierung!$A$41,Faktorisierung!$C$41,IF(Bewertung!AE12=Faktorisierung!$A$42,Faktorisierung!$C$42,IF(Bewertung!AE12=Faktorisierung!$A$43,Faktorisierung!$C$43,0))))))","v":""},{"$f":"IF(Bewertung!AF12=\"\",\"\",IF(Bewertung!AF12=Faktorisierung!$A$40,Faktorisierung!$C$40,(IF(Bewertung!AF12=Faktorisierung!$A$41,Faktorisierung!$C$41,IF(Bewertung!AF12=Faktorisierung!$A$42,Faktorisierung!$C$42,IF(Bewertung!AF12=Faktorisierung!$A$43,Faktorisierung!$C$43,0))))))","v":""},{"$f":"IF(Bewertung!AG12=\"\",\"\",IF(Bewertung!AG12=Faktorisierung!$A$40,Faktorisierung!$C$40,(IF(Bewertung!AG12=Faktorisierung!$A$41,Faktorisierung!$C$41,IF(Bewertung!AG12=Faktorisierung!$A$42,Faktorisierung!$C$42,IF(Bewertung!AG12=Faktorisierung!$A$43,Faktorisierung!$C$43,0))))))","v":""},{"$f":"IF(Bewertung!AH12=\"\",\"\",IF(Bewertung!AH12=Faktorisierung!$A$40,Faktorisierung!$C$40,(IF(Bewertung!AH12=Faktorisierung!$A$41,Faktorisierung!$C$41,IF(Bewertung!AH12=Faktorisierung!$A$42,Faktorisierung!$C$42,IF(Bewertung!AH12=Faktorisierung!$A$43,Faktorisierung!$C$43,0))))))","v":""},{"$f":"IF(Bewertung!AI12=\"\",\"\",IF(Bewertung!AI12=Faktorisierung!$A$40,Faktorisierung!$C$40,(IF(Bewertung!AI12=Faktorisierung!$A$41,Faktorisierung!$C$41,IF(Bewertung!AI12=Faktorisierung!$A$42,Faktorisierung!$C$42,IF(Bewertung!AI12=Faktorisierung!$A$43,Faktorisierung!$C$43,0))))))","v":""},{"$f":"IF(Bewertung!AJ12=\"\",\"\",IF(Bewertung!AJ12=Faktorisierung!$A$40,Faktorisierung!$C$40,(IF(Bewertung!AJ12=Faktorisierung!$A$41,Faktorisierung!$C$41,IF(Bewertung!AJ12=Faktorisierung!$A$42,Faktorisierung!$C$42,IF(Bewertung!AJ12=Faktorisierung!$A$43,Faktorisierung!$C$43,0))))))","v":""},{"$f":"IF(Bewertung!AK12=\"\",\"\",IF(Bewertung!AK12=Faktorisierung!$A$40,Faktorisierung!$C$40,(IF(Bewertung!AK12=Faktorisierung!$A$41,Faktorisierung!$C$41,IF(Bewertung!AK12=Faktorisierung!$A$42,Faktorisierung!$C$42,IF(Bewertung!AK12=Faktorisierung!$A$43,Faktorisierung!$C$43,0))))))","v":""},{"$f":"IF(Bewertung!AL12=\"\",\"\",IF(Bewertung!AL12=Faktorisierung!$A$40,Faktorisierung!$C$40,(IF(Bewertung!AL12=Faktorisierung!$A$41,Faktorisierung!$C$41,IF(Bewertung!AL12=Faktorisierung!$A$42,Faktorisierung!$C$42,IF(Bewertung!AL12=Faktorisierung!$A$43,Faktorisierung!$C$43,0))))))","v":""},{"$f":"IF(Bewertung!AM12=\"\",\"\",IF(Bewertung!AM12=Faktorisierung!$A$40,Faktorisierung!$C$40,(IF(Bewertung!AM12=Faktorisierung!$A$41,Faktorisierung!$C$41,IF(Bewertung!AM12=Faktorisierung!$A$42,Faktorisierung!$C$42,IF(Bewertung!AM12=Faktorisierung!$A$43,Faktorisierung!$C$43,0))))))","v":""},{"$f":"IF(Bewertung!AN12=\"\",\"\",IF(Bewertung!AN12=Faktorisierung!$A$40,Faktorisierung!$C$40,(IF(Bewertung!AN12=Faktorisierung!$A$41,Faktorisierung!$C$41,IF(Bewertung!AN12=Faktorisierung!$A$42,Faktorisierung!$C$42,IF(Bewertung!AN12=Faktorisierung!$A$43,Faktorisierung!$C$43,0))))))","v":""},{"$f":"IF(Bewertung!AO12=\"\",\"\",IF(Bewertung!AO12=Faktorisierung!$A$40,Faktorisierung!$C$40,(IF(Bewertung!AO12=Faktorisierung!$A$41,Faktorisierung!$C$41,IF(Bewertung!AO12=Faktorisierung!$A$42,Faktorisierung!$C$42,IF(Bewertung!AO12=Faktorisierung!$A$43,Faktorisierung!$C$43,0))))))","v":""},{"$f":"IF(Bewertung!AP12=\"\",\"\",IF(Bewertung!AP12=Faktorisierung!$A$40,Faktorisierung!$C$40,(IF(Bewertung!AP12=Faktorisierung!$A$41,Faktorisierung!$C$41,IF(Bewertung!AP12=Faktorisierung!$A$42,Faktorisierung!$C$42,IF(Bewertung!AP12=Faktorisierung!$A$43,Faktorisierung!$C$43,0))))))","v":""},{"$f":"IF(Bewertung!AQ12=\"\",\"\",IF(Bewertung!AQ12=Faktorisierung!$A$40,Faktorisierung!$C$40,(IF(Bewertung!AQ12=Faktorisierung!$A$41,Faktorisierung!$C$41,IF(Bewertung!AQ12=Faktorisierung!$A$42,Faktorisierung!$C$42,IF(Bewertung!AQ12=Faktorisierung!$A$43,Faktorisierung!$C$43,0))))))","v":""},{"$f":"IF(Bewertung!AR12=\"\",\"\",IF(Bewertung!AR12=Faktorisierung!$A$40,Faktorisierung!$C$40,(IF(Bewertung!AR12=Faktorisierung!$A$41,Faktorisierung!$C$41,IF(Bewertung!AR12=Faktorisierung!$A$42,Faktorisierung!$C$42,IF(Bewertung!AR12=Faktorisierung!$A$43,Faktorisierung!$C$43,0))))))","v":""},{"$f":"IF(Bewertung!AS12=\"\",\"\",IF(Bewertung!AS12=Faktorisierung!$A$40,Faktorisierung!$C$40,(IF(Bewertung!AS12=Faktorisierung!$A$41,Faktorisierung!$C$41,IF(Bewertung!AS12=Faktorisierung!$A$42,Faktorisierung!$C$42,IF(Bewertung!AS12=Faktorisierung!$A$43,Faktorisierung!$C$43,0))))))","v":""},{"$f":"IF(Bewertung!AT12=\"\",\"\",IF(Bewertung!AT12=Faktorisierung!$A$40,Faktorisierung!$C$40,(IF(Bewertung!AT12=Faktorisierung!$A$41,Faktorisierung!$C$41,IF(Bewertung!AT12=Faktorisierung!$A$42,Faktorisierung!$C$42,IF(Bewertung!AT12=Faktorisierung!$A$43,Faktorisierung!$C$43,0))))))","v":""},{"$f":"IF(Bewertung!AU12=\"\",\"\",IF(Bewertung!AU12=Faktorisierung!$A$40,Faktorisierung!$C$40,(IF(Bewertung!AU12=Faktorisierung!$A$41,Faktorisierung!$C$41,IF(Bewertung!AU12=Faktorisierung!$A$42,Faktorisierung!$C$42,IF(Bewertung!AU12=Faktorisierung!$A$43,Faktorisierung!$C$43,0))))))","v":""},{"$f":"IF(Bewertung!AV12=\"\",\"\",IF(Bewertung!AV12=Faktorisierung!$A$40,Faktorisierung!$C$40,(IF(Bewertung!AV12=Faktorisierung!$A$41,Faktorisierung!$C$41,IF(Bewertung!AV12=Faktorisierung!$A$42,Faktorisierung!$C$42,IF(Bewertung!AV12=Faktorisierung!$A$43,Faktorisierung!$C$43,0))))))","v":""},{"$f":"IF(Bewertung!AW12=\"\",\"\",IF(Bewertung!AW12=Faktorisierung!$A$40,Faktorisierung!$C$40,(IF(Bewertung!AW12=Faktorisierung!$A$41,Faktorisierung!$C$41,IF(Bewertung!AW12=Faktorisierung!$A$42,Faktorisierung!$C$42,IF(Bewertung!AW12=Faktorisierung!$A$43,Faktorisierung!$C$43,0))))))","v":""},{"$f":"IF(Bewertung!AX12=\"\",\"\",IF(Bewertung!AX12=Faktorisierung!$A$40,Faktorisierung!$C$40,(IF(Bewertung!AX12=Faktorisierung!$A$41,Faktorisierung!$C$41,IF(Bewertung!AX12=Faktorisierung!$A$42,Faktorisierung!$C$42,IF(Bewertung!AX12=Faktorisierung!$A$43,Faktorisierung!$C$43,0))))))","v":""},{"$f":"IF(Bewertung!AY12=\"\",\"\",IF(Bewertung!AY12=Faktorisierung!$A$40,Faktorisierung!$C$40,(IF(Bewertung!AY12=Faktorisierung!$A$41,Faktorisierung!$C$41,IF(Bewertung!AY12=Faktorisierung!$A$42,Faktorisierung!$C$42,IF(Bewertung!AY12=Faktorisierung!$A$43,Faktorisierung!$C$43,0))))))","v":""},{"$f":"IF(Bewertung!AZ12=\"\",\"\",IF(Bewertung!AZ12=Faktorisierung!$A$40,Faktorisierung!$C$40,(IF(Bewertung!AZ12=Faktorisierung!$A$41,Faktorisierung!$C$41,IF(Bewertung!AZ12=Faktorisierung!$A$42,Faktorisierung!$C$42,IF(Bewertung!AZ12=Faktorisierung!$A$43,Faktorisierung!$C$43,0))))))","v":""},{"$f":"IF(Bewertung!BA12=\"\",\"\",IF(Bewertung!BA12=Faktorisierung!$A$40,Faktorisierung!$C$40,(IF(Bewertung!BA12=Faktorisierung!$A$41,Faktorisierung!$C$41,IF(Bewertung!BA12=Faktorisierung!$A$42,Faktorisierung!$C$42,IF(Bewertung!BA12=Faktorisierung!$A$43,Faktorisierung!$C$43,0))))))","v":""},{"$f":"IF(Bewertung!BB12=\"\",\"\",IF(Bewertung!BB12=Faktorisierung!$A$40,Faktorisierung!$C$40,(IF(Bewertung!BB12=Faktorisierung!$A$41,Faktorisierung!$C$41,IF(Bewertung!BB12=Faktorisierung!$A$42,Faktorisierung!$C$42,IF(Bewertung!BB12=Faktorisierung!$A$43,Faktorisierung!$C$43,0))))))","v":""},{"$f":"IF(Bewertung!BC12=\"\",\"\",IF(Bewertung!BC12=Faktorisierung!$A$40,Faktorisierung!$C$40,(IF(Bewertung!BC12=Faktorisierung!$A$41,Faktorisierung!$C$41,IF(Bewertung!BC12=Faktorisierung!$A$42,Faktorisierung!$C$42,IF(Bewertung!BC12=Faktorisierung!$A$43,Faktorisierung!$C$43,0))))))","v":""},{"$f":"IF(Bewertung!BD12=\"\",\"\",IF(Bewertung!BD12=Faktorisierung!$A$40,Faktorisierung!$C$40,(IF(Bewertung!BD12=Faktorisierung!$A$41,Faktorisierung!$C$41,IF(Bewertung!BD12=Faktorisierung!$A$42,Faktorisierung!$C$42,IF(Bewertung!BD12=Faktorisierung!$A$43,Faktorisierung!$C$43,0))))))","v":""},{"$f":"IF(Bewertung!BE12=\"\",\"\",IF(Bewertung!BE12=Faktorisierung!$A$40,Faktorisierung!$C$40,(IF(Bewertung!BE12=Faktorisierung!$A$41,Faktorisierung!$C$41,IF(Bewertung!BE12=Faktorisierung!$A$42,Faktorisierung!$C$42,IF(Bewertung!BE12=Faktorisierung!$A$43,Faktorisierung!$C$43,0))))))","v":""},{"$f":"IF(Bewertung!BF12=\"\",\"\",IF(Bewertung!BF12=Faktorisierung!$A$40,Faktorisierung!$C$40,(IF(Bewertung!BF12=Faktorisierung!$A$41,Faktorisierung!$C$41,IF(Bewertung!BF12=Faktorisierung!$A$42,Faktorisierung!$C$42,IF(Bewertung!BF12=Faktorisierung!$A$43,Faktorisierung!$C$43,0))))))","v":""},{"$f":"IF(Bewertung!BG12=\"\",\"\",IF(Bewertung!BG12=Faktorisierung!$A$40,Faktorisierung!$C$40,(IF(Bewertung!BG12=Faktorisierung!$A$41,Faktorisierung!$C$41,IF(Bewertung!BG12=Faktorisierung!$A$42,Faktorisierung!$C$42,IF(Bewertung!BG12=Faktorisierung!$A$43,Faktorisierung!$C$43,0))))))","v":""},{"$f":"IF(Bewertung!BH12=\"\",\"\",IF(Bewertung!BH12=Faktorisierung!$A$40,Faktorisierung!$C$40,(IF(Bewertung!BH12=Faktorisierung!$A$41,Faktorisierung!$C$41,IF(Bewertung!BH12=Faktorisierung!$A$42,Faktorisierung!$C$42,IF(Bewertung!BH12=Faktorisierung!$A$43,Faktorisierung!$C$43,0))))))","v":""},{"$f":"IF(Bewertung!BI12=\"\",\"\",IF(Bewertung!BI12=Faktorisierung!$A$40,Faktorisierung!$C$40,(IF(Bewertung!BI12=Faktorisierung!$A$41,Faktorisierung!$C$41,IF(Bewertung!BI12=Faktorisierung!$A$42,Faktorisierung!$C$42,IF(Bewertung!BI12=Faktorisierung!$A$43,Faktorisierung!$C$43,0))))))","v":""},{"$f":"IF(Bewertung!BJ12=\"\",\"\",IF(Bewertung!BJ12=Faktorisierung!$A$40,Faktorisierung!$C$40,(IF(Bewertung!BJ12=Faktorisierung!$A$41,Faktorisierung!$C$41,IF(Bewertung!BJ12=Faktorisierung!$A$42,Faktorisierung!$C$42,IF(Bewertung!BJ12=Faktorisierung!$A$43,Faktorisierung!$C$43,0))))))","v":""},{"$f":"IF(Bewertung!BK12=\"\",\"\",IF(Bewertung!BK12=Faktorisierung!$A$40,Faktorisierung!$C$40,(IF(Bewertung!BK12=Faktorisierung!$A$41,Faktorisierung!$C$41,IF(Bewertung!BK12=Faktorisierung!$A$42,Faktorisierung!$C$42,IF(Bewertung!BK12=Faktorisierung!$A$43,Faktorisierung!$C$43,0))))))","v":""},{"$f":"IF(Bewertung!BL12=\"\",\"\",IF(Bewertung!BL12=Faktorisierung!$A$40,Faktorisierung!$C$40,(IF(Bewertung!BL12=Faktorisierung!$A$41,Faktorisierung!$C$41,IF(Bewertung!BL12=Faktorisierung!$A$42,Faktorisierung!$C$42,IF(Bewertung!BL12=Faktorisierung!$A$43,Faktorisierung!$C$43,0))))))","v":""}]
[{"$nulls":3},"10. Anfahrtswege für die Besucher",{"$f":"IF(Bewertung!I13=\"\",\"\",IF(Bewertung!I13=Faktorisierung!$E$40,Faktorisierung!$G$40,(IF(Bewertung!I13=Faktorisierung!$E$41,Faktorisierung!$G$41,IF(Bewertung!I13=Faktorisierung!$E$42,Faktorisierung!$G$42,IF(Bewertung!I13=Faktorisierung!$E$43,Faktorisierung!$G$43,0))))))","v":0.5},{"$f":"IF(Bewertung!J13=\"\",\"\",IF(Bewertung!J13=Faktorisierung!$E$40,Faktorisierung!$G$40,(IF(Bewertung!J13=Faktorisierung!$E$41,Faktorisierung!$G$41,IF(Bewertung!J13=Faktorisierung!$E$42,Faktorisierung!$G$42,IF(Bewertung!J13=Faktorisierung!$E$43,Faktorisierung!$G$43,0))))))","v":""},{"$f":"IF(Bewertung!#REF!=\"\",\"\",IF(Bewertung!#REF!=Faktorisierung!$E$40,Faktorisierung!$G$40,(IF(Bewertung!#REF!=Faktorisierung!$E$41,Faktorisierung!$G$41,IF(Bewertung!#REF!=Faktorisierung!$E$42,Faktorisierung!$G$42,IF(Bewertung!#REF!=Faktorisierung!$E$43,Faktorisierung!$G$43,0))))))","v":{"$error":"#REF!"}},{"$f":"IF(Bewertung!#REF!=\"\",\"\",IF(Bewertung!#REF!=Faktorisierung!$E$40,Faktorisierung!$G$40,(IF(Bewertung!#REF!=Faktorisierung!$E$41,Faktorisierung!$G$41,IF(Bewertung!#REF!=Faktorisierung!$E$42,Faktorisierung!$G$42,IF(Bewertung!#REF!=Faktorisierung!$E$43,Faktorisierung!$G$43,0))))))","v":{"$error":"#REF!"}},{"$f":"IF(Bewertung!#REF!=\"\",\"\",IF(Bewertung!#REF!=Faktorisierung!$E$40,Faktorisierung!$G$40,(IF(Bewertung!#REF!=Faktorisierung!$E$41,Faktorisierung!$G$41,IF(Bewertung!#REF!=Faktorisierung!$E$42,Faktorisierung!$G$42,IF(Bewertung!#REF!=Faktorisierung!$E$43,Faktorisierung!$G$43,0))))))","v":{"$error":"#REF!"}},{"$f":"IF(Bewertung!#REF!=\"\",\"\",IF(Bewertung!#REF!=Faktorisierung!$E$40,Faktorisierung!$G$40,(IF(Bewertung!#REF!=Faktorisierung!$E$41,Faktorisierung!$G$41,IF(Bewertung!#REF!=Faktorisierung!$E$42,Faktorisierung!$G$42,IF(Bewertung!#REF!=Faktorisierung!$E$43,Faktorisierung!$G$43,0))))))","v":{"$error":"#REF!"}},{"$f":"IF(Bewertung!#REF!=\"\",\"\",IF(Bewertung!#REF!=Faktorisierung!$E$40,Faktorisierung!$G$40,(IF(Bewertung!#REF!=Faktorisierung!$E$41,Faktorisierung!$G$41,IF(Bewertung!#REF!=Faktorisierung!$E$42,Faktorisierung!$G$42,IF(Bewertung!#REF!=Faktorisierung!$E$43,Faktorisierung!$G$43,0))))))","v":{"$error":"#REF!"}},{"$f":"IF(Bewertung!#REF!=\"\",\"\",IF(Bewertung!#REF!=Faktorisierung!$E$40,Faktorisierung!$G$40,(IF(Bewertung!#REF!=Faktorisierung!$E$41,Faktorisierung!$G$41,IF(Bewertung!#REF!=Faktorisierung!$E$42,Faktorisierung!$G$42,IF(Bewertung!#REF!=Faktorisierung!$E$43,Faktorisierung!$G$43,0))))))","v":{"$error":"#REF!"}},{"$f":"IF(Bewertung!K13=\"\",\"\",IF(Bewertung!K13=Faktorisierung!$E$40,Faktorisierung!$G$40,(IF(Bewertung!K13=Faktorisierung!$E$41,Faktorisierung!$G$41,IF(Bewertung!K13=Faktorisierung!$E$42,Faktorisierung!$G$42,IF(Bewertung!K13=Faktorisierung!$E$43,Faktorisierung!$G$43,0))))))","v":""},{"$f":"IF(Bewertung!L13=\"\",\"\",IF(Bewertung!L13=Faktorisierung!$E$40,Faktorisierung!$G$40,(IF(Bewertung!L13=Faktorisierung!$E$41,Faktorisierung!$G$41,IF(Bewertung!L13=Faktorisierung!$E$42,Faktorisierung!$G$42,IF(Bewertung!L13=Faktorisierung!$E$43,Faktorisierung!$G$43,0))))))","v":""},{"$f":"IF(Bewertung!M13=\"\",\"\",IF(Bewertung!M13=Faktorisierung!$E$40,Faktorisierung!$G$40,(IF(Bewertung!M13=Faktorisierung!$E$41,Faktorisierung!$G$41,IF(Bewertung!M13=Faktorisierung!$E$42,Faktorisierung!$G$42,IF(Bewertung!M13=Faktorisierung!$E$43,Faktorisierung!$G$43,0))))))","v":""},{"$f":"IF(Bewertung!N13=\"\",\"\",IF(Bewertung!N13=Faktorisierung!$E$40,Faktorisierung!$G$40,(IF(Bewertung!N13=Faktorisierung!$E$41,Faktorisierung!$G$41,IF(Bewertung!N13=Faktorisierung!$E$42,Faktorisierung!$G$42,IF(Bewertung!N13=Faktorisierung!$E$43,Faktorisierung!$G$43,0))))))","v":""},{"$f":"IF(Bewertung!O13=\"\",\"\",IF(Bewertung!O13=Faktorisierung!$E$40,Faktorisierung!$G$40,(IF(Bewertung!O13=Faktorisierung!$E$41,Faktorisierung!$G$41,IF(Bewertung!O13=Faktorisierung!$E$42,Faktorisierung!$G$42,IF(Bewertung!O13=Faktorisierung!$E$43,Faktorisierung!$G$43,0))))))","v":""},{"$f":"IF(Bewertung!P13=\"\",\"\",IF(Bewertung!P13=Faktorisierung!$E$40,Faktorisierung!$G$40,(IF(Bewertung!P13=Faktorisierung!$E$41,Faktorisierung!$G$41,IF(Bewertung!P13=Faktorisierung!$E$42,Faktorisierung!$G$42,IF(Bewertung!P13=Faktorisierung!$E$43,Faktorisierung!$G$43,0))))))","v":""},{"$f":"IF(Bewertung!Q13=\"\",\"\",IF(Bewertung!Q13=Faktorisierung!$E$40,Faktorisierung!$G$40,(IF(Bewertung!Q13=Faktorisierung!$E$41,Faktorisierung!$G$41,IF(Bewertung!Q13=Faktorisierung!$E$42,Faktorisierung!$G$42,IF(Bewertung!Q13=Faktorisierung!$E$43,Faktorisierung!$G$43,0))))))","v":""},{"$f":"IF(Bewertung!R13=\"\",\"\",IF(Bewertung!R13=Faktorisierung!$E$40,Faktorisierung!$G$40,(IF(Bewertung!R13=Faktorisierung!$E$41,Faktorisierung!$G$41,IF(Bewertung!R13=Faktorisierung!$E$42,Faktorisierung!$G$42,IF(Bewertung!R13=Faktorisierung!$E$43,Faktorisierung!$G$43,0))))))","v":""},{"$f":"IF(Bewertung!S13=\"\",\"\",IF(Bewertung!S13=Faktorisierung!$E$40,Faktorisierung!$G$40,(IF(Bewertung!S13=Faktorisierung!$E$41,Faktorisierung!$G$41,IF(Bewertung!S13=Faktorisierung!$E$42,Faktorisierung!$G$42,IF(Bewertung!S13=Faktorisierung!$E$43,Faktorisierung!$G$43,0))))))","v":""},{"$f":"IF(Bewertung!T13=\"\",\"\",IF(Bewertung!T13=Faktorisierung!$E$40,Faktorisierung!$G$40,(IF(Bewertung!T13=Faktorisierung!$E$41,Faktorisierung!$G$41,IF(Bewertung!T13=Faktorisierung!$E$42,Faktorisierung!$G$42,IF(Bewertung!T13=Faktorisierung!$E$43,Faktorisierung!$G$43,0))))))","v":""},{"$f":"IF(Bewertung!U13=\"\",\"\",IF(Bewertung!U13=Faktorisierung!$E$40,Faktorisierung!$G$40,(IF(Bewertung!U13=Faktorisierung!$E$41,Faktorisierung!$G$41,IF(Bewertung!U13=Faktorisierung!$E$42,Faktorisierung!$G$42,IF(Bewertung!U13=Faktorisierung!$E$43,Faktorisierung!$G$43,0))))))","v":""},{"$f":"IF(Bewertung!V13=\"\",\"\",IF(Bewertung!V13=Faktorisierung!$E$40,Faktorisierung!$G$40,(IF(Bewertung!V13=Faktorisierung!$E$41,Faktorisierung!$G$41,IF(Bewertung!V13=Faktorisierung!$E$42,Faktorisierung!$G$42,IF(Bewertung!V13=Faktorisierung!$E$43,Faktorisierung!$G$43,0))))))","v":""},{"$f":"IF(Bewertung!W13=\"\",\"\",IF(Bewertung!W13=Faktorisierung!$E$40,Faktorisierung!$G$40,(IF(Bewertung!W13=Faktorisierung!$E$41,Faktorisierung!$G$41,IF(Bewertung!W13=Faktorisierung!$E$42,Faktorisierung!$G$42,IF(Bewertung!W13=Faktorisierung!$E$43,Faktorisierung!$G$43,0))))))","v":""},{"$f":"IF(Bewertung!X13=\"\",\"\",IF(Bewertung!X13=Faktorisierung!$E$40,Faktorisierung!$G$40,(IF(Bewertung!X13=Faktorisierung!$E$41,Faktorisierung!$G$41,IF(Bewertung!X13=Faktorisierung!$E$42,Faktorisierung!$G$42,IF(Bewertung!X13=Faktorisierung!$E$43,Faktorisierung!$G$43,0))))))","v":""},{"$f":"IF(Bewertung!Y13=\"\",\"\",IF(Bewertung!Y13=Faktorisierung!$E$40,Faktorisierung!$G$40,(IF(Bewertung!Y13=Faktorisierung!$E$41,Faktorisierung!$G$41,IF(Bewertung!Y13=Faktorisierung!$E$42,Faktorisierung!$G$42,IF(Bewertung!Y13=Faktorisierung!$E$43,Faktorisierung!$G$43,0))))))","v":""},{"$f":"IF(Bewertung!Z13=\"\",\"\",IF(Bewertung!Z13=Faktorisierung!$E$40,Faktorisierung!$G$40,(IF(Bewertung!Z13=Faktorisierung!$E$41,Faktorisierung!$G$41,IF(Bewertung!Z13=Faktorisierung!$E$42,Faktorisierung!$G$42,IF(Bewertung!Z13=Faktorisierung!$E$43,Faktorisierung!$G$43,0))))))","v":""},{"$f":"IF(Bewertung!AA13=\"\",\"\",IF(Bewertung!AA13=Faktorisierung!$E$40,Faktorisierung!$G$40,(IF(Bewertung!AA13=Faktorisierung!$E$41,Faktorisierung!$G$41,IF(Bewertung!AA13=Faktorisierung!$E$42,Faktorisierung!$G$42,IF(Bewertung!AA13=Faktorisierung!$E$43,Faktorisierung!$G$43,0))))))","v":""},{"$f":"IF(Bewertung!AB13=\"\",\"\",IF(Bewertung!AB13=Faktorisierung!$E$40,Faktorisierung!$G$40,(IF(Bewertung!AB13=Faktorisierung!$E$41,Faktorisierung!$G$41,IF(Bewertung!AB13=Faktorisierung!$E$42,Faktorisierung!$G$42,IF(Bewertung!AB13=Faktorisierung!$E$43,Faktorisierung!$G$43,0))))))","v":""},{"$f":"IF(Bewertung!AC13=\"\",\"\",IF(Bewertung!AC13=Faktorisierung!$E$40,Faktorisierung!$G$40,(IF(Bewertung!AC13=Faktorisierung!$E$41,Faktorisierung!$G$41,IF(Bewertung!AC13=Faktorisierung!$E$42,Faktorisierung!$G$42,IF(Bewertung!AC13=Faktorisierung!$E$43,Faktorisierung!$G$43,0))))))","v":""},{"$f":"IF(Bewertung!AD13=\"\",\"\",IF(Bewertung!AD13=Faktorisierung!$E$40,Faktorisierung!$G$40,(IF(Bewertung!AD13=Faktorisierung!$E$41,Faktorisierung!$G$41,IF(Bewertung!AD13=Faktorisierung!$E$42,Faktorisierung!$G$42,IF(Bewertung!AD13=Faktorisierung!$E$43,Faktorisierung!$G$43,0))))))","v":""},{"$f":"IF(Bewertung!AE13=\"\",\"\",IF(Bewertung!AE13=Faktorisierung!$E$40,Faktorisierung!$G$40,(IF(Bewertung!AE13=Faktorisierung!$E$41,Faktorisierung!$G$41,IF(Bewertung!AE13=Faktorisierung!$E$42,Faktorisierung!$G$42,IF(Bewertung!AE13=Faktorisierung!$E$43,Faktorisierung!$G$43,0))))))","v":""},{"$f":"IF(Bewertung!AF13=\"\",\"\",IF(Bewertung!AF13=Faktorisierung!$E$40,Faktorisierung!$G$40,(IF(Bewertung!AF13=Faktorisierung!$E$41,Faktorisierung!$G$41,IF(Bewertung!AF13=Faktorisierung!$E$42,Faktorisierung!$G$42,IF(Bewertung!AF13=Faktorisierung!$E$43,Faktorisierung!$G$43,0))))))","v":""},{"$f":"IF(Bewertung!AG13=\"\",\"\",IF(Bewertung!AG13=Faktorisierung!$E$40,Faktorisierung!$G$40,(IF(Bewertung!AG13=Faktorisierung!$E$41,Faktorisierung!$G$41,IF(Bewertung!AG13=Faktorisierung!$E$42,Faktorisierung!$G$42,IF(Bewertung!AG13=Faktorisierung!$E$43,Faktorisierung!$G$43,0))))))","v":""},{"$f":"IF(Bewertung!AH13=\"\",\"\",IF(Bewertung!AH13=Faktorisierung!$E$40,Faktorisierung!$G$40,(IF(Bewertung!AH13=Faktorisierung!$E$41,Faktorisierung!$G$41,IF(Bewertung!AH13=Faktorisierung!$E$42,Faktorisierung!$G$42,IF(Bewertung!AH13=Faktorisierung!$E$43,Faktorisierung!$G$43,0))))))","v":""},{"$f":"IF(Bewertung!AI13=\"\",\"\",IF(Bewertung!AI13=Faktorisierung!$E$40,Faktorisierung!$G$40,(IF(Bewertung!AI13=Faktorisierung!$E$41,Faktorisierung!$G$41,IF(Bewertung!AI13=Faktorisierung!$E$42,Faktorisierung!$G$42,IF(Bewertung!AI13=Faktorisierung!$E$43,Faktorisierung!$G$43,0))))))","v":""},{"$f":"IF(Bewertung!AJ13=\"\",\"\",IF(Bewertung!AJ13=Faktorisierung!$E$40,Faktorisierung!$G$40,(IF(Bewertung!AJ13=Faktorisierung!$E$41,Faktorisierung!$G$41,IF(Bewertung!AJ13=Faktorisierung!$E$42,Faktorisierung!$G$42,IF(Bewertung!AJ13=Faktorisierung!$E$43,Faktorisierung!$G$43,0))))))","v":""},{"$f":"IF(Bewertung!AK13=\"\",\"\",IF(Bewertung!AK13=Faktorisierung!$E$40,Faktorisierung!$G$40,(IF(Bewertung!AK13=Faktorisierung!$E$41,Faktorisierung!$G$41,IF(Bewertung!AK13=Faktorisierung!$E$42,Faktorisierung!$G$42,IF(Bewertung!AK13=Faktorisierung!$E$43,Faktorisierung!$G$43,0))))))","v":""},{"$f":"IF(Bewertung!AL13=\"\",\"\",IF(Bewertung!AL13=Faktorisierung!$E$40,Faktorisierung!$G$40,(IF(Bewertung!AL13=Faktorisierung!$E$41,Faktorisierung!$G$41,IF(Bewertung!AL13=Faktorisierung!$E$42,Faktorisierung!$G$42,IF(Bewertung!AL13=Faktorisierung!$E$43,Faktorisierung!$G$43,0))))))","v":""},{"$f":"IF(Bewertung!AM13=\"\",\"\",IF(Bewertung!AM13=Faktorisierung!$E$40,Faktorisierung!$G$40,(IF(Bewertung!AM13=Faktorisierung!$E$41,Faktorisierung!$G$41,IF(Bewertung!AM13=Faktorisierung!$E$42,Faktorisierung!$G$42,IF(Bewertung!AM13=Faktorisierung!$E$43,Faktorisierung!$G$43,0))))))","v":""},{"$f":"IF(Bewertung!AN13=\"\",\"\",IF(Bewertung!AN13=Faktorisierung!$E$40,Faktorisierung!$G$40,(IF(Bewertung!AN13=Faktorisierung!$E$41,Faktorisierung!$G$41,IF(Bewertung!AN13=Faktorisierung!$E$42,Faktorisierung!$G$42,IF(Bewertung!AN13=Faktorisierung!$E$43,Faktorisierung!$G$43,0))))))","v":""},{"$f":"IF(Bewertung!AO13=\"\",\"\",IF(Bewertung!AO13=Faktorisierung!$E$40,Faktorisierung!$G$40,(IF(Bewertung!AO13=Faktorisierung!$E$41,Faktorisierung!$G$41,IF(Bewertung!AO13=Faktorisierung!$E$42,Faktorisierung!$G$42,IF(Bewertung!AO13=Faktorisierung!$E$43,Faktorisierung!$G$43,0))))))","v":""},{"$f":"IF(Bewertung!AP13=\"\",\"\",IF(Bewertung!AP13=Faktorisierung!$E$40,Faktorisierung!$G$40,(IF(Bewertung!AP13=Faktorisierung!$E$41,Faktorisierung!$G$41,IF(Bewertung!AP13=Faktorisierung!$E$42,Faktorisierung!$G$42,IF(Bewertung!AP13=Faktorisierung!$E$43,Faktorisierung!$G$43,0))))))","v":""},{"$f":"IF(Bewertung!AQ13=\"\",\"\",IF(Bewertung!AQ13=Faktorisierung!$E$40,Faktorisierung!$G$40,(IF(Bewertung!AQ13=Faktorisierung!$E$41,Faktorisierung!$G$41,IF(Bewertung!AQ13=Faktorisierung!$E$42,Faktorisierung!$G$42,IF(Bewertung!AQ13=Faktorisierung!$E$43,Faktorisierung!$G$43,0))))))","v":""},{"$f":"IF(Bewertung!AR13=\"\",\"\",IF(Bewertung!AR13=Faktorisierung!$E$40,Faktorisierung!$G$40,(IF(Bewertung!AR13=Faktorisierung!$E$41,Faktorisierung!$G$41,IF(Bewertung!AR13=Faktorisierung!$E$42,Faktorisierung!$G$42,IF(Bewertung!AR13=Faktorisierung!$E$43,Faktorisierung!$G$43,0))))))","v":""},{"$f":"IF(Bewertung!AS13=\"\",\"\",IF(Bewertung!AS13=Faktorisierung!$E$40,Faktorisierung!$G$40,(IF(Bewertung!AS13=Faktorisierung!$E$41,Faktorisierung!$G$41,IF(Bewertung!AS13=Faktorisierung!$E$42,Faktorisierung!$G$42,IF(Bewertung!AS13=Faktorisierung!$E$43,Faktorisierung!$G$43,0))))))","v":""},{"$f":"IF(Bewertung!AT13=\"\",\"\",IF(Bewertung!AT13=Faktorisierung!$E$40,Faktorisierung!$G$40,(IF(Bewertung!AT13=Faktorisierung!$E$41,Faktorisierung!$G$41,IF(Bewertung!AT13=Faktorisierung!$E$42,Faktorisierung!$G$42,IF(Bewertung!AT13=Faktorisierung!$E$43,Faktorisierung!$G$43,0))))))","v":""},{"$f":"IF(Bewertung!AU13=\"\",\"\",IF(Bewertung!AU13=Faktorisierung!$E$40,Faktorisierung!$G$40,(IF(Bewertung!AU13=Faktorisierung!$E$41,Faktorisierung!$G$41,IF(Bewertung!AU13=Faktorisierung!$E$42,Faktorisierung!$G$42,IF(Bewertung!AU13=Faktorisierung!$E$43,Faktorisierung!$G$43,0))))))","v":""},{"$f":"IF(Bewertung!AV13=\"\",\"\",IF(Bewertung!AV13=Faktorisierung!$E$40,Faktorisierung!$G$40,(IF(Bewertung!AV13=Faktorisierung!$E$41,Faktorisierung!$G$41,IF(Bewertung!AV13=Faktorisierung!$E$42,Faktorisierung!$G$42,IF(Bewertung!AV13=Faktorisierung!$E$43,Faktorisierung!$G$43,0))))))","v":""},{"$f":"IF(Bewertung!AW13=\"\",\"\",IF(Bewertung!AW13=Faktorisierung!$E$40,Faktorisierung!$G$40,(IF(Bewertung!AW13=Faktorisierung!$E$41,Faktorisierung!$G$41,IF(Bewertung!AW13=Faktorisierung!$E$42,Faktorisierung!$G$42,IF(Bewertung!AW13=Faktorisierung!$E$43,Faktorisierung!$G$43,0))))))","v":""},{"$f":"IF(Bewertung!AX13=\"\",\"\",IF(Bewertung!AX13=Faktorisierung!$E$40,Faktorisierung!$G$40,(IF(Bewertung!AX13=Faktorisierung!$E$41,Faktorisierung!$G$41,IF(Bewertung!AX13=Faktorisierung!$E$42,Faktorisierung!$G$42,IF(Bewertung!AX13=Faktorisierung!$E$43,Faktorisierung!$G$43,0))))))","v":""},{"$f":"IF(Bewertung!AY13=\"\",\"\",IF(Bewertung!AY13=Faktorisierung!$E$40,Faktorisierung!$G$40,(IF(Bewertung!AY13=Faktorisierung!$E$41,Faktorisierung!$G$41,IF(Bewertung!AY13=Faktorisierung!$E$42,Faktorisierung!$G$42,IF(Bewertung!AY13=Faktorisierung!$E$43,Faktorisierung!$G$43,0))))))","v":""},{"$f":"IF(Bewertung!AZ13=\"\",\"\",IF(Bewertung!AZ13=Faktorisierung!$E$40,Faktorisierung!$G$40,(IF(Bewertung!AZ13=Faktorisierung!$E$41,Faktorisierung!$G$41,IF(Bewertung!AZ13=Faktorisierung!$E$42,Faktorisierung!$G$42,IF(Bewertung!AZ13=Faktorisierung!$E$43,Faktorisierung!$G$43,0))))))","v":""},{"$f":"IF(Bewertung!BA13=\"\",\"\",IF(Bewertung!BA13=Faktorisierung!$E$40,Faktorisierung!$G$40,(IF(Bewertung!BA13=Faktorisierung!$E$41,Faktorisierung!$G$41,IF(Bewertung!BA13=Faktorisierung!$E$42,Faktorisierung!$G$42,IF(Bewertung!BA13=Faktorisierung!$E$43,Faktorisierung!$G$43,0))))))","v":""},{"$f":"IF(Bewertung!BB13=\"\",\"\",IF(Bewertung!BB13=Faktorisierung!$E$40,Faktorisierung!$G$40,(IF(Bewertung!BB13=Faktorisierung!$E$41,Faktorisierung!$G$41,IF(Bewertung!BB13=Faktorisierung!$E$42,Faktorisierung!$G$42,IF(Bewertung!BB13=Faktorisierung!$E$43,Faktorisierung!$G$43,0))))))","v":""},{"$f":"IF(Bewertung!BC13=\"\",\"\",IF(Bewertung!BC13=Faktorisierung!$E$40,Faktorisierung!$G$40,(IF(Bewertung!BC13=Faktorisierung!$E$41,Faktorisierung!$G$41,IF(Bewertung!BC13=Faktorisierung!$E$42,Faktorisierung!$G$42,IF(Bewertung!BC13=Faktorisierung!$E$43,Faktorisierung!$G$43,0))))))","v":""},{"$f":"IF(Bewertung!BD13=\"\",\"\",IF(Bewertung!BD13=Faktorisierung!$E$40,Faktorisierung!$G$40,(IF(Bewertung!BD13=Faktorisierung!$E$41,Faktorisierung!$G$41,IF(Bewertung!BD13=Faktorisierung!$E$42,Faktorisierung!$G$42,IF(Bewertung!BD13=Faktorisierung!$E$43,Faktorisierung!$G$43,0))))))","v":""},{"$f":"IF(Bewertung!BE13=\"\",\"\",IF(Bewertung!BE13=Faktorisierung!$E$40,Faktorisierung!$G$40,(IF(Bewertung!BE13=Faktorisierung!$E$41,Faktorisierung!$G$41,IF(Bewertung!BE13=Faktorisierung!$E$42,Faktorisierung!$G$42,IF(Bewertung!BE13=Faktorisierung!$E$43,Faktorisierung!$G$43,0))))))","v":""},{"$f":"IF(Bewertung!BF13=\"\",\"\",IF(Bewertung!BF13=Faktorisierung!$E$40,Faktorisierung!$G$40,(IF(Bewertung!BF13=Faktorisierung!$E$41,Faktorisierung!$G$41,IF(Bewertung!BF13=Faktorisierung!$E$42,Faktorisierung!$G$42,IF(Bewertung!BF13=Faktorisierung!$E$43,Faktorisierung!$G$43,0))))))","v":""},{"$f":"IF(Bewertung!BG13=\"\",\"\",IF(Bewertung!BG13=Faktorisierung!$E$40,Faktorisierung!$G$40,(IF(Bewertung!BG13=Faktorisierung!$E$41,Faktorisierung!$G$41,IF(Bewertung!BG13=Faktorisierung!$E$42,Faktorisierung!$G$42,IF(Bewertung!BG13=Faktorisierung!$E$43,Faktorisierung!$G$43,0))))))","v":""},{"$f":"IF(Bewertung!BH13=\"\",\"\",IF(Bewertung!BH13=Faktorisierung!$E$40,Faktorisierung!$G$40,(IF(Bewertung!BH13=Faktorisierung!$E$41,Faktorisierung!$G$41,IF(Bewertung!BH13=Faktorisierung!$E$42,Faktorisierung!$G$42,IF(Bewertung!BH13=Faktorisierung!$E$43,Faktorisierung!$G$43,0))))))","v":""},{"$f":"IF(Bewertung!BI13=\"\",\"\",IF(Bewertung!BI13=Faktorisierung!$E$40,Faktorisierung!$G$40,(IF(Bewertung!BI13=Faktorisierung!$E$41,Faktorisierung!$G$41,IF(Bewertung!BI13=Faktorisierung!$E$42,Faktorisierung!$G$42,IF(Bewertung!BI13=Faktorisierung!$E$43,Faktorisierung!$G$43,0))))))","v":""},{"$f":"IF(Bewertung!BJ13=\"\",\"\",IF(Bewertung!BJ13=Faktorisierung!$E$40,Faktorisierung!$G$40,(IF(Bewertung!BJ13=Faktorisierung!$E$41,Faktorisierung!$G$41,IF(Bewertung!BJ13=Faktorisierung!$E$42,Faktorisierung!$G$42,IF(Bewertung!BJ13=Faktorisierung!$E$43,Faktorisierung!$G$43,0))))))","v":""},{"$f":"IF(Bewertung!BK13=\"\",\"\",IF(Bewertung!BK13=Faktorisierung!$E$40,Faktorisierung!$G$40,(IF(Bewertung!BK13=Faktorisierung!$E$41,Faktorisierung!$G$41,IF(Bewertung!BK13=Faktorisierung!$E$42,Faktorisierung!$G$42,IF(Bewertung!BK13=Faktorisierung!$E$43,Faktorisierung!$G$43,0))))))","v":""},{"$f":"IF(Bewertung!BL13=\"\",\"\",IF(Bewertung!BL13=Faktorisierung!$E$40,Faktorisierung!$G$40,(IF(Bewertung!BL13=Faktorisierung!$E$41,Faktorisierung!$G$41,IF(Bewertung!BL13=Faktorisierung!$E$42,Faktorisierung!$G$42,IF(Bewertung!BL13=Faktorisierung!$E$43,Faktorisierung!$G$43,0))))))","v":""}]
[{"$nulls":3},"11a) Orientierung/Einschränkung für Besucher/ Besucherströme",{"$f":"IF(Bewertung!I14=\"\",\"\",IF(Bewertung!I14=Faktorisierung!$A$48,Faktorisierung!$C$48,(IF(Bewertung!I14=Faktorisierung!$A$49,Faktorisierung!$C$49,IF(Bewertung!I14=Faktorisierung!$A$50,Faktorisierung!$C$50,IF(Bewertung!I14=Faktorisierung!$A$51,Faktorisierung!$C$51,0))))))","v":0.5},{"$f":"IF(Bewertung!J14=\"\",\"\",IF(Bewertung!J14=Faktorisierung!$A$48,Faktorisierung!$C$48,(IF(Bewertung!J14=Faktorisierung!$A$49,Faktorisierung!$C$49,IF(Bewertung!J14=Faktorisierung!$A$50,Faktorisierung!$C$50,IF(Bewertung!J14=Faktorisierung!$A$51,Faktorisierung!$C$51,0))))))","v":""},{"$f":"IF(Bewertung!#REF!=\"\",\"\",IF(Bewertung!#REF!=Faktorisierung!$A$48,Faktorisierung!$C$48,(IF(Bewertung!#REF!=Faktorisierung!$A$49,Faktorisierung!$C$49,IF(Bewertung!#REF!=Faktorisierung!$A$50,Faktorisierung!$C$50,IF(Bewertung!#REF!=Faktorisierung!$A$51,Faktorisierung!$C$51,0))))))","v":{"$error":"#REF!"}},{"$f":"IF(Bewertung!#REF!=\"\",\"\",IF(Bewertung!#REF!=Faktorisierung!$A$48,Faktorisierung!$C$48,(IF(Bewertung!#REF!=Faktorisierung!$A$49,Faktorisierung!$C$49,IF(Bewertung!#REF!=Faktorisierung!$A$50,Faktorisierung!$C$50,IF(Bewertung!#REF!=Faktorisierung!$A$51,Faktorisierung!$C$51,0))))))","v":{"$error":"#REF!"}},{"$f":"IF(Bewertung!#REF!=\"\",\"\",IF(Bewertung!#REF!=Faktorisierung!$A$48,Faktorisierung!$C$48,(IF(Bewertung!#REF!=Faktorisierung!$A$49,Faktorisierung!$C$49,IF(Bewertung!#REF!=Faktorisierung!$A$50,Faktorisierung!$C$50,IF(Bewertung!#REF!=Faktorisierung!$A$51,Faktorisierung!$C$51,0))))))","v":{"$error":"#REF!"}},{"$f":"IF(Bewertung!#REF!=\"\",\"\",IF(Bewertung!#REF!=Faktorisierung!$A$48,Faktorisierung!$C$48,(IF(Bewertung!#REF!=Faktorisierung!$A$49,Faktorisierung!$C$49,IF(Bewertung!#REF!=Faktorisierung!$A$50,Faktorisierung!$C$50,IF(Bewertung!#REF!=Faktorisierung!$A$51,Faktorisierung!$C$51,0))))))","v":{"$error":"#REF!"}},{"$f":"IF(Bewertung!#REF!=\"\",\"\",IF(Bewertung!#REF!=Faktorisierung!$A$48,Faktorisierung!$C$48,(IF(Bewertung!#REF!=Faktorisierung!$A$49,Faktorisierung!$C$49,IF(Bewertung!#REF!=Faktorisierung!$A$50,Faktorisierung!$C$50,IF(Bewertung!#REF!=Faktorisierung!$A$51,Faktorisierung!$C$51,0))))))","v":{"$error":"#REF!"}},{"$f":"IF(Bewertung!#REF!=\"\",\"\",IF(Bewertung!#REF!=Faktorisierung!$A$48,Faktorisierung!$C$48,(IF(Bewertung!#REF!=Faktorisierung!$A$49,Faktorisierung!$C$49,IF(Bewertung!#REF!=Faktorisierung!$A$50,Faktorisierung!$C$50,IF(Bewertung!#REF!=Faktorisierung!$A$51,Faktorisierung!$C$51,0))))))","v":{"$error":"#REF!"}},{"$f":"IF(Bewertung!K14=\"\",\"\",IF(Bewertung!K14=Faktorisierung!$A$48,Faktorisierung!$C$48,(IF(Bewertung!K14=Faktorisierung!$A$49,Faktorisierung!$C$49,IF(Bewertung!K14=Faktorisierung!$A$50,Faktorisierung!$C$50,IF(Bewertung!K14=Faktorisierung!$A$51,Faktorisierung!$C$51,0))))))","v":""},{"$f":"IF(Bewertung!L14=\"\",\"\",IF(Bewertung!L14=Faktorisierung!$A$48,Faktorisierung!$C$48,(IF(Bewertung!L14=Faktorisierung!$A$49,Faktorisierung!$C$49,IF(Bewertung!L14=Faktorisierung!$A$50,Faktorisierung!$C$50,IF(Bewertung!L14=Faktorisierung!$A$51,Faktorisierung!$C$51,0))))))","v":""},{"$f":"IF(Bewertung!M14=\"\",\"\",IF(Bewertung!M14=Faktorisierung!$A$48,Faktorisierung!$C$48,(IF(Bewertung!M14=Faktorisierung!$A$49,Faktorisierung!$C$49,IF(Bewertung!M14=Faktorisierung!$A$50,Faktorisierung!$C$50,IF(Bewertung!M14=Faktorisierung!$A$51,Faktorisierung!$C$51,0))))))","v":""},{"$f":"IF(Bewertung!N14=\"\",\"\",IF(Bewertung!N14=Faktorisierung!$A$48,Faktorisierung!$C$48,(IF(Bewertung!N14=Faktorisierung!$A$49,Faktorisierung!$C$49,IF(Bewertung!N14=Faktorisierung!$A$50,Faktorisierung!$C$50,IF(Bewertung!N14=Faktorisierung!$A$51,Faktorisierung!$C$51,0))))))","v":""},{"$f":"IF(Bewertung!O14=\"\",\"\",IF(Bewertung!O14=Faktorisierung!$A$48,Faktorisierung!$C$48,(IF(Bewertung!O14=Faktorisierung!$A$49,Faktorisierung!$C$49,IF(Bewertung!O14=Faktorisierung!$A$50,Faktorisierung!$C$50,IF(Bewertung!O14=Faktorisierung!$A$51,Faktorisierung!$C$51,0))))))","v":""},{"$f":"IF(Bewertung!P14=\"\",\"\",IF(Bewertung!P14=Faktorisierung!$A$48,Faktorisierung!$C$48,(IF(Bewertung!P14=Faktorisierung!$A$49,Faktorisierung!$C$49,IF(Bewertung!P14=Faktorisierung!$A$50,Faktorisierung!$C$50,IF(Bewertung!P14=Faktorisierung!$A$51,Faktorisierung!$C$51,0))))))","v":""},{"$f":"IF(Bewertung!Q14=\"\",\"\",IF(Bewertung!Q14=Faktorisierung!$A$48,Faktorisierung!$C$48,(IF(Bewertung!Q14=Faktorisierung!$A$49,Faktorisierung!$C$49,IF(Bewertung!Q14=Faktorisierung!$A$50,Faktorisierung!$C$50,IF(Bewertung!Q14=Faktorisierung!$A$51,Faktorisierung!$C$51,0))))))","v":""},{"$f":"IF(Bewertung!R14=\"\",\"\",IF(Bewertung!R14=Faktorisierung!$A$48,Faktorisierung!$C$48,(IF(Bewertung!R14=Faktorisierung!$A$49,Faktorisierung!$C$49,IF(Bewertung!R14=Faktorisierung!$A$50,Faktorisierung!$C$50,IF(Bewertung!R14=Faktorisierung!$A$51,Faktorisierung!$C$51,0))))))","v":""},{"$f":"IF(Bewertung!S14=\"\",\"\",IF(Bewertung!S14=Faktorisierung!$A$48,Faktorisierung!$C$48,(IF(Bewertung!S14=Faktorisierung!$A$49,Faktorisierung!$C$49,IF(Bewertung!S14=Faktorisierung!$A$50,Faktorisierung!$C$50,IF(Bewertung!S14=Faktorisierung!$A$51,Faktorisierung!$C$51,0))))))","v":""},{"$f":"IF(Bewertung!T14=\"\",\"\",IF(Bewertung!T14=Faktorisierung!$A$48,Faktorisierung!$C$48,(IF(Bewertung!T14=Faktorisierung!$A$49,Faktorisierung!$C$49,IF(Bewertung!T14=Faktorisierung!$A$50,Faktorisierung!$C$50,IF(Bewertung!T14=Faktorisierung!$A$51,Faktorisierung!$C$51,0))))))","v":""},{"$f":"IF(Bewertung!U14=\"\",\"\",IF(Bewertung!U14=Faktorisierung!$A$48,Faktorisierung!$C$48,(IF(Bewertung!U14=Faktorisierung!$A$49,Faktorisierung!$C$49,IF(Bewertung!U14=Faktorisierung!$A$50,Faktorisierung!$C$50,IF(Bewertung!U14=Faktorisierung!$A$51,Faktorisierung!$C$51,0))))))","v":""},{"$f":"IF(Bewertung!V14=\"\",\"\",IF(Bewertung!V14=Faktorisierung!$A$48,Faktorisierung!$C$48,(IF(Bewertung!V14=Faktorisierung!$A$49,Faktorisierung!$C$49,IF(Bewertung!V14=Faktorisierung!$A$50,Faktorisierung!$C$50,IF(Bewertung!V14=Faktorisierung!$A$51,Faktorisierung!$C$51,0))))))","v":""},{"$f":"IF(Bewertung!W14=\"\",\"\",IF(Bewertung!W14=Faktorisierung!$A$48,Faktorisierung!$C$48,(IF(Bewertung!W14=Faktorisierung!$A$49,Faktorisierung!$C$49,IF(Bewertung!W14=Faktorisierung!$A$50,Faktorisierung!$C$50,IF(Bewertung!W14=Faktorisierung!$A$51,Faktorisierung!$C$51,0))))))","v":""},{"$f":"IF(Bewertung!X14=\"\",\"\",IF(Bewertung!X14=Faktorisierung!$A$48,Faktorisierung!$C$48,(IF(Bewertung!X14=Faktorisierung!$A$49,Faktorisierung!$C$49,IF(Bewertung!X14=Faktorisierung!$A$50,Faktorisierung!$C$50,IF(Bewertung!X14=Faktorisierung!$A$51,Faktorisierung!$C$51,0))))))","v":""},{"$f":"IF(Bewertung!Y14=\"\",\"\",IF(Bewertung!Y14=Faktorisierung!$A$48,Faktorisierung!$C$48,(IF(Bewertung!Y14=Faktorisierung!$A$49,Faktorisierung!$C$49,IF(Bewertung!Y14=Faktorisierung!$A$50,Faktorisierung!$C$50,IF(Bewertung!Y14=Faktorisierung!$A$51,Faktorisierung!$C$51,0))))))","v":""},{"$f":"IF(Bewertung!Z14=\"\",\"\",IF(Bewertung!Z14=Faktorisierung!$A$48,Faktorisierung!$C$48,(IF(Bewertung!Z14=Faktorisierung!$A$49,Faktorisierung!$C$49,IF(Bewertung!Z14=Faktorisierung!$A$50,Faktorisierung!$C$50,IF(Bewertung!Z14=Faktorisierung!$A$51,Faktorisierung!$C$51,0))))))","v":""},{"$f":"IF(Bewertung!AA14=\"\",\"\",IF(Bewertung!AA14=Faktorisierung!$A$48,Faktorisierung!$C$48,(IF(Bewertung!AA14=Faktorisierung!$A$49,Faktorisierung!$C$49,IF(Bewertung!AA14=Faktorisierung!$A$50,Faktorisierung!$C$50,IF(Bewertung!AA14=Faktorisierung!$A$51,Faktorisierung!$C$51,0))))))","v":""},{"$f":"IF(Bewertung!AB14=\"\",\"\",IF(Bewertung!AB14=Faktorisierung!$A$48,Faktorisierung!$C$48,(IF(Bewertung!AB14=Faktorisierung!$A$49,Faktorisierung!$C$49,IF(Bewertung!AB14=Faktorisierung!$A$50,Faktorisierung!$C$50,IF(Bewertung!AB14=Faktorisierung!$A$51,Faktorisierung!$C$51,0))))))","v":""},{"$f":"IF(Bewertung!AC14=\"\",\"\",IF(Bewertung!AC14=Faktorisierung!$A$48,Faktorisierung!$C$48,(IF(Bewertung!AC14=Faktorisierung!$A$49,Faktorisierung!$C$49,IF(Bewertung!AC14=Faktorisierung!$A$50,Faktorisierung!$C$50,IF(Bewertung!AC14=Faktorisierung!$A$51,Faktorisierung!$C$51,0))))))","v":""},{"$f":"IF(Bewertung!AD14=\"\",\"\",IF(Bewertung!AD14=Faktorisierung!$A$48,Faktorisierung!$C$48,(IF(Bewertung!AD14=Faktorisierung!$A$49,Faktorisierung!$C$49,IF(Bewertung!AD14=Faktorisierung!$A$50,Faktorisierung!$C$50,IF(Bewertung!AD14=Faktorisierung!$A$51,Faktorisierung!$C$51,0))))))","v":""},{"$f":"IF(Bewertung!AE14=\"\",\"\",IF(Bewertung!AE14=Faktorisierung!$A$48,Faktorisierung!$C$48,(IF(Bewertung!AE14=Faktorisierung!$A$49,Faktorisierung!$C$49,IF(Bewertung!AE14=Faktorisierung!$A$50,Faktorisierung!$C$50,IF(Bewertung!AE14=Faktorisierung!$A$51,Faktorisierung!$C$51,0))))))","v":""},{"$f":"IF(Bewertung!AF14=\"\",\"\",IF(Bewertung!AF14=Faktorisierung!$A$48,Faktorisierung!$C$48,(IF(Bewertung!AF14=Faktorisierung!$A$49,Faktorisierung!$C$49,IF(Bewertung!AF14=Faktorisierung!$A$50,Faktorisierung!$C$50,IF(Bewertung!AF14=Faktorisierung!$A$51,Faktorisierung!$C$51,0))))))","v":""},{"$f":"IF(Bewertung!AG14=\"\",\"\",IF(Bewertung!AG14=Faktorisierung!$A$48,Faktorisierung!$C$48,(IF(Bewertung!AG14=Faktorisierung!$A$49,Faktorisierung!$C$49,IF(Bewertung!AG14=Faktorisierung!$A$50,Faktorisierung!$C$50,IF(Bewertung!AG14=Faktorisierung!$A$51,Faktorisierung!$C$51,0))))))","v":""},{"$f":"IF(Bewertung!AH14=\"\",\"\",IF(Bewertung!AH14=Faktorisierung!$A$48,Faktorisierung!$C$48,(IF(Bewertung!AH14=Faktorisierung!$A$49,Faktorisierung!$C$49,IF(Bewertung!AH14=Faktorisierung!$A$50,Faktorisierung!$C$50,IF(Bewertung!AH14=Faktorisierung!$A$51,Faktorisierung!$C$51,0))))))","v":""},{"$f":"IF(Bewertung!AI14=\"\",\"\",IF(Bewertung!AI14=Faktorisierung!$A$48,Faktorisierung!$C$48,(IF(Bewertung!AI14=Faktorisierung!$A$49,Faktorisierung!$C$49,IF(Bewertung!AI14=Faktorisierung!$A$50,Faktorisierung!$C$50,IF(Bewertung!AI14=Faktorisierung!$A$51,Faktorisierung!$C$51,0))))))","v":""},{"$f":"IF(Bewertung!AJ14=\"\",\"\",IF(Bewertung!AJ14=Faktorisierung!$A$48,Faktorisierung!$C$48,(IF(Bewertung!AJ14=Faktorisierung!$A$49,Faktorisierung!$C$49,IF(Bewertung!AJ14=Faktorisierung!$A$50,Faktorisierung!$C$50,IF(Bewertung!AJ14=Faktorisierung!$A$51,Faktorisierung!$C$51,0))))))","v":""},{"$f":"IF(Bewertung!AK14=\"\",\"\",IF(Bewertung!AK14=Faktorisierung!$A$48,Faktorisierung!$C$48,(IF(Bewertung!AK14=Faktorisierung!$A$49,Faktorisierung!$C$49,IF(Bewertung!AK14=Faktorisierung!$A$50,Faktorisierung!$C$50,IF(Bewertung!AK14=Faktorisierung!$A$51,Faktorisierung!$C$51,0))))))","v":""},{"$f":"IF(Bewertung!AL14=\"\",\"\",IF(Bewertung!AL14=Faktorisierung!$A$48,Faktorisierung!$C$48,(IF(Bewertung!AL14=Faktorisierung!$A$49,Faktorisierung!$C$49,IF(Bewertung!AL14=Faktorisierung!$A$50,Faktorisierung!$C$50,IF(Bewertung!AL14=Faktorisierung!$A$51,Faktorisierung!$C$51,0))))))","v":""},{"$f":"IF(Bewertung!AM14=\"\",\"\",IF(Bewertung!AM14=Faktorisierung!$A$48,Faktorisierung!$C$48,(IF(Bewertung!AM14=Faktorisierung!$A$49,Faktorisierung!$C$49,IF(Bewertung!AM14=Faktorisierung!$A$50,Faktorisierung!$C$50,IF(Bewertung!AM14=Faktorisierung!$A$51,Faktorisierung!$C$51,0))))))","v":""},{"$f":"IF(Bewertung!AN14=\"\",\"\",IF(Bewertung!AN14=Faktorisierung!$A$48,Faktorisierung!$C$48,(IF(Bewertung!AN14=Faktorisierung!$A$49,Faktorisierung!$C$49,IF(Bewertung!AN14=Faktorisierung!$A$50,Faktorisierung!$C$50,IF(Bewertung!AN14=Faktorisierung!$A$51,Faktorisierung!$C$51,0))))))","v":""},{"$f":"IF(Bewertung!AO14=\"\",\"\",IF(Bewertung!AO14=Faktorisierung!$A$48,Faktorisierung!$C$48,(IF(Bewertung!AO14=Faktorisierung!$A$49,Faktorisierung!$C$49,IF(Bewertung!AO14=Faktorisierung!$A$50,Faktorisierung!$C$50,IF(Bewertung!AO14=Faktorisierung!$A$51,Faktorisierung!$C$51,0))))))","v":""},{"$f":"IF(Bewertung!AP14=\"\",\"\",IF(Bewertung!AP14=Faktorisierung!$A$48,Faktorisierung!$C$48,(IF(Bewertung!AP14=Faktorisierung!$A$49,Faktorisierung!$C$49,IF(Bewertung!AP14=Faktorisierung!$A$50,Faktorisierung!$C$50,IF(Bewertung!AP14=Faktorisierung!$A$51,Faktorisierung!$C$51,0))))))","v":""},{"$f":"IF(Bewertung!AQ14=\"\",\"\",IF(Bewertung!AQ14=Faktorisierung!$A$48,Faktorisierung!$C$48,(IF(Bewertung!AQ14=Faktorisierung!$A$49,Faktorisierung!$C$49,IF(Bewertung!AQ14=Faktorisierung!$A$50,Faktorisierung!$C$50,IF(Bewertung!AQ14=Faktorisierung!$A$51,Faktorisierung!$C$51,0))))))","v":""},{"$f":"IF(Bewertung!AR14=\"\",\"\",IF(Bewertung!AR14=Faktorisierung!$A$48,Faktorisierung!$C$48,(IF(Bewertung!AR14=Faktorisierung!$A$49,Faktorisierung!$C$49,IF(Bewertung!AR14=Faktorisierung!$A$50,Faktorisierung!$C$50,IF(Bewertung!AR14=Faktorisierung!$A$51,Faktorisierung!$C$51,0))))))","v":""},{"$f":"IF(Bewertung!AS14=\"\",\"\",IF(Bewertung!AS14=Faktorisierung!$A$48,Faktorisierung!$C$48,(IF(Bewertung!AS14=Faktorisierung!$A$49,Faktorisierung!$C$49,IF(Bewertung!AS14=Faktorisierung!$A$50,Faktorisierung!$C$50,IF(Bewertung!AS14=Faktorisierung!$A$51,Faktorisierung!$C$51,0))))))","v":""},{"$f":"IF(Bewertung!AT14=\"\",\"\",IF(Bewertung!AT14=Faktorisierung!$A$48,Faktorisierung!$C$48,(IF(Bewertung!AT14=Faktorisierung!$A$49,Faktorisierung!$C$49,IF(Bewertung!AT14=Faktorisierung!$A$50,Faktorisierung!$C$50,IF(Bewertung!AT14=Faktorisierung!$A$51,Faktorisierung!$C$51,0))))))","v":""},{"$f":"IF(Bewertung!AU14=\"\",\"\",IF(Bewertung!AU14=Faktorisierung!$A$48,Faktorisierung!$C$48,(IF(Bewertung!AU14=Faktorisierung!$A$49,Faktorisierung!$C$49,IF(Bewertung!AU14=Faktorisierung!$A$50,Faktorisierung!$C$50,IF(Bewertung!AU14=Faktorisierung!$A$51,Faktorisierung!$C$51,0))))))","v":""},{"$f":"IF(Bewertung!AV14=\"\",\"\",IF(Bewertung!AV14=Faktorisierung!$A$48,Faktorisierung!$C$48,(IF(Bewertung!AV14=Faktorisierung!$A$49,Faktorisierung!$C$49,IF(Bewertung!AV14=Faktorisierung!$A$50,Faktorisierung!$C$50,IF(Bewertung!AV14=Faktorisierung!$A$51,Faktorisierung!$C$51,0))))))","v":""},{"$f":"IF(Bewertung!AW14=\"\",\"\",IF(Bewertung!AW14=Faktorisierung!$A$48,Faktorisierung!$C$48,(IF(Bewertung!AW14=Faktorisierung!$A$49,Faktorisierung!$C$49,IF(Bewertung!AW14=Faktorisierung!$A$50,Faktorisierung!$C$50,IF(Bewertung!AW14=Faktorisierung!$A$51,Faktorisierung!$C$51,0))))))","v":""},{"$f":"IF(Bewertung!AX14=\"\",\"\",IF(Bewertung!AX14=Faktorisierung!$A$48,Faktorisierung!$C$48,(IF(Bewertung!AX14=Faktorisierung!$A$49,Faktorisierung!$C$49,IF(Bewertung!AX14=Faktorisierung!$A$50,Faktorisierung!$C$50,IF(Bewertung!AX14=Faktorisierung!$A$51,Faktorisierung!$C$51,0))))))","v":""},{"$f":"IF(Bewertung!AY14=\"\",\"\",IF(Bewertung!AY14=Faktorisierung!$A$48,Faktorisierung!$C$48,(IF(Bewertung!AY14=Faktorisierung!$A$49,Faktorisierung!$C$49,IF(Bewertung!AY14=Faktorisierung!$A$50,Faktorisierung!$C$50,IF(Bewertung!AY14=Faktorisierung!$A$51,Faktorisierung!$C$51,0))))))","v":""},{"$f":"IF(Bewertung!AZ14=\"\",\"\",IF(Bewertung!AZ14=Faktorisierung!$A$48,Faktorisierung!$C$48,(IF(Bewertung!AZ14=Faktorisierung!$A$49,Faktorisierung!$C$49,IF(Bewertung!AZ14=Faktorisierung!$A$50,Faktorisierung!$C$50,IF(Bewertung!AZ14=Faktorisierung!$A$51,Faktorisierung!$C$51,0))))))","v":""},{"$f":"IF(Bewertung!BA14=\"\",\"\",IF(Bewertung!BA14=Faktorisierung!$A$48,Faktorisierung!$C$48,(IF(Bewertung!BA14=Faktorisierung!$A$49,Faktorisierung!$C$49,IF(Bewertung!BA14=Faktorisierung!$A$50,Faktorisierung!$C$50,IF(Bewertung!BA14=Faktorisierung!$A$51,Faktorisierung!$C$51,0))))))","v":""},{"$f":"IF(Bewertung!BB14=\"\",\"\",IF(Bewertung!BB14=Faktorisierung!$A$48,Faktorisierung!$C$48,(IF(Bewertung!BB14=Faktorisierung!$A$49,Faktorisierung!$C$49,IF(Bewertung!BB14=Faktorisierung!$A$50,Faktorisierung!$C$50,IF(Bewertung!BB14=Faktorisierung!$A$51,Faktorisierung!$C$51,0))))))","v":""},{"$f":"IF(Bewertung!BC14=\"\",\"\",IF(Bewertung!BC14=Faktorisierung!$A$48,Faktorisierung!$C$48,(IF(Bewertung!BC14=Faktorisierung!$A$49,Faktorisierung!$C$49,IF(Bewertung!BC14=Faktorisierung!$A$50,Faktorisierung!$C$50,IF(Bewertung!BC14=Faktorisierung!$A$51,Faktorisierung!$C$51,0))))))","v":""},{"$f":"IF(Bewertung!BD14=\"\",\"\",IF(Bewertung!BD14=Faktorisierung!$A$48,Faktorisierung!$C$48,(IF(Bewertung!BD14=Faktorisierung!$A$49,Faktorisierung!$C$49,IF(Bewertung!BD14=Faktorisierung!$A$50,Faktorisierung!$C$50,IF(Bewertung!BD14=Faktorisierung!$A$51,Faktorisierung!$C$51,0))))))","v":""},{"$f":"IF(Bewertung!BE14=\"\",\"\",IF(Bewertung!BE14=Faktorisierung!$A$48,Faktorisierung!$C$48,(IF(Bewertung!BE14=Faktorisierung!$A$49,Faktorisierung!$C$49,IF(Bewertung!BE14=Faktorisierung!$A$50,Faktorisierung!$C$50,IF(Bewertung!BE14=Faktorisierung!$A$51,Faktorisierung!$C$51,0))))))","v":""},{"$f":"IF(Bewertung!BF14=\"\",\"\",IF(Bewertung!BF14=Faktorisierung!$A$48,Faktorisierung!$C$48,(IF(Bewertung!BF14=Faktorisierung!$A$49,Faktorisierung!$C$49,IF(Bewertung!BF14=Faktorisierung!$A$50,Faktorisierung!$C$50,IF(Bewertung!BF14=Faktorisierung!$A$51,Faktorisierung!$C$51,0))))))","v":""},{"$f":"IF(Bewertung!BG14=\"\",\"\",IF(Bewertung!BG14=Faktorisierung!$A$48,Faktorisierung!$C$48,(IF(Bewertung!BG14=Faktorisierung!$A$49,Faktorisierung!$C$49,IF(Bewertung!BG14=Faktorisierung!$A$50,Faktorisierung!$C$50,IF(Bewertung!BG14=Faktorisierung!$A$51,Faktorisierung!$C$51,0))))))","v":""},{"$f":"IF(Bewertung!BH14=\"\",\"\",IF(Bewertung!BH14=Faktorisierung!$A$48,Faktorisierung!$C$48,(IF(Bewertung!BH14=Faktorisierung!$A$49,Faktorisierung!$C$49,IF(Bewertung!BH14=Faktorisierung!$A$50,Faktorisierung!$C$50,IF(Bewertung!BH14=Faktorisierung!$A$51,Faktorisierung!$C$51,0))))))","v":""},{"$f":"IF(Bewertung!BI14=\"\",\"\",IF(Bewertung!BI14=Faktorisierung!$A$48,Faktorisierung!$C$48,(IF(Bewertung!BI14=Faktorisierung!$A$49,Faktorisierung!$C$49,IF(Bewertung!BI14=Faktorisierung!$A$50,Faktorisierung!$C$50,IF(Bewertung!BI14=Faktorisierung!$A$51,Faktorisierung!$C$51,0))))))","v":""},{"$f":"IF(Bewertung!BJ14=\"\",\"\",IF(Bewertung!BJ14=Faktorisierung!$A$48,Faktorisierung!$C$48,(IF(Bewertung!BJ14=Faktorisierung!$A$49,Faktorisierung!$C$49,IF(Bewertung!BJ14=Faktorisierung!$A$50,Faktorisierung!$C$50,IF(Bewertung!BJ14=Faktorisierung!$A$51,Faktorisierung!$C$51,0))))))","v":""},{"$f":"IF(Bewertung!BK14=\"\",\"\",IF(Bewertung!BK14=Faktorisierung!$A$48,Faktorisierung!$C$48,(IF(Bewertung!BK14=Faktorisierung!$A$49,Faktorisierung!$C$49,IF(Bewertung!BK14=Faktorisierung!$A$50,Faktorisierung!$C$50,IF(Bewertung!BK14=Faktorisierung!$A$51,Faktorisierung!$C$51,0))))))","v":""},{"$f":"IF(Bewertung!BL14=\"\",\"\",IF(Bewertung!BL14=Faktorisierung!$A$48,Faktorisierung!$C$48,(IF(Bewertung!BL14=Faktorisierung!$A$49,Faktorisierung!$C$49,IF(Bewertung!BL14=Faktorisierung!$A$50,Faktorisierung!$C$50,IF(Bewertung!BL14=Faktorisierung!$A$51,Faktorisierung!$C$51,0))))))","v":""}]
[{"$nulls":3},"11b) Behinderung des norm. Lebens außerhalb der VA, Verkehr kreuzt VA Fläche",{"$f":"IF(Bewertung!I15=\"\",\"\",IF(Bewertung!I15=Faktorisierung!$E$48,Faktorisierung!$G$48,(IF(Bewertung!I15=Faktorisierung!$E$49,Faktorisierung!$G$49,IF(Bewertung!I15=Faktorisierung!$E$50,Faktorisierung!$G$50,IF(Bewertung!I15=Faktorisierung!$E$51,Faktorisierung!$G$51,0))))))","v":0.5},{"$f":"IF(Bewertung!J15=\"\",\"\",IF(Bewertung!J15=Faktorisierung!$E$48,Faktorisierung!$G$48,(IF(Bewertung!J15=Faktorisierung!$E$49,Faktorisierung!$G$49,IF(Bewertung!J15=Faktorisierung!$E$50,Faktorisierung!$G$50,IF(Bewertung!J15=Faktorisierung!$E$51,Faktorisierung!$G$51,0))))))","v":""},{"$f":"IF(Bewertung!#REF!=\"\",\"\",IF(Bewertung!#REF!=Faktorisierung!$E$48,Faktorisierung!$G$48,(IF(Bewertung!#REF!=Faktorisierung!$E$49,Faktorisierung!$G$49,IF(Bewertung!#REF!=Faktorisierung!$E$50,Faktorisierung!$G$50,IF(Bewertung!#REF!=Faktorisierung!$E$51,Faktorisierung!$G$51,0))))))","v":{"$error":"#REF!"}},{"$f":"IF(Bewertung!#REF!=\"\",\"\",IF(Bewertung!#REF!=Faktorisierung!$E$48,Faktorisierung!$G$48,(IF(Bewertung!#REF!=Faktorisierung!$E$49,Faktorisierung!$G$49,IF(Bewertung!#REF!=Faktorisierung!$E$50,Faktorisierung!$G$50,IF(Bewertung!#REF!=Faktorisierung!$E$51,Faktorisierung!$G$51,0))))))","v":{"$error":"#REF!"}},{"$f":"IF(Bewertung!#REF!=\"\",\"\",IF(Bewertung!#REF!=Faktorisierung!$E$48,Faktorisierung!$G$48,(IF(Bewertung!#REF!=Faktorisierung!$E$49,Faktorisierung!$G$49,IF(Bewertung!#REF!=Faktorisierung!$E$50,Faktorisierung!$G$50,IF(Bewertung!#REF!=Faktorisierung!$E$51,Faktorisierung!$G$51,0))))))","v":{"$error":"#REF!"}},{"$f":"IF(Bewertung!#REF!=\"\",\"\",IF(Bewertung!#REF!=Faktorisierung!$E$48,Faktorisierung!$G$48,(IF(Bewertung!#REF!=Faktorisierung!$E$49,Faktorisierung!$G$49,IF(Bewertung!#REF!=Faktorisierung!$E$50,Faktorisierung!$G$50,IF(Bewertung!#REF!=Faktorisierung!$E$51,Faktorisierung!$G$51,0))))))","v":{"$error":"#REF!"}},{"$f":"IF(Bewertung!#REF!=\"\",\"\",IF(Bewertung!#REF!=Faktorisierung!$E$48,Faktorisierung!$G$48,(IF(Bewertung!#REF!=Faktorisierung!$E$49,Faktorisierung!$G$49,IF(Bewertung!#REF!=Faktorisierung!$E$50,Faktorisierung!$G$50,IF(Bewertung!#REF!=Faktorisierung!$E$51,Faktorisierung!$G$51,0))))))","v":{"$error":"#REF!"}},{"$f":"IF(Bewertung!#REF!=\"\",\"\",IF(Bewertung!#REF!=Faktorisierung!$E$48,Faktorisierung!$G$48,(IF(Bewertung!#REF!=Faktorisierung!$E$49,Faktorisierung!$G$49,IF(Bewertung!#REF!=Faktorisierung!$E$50,Faktorisierung!$G$50,IF(Bewertung!#REF!=Faktorisierung!$E$51,Faktorisierung!$G$51,0))))))","v":{"$error":"#REF!"}},{"$f":"IF(Bewertung!K15=\"\",\"\",IF(Bewertung!K15=Faktorisierung!$E$48,Faktorisierung!$G$48,(IF(Bewertung!K15=Faktorisierung!$E$49,Faktorisierung!$G$49,IF(Bewertung!K15=Faktorisierung!$E$50,Faktorisierung!$G$50,IF(Bewertung!K15=Faktorisierung!$E$51,Faktorisierung!$G$51,0))))))","v":""},{"$f":"IF(Bewertung!L15=\"\",\"\",IF(Bewertung!L15=Faktorisierung!$E$48,Faktorisierung!$G$48,(IF(Bewertung!L15=Faktorisierung!$E$49,Faktorisierung!$G$49,IF(Bewertung!L15=Faktorisierung!$E$50,Faktorisierung!$G$50,IF(Bewertung!L15=Faktorisierung!$E$51,Faktorisierung!$G$51,0))))))","v":""},{"$f":"IF(Bewertung!M15=\"\",\"\",IF(Bewertung!M15=Faktorisierung!$E$48,Faktorisierung!$G$48,(IF(Bewertung!M15=Faktorisierung!$E$49,Faktorisierung!$G$49,IF(Bewertung!M15=Faktorisierung!$E$50,Faktorisierung!$G$50,IF(Bewertung!M15=Faktorisierung!$E$51,Faktorisierung!$G$51,0))))))","v":""},{"$f":"IF(Bewertung!N15=\"\",\"\",IF(Bewertung!N15=Faktorisierung!$E$48,Faktorisierung!$G$48,(IF(Bewertung!N15=Faktorisierung!$E$49,Faktorisierung!$G$49,IF(Bewertung!N15=Faktorisierung!$E$50,Faktorisierung!$G$50,IF(Bewertung!N15=Faktorisierung!$E$51,Faktorisierung!$G$51,0))))))","v":""},{"$f":"IF(Bewertung!O15=\"\",\"\",IF(Bewertung!O15=Faktorisierung!$E$48,Faktorisierung!$G$48,(IF(Bewertung!O15=Faktorisierung!$E$49,Faktorisierung!$G$49,IF(Bewertung!O15=Faktorisierung!$E$50,Faktorisierung!$G$50,IF(Bewertung!O15=Faktorisierung!$E$51,Faktorisierung!$G$51,0))))))","v":""},{"$f":"IF(Bewertung!P15=\"\",\"\",IF(Bewertung!P15=Faktorisierung!$E$48,Faktorisierung!$G$48,(IF(Bewertung!P15=Faktorisierung!$E$49,Faktorisierung!$G$49,IF(Bewertung!P15=Faktorisierung!$E$50,Faktorisierung!$G$50,IF(Bewertung!P15=Faktorisierung!$E$51,Faktorisierung!$G$51,0))))))","v":""},{"$f":"IF(Bewertung!Q15=\"\",\"\",IF(Bewertung!Q15=Faktorisierung!$E$48,Faktorisierung!$G$48,(IF(Bewertung!Q15=Faktorisierung!$E$49,Faktorisierung!$G$49,IF(Bewertung!Q15=Faktorisierung!$E$50,Faktorisierung!$G$50,IF(Bewertung!Q15=Faktorisierung!$E$51,Faktorisierung!$G$51,0))))))","v":""},{"$f":"IF(Bewertung!R15=\"\",\"\",IF(Bewertung!R15=Faktorisierung!$E$48,Faktorisierung!$G$48,(IF(Bewertung!R15=Faktorisierung!$E$49,Faktorisierung!$G$49,IF(Bewertung!R15=Faktorisierung!$E$50,Faktorisierung!$G$50,IF(Bewertung!R15=Faktorisierung!$E$51,Faktorisierung!$G$51,0))))))","v":""},{"$f":"IF(Bewertung!S15=\"\",\"\",IF(Bewertung!S15=Faktorisierung!$E$48,Faktorisierung!$G$48,(IF(Bewertung!S15=Faktorisierung!$E$49,Faktorisierung!$G$49,IF(Bewertung!S15=Faktorisierung!$E$50,Faktorisierung!$G$50,IF(Bewertung!S15=Faktorisierung!$E$51,Faktorisierung!$G$51,0))))))","v":""},{"$f":"IF(Bewertung!T15=\"\",\"\",IF(Bewertung!T15=Faktorisierung!$E$48,Faktorisierung!$G$48,(IF(Bewertung!T15=Faktorisierung!$E$49,Faktorisierung!$G$49,IF(Bewertung!T15=Faktorisierung!$E$50,Faktorisierung!$G$50,IF(Bewertung!T15=Faktorisierung!$E$51,Faktorisierung!$G$51,0))))))","v":""},{"$f":"IF(Bewertung!U15=\"\",\"\",IF(Bewertung!U15=Faktorisierung!$E$48,Faktorisierung!$G$48,(IF(Bewertung!U15=Faktorisierung!$E$49,Faktorisierung!$G$49,IF(Bewertung!U15=Faktorisierung!$E$50,Faktorisierung!$G$50,IF(Bewertung!U15=Faktorisierung!$E$51,Faktorisierung!$G$51,0))))))","v":""},{"$f":"IF(Bewertung!V15=\"\",\"\",IF(Bewertung!V15=Faktorisierung!$E$48,Faktorisierung!$G$48,(IF(Bewertung!V15=Faktorisierung!$E$49,Faktorisierung!$G$49,IF(Bewertung!V15=Faktorisierung!$E$50,Faktorisierung!$G$50,IF(Bewertung!V15=Faktorisierung!$E$51,Faktorisierung!$G$51,0))))))","v":""},{"$f":"IF(Bewertung!W15=\"\",\"\",IF(Bewertung!W15=Faktorisierung!$E$48,Faktorisierung!$G$48,(IF(Bewertung!W15=Faktorisierung!$E$49,Faktorisierung!$G$49,IF(Bewertung!W15=Faktorisierung!$E$50,Faktorisierung!$G$50,IF(Bewertung!W15=Faktorisierung!$E$51,Faktorisierung!$G$51,0))))))","v":""},{"$f":"IF(Bewertung!X15=\"\",\"\",IF(Bewertung!X15=Faktorisierung!$E$48,Faktorisierung!$G$48,(IF(Bewertung!X15=Faktorisierung!$E$49,Faktorisierung!$G$49,IF(Bewertung!X15=Faktorisierung!$E$50,Faktorisierung!$G$50,IF(Bewertung!X15=Faktorisierung!$E$51,Faktorisierung!$G$51,0))))))","v":""},{"$f":"IF(Bewertung!Y15=\"\",\"\",IF(Bewertung!Y15=Faktorisierung!$E$48,Faktorisierung!$G$48,(IF(Bewertung!Y15=Faktorisierung!$E$49,Faktorisierung!$G$49,IF(Bewertung!Y15=Faktorisierung!$E$50,Faktorisierung!$G$50,IF(Bewertung!Y15=Faktorisierung!$E$51,Faktorisierung!$G$51,0))))))","v":""},{"$f":"IF(Bewertung!Z15=\"\",\"\",IF(Bewertung!Z15=Faktorisierung!$E$48,Faktorisierung!$G$48,(IF(Bewertung!Z15=Faktorisierung!$E$49,Faktorisierung!$G$49,IF(Bewertung!Z15=Faktorisierung!$E$50,Faktorisierung!$G$50,IF(Bewertung!Z15=Faktorisierung!$E$51,Faktorisierung!$G$51,0))))))","v":""},{"$f":"IF(Bewertung!AA15=\"\",\"\",IF(Bewertung!AA15=Faktorisierung!$E$48,Faktorisierung!$G$48,(IF(Bewertung!AA15=Faktorisierung!$E$49,Faktorisierung!$G$49,IF(Bewertung!AA15=Faktorisierung!$E$50,Faktorisierung!$G$50,IF(Bewertung!AA15=Faktorisierung!$E$51,Faktorisierung!$G$51,0))))))","v":""},{"$f":"IF(Bewertung!AB15=\"\",\"\",IF(Bewertung!AB15=Faktorisierung!$E$48,Faktorisierung!$G$48,(IF(Bewertung!AB15=Faktorisierung!$E$49,Faktorisierung!$G$49,IF(Bewertung!AB15=Faktorisierung!$E$50,Faktorisierung!$G$50,IF(Bewertung!AB15=Faktorisierung!$E$51,Faktorisierung!$G$51,0))))))","v":""},{"$f":"IF(Bewertung!AC15=\"\",\"\",IF(Bewertung!AC15=Faktorisierung!$E$48,Faktorisierung!$G$48,(IF(Bewertung!AC15=Faktorisierung!$E$49,Faktorisierung!$G$49,IF(Bewertung!AC15=Faktorisierung!$E$50,Faktorisierung!$G$50,IF(Bewertung!AC15=Faktorisierung!$E$51,Faktorisierung!$G$51,0))))))","v":""},{"$f":"IF(Bewertung!AD15=\"\",\"\",IF(Bewertung!AD15=Faktorisierung!$E$48,Faktorisierung!$G$48,(IF(Bewertung!AD15=Faktorisierung!$E$49,Faktorisierung!$G$49,IF(Bewertung!AD15=Faktorisierung!$E$50,Faktorisierung!$G$50,IF(Bewertung!AD15=Faktorisierung!$E$51,Faktorisierung!$G$51,0))))))","v":""},{"$f":"IF(Bewertung!AE15=\"\",\"\",IF(Bewertung!AE15=Faktorisierung!$E$48,Faktorisierung!$G$48,(IF(Bewertung!AE15=Faktorisierung!$E$49,Faktorisierung!$G$49,IF(Bewertung!AE15=Faktorisierung!$E$50,Faktorisierung!$G$50,IF(Bewertung!AE15=Faktorisierung!$E$51,Faktorisierung!$G$51,0))))))","v":""},{"$f":"IF(Bewertung!AF15=\"\",\"\",IF(Bewertung!AF15=Faktorisierung!$E$48,Faktorisierung!$G$48,(IF(Bewertung!AF15=Faktorisierung!$E$49,Faktorisierung!$G$49,IF(Bewertung!AF15=Faktorisierung!$E$50,Faktorisierung!$G$50,IF(Bewertung!AF15=Faktorisierung!$E$51,Faktorisierung!$G$51,0))))))","v":""},{"$f":"IF(Bewertung!AG15=\"\",\"\",IF(Bewertung!AG15=Faktorisierung!$E$48,Faktorisierung!$G$48,(IF(Bewertung!AG15=Faktorisierung!$E$49,Faktorisierung!$G$49,IF(Bewertung!AG15=Faktorisierung!$E$50,Faktorisierung!$G$50,IF(Bewertung!AG15=Faktorisierung!$E$51,Faktorisierung!$G$51,0))))))","v":""},{"$f":"IF(Bewertung!AH15=\"\",\"\",IF(Bewertung!AH15=Faktorisierung!$E$48,Faktorisierung!$G$48,(IF(Bewertung!AH15=Faktorisierung!$E$49,Faktorisierung!$G$49,IF(Bewertung!AH15=Faktorisierung!$E$50,Faktorisierung!$G$50,IF(Bewertung!AH15=Faktorisierung!$E$51,Faktorisierung!$G$51,0))))))","v":""},{"$f":"IF(Bewertung!AI15=\"\",\"\",IF(Bewertung!AI15=Faktorisierung!$E$48,Faktorisierung!$G$48,(IF(Bewertung!AI15=Faktorisierung!$E$49,Faktorisierung!$G$49,IF(Bewertung!AI15=Faktorisierung!$E$50,Faktorisierung!$G$50,IF(Bewertung!AI15=Faktorisierung!$E$51,Faktorisierung!$G$51,0))))))","v":""},{"$f":"IF(Bewertung!AJ15=\"\",\"\",IF(Bewertung!AJ15=Faktorisierung!$E$48,Faktorisierung!$G$48,(IF(Bewertung!AJ15=Faktorisierung!$E$49,Faktorisierung!$G$49,IF(Bewertung!AJ15=Faktorisierung!$E$50,Faktorisierung!$G$50,IF(Bewertung!AJ15=Faktorisierung!$E$51,Faktorisierung!$G$51,0))))))","v":""},{"$f":"IF(Bewertung!AK15=\"\",\"\",IF(Bewertung!AK15=Faktorisierung!$E$48,Faktorisierung!$G$48,(IF(Bewertung!AK15=Faktorisierung!$E$49,Faktorisierung!$G$49,IF(Bewertung!AK15=Faktorisierung!$E$50,Faktorisierung!$G$50,IF(Bewertung!AK15=Faktorisierung!$E$51,Faktorisierung!$G$51,0))))))","v":""},{"$f":"IF(Bewertung!AL15=\"\",\"\",IF(Bewertung!AL15=Faktorisierung!$E$48,Faktorisierung!$G$48,(IF(Bewertung!AL15=Faktorisierung!$E$49,Faktorisierung!$G$49,IF(Bewertung!AL15=Faktorisierung!$E$50,Faktorisierung!$G$50,IF(Bewertung!AL15=Faktorisierung!$E$51,Faktorisierung!$G$51,0))))))","v":""},{"$f":"IF(Bewertung!AM15=\"\",\"\",IF(Bewertung!AM15=Faktorisierung!$E$48,Faktorisierung!$G$48,(IF(Bewertung!AM15=Faktorisierung!$E$49,Faktorisierung!$G$49,IF(Bewertung!AM15=Faktorisierung!$E$50,Faktorisierung!$G$50,IF(Bewertung!AM15=Faktorisierung!$E$51,Faktorisierung!$G$51,0))))))","v":""},{"$f":"IF(Bewertung!AN15=\"\",\"\",IF(Bewertung!AN15=Faktorisierung!$E$48,Faktorisierung!$G$48,(IF(Bewertung!AN15=Faktorisierung!$E$49,Faktorisierung!$G$49,IF(Bewertung!AN15=Faktorisierung!$E$50,Faktorisierung!$G$50,IF(Bewertung!AN15=Faktorisierung!$E$51,Faktorisierung!$G$51,0))))))","v":""},{"$f":"IF(Bewertung!AO15=\"\",\"\",IF(Bewertung!AO15=Faktorisierung!$E$48,Faktorisierung!$G$48,(IF(Bewertung!AO15=Faktorisierung!$E$49,Faktorisierung!$G$49,IF(Bewertung!AO15=Faktorisierung!$E$50,Faktorisierung!$G$50,IF(Bewertung!AO15=Faktorisierung!$E$51,Faktorisierung!$G$51,0))))))","v":""},{"$f":"IF(Bewertung!AP15=\"\",\"\",IF(Bewertung!AP15=Faktorisierung!$E$48,Faktorisierung!$G$48,(IF(Bewertung!AP15=Faktorisierung!$E$49,Faktorisierung!$G$49,IF(Bewertung!AP15=Faktorisierung!$E$50,Faktorisierung!$G$50,IF(Bewertung!AP15=Faktorisierung!$E$51,Faktorisierung!$G$51,0))))))","v":""},{"$f":"IF(Bewertung!AQ15=\"\",\"\",IF(Bewertung!AQ15=Faktorisierung!$E$48,Faktorisierung!$G$48,(IF(Bewertung!AQ15=Faktorisierung!$E$49,Faktorisierung!$G$49,IF(Bewertung!AQ15=Faktorisierung!$E$50,Faktorisierung!$G$50,IF(Bewertung!AQ15=Faktorisierung!$E$51,Faktorisierung!$G$51,0))))))","v":""},{"$f":"IF(Bewertung!AR15=\"\",\"\",IF(Bewertung!AR15=Faktorisierung!$E$48,Faktorisierung!$G$48,(IF(Bewertung!AR15=Faktorisierung!$E$49,Faktorisierung!$G$49,IF(Bewertung!AR15=Faktorisierung!$E$50,Faktorisierung!$G$50,IF(Bewertung!AR15=Faktorisierung!$E$51,Faktorisierung!$G$51,0))))))","v":""},{"$f":"IF(Bewertung!AS15=\"\",\"\",IF(Bewertung!AS15=Faktorisierung!$E$48,Faktorisierung!$G$48,(IF(Bewertung!AS15=Faktorisierung!$E$49,Faktorisierung!$G$49,IF(Bewertung!AS15=Faktorisierung!$E$50,Faktorisierung!$G$50,IF(Bewertung!AS15=Faktorisierung!$E$51,Faktorisierung!$G$51,0))))))","v":""},{"$f":"IF(Bewertung!AT15=\"\",\"\",IF(Bewertung!AT15=Faktorisierung!$E$48,Faktorisierung!$G$48,(IF(Bewertung!AT15=Faktorisierung!$E$49,Faktorisierung!$G$49,IF(Bewertung!AT15=Faktorisierung!$E$50,Faktorisierung!$G$50,IF(Bewertung!AT15=Faktorisierung!$E$51,Faktorisierung!$G$51,0))))))","v":""},{"$f":"IF(Bewertung!AU15=\"\",\"\",IF(Bewertung!AU15=Faktorisierung!$E$48,Faktorisierung!$G$48,(IF(Bewertung!AU15=Faktorisierung!$E$49,Faktorisierung!$G$49,IF(Bewertung!AU15=Faktorisierung!$E$50,Faktorisierung!$G$50,IF(Bewertung!AU15=Faktorisierung!$E$51,Faktorisierung!$G$51,0))))))","v":""},{"$f":"IF(Bewertung!AV15=\"\",\"\",IF(Bewertung!AV15=Faktorisierung!$E$48,Faktorisierung!$G$48,(IF(Bewertung!AV15=Faktorisierung!$E$49,Faktorisierung!$G$49,IF(Bewertung!AV15=Faktorisierung!$E$50,Faktorisierung!$G$50,IF(Bewertung!AV15=Faktorisierung!$E$51,Faktorisierung!$G$51,0))))))","v":""},{"$f":"IF(Bewertung!AW15=\"\",\"\",IF(Bewertung!AW15=Faktorisierung!$E$48,Faktorisierung!$G$48,(IF(Bewertung!AW15=Faktorisierung!$E$49,Faktorisierung!$G$49,IF(Bewertung!AW15=Faktorisierung!$E$50,Faktorisierung!$G$50,IF(Bewertung!AW15=Faktorisierung!$E$51,Faktorisierung!$G$51,0))))))","v":""},{"$f":"IF(Bewertung!AX15=\"\",\"\",IF(Bewertung!AX15=Faktorisierung!$E$48,Faktorisierung!$G$48,(IF(Bewertung!AX15=Faktorisierung!$E$49,Faktorisierung!$G$49,IF(Bewertung!AX15=Faktorisierung!$E$50,Faktorisierung!$G$50,IF(Bewertung!AX15=Faktorisierung!$E$51,Faktorisierung!$G$51,0))))))","v":""},{"$f":"IF(Bewertung!AY15=\"\",\"\",IF(Bewertung!AY15=Faktorisierung!$E$48,Faktorisierung!$G$48,(IF(Bewertung!AY15=Faktorisierung!$E$49,Faktorisierung!$G$49,IF(Bewertung!AY15=Faktorisierung!$E$50,Faktorisierung!$G$50,IF(Bewertung!AY15=Faktorisierung!$E$51,Faktorisierung!$G$51,0))))))","v":""},{"$f":"IF(Bewertung!AZ15=\"\",\"\",IF(Bewertung!AZ15=Faktorisierung!$E$48,Faktorisierung!$G$48,(IF(Bewertung!AZ15=Faktorisierung!$E$49,Faktorisierung!$G$49,IF(Bewertung!AZ15=Faktorisierung!$E$50,Faktorisierung!$G$50,IF(Bewertung!AZ15=Faktorisierung!$E$51,Faktorisierung!$G$51,0))))))","v":""},{"$f":"IF(Bewertung!BA15=\"\",\"\",IF(Bewertung!BA15=Faktorisierung!$E$48,Faktorisierung!$G$48,(IF(Bewertung!BA15=Faktorisierung!$E$49,Faktorisierung!$G$49,IF(Bewertung!BA15=Faktorisierung!$E$50,Faktorisierung!$G$50,IF(Bewertung!BA15=Faktorisierung!$E$51,Faktorisierung!$G$51,0))))))","v":""},{"$f":"IF(Bewertung!BB15=\"\",\"\",IF(Bewertung!BB15=Faktorisierung!$E$48,Faktorisierung!$G$48,(IF(Bewertung!BB15=Faktorisierung!$E$49,Faktorisierung!$G$49,IF(Bewertung!BB15=Faktorisierung!$E$50,Faktorisierung!$G$50,IF(Bewertung!BB15=Faktorisierung!$E$51,Faktorisierung!$G$51,0))))))","v":""},{"$f":"IF(Bewertung!BC15=\"\",\"\",IF(Bewertung!BC15=Faktorisierung!$E$48,Faktorisierung!$G$48,(IF(Bewertung!BC15=Faktorisierung!$E$49,Faktorisierung!$G$49,IF(Bewertung!BC15=Faktorisierung!$E$50,Faktorisierung!$G$50,IF(Bewertung!BC15=Faktorisierung!$E$51,Faktorisierung!$G$51,0))))))","v":""},{"$f":"IF(Bewertung!BD15=\"\",\"\",IF(Bewertung!BD15=Faktorisierung!$E$48,Faktorisierung!$G$48,(IF(Bewertung!BD15=Faktorisierung!$E$49,Faktorisierung!$G$49,IF(Bewertung!BD15=Faktorisierung!$E$50,Faktorisierung!$G$50,IF(Bewertung!BD15=Faktorisierung!$E$51,Faktorisierung!$G$51,0))))))","v":""},{"$f":"IF(Bewertung!BE15=\"\",\"\",IF(Bewertung!BE15=Faktorisierung!$E$48,Faktorisierung!$G$48,(IF(Bewertung!BE15=Faktorisierung!$E$49,Faktorisierung!$G$49,IF(Bewertung!BE15=Faktorisierung!$E$50,Faktorisierung!$G$50,IF(Bewertung!BE15=Faktorisierung!$E$51,Faktorisierung!$G$51,0))))))","v":""},{"$f":"IF(Bewertung!BF15=\"\",\"\",IF(Bewertung!BF15=Faktorisierung!$E$48,Faktorisierung!$G$48,(IF(Bewertung!BF15=Faktorisierung!$E$49,Faktorisierung!$G$49,IF(Bewertung!BF15=Faktorisierung!$E$50,Faktorisierung!$G$50,IF(Bewertung!BF15=Faktorisierung!$E$51,Faktorisierung!$G$51,0))))))","v":""},{"$f":"IF(Bewertung!BG15=\"\",\"\",IF(Bewertung!BG15=Faktorisierung!$E$48,Faktorisierung!$G$48,(IF(Bewertung!BG15=Faktorisierung!$E$49,Faktorisierung!$G$49,IF(Bewertung!BG15=Faktorisierung!$E$50,Faktorisierung!$G$50,IF(Bewertung!BG15=Faktorisierung!$E$51,Faktorisierung!$G$51,0))))))","v":""},{"$f":"IF(Bewertung!BH15=\"\",\"\",IF(Bewertung!BH15=Faktorisierung!$E$48,Faktorisierung!$G$48,(IF(Bewertung!BH15=Faktorisierung!$E$49,Faktorisierung!$G$49,IF(Bewertung!BH15=Faktorisierung!$E$50,Faktorisierung!$G$50,IF(Bewertung!BH15=Faktorisierung!$E$51,Faktorisierung!$G$51,0))))))","v":""},{"$f":"IF(Bewertung!BI15=\"\",\"\",IF(Bewertung!BI15=Faktorisierung!$E$48,Faktorisierung!$G$48,(IF(Bewertung!BI15=Faktorisierung!$E$49,Faktorisierung!$G$49,IF(Bewertung!BI15=Faktorisierung!$E$50,Faktorisierung!$G$50,IF(Bewertung!BI15=Faktorisierung!$E$51,Faktorisierung!$G$51,0))))))","v":""},{"$f":"IF(Bewertung!BJ15=\"\",\"\",IF(Bewertung!BJ15=Faktorisierung!$E$48,Faktorisierung!$G$48,(IF(Bewertung!BJ15=Faktorisierung!$E$49,Faktorisierung!$G$49,IF(Bewertung!BJ15=Faktorisierung!$E$50,Faktorisierung!$G$50,IF(Bewertung!BJ15=Faktorisierung!$E$51,Faktorisierung!$G$51,0))))))","v":""},{"$f":"IF(Bewertung!BK15=\"\",\"\",IF(Bewertung!BK15=Faktorisierung!$E$48,Faktorisierung!$G$48,(IF(Bewertung!BK15=Faktorisierung!$E$49,Faktorisierung!$G$49,IF(Bewertung!BK15=Faktorisierung!$E$50,Faktorisierung!$G$50,IF(Bewertung!BK15=Faktorisierung!$E$51,Faktorisierung!$G$51,0))))))","v":""},{"$f":"IF(Bewertung!BL15=\"\",\"\",IF(Bewertung!BL15=Faktorisierung!$E$48,Faktorisierung!$G$48,(IF(Bewertung!BL15=Faktorisierung!$E$49,Faktorisierung!$G$49,IF(Bewertung!BL15=Faktorisierung!$E$50,Faktorisierung!$G$50,IF(Bewertung!BL15=Faktorisierung!$E$51,Faktorisierung!$G$51,0))))))","v":""}]
[{"$nulls":3},"11c) Flächenbeschaffenheit",{"$f":"IF(Bewertung!I16=\"\",\"\",IF(Bewertung!I16=Faktorisierung!$A$56,Faktorisierung!$G$56,(IF(Bewertung!I16=Faktorisierung!$A$57,Faktorisierung!$G$57,IF(Bewertung!I16=Faktorisierung!$A$58,Faktorisierung!$G$58,IF(Bewertung!I16=Faktorisierung!$A$59,Faktorisierung!$G$59,0))))))","v":0.5},{"$f":"IF(Bewertung!J16=\"\",\"\",IF(Bewertung!J16=Faktorisierung!$A$56,Faktorisierung!$G$56,(IF(Bewertung!J16=Faktorisierung!$A$57,Faktorisierung!$G$57,IF(Bewertung!J16=Faktorisierung!$A$58,Faktorisierung!$G$58,IF(Bewertung!J16=Faktorisierung!$A$59,Faktorisierung!$G$59,0))))))","v":""},{"$f":"IF(Bewertung!#REF!=\"\",\"\",IF(Bewertung!#REF!=Faktorisierung!$A$56,Faktorisierung!$G$56,(IF(Bewertung!#REF!=Faktorisierung!$A$57,Faktorisierung!$G$57,IF(Bewertung!#REF!=Faktorisierung!$A$58,Faktorisierung!$G$58,IF(Bewertung!#REF!=Faktorisierung!$A$59,Faktorisierung!$G$59,0))))))","v":{"$error":"#REF!"}},{"$f":"IF(Bewertung!#REF!=\"\",\"\",IF(Bewertung!#REF!=Faktorisierung!$A$56,Faktorisierung!$G$56,(IF(Bewertung!#REF!=Faktorisierung!$A$57,Faktorisierung!$G$57,IF(Bewertung!#REF!=Faktorisierung!$A$58,Faktorisierung!$G$58,IF(Bewertung!#REF!=Faktorisierung!$A$59,Faktorisierung!$G$59,0))))))","v":{"$error":"#REF!"}},{"$f":"IF(Bewertung!#REF!=\"\",\"\",IF(Bewertung!#REF!=Faktorisierung!$A$56,Faktorisierung!$G$56,(IF(Bewertung!#REF!=Faktorisierung!$A$57,Faktorisierung!$G$57,IF(Bewertung!#REF!=Faktorisierung!$A$58,Faktorisierung!$G$58,IF(Bewertung!#REF!=Faktorisierung!$A$59,Faktorisierung!$G$59,0))))))","v":{"$error":"#REF!"}},{"$f":"IF(Bewertung!#REF!=\"\",\"\",IF(Bewertung!#REF!=Faktorisierung!$A$56,Faktorisierung!$G$56,(IF(Bewertung!#REF!=Faktorisierung!$A$57,Faktorisierung!$G$57,IF(Bewertung!#REF!=Faktorisierung!$A$58,Faktorisierung!$G$58,IF(Bewertung!#REF!=Faktorisierung!$A$59,Faktorisierung!$G$59,0))))))","v":{"$error":"#REF!"}},{"$f":"IF(Bewertung!#REF!=\"\",\"\",IF(Bewertung!#REF!=Faktorisierung!$A$56,Faktorisierung!$G$56,(IF(Bewertung!#REF!=Faktorisierung!$A$57,Faktorisierung!$G$57,IF(Bewertung!#REF!=Faktorisierung!$A$58,Faktorisierung!$G$58,IF(Bewertung!#REF!=Faktorisierung!$A$59,Faktorisierung!$G$59,0))))))","v":{"$error":"#REF!"}},{"$f":"IF(Bewertung!#REF!=\"\",\"\",IF(Bewertung!#REF!=Faktorisierung!$A$56,Faktorisierung!$G$56,(IF(Bewertung!#REF!=Faktorisierung!$A$57,Faktorisierung!$G$57,IF(Bewertung!#REF!=Faktorisierung!$A$58,Faktorisierung!$G$58,IF(Bewertung!#REF!=Faktorisierung!$A$59,Faktorisierung!$G$59,0))))))","v":{"$error":"#REF!"}},{"$f":"IF(Bewertung!K16=\"\",\"\",IF(Bewertung!K16=Faktorisierung!$A$56,Faktorisierung!$G$56,(IF(Bewertung!K16=Faktorisierung!$A$57,Faktorisierung!$G$57,IF(Bewertung!K16=Faktorisierung!$A$58,Faktorisierung!$G$58,IF(Bewertung!K16=Faktorisierung!$A$59,Faktorisierung!$G$59,0))))))","v":""},{"$f":"IF(Bewertung!L16=\"\",\"\",IF(Bewertung!L16=Faktorisierung!$A$56,Faktorisierung!$G$56,(IF(Bewertung!L16=Faktorisierung!$A$57,Faktorisierung!$G$57,IF(Bewertung!L16=Faktorisierung!$A$58,Faktorisierung!$G$58,IF(Bewertung!L16=Faktorisierung!$A$59,Faktorisierung!$G$59,0))))))","v":""},{"$f":"IF(Bewertung!M16=\"\",\"\",IF(Bewertung!M16=Faktorisierung!$A$56,Faktorisierung!$G$56,(IF(Bewertung!M16=Faktorisierung!$A$57,Faktorisierung!$G$57,IF(Bewertung!M16=Faktorisierung!$A$58,Faktorisierung!$G$58,IF(Bewertung!M16=Faktorisierung!$A$59,Faktorisierung!$G$59,0))))))","v":""},{"$f":"IF(Bewertung!N16=\"\",\"\",IF(Bewertung!N16=Faktorisierung!$A$56,Faktorisierung!$G$56,(IF(Bewertung!N16=Faktorisierung!$A$57,Faktorisierung!$G$57,IF(Bewertung!N16=Faktorisierung!$A$58,Faktorisierung!$G$58,IF(Bewertung!N16=Faktorisierung!$A$59,Faktorisierung!$G$59,0))))))","v":""},{"$f":"IF(Bewertung!O16=\"\",\"\",IF(Bewertung!O16=Faktorisierung!$A$56,Faktorisierung!$G$56,(IF(Bewertung!O16=Faktorisierung!$A$57,Faktorisierung!$G$57,IF(Bewertung!O16=Faktorisierung!$A$58,Faktorisierung!$G$58,IF(Bewertung!O16=Faktorisierung!$A$59,Faktorisierung!$G$59,0))))))","v":""},{"$f":"IF(Bewertung!P16=\"\",\"\",IF(Bewertung!P16=Faktorisierung!$A$56,Faktorisierung!$G$56,(IF(Bewertung!P16=Faktorisierung!$A$57,Faktorisierung!$G$57,IF(Bewertung!P16=Faktorisierung!$A$58,Faktorisierung!$G$58,IF(Bewertung!P16=Faktorisierung!$A$59,Faktorisierung!$G$59,0))))))","v":""},{"$f":"IF(Bewertung!Q16=\"\",\"\",IF(Bewertung!Q16=Faktorisierung!$A$56,Faktorisierung!$G$56,(IF(Bewertung!Q16=Faktorisierung!$A$57,Faktorisierung!$G$57,IF(Bewertung!Q16=Faktorisierung!$A$58,Faktorisierung!$G$58,IF(Bewertung!Q16=Faktorisierung!$A$59,Faktorisierung!$G$59,0))))))","v":""},{"$f":"IF(Bewertung!R16=\"\",\"\",IF(Bewertung!R16=Faktorisierung!$A$56,Faktorisierung!$G$56,(IF(Bewertung!R16=Faktorisierung!$A$57,Faktorisierung!$G$57,IF(Bewertung!R16=Faktorisierung!$A$58,Faktorisierung!$G$58,IF(Bewertung!R16=Faktorisierung!$A$59,Faktorisierung!$G$59,0))))))","v":""},{"$f":"IF(Bewertung!S16=\"\",\"\",IF(Bewertung!S16=Faktorisierung!$A$56,Faktorisierung!$G$56,(IF(Bewertung!S16=Faktorisierung!$A$57,Faktorisierung!$G$57,IF(Bewertung!S16=Faktorisierung!$A$58,Faktorisierung!$G$58,IF(Bewertung!S16=Faktorisierung!$A$59,Faktorisierung!$G$59,0))))))","v":""},{"$f":"IF(Bewertung!T16=\"\",\"\",IF(Bewertung!T16=Faktorisierung!$A$56,Faktorisierung!$G$56,(IF(Bewertung!T16=Faktorisierung!$A$57,Faktorisierung!$G$57,IF(Bewertung!T16=Faktorisierung!$A$58,Faktorisierung!$G$58,IF(Bewertung!T16=Faktorisierung!$A$59,Faktorisierung!$G$59,0))))))","v":""},{"$f":"IF(Bewertung!U16=\"\",\"\",IF(Bewertung!U16=Faktorisierung!$A$56,Faktorisierung!$G$56,(IF(Bewertung!U16=Faktorisierung!$A$57,Faktorisierung!$G$57,IF(Bewertung!U16=Faktorisierung!$A$58,Faktorisierung!$G$58,IF(Bewertung!U16=Faktorisierung!$A$59,Faktorisierung!$G$59,0))))))","v":""},{"$f":"IF(Bewertung!V16=\"\",\"\",IF(Bewertung!V16=Faktorisierung!$A$56,Faktorisierung!$G$56,(IF(Bewertung!V16=Faktorisierung!$A$57,Faktorisierung!$G$57,IF(Bewertung!V16=Faktorisierung!$A$58,Faktorisierung!$G$58,IF(Bewertung!V16=Faktorisierung!$A$59,Faktorisierung!$G$59,0))))))","v":""},{"$f":"IF(Bewertung!W16=\"\",\"\",IF(Bewertung!W16=Faktorisierung!$A$56,Faktorisierung!$G$56,(IF(Bewertung!W16=Faktorisierung!$A$57,Faktorisierung!$G$57,IF(Bewertung!W16=Faktorisierung!$A$58,Faktorisierung!$G$58,IF(Bewertung!W16=Faktorisierung!$A$59,Faktorisierung!$G$59,0))))))","v":""},{"$f":"IF(Bewertung!X16=\"\",\"\",IF(Bewertung!X16=Faktorisierung!$A$56,Faktorisierung!$G$56,(IF(Bewertung!X16=Faktorisierung!$A$57,Faktorisierung!$G$57,IF(Bewertung!X16=Faktorisierung!$A$58,Faktorisierung!$G$58,IF(Bewertung!X16=Faktorisierung!$A$59,Faktorisierung!$G$59,0))))))","v":""},{"$f":"IF(Bewertung!Y16=\"\",\"\",IF(Bewertung!Y16=Faktorisierung!$A$56,Faktorisierung!$G$56,(IF(Bewertung!Y16=Faktorisierung!$A$57,Faktorisierung!$G$57,IF(Bewertung!Y16=Faktorisierung!$A$58,Faktorisierung!$G$58,IF(Bewertung!Y16=Faktorisierung!$A$59,Faktorisierung!$G$59,0))))))","v":""},{"$f":"IF(Bewertung!Z16=\"\",\"\",IF(Bewertung!Z16=Faktorisierung!$A$56,Faktorisierung!$G$56,(IF(Bewertung!Z16=Faktorisierung!$A$57,Faktorisierung!$G$57,IF(Bewertung!Z16=Faktorisierung!$A$58,Faktorisierung!$G$58,IF(Bewertung!Z16=Faktorisierung!$A$59,Faktorisierung!$G$59,0))))))","v":""},{"$f":"IF(Bewertung!AA16=\"\",\"\",IF(Bewertung!AA16=Faktorisierung!$A$56,Faktorisierung!$G$56,(IF(Bewertung!AA16=Faktorisierung!$A$57,Faktorisierung!$G$57,IF(Bewertung!AA16=Faktorisierung!$A$58,Faktorisierung!$G$58,IF(Bewertung!AA16=Faktorisierung!$A$59,Faktorisierung!$G$59,0))))))","v":""},{"$f":"IF(Bewertung!AB16=\"\",\"\",IF(Bewertung!AB16=Faktorisierung!$A$56,Faktorisierung!$G$56,(IF(Bewertung!AB16=Faktorisierung!$A$57,Faktorisierung!$G$57,IF(Bewertung!AB16=Faktorisierung!$A$58,Faktorisierung!$G$58,IF(Bewertung!AB16=Faktorisierung!$A$59,Faktorisierung!$G$59,0))))))","v":""},{"$f":"IF(Bewertung!AC16=\"\",\"\",IF(Bewertung!AC16=Faktorisierung!$A$56,Faktorisierung!$G$56,(IF(Bewertung!AC16=Faktorisierung!$A$57,Faktorisierung!$G$57,IF(Bewertung!AC16=Faktorisierung!$A$58,Faktorisierung!$G$58,IF(Bewertung!AC16=Faktorisierung!$A$59,Faktorisierung!$G$59,0))))))","v":""},{"$f":"IF(Bewertung!AD16=\"\",\"\",IF(Bewertung!AD16=Faktorisierung!$A$56,Faktorisierung!$G$56,(IF(Bewertung!AD16=Faktorisierung!$A$57,Faktorisierung!$G$57,IF(Bewertung!AD16=Faktorisierung!$A$58,Faktorisierung!$G$58,IF(Bewertung!AD16=Faktorisierung!$A$59,Faktorisierung!$G$59,0))))))","v":""},{"$f":"IF(Bewertung!AE16=\"\",\"\",IF(Bewertung!AE16=Faktorisierung!$A$56,Faktorisierung!$G$56,(IF(Bewertung!AE16=Faktorisierung!$A$57,Faktorisierung!$G$57,IF(Bewertung!AE16=Faktorisierung!$A$58,Faktorisierung!$G$58,IF(Bewertung!AE16=Faktorisierung!$A$59,Faktorisierung!$G$59,0))))))","v":""},{"$f":"IF(Bewertung!AF16=\"\",\"\",IF(Bewertung!AF16=Faktorisierung!$A$56,Faktorisierung!$G$56,(IF(Bewertung!AF16=Faktorisierung!$A$57,Faktorisierung!$G$57,IF(Bewertung!AF16=Faktorisierung!$A$58,Faktorisierung!$G$58,IF(Bewertung!AF16=Faktorisierung!$A$59,Faktorisierung!$G$59,0))))))","v":""},{"$f":"IF(Bewertung!AG16=\"\",\"\",IF(Bewertung!AG16=Faktorisierung!$A$56,Faktorisierung!$G$56,(IF(Bewertung!AG16=Faktorisierung!$A$57,Faktorisierung!$G$57,IF(Bewertung!AG16=Faktorisierung!$A$58,Faktorisierung!$G$58,IF(Bewertung!AG16=Faktorisierung!$A$59,Faktorisierung!$G$59,0))))))","v":""},{"$f":"IF(Bewertung!AH16=\"\",\"\",IF(Bewertung!AH16=Faktorisierung!$A$56,Faktorisierung!$G$56,(IF(Bewertung!AH16=Faktorisierung!$A$57,Faktorisierung!$G$57,IF(Bewertung!AH16=Faktorisierung!$A$58,Faktorisierung!$G$58,IF(Bewertung!AH16=Faktorisierung!$A$59,Faktorisierung!$G$59,0))))))","v":""},{"$f":"IF(Bewertung!AI16=\"\",\"\",IF(Bewertung!AI16=Faktorisierung!$A$56,Faktorisierung!$G$56,(IF(Bewertung!AI16=Faktorisierung!$A$57,Faktorisierung!$G$57,IF(Bewertung!AI16=Faktorisierung!$A$58,Faktorisierung!$G$58,IF(Bewertung!AI16=Faktorisierung!$A$59,Faktorisierung!$G$59,0))))))","v":""},{"$f":"IF(Bewertung!AJ16=\"\",\"\",IF(Bewertung!AJ16=Faktorisierung!$A$56,Faktorisierung!$G$56,(IF(Bewertung!AJ16=Faktorisierung!$A$57,Faktorisierung!$G$57,IF(Bewertung!AJ16=Faktorisierung!$A$58,Faktorisierung!$G$58,IF(Bewertung!AJ16=Faktorisierung!$A$59,Faktorisierung!$G$59,0))))))","v":""},{"$f":"IF(Bewertung!AK16=\"\",\"\",IF(Bewertung!AK16=Faktorisierung!$A$56,Faktorisierung!$G$56,(IF(Bewertung!AK16=Faktorisierung!$A$57,Faktorisierung!$G$57,IF(Bewertung!AK16=Faktorisierung!$A$58,Faktorisierung!$G$58,IF(Bewertung!AK16=Faktorisierung!$A$59,Faktorisierung!$G$59,0))))))","v":""},{"$f":"IF(Bewertung!AL16=\"\",\"\",IF(Bewertung!AL16=Faktorisierung!$A$56,Faktorisierung!$G$56,(IF(Bewertung!AL16=Faktorisierung!$A$57,Faktorisierung!$G$57,IF(Bewertung!AL16=Faktorisierung!$A$58,Faktorisierung!$G$58,IF(Bewertung!AL16=Faktorisierung!$A$59,Faktorisierung!$G$59,0))))))","v":""},{"$f":"IF(Bewertung!AM16=\"\",\"\",IF(Bewertung!AM16=Faktorisierung!$A$56,Faktorisierung!$G$56,(IF(Bewertung!AM16=Faktorisierung!$A$57,Faktorisierung!$G$57,IF(Bewertung!AM16=Faktorisierung!$A$58,Faktorisierung!$G$58,IF(Bewertung!AM16=Faktorisierung!$A$59,Faktorisierung!$G$59,0))))))","v":""},{"$f":"IF(Bewertung!AN16=\"\",\"\",IF(Bewertung!AN16=Faktorisierung!$A$56,Faktorisierung!$G$56,(IF(Bewertung!AN16=Faktorisierung!$A$57,Faktorisierung!$G$57,IF(Bewertung!AN16=Faktorisierung!$A$58,Faktorisierung!$G$58,IF(Bewertung!AN16=Faktorisierung!$A$59,Faktorisierung!$G$59,0))))))","v":""},{"$f":"IF(Bewertung!AO16=\"\",\"\",IF(Bewertung!AO16=Faktorisierung!$A$56,Faktorisierung!$G$56,(IF(Bewertung!AO16=Faktorisierung!$A$57,Faktorisierung!$G$57,IF(Bewertung!AO16=Faktorisierung!$A$58,Faktorisierung!$G$58,IF(Bewertung!AO16=Faktorisierung!$A$59,Faktorisierung!$G$59,0))))))","v":""},{"$f":"IF(Bewertung!AP16=\"\",\"\",IF(Bewertung!AP16=Faktorisierung!$A$56,Faktorisierung!$G$56,(IF(Bewertung!AP16=Faktorisierung!$A$57,Faktorisierung!$G$57,IF(Bewertung!AP16=Faktorisierung!$A$58,Faktorisierung!$G$58,IF(Bewertung!AP16=Faktorisierung!$A$59,Faktorisierung!$G$59,0))))))","v":""},{"$f":"IF(Bewertung!AQ16=\"\",\"\",IF(Bewertung!AQ16=Faktorisierung!$A$56,Faktorisierung!$G$56,(IF(Bewertung!AQ16=Faktorisierung!$A$57,Faktorisierung!$G$57,IF(Bewertung!AQ16=Faktorisierung!$A$58,Faktorisierung!$G$58,IF(Bewertung!AQ16=Faktorisierung!$A$59,Faktorisierung!$G$59,0))))))","v":""},{"$f":"IF(Bewertung!AR16=\"\",\"\",IF(Bewertung!AR16=Faktorisierung!$A$56,Faktorisierung!$G$56,(IF(Bewertung!AR16=Faktorisierung!$A$57,Faktorisierung!$G$57,IF(Bewertung!AR16=Faktorisierung!$A$58,Faktorisierung!$G$58,IF(Bewertung!AR16=Faktorisierung!$A$59,Faktorisierung!$G$59,0))))))","v":""},{"$f":"IF(Bewertung!AS16=\"\",\"\",IF(Bewertung!AS16=Faktorisierung!$A$56,Faktorisierung!$G$56,(IF(Bewertung!AS16=Faktorisierung!$A$57,Faktorisierung!$G$57,IF(Bewertung!AS16=Faktorisierung!$A$58,Faktorisierung!$G$58,IF(Bewertung!AS16=Faktorisierung!$A$59,Faktorisierung!$G$59,0))))))","v":""},{"$f":"IF(Bewertung!AT16=\"\",\"\",IF(Bewertung!AT16=Faktorisierung!$A$56,Faktorisierung!$G$56,(IF(Bewertung!AT16=Faktorisierung!$A$57,Faktorisierung!$G$57,IF(Bewertung!AT16=Faktorisierung!$A$58,Faktorisierung!$G$58,IF(Bewertung!AT16=Faktorisierung!$A$59,Faktorisierung!$G$59,0))))))","v":""},{"$f":"IF(Bewertung!AU16=\"\",\"\",IF(Bewertung!AU16=Faktorisierung!$A$56,Faktorisierung!$G$56,(IF(Bewertung!AU16=Faktorisierung!$A$57,Faktorisierung!$G$57,IF(Bewertung!AU16=Faktorisierung!$A$58,Faktorisierung!$G$58,IF(Bewertung!AU16=Faktorisierung!$A$59,Faktorisierung!$G$59,0))))))","v":""},{"$f":"IF(Bewertung!AV16=\"\",\"\",IF(Bewertung!AV16=Faktorisierung!$A$56,Faktorisierung!$G$56,(IF(Bewertung!AV16=Faktorisierung!$A$57,Faktorisierung!$G$57,IF(Bewertung!AV16=Faktorisierung!$A$58,Faktorisierung!$G$58,IF(Bewertung!AV16=Faktorisierung!$A$59,Faktorisierung!$G$59,0))))))","v":""},{"$f":"IF(Bewertung!AW22=\"\",\"\",IF(Bewertung!AW22=Faktorisierung!$A$56,Faktorisierung!$G$56,(IF(Bewertung!AW22=Faktorisierung!$A$57,Faktorisierung!$G$57,IF(Bewertung!AW22=Faktorisierung!$A$58,Faktorisierung!$G$58,IF(Bewertung!AW22=Faktorisierung!$A$59,Faktorisierung!$G$59,0))))))","v":""},{"$f":"IF(Bewertung!AX22=\"\",\"\",IF(Bewertung!AX22=Faktorisierung!$A$56,Faktorisierung!$G$56,(IF(Bewertung!AX22=Faktorisierung!$A$57,Faktorisierung!$G$57,IF(Bewertung!AX22=Faktorisierung!$A$58,Faktorisierung!$G$58,IF(Bewertung!AX22=Faktorisierung!$A$59,Faktorisierung!$G$59,0))))))","v":""},{"$f":"IF(Bewertung!AY22=\"\",\"\",IF(Bewertung!AY22=Faktorisierung!$A$56,Faktorisierung!$G$56,(IF(Bewertung!AY22=Faktorisierung!$A$57,Faktorisierung!$G$57,IF(Bewertung!AY22=Faktorisierung!$A$58,Faktorisierung!$G$58,IF(Bewertung!AY22=Faktorisierung!$A$59,Faktorisierung!$G$59,0))))))","v":""},{"$f":"IF(Bewertung!AZ22=\"\",\"\",IF(Bewertung!AZ22=Faktorisierung!$A$56,Faktorisierung!$G$56,(IF(Bewertung!AZ22=Faktorisierung!$A$57,Faktorisierung!$G$57,IF(Bewertung!AZ22=Faktorisierung!$A$58,Faktorisierung!$G$58,IF(Bewertung!AZ22=Faktorisierung!$A$59,Faktorisierung!$G$59,0))))))","v":""},{"$f":"IF(Bewertung!BA22=\"\",\"\",IF(Bewertung!BA22=Faktorisierung!$A$56,Faktorisierung!$G$56,(IF(Bewertung!BA22=Faktorisierung!$A$57,Faktorisierung!$G$57,IF(Bewertung!BA22=Faktorisierung!$A$58,Faktorisierung!$G$58,IF(Bewertung!BA22=Faktorisierung!$A$59,Faktorisierung!$G$59,0))))))","v":""},{"$f":"IF(Bewertung!BB22=\"\",\"\",IF(Bewertung!BB22=Faktorisierung!$A$56,Faktorisierung!$G$56,(IF(Bewertung!BB22=Faktorisierung!$A$57,Faktorisierung!$G$57,IF(Bewertung!BB22=Faktorisierung!$A$58,Faktorisierung!$G$58,IF(Bewertung!BB22=Faktorisierung!$A$59,Faktorisierung!$G$59,0))))))","v":""},{"$f":"IF(Bewertung!BC22=\"\",\"\",IF(Bewertung!BC22=Faktorisierung!$A$56,Faktorisierung!$G$56,(IF(Bewertung!BC22=Faktorisierung!$A$57,Faktorisierung!$G$57,IF(Bewertung!BC22=Faktorisierung!$A$58,Faktorisierung!$G$58,IF(Bewertung!BC22=Faktorisierung!$A$59,Faktorisierung!$G$59,0))))))","v":""},{"$f":"IF(Bewertung!BD22=\"\",\"\",IF(Bewertung!BD22=Faktorisierung!$A$56,Faktorisierung!$G$56,(IF(Bewertung!BD22=Faktorisierung!$A$57,Faktorisierung!$G$57,IF(Bewertung!BD22=Faktorisierung!$A$58,Faktorisierung!$G$58,IF(Bewertung!BD22=Faktorisierung!$A$59,Faktorisierung!$G$59,0))))))","v":""},{"$f":"IF(Bewertung!BE22=\"\",\"\",IF(Bewertung!BE22=Faktorisierung!$A$56,Faktorisierung!$G$56,(IF(Bewertung!BE22=Faktorisierung!$A$57,Faktorisierung!$G$57,IF(Bewertung!BE22=Faktorisierung!$A$58,Faktorisierung!$G$58,IF(Bewertung!BE22=Faktorisierung!$A$59,Faktorisierung!$G$59,0))))))","v":""},{"$f":"IF(Bewertung!BF22=\"\",\"\",IF(Bewertung!BF22=Faktorisierung!$A$56,Faktorisierung!$G$56,(IF(Bewertung!BF22=Faktorisierung!$A$57,Faktorisierung!$G$57,IF(Bewertung!BF22=Faktorisierung!$A$58,Faktorisierung!$G$58,IF(Bewertung!BF22=Faktorisierung!$A$59,Faktorisierung!$G$59,0))))))","v":""},{"$f":"IF(Bewertung!BG22=\"\",\"\",IF(Bewertung!BG22=Faktorisierung!$A$56,Faktorisierung!$G$56,(IF(Bewertung!BG22=Faktorisierung!$A$57,Faktorisierung!$G$57,IF(Bewertung!BG22=Faktorisierung!$A$58,Faktorisierung!$G$58,IF(Bewertung!BG22=Faktorisierung!$A$59,Faktorisierung!$G$59,0))))))","v":""},{"$f":"IF(Bewertung!BH22=\"\",\"\",IF(Bewertung!BH22=Faktorisierung!$A$56,Faktorisierung!$G$56,(IF(Bewertung!BH22=Faktorisierung!$A$57,Faktorisierung!$G$57,IF(Bewertung!BH22=Faktorisierung!$A$58,Faktorisierung!$G$58,IF(Bewertung!BH22=Faktorisierung!$A$59,Faktorisierung!$G$59,0))))))","v":""},{"$f":"IF(Bewertung!BI22=\"\",\"\",IF(Bewertung!BI22=Faktorisierung!$A$56,Faktorisierung!$G$56,(IF(Bewertung!BI22=Faktorisierung!$A$57,Faktorisierung!$G$57,IF(Bewertung!BI22=Faktorisierung!$A$58,Faktorisierung!$G$58,IF(Bewertung!BI22=Faktorisierung!$A$59,Faktorisierung!$G$59,0))))))","v":""},{"$f":"IF(Bewertung!BJ22=\"\",\"\",IF(Bewertung!BJ22=Faktorisierung!$A$56,Faktorisierung!$G$56,(IF(Bewertung!BJ22=Faktorisierung!$A$57,Faktorisierung!$G$57,IF(Bewertung!BJ22=Faktorisierung!$A$58,Faktorisierung!$G$58,IF(Bewertung!BJ22=Faktorisierung!$A$59,Faktorisierung!$G$59,0))))))","v":""},{"$f":"IF(Bewertung!BK22=\"\",\"\",IF(Bewertung!BK22=Faktorisierung!$A$56,Faktorisierung!$G$56,(IF(Bewertung!BK22=Faktorisierung!$A$57,Faktorisierung!$G$57,IF(Bewertung!BK22=Faktorisierung!$A$58,Faktorisierung!$G$58,IF(Bewertung!BK22=Faktorisierung!$A$59,Faktorisierung!$G$59,0))))))","v":""},{"$f":"IF(Bewertung!BL22=\"\",\"\",IF(Bewertung!BL22=Faktorisierung!$A$56,Faktorisierung!$G$56,(IF(Bewertung!BL22=Faktorisierung!$A$57,Faktorisierung!$G$57,IF(Bewertung!BL22=Faktorisierung!$A$58,Faktorisierung!$G$58,IF(Bewertung!BL22=Faktorisierung!$A$59,Faktorisierung!$G$59,0))))))","v":""}]
[{"$nulls":3},"11d) Beeinträchtigung der Anlieger innerhalb der VA-Fläche",{"$f":"IF(Bewertung!I17=\"\",\"\",IF(Bewertung!I17=Faktorisierung!$A$63,Faktorisierung!$C$63,(IF(Bewertung!I17=Faktorisierung!$A$64,Faktorisierung!$C$64,IF(Bewertung!I17=Faktorisierung!$A$65,Faktorisierung!$C$65,IF(Bewertung!I17=Faktorisierung!$A$66,Faktorisierung!$C$66,0))))))","v":0.5},{"$f":"IF(Bewertung!J17=\"\",\"\",IF(Bewertung!J17=Faktorisierung!$A$63,Faktorisierung!$C$63,(IF(Bewertung!J17=Faktorisierung!$A$64,Faktorisierung!$C$64,IF(Bewertung!J17=Faktorisierung!$A$65,Faktorisierung!$C$65,IF(Bewertung!J17=Faktorisierung!$A$66,Faktorisierung!$C$66,0))))))","v":""},{"$f":"IF(Bewertung!#REF!=\"\",\"\",IF(Bewertung!#REF!=Faktorisierung!$A$63,Faktorisierung!$C$63,(IF(Bewertung!#REF!=Faktorisierung!$A$64,Faktorisierung!$C$64,IF(Bewertung!#REF!=Faktorisierung!$A$65,Faktorisierung!$C$65,IF(Bewertung!#REF!=Faktorisierung!$A$66,Faktorisierung!$C$66,0))))))","v":{"$error":"#REF!"}},{"$f":"IF(Bewertung!#REF!=\"\",\"\",IF(Bewertung!#REF!=Faktorisierung!$A$63,Faktorisierung!$C$63,(IF(Bewertung!#REF!=Faktorisierung!$A$64,Faktorisierung!$C$64,IF(Bewertung!#REF!=Faktorisierung!$A$65,Faktorisierung!$C$65,IF(Bewertung!#REF!=Faktorisierung!$A$66,Faktorisierung!$C$66,0))))))","v":{"$error":"#REF!"}},{"$f":"IF(Bewertung!#REF!=\"\",\"\",IF(Bewertung!#REF!=Faktorisierung!$A$63,Faktorisierung!$C$63,(IF(Bewertung!#REF!=Faktorisierung!$A$64,Faktorisierung!$C$64,IF(Bewertung!#REF!=Faktorisierung!$A$65,Faktorisierung!$C$65,IF(Bewertung!#REF!=Faktorisierung!$A$66,Faktorisierung!$C$66,0))))))","v":{"$error":"#REF!"}},{"$f":"IF(Bewertung!#REF!=\"\",\"\",IF(Bewertung!#REF!=Faktorisierung!$A$63,Faktorisierung!$C$63,(IF(Bewertung!#REF!=Faktorisierung!$A$64,Faktorisierung!$C$64,IF(Bewertung!#REF!=Faktorisierung!$A$65,Faktorisierung!$C$65,IF(Bewertung!#REF!=Faktorisierung!$A$66,Faktorisierung!$C$66,0))))))","v":{"$error":"#REF!"}},{"$f":"IF(Bewertung!#REF!=\"\",\"\",IF(Bewertung!#REF!=Faktorisierung!$A$63,Faktorisierung!$C$63,(IF(Bewertung!#REF!=Faktorisierung!$A$64,Faktorisierung!$C$64,IF(Bewertung!#REF!=Faktorisierung!$A$65,Faktorisierung!$C$65,IF(Bewertung!#REF!=Faktorisierung!$A$66,Faktorisierung!$C$66,0))))))","v":{"$error":"#REF!"}},{"$f":"IF(Bewertung!#REF!=\"\",\"\",IF(Bewertung!#REF!=Faktorisierung!$A$63,Faktorisierung!$C$63,(IF(Bewertung!#REF!=Faktorisierung!$A$64,Faktorisierung!$C$64,IF(Bewertung!#REF!=Faktorisierung!$A$65,Faktorisierung!$C$65,IF(Bewertung!#REF!=Faktorisierung!$A$66,Faktorisierung!$C$66,0))))))","v":{"$error":"#REF!"}},{"$f":"IF(Bewertung!K17=\"\",\"\",IF(Bewertung!K17=Faktorisierung!$A$63,Faktorisierung!$C$63,(IF(Bewertung!K17=Faktorisierung!$A$64,Faktorisierung!$C$64,IF(Bewertung!K17=Faktorisierung!$A$65,Faktorisierung!$C$65,IF(Bewertung!K17=Faktorisierung!$A$66,Faktorisierung!$C$66,0))))))","v":""},{"$f":"IF(Bewertung!L17=\"\",\"\",IF(Bewertung!L17=Faktorisierung!$A$63,Faktorisierung!$C$63,(IF(Bewertung!L17=Faktorisierung!$A$64,Faktorisierung!$C$64,IF(Bewertung!L17=Faktorisierung!$A$65,Faktorisierung!$C$65,IF(Bewertung!L17=Faktorisierung!$A$66,Faktorisierung!$C$66,0))))))","v":""},{"$f":"IF(Bewertung!M17=\"\",\"\",IF(Bewertung!M17=Faktorisierung!$A$63,Faktorisierung!$C$63,(IF(Bewertung!M17=Faktorisierung!$A$64,Faktorisierung!$C$64,IF(Bewertung!M17=Faktorisierung!$A$65,Faktorisierung!$C$65,IF(Bewertung!M17=Faktorisierung!$A$66,Faktorisierung!$C$66,0))))))","v":""},{"$f":"IF(Bewertung!N17=\"\",\"\",IF(Bewertung!N17=Faktorisierung!$A$63,Faktorisierung!$C$63,(IF(Bewertung!N17=Faktorisierung!$A$64,Faktorisierung!$C$64,IF(Bewertung!N17=Faktorisierung!$A$65,Faktorisierung!$C$65,IF(Bewertung!N17=Faktorisierung!$A$66,Faktorisierung!$C$66,0))))))","v":""},{"$f":"IF(Bewertung!O17=\"\",\"\",IF(Bewertung!O17=Faktorisierung!$A$63,Faktorisierung!$C$63,(IF(Bewertung!O17=Faktorisierung!$A$64,Faktorisierung!$C$64,IF(Bewertung!O17=Faktorisierung!$A$65,Faktorisierung!$C$65,IF(Bewertung!O17=Faktorisierung!$A$66,Faktorisierung!$C$66,0))))))","v":""},{"$f":"IF(Bewertung!P17=\"\",\"\",IF(Bewertung!P17=Faktorisierung!$A$63,Faktorisierung!$C$63,(IF(Bewertung!P17=Faktorisierung!$A$64,Faktorisierung!$C$64,IF(Bewertung!P17=Faktorisierung!$A$65,Faktorisierung!$C$65,IF(Bewertung!P17=Faktorisierung!$A$66,Faktorisierung!$C$66,0))))))","v":""},{"$f":"IF(Bewertung!Q17=\"\",\"\",IF(Bewertung!Q17=Faktorisierung!$A$63,Faktorisierung!$C$63,(IF(Bewertung!Q17=Faktorisierung!$A$64,Faktorisierung!$C$64,IF(Bewertung!Q17=Faktorisierung!$A$65,Faktorisierung!$C$65,IF(Bewertung!Q17=Faktorisierung!$A$66,Faktorisierung!$C$66,0))))))","v":""},{"$f":"IF(Bewertung!R17=\"\",\"\",IF(Bewertung!R17=Faktorisierung!$A$63,Faktorisierung!$C$63,(IF(Bewertung!R17=Faktorisierung!$A$64,Faktorisierung!$C$64,IF(Bewertung!R17=Faktorisierung!$A$65,Faktorisierung!$C$65,IF(Bewertung!R17=Faktorisierung!$A$66,Faktorisierung!$C$66,0))))))","v":""},{"$f":"IF(Bewertung!S17=\"\",\"\",IF(Bewertung!S17=Faktorisierung!$A$63,Faktorisierung!$C$63,(IF(Bewertung!S17=Faktorisierung!$A$64,Faktorisierung!$C$64,IF(Bewertung!S17=Faktorisierung!$A$65,Faktorisierung!$C$65,IF(Bewertung!S17=Faktorisierung!$A$66,Faktorisierung!$C$66,0))))))","v":""},{"$f":"IF(Bewertung!T17=\"\",\"\",IF(Bewertung!T17=Faktorisierung!$A$63,Faktorisierung!$C$63,(IF(Bewertung!T17=Faktorisierung!$A$64,Faktorisierung!$C$64,IF(Bewertung!T17=Faktorisierung!$A$65,Faktorisierung!$C$65,IF(Bewertung!T17=Faktorisierung!$A$66,Faktorisierung!$C$66,0))))))","v":""},{"$f":"IF(Bewertung!U17=\"\",\"\",IF(Bewertung!U17=Faktorisierung!$A$63,Faktorisierung!$C$63,(IF(Bewertung!U17=Faktorisierung!$A$64,Faktorisierung!$C$64,IF(Bewertung!U17=Faktorisierung!$A$65,Faktorisierung!$C$65,IF(Bewertung!U17=Faktorisierung!$A$66,Faktorisierung!$C$66,0))))))","v":""},{"$f":"IF(Bewertung!V17=\"\",\"\",IF(Bewertung!V17=Faktorisierung!$A$63,Faktorisierung!$C$63,(IF(Bewertung!V17=Faktorisierung!$A$64,Faktorisierung!$C$64,IF(Bewertung!V17=Faktorisierung!$A$65,Faktorisierung!$C$65,IF(Bewertung!V17=Faktorisierung!$A$66,Faktorisierung!$C$66,0))))))","v":""},{"$f":"IF(Bewertung!W17=\"\",\"\",IF(Bewertung!W17=Faktorisierung!$A$63,Faktorisierung!$C$63,(IF(Bewertung!W17=Faktorisierung!$A$64,Faktorisierung!$C$64,IF(Bewertung!W17=Faktorisierung!$A$65,Faktorisierung!$C$65,IF(Bewertung!W17=Faktorisierung!$A$66,Faktorisierung!$C$66,0))))))","v":""},{"$f":"IF(Bewertung!X17=\"\",\"\",IF(Bewertung!X17=Faktorisierung!$A$63,Faktorisierung!$C$63,(IF(Bewertung!X17=Faktorisierung!$A$64,Faktorisierung!$C$64,IF(Bewertung!X17=Faktorisierung!$A$65,Faktorisierung!$C$65,IF(Bewertung!X17=Faktorisierung!$A$66,Faktorisierung!$C$66,0))))))","v":""},{"$f":"IF(Bewertung!Y17=\"\",\"\",IF(Bewertung!Y17=Faktorisierung!$A$63,Faktorisierung!$C$63,(IF(Bewertung!Y17=Faktorisierung!$A$64,Faktorisierung!$C$64,IF(Bewertung!Y17=Faktorisierung!$A$65,Faktorisierung!$C$65,IF(Bewertung!Y17=Faktorisierung!$A$66,Faktorisierung!$C$66,0))))))","v":""},{"$f":"IF(Bewertung!Z17=\"\",\"\",IF(Bewertung!Z17=Faktorisierung!$A$63,Faktorisierung!$C$63,(IF(Bewertung!Z17=Faktorisierung!$A$64,Faktorisierung!$C$64,IF(Bewertung!Z17=Faktorisierung!$A$65,Faktorisierung!$C$65,IF(Bewertung!Z17=Faktorisierung!$A$66,Faktorisierung!$C$66,0))))))","v":""},{"$f":"IF(Bewertung!AA17=\"\",\"\",IF(Bewertung!AA17=Faktorisierung!$A$63,Faktorisierung!$C$63,(IF(Bewertung!AA17=Faktorisierung!$A$64,Faktorisierung!$C$64,IF(Bewertung!AA17=Faktorisierung!$A$65,Faktorisierung!$C$65,IF(Bewertung!AA17=Faktorisierung!$A$66,Faktorisierung!$C$66,0))))))","v":""},{"$f":"IF(Bewertung!AB17=\"\",\"\",IF(Bewertung!AB17=Faktorisierung!$A$63,Faktorisierung!$C$63,(IF(Bewertung!AB17=Faktorisierung!$A$64,Faktorisierung!$C$64,IF(Bewertung!AB17=Faktorisierung!$A$65,Faktorisierung!$C$65,IF(Bewertung!AB17=Faktorisierung!$A$66,Faktorisierung!$C$66,0))))))","v":""},{"$f":"IF(Bewertung!AC17=\"\",\"\",IF(Bewertung!AC17=Faktorisierung!$A$63,Faktorisierung!$C$63,(IF(Bewertung!AC17=Faktorisierung!$A$64,Faktorisierung!$C$64,IF(Bewertung!AC17=Faktorisierung!$A$65,Faktorisierung!$C$65,IF(Bewertung!AC17=Faktorisierung!$A$66,Faktorisierung!$C$66,0))))))","v":""},{"$f":"IF(Bewertung!AD17=\"\",\"\",IF(Bewertung!AD17=Faktorisierung!$A$63,Faktorisierung!$C$63,(IF(Bewertung!AD17=Faktorisierung!$A$64,Faktorisierung!$C$64,IF(Bewertung!AD17=Faktorisierung!$A$65,Faktorisierung!$C$65,IF(Bewertung!AD17=Faktorisierung!$A$66,Faktorisierung!$C$66,0))))))","v":""},{"$f":"IF(Bewertung!AE17=\"\",\"\",IF(Bewertung!AE17=Faktorisierung!$A$63,Faktorisierung!$C$63,(IF(Bewertung!AE17=Faktorisierung!$A$64,Faktorisierung!$C$64,IF(Bewertung!AE17=Faktorisierung!$A$65,Faktorisierung!$C$65,IF(Bewertung!AE17=Faktorisierung!$A$66,Faktorisierung!$C$66,0))))))","v":""},{"$f":"IF(Bewertung!AF17=\"\",\"\",IF(Bewertung!AF17=Faktorisierung!$A$63,Faktorisierung!$C$63,(IF(Bewertung!AF17=Faktorisierung!$A$64,Faktorisierung!$C$64,IF(Bewertung!AF17=Faktorisierung!$A$65,Faktorisierung!$C$65,IF(Bewertung!AF17=Faktorisierung!$A$66,Faktorisierung!$C$66,0))))))","v":""},{"$f":"IF(Bewertung!AG17=\"\",\"\",IF(Bewertung!AG17=Faktorisierung!$A$63,Faktorisierung!$C$63,(IF(Bewertung!AG17=Faktorisierung!$A$64,Faktorisierung!$C$64,IF(Bewertung!AG17=Faktorisierung!$A$65,Faktorisierung!$C$65,IF(Bewertung!AG17=Faktorisierung!$A$66,Faktorisierung!$C$66,0))))))","v":""},{"$f":"IF(Bewertung!AH17=\"\",\"\",IF(Bewertung!AH17=Faktorisierung!$A$63,Faktorisierung!$C$63,(IF(Bewertung!AH17=Faktorisierung!$A$64,Faktorisierung!$C$64,IF(Bewertung!AH17=Faktorisierung!$A$65,Faktorisierung!$C$65,IF(Bewertung!AH17=Faktorisierung!$A$66,Faktorisierung!$C$66,0))))))","v":""},{"$f":"IF(Bewertung!AI17=\"\",\"\",IF(Bewertung!AI17=Faktorisierung!$A$63,Faktorisierung!$C$63,(IF(Bewertung!AI17=Faktorisierung!$A$64,Faktorisierung!$C$64,IF(Bewertung!AI17=Faktorisierung!$A$65,Faktorisierung!$C$65,IF(Bewertung!AI17=Faktorisierung!$A$66,Faktorisierung!$C$66,0))))))","v":""},{"$f":"IF(Bewertung!AJ17=\"\",\"\",IF(Bewertung!AJ17=Faktorisierung!$A$63,Faktorisierung!$C$63,(IF(Bewertung!AJ17=Faktorisierung!$A$64,Faktorisierung!$C$64,IF(Bewertung!AJ17=Faktorisierung!$A$65,Faktorisierung!$C$65,IF(Bewertung!AJ17=Faktorisierung!$A$66,Faktorisierung!$C$66,0))))))","v":""},{"$f":"IF(Bewertung!AK17=\"\",\"\",IF(Bewertung!AK17=Faktorisierung!$A$63,Faktorisierung!$C$63,(IF(Bewertung!AK17=Faktorisierung!$A$64,Faktorisierung!$C$64,IF(Bewertung!AK17=Faktorisierung!$A$65,Faktorisierung!$C$65,IF(Bewertung!AK17=Faktorisierung!$A$66,Faktorisierung!$C$66,0))))))","v":""},{"$f":"IF(Bewertung!AL17=\"\",\"\",IF(Bewertung!AL17=Faktorisierung!$A$63,Faktorisierung!$C$63,(IF(Bewertung!AL17=Faktorisierung!$A$64,Faktorisierung!$C$64,IF(Bewertung!AL17=Faktorisierung!$A$65,Faktorisierung!$C$65,IF(Bewertung!AL17=Faktorisierung!$A$66,Faktorisierung!$C$66,0))))))","v":""},{"$f":"IF(Bewertung!AM17=\"\",\"\",IF(Bewertung!AM17=Faktorisierung!$A$63,Faktorisierung!$C$63,(IF(Bewertung!AM17=Faktorisierung!$A$64,Faktorisierung!$C$64,IF(Bewertung!AM17=Faktorisierung!$A$65,Faktorisierung!$C$65,IF(Bewertung!AM17=Faktorisierung!$A$66,Faktorisierung!$C$66,0))))))","v":""},{"$f":"IF(Bewertung!AN17=\"\",\"\",IF(Bewertung!AN17=Faktorisierung!$A$63,Faktorisierung!$C$63,(IF(Bewertung!AN17=Faktorisierung!$A$64,Faktorisierung!$C$64,IF(Bewertung!AN17=Faktorisierung!$A$65,Faktorisierung!$C$65,IF(Bewertung!AN17=Faktorisierung!$A$66,Faktorisierung!$C$66,0))))))","v":""},{"$f":"IF(Bewertung!AO17=\"\",\"\",IF(Bewertung!AO17=Faktorisierung!$A$63,Faktorisierung!$C$63,(IF(Bewertung!AO17=Faktorisierung!$A$64,Faktorisierung!$C$64,IF(Bewertung!AO17=Faktorisierung!$A$65,Faktorisierung!$C$65,IF(Bewertung!AO17=Faktorisierung!$A$66,Faktorisierung!$C$66,0))))))","v":""},{"$f":"IF(Bewertung!AP17=\"\",\"\",IF(Bewertung!AP17=Faktorisierung!$A$63,Faktorisierung!$C$63,(IF(Bewertung!AP17=Faktorisierung!$A$64,Faktorisierung!$C$64,IF(Bewertung!AP17=Faktorisierung!$A$65,Faktorisierung!$C$65,IF(Bewertung!AP17=Faktorisierung!$A$66,Faktorisierung!$C$66,0))))))","v":""},{"$f":"IF(Bewertung!AQ17=\"\",\"\",IF(Bewertung!AQ17=Faktorisierung!$A$63,Faktorisierung!$C$63,(IF(Bewertung!AQ17=Faktorisierung!$A$64,Faktorisierung!$C$64,IF(Bewertung!AQ17=Faktorisierung!$A$65,Faktorisierung!$C$65,IF(Bewertung!AQ17=Faktorisierung!$A$66,Faktorisierung!$C$66,0))))))","v":""},{"$f":"IF(Bewertung!AR17=\"\",\"\",IF(Bewertung!AR17=Faktorisierung!$A$63,Faktorisierung!$C$63,(IF(Bewertung!AR17=Faktorisierung!$A$64,Faktorisierung!$C$64,IF(Bewertung!AR17=Faktorisierung!$A$65,Faktorisierung!$C$65,IF(Bewertung!AR17=Faktorisierung!$A$66,Faktorisierung!$C$66,0))))))","v":""},{"$f":"IF(Bewertung!AS17=\"\",\"\",IF(Bewertung!AS17=Faktorisierung!$A$63,Faktorisierung!$C$63,(IF(Bewertung!AS17=Faktorisierung!$A$64,Faktorisierung!$C$64,IF(Bewertung!AS17=Faktorisierung!$A$65,Faktorisierung!$C$65,IF(Bewertung!AS17=Faktorisierung!$A$66,Faktorisierung!$C$66,0))))))","v":""},{"$f":"IF(Bewertung!AT17=\"\",\"\",IF(Bewertung!AT17=Faktorisierung!$A$63,Faktorisierung!$C$63,(IF(Bewertung!AT17=Faktorisierung!$A$64,Faktorisierung!$C$64,IF(Bewertung!AT17=Faktorisierung!$A$65,Faktorisierung!$C$65,IF(Bewertung!AT17=Faktorisierung!$A$66,Faktorisierung!$C$66,0))))))","v":""},{"$f":"IF(Bewertung!AU17=\"\",\"\",IF(Bewertung!AU17=Faktorisierung!$A$63,Faktorisierung!$C$63,(IF(Bewertung!AU17=Faktorisierung!$A$64,Faktorisierung!$C$64,IF(Bewertung!AU17=Faktorisierung!$A$65,Faktorisierung!$C$65,IF(Bewertung!AU17=Faktorisierung!$A$66,Faktorisierung!$C$66,0))))))","v":""},{"$f":"IF(Bewertung!AV17=\"\",\"\",IF(Bewertung!AV17=Faktorisierung!$A$63,Faktorisierung!$C$63,(IF(Bewertung!AV17=Faktorisierung!$A$64,Faktorisierung!$C$64,IF(Bewertung!AV17=Faktorisierung!$A$65,Faktorisierung!$C$65,IF(Bewertung!AV17=Faktorisierung!$A$66,Faktorisierung!$C$66,0))))))","v":""}]
[{"$nulls":3},"11e) Besucher der VA außerhalb der VA-Fläche zu erwarten",{"$f":"IF(Bewertung!I18=\"\",\"\",IF(Bewertung!I18=Faktorisierung!$E$63,Faktorisierung!$G$63,(IF(Bewertung!I18=Faktorisierung!$E$64,Faktorisierung!$G$64,IF(Bewertung!I18=Faktorisierung!$E$65,Faktorisierung!$G$65,IF(Bewertung!I18=Faktorisierung!$E$66,Faktorisierung!$G$66,0))))))","v":0.5},{"$f":"IF(Bewertung!J18=\"\",\"\",IF(Bewertung!J18=Faktorisierung!$E$63,Faktorisierung!$G$63,(IF(Bewertung!J18=Faktorisierung!$E$64,Faktorisierung!$G$64,IF(Bewertung!J18=Faktorisierung!$E$65,Faktorisierung!$G$65,IF(Bewertung!J18=Faktorisierung!$E$66,Faktorisierung!$G$66,0))))))","v":""},{"$f":"IF(Bewertung!#REF!=\"\",\"\",IF(Bewertung!#REF!=Faktorisierung!$E$63,Faktorisierung!$G$63,(IF(Bewertung!#REF!=Faktorisierung!$E$64,Faktorisierung!$G$64,IF(Bewertung!#REF!=Faktorisierung!$E$65,Faktorisierung!$G$65,IF(Bewertung!#REF!=Faktorisierung!$E$66,Faktorisierung!$G$66,0))))))","v":{"$error":"#REF!"}},{"$f":"IF(Bewertung!#REF!=\"\",\"\",IF(Bewertung!#REF!=Faktorisierung!$E$63,Faktorisierung!$G$63,(IF(Bewertung!#REF!=Faktorisierung!$E$64,Faktorisierung!$G$64,IF(Bewertung!#REF!=Faktorisierung!$E$65,Faktorisierung!$G$65,IF(Bewertung!#REF!=Faktorisierung!$E$66,Faktorisierung!$G$66,0))))))","v":{"$error":"#REF!"}},{"$f":"IF(Bewertung!#REF!=\"\",\"\",IF(Bewertung!#REF!=Faktorisierung!$E$63,Faktorisierung!$G$63,(IF(Bewertung!#REF!=Faktorisierung!$E$64,Faktorisierung!$G$64,IF(Bewertung!#REF!=Faktorisierung!$E$65,Faktorisierung!$G$65,IF(Bewertung!#REF!=Faktorisierung!$E$66,Faktorisierung!$G$66,0))))))","v":{"$error":"#REF!"}},{"$f":"IF(Bewertung!#REF!=\"\",\"\",IF(Bewertung!#REF!=Faktorisierung!$E$63,Faktorisierung!$G$63,(IF(Bewertung!#REF!=Faktorisierung!$E$64,Faktorisierung!$G$64,IF(Bewertung!#REF!=Faktorisierung!$E$65,Faktorisierung!$G$65,IF(Bewertung!#REF!=Faktorisierung!$E$66,Faktorisierung!$G$66,0))))))","v":{"$error":"#REF!"}},{"$f":"IF(Bewertung!#REF!=\"\",\"\",IF(Bewertung!#REF!=Faktorisierung!$E$63,Faktorisierung!$G$63,(IF(Bewertung!#REF!=Faktorisierung!$E$64,Faktorisierung!$G$64,IF(Bewertung!#REF!=Faktorisierung!$E$65,Faktorisierung!$G$65,IF(Bewertung!#REF!=Faktorisierung!$E$66,Faktorisierung!$G$66,0))))))","v":{"$error":"#REF!"}},{"$f":"IF(Bewertung!#REF!=\"\",\"\",IF(Bewertung!#REF!=Faktorisierung!$E$63,Faktorisierung!$G$63,(IF(Bewertung!#REF!=Faktorisierung!$E$64,Faktorisierung!$G$64,IF(Bewertung!#REF!=Faktorisierung!$E$65,Faktorisierung!$G$65,IF(Bewertung!#REF!=Faktorisierung!$E$66,Faktorisierung!$G$66,0))))))","v":{"$error":"#REF!"}},{"$f":"IF(Bewertung!K18=\"\",\"\",IF(Bewertung!K18=Faktorisierung!$E$63,Faktorisierung!$G$63,(IF(Bewertung!K18=Faktorisierung!$E$64,Faktorisierung!$G$64,IF(Bewertung!K18=Faktorisierung!$E$65,Faktorisierung!$G$65,IF(Bewertung!K18=Faktorisierung!$E$66,Faktorisierung!$G$66,0))))))","v":""},{"$f":"IF(Bewertung!L18=\"\",\"\",IF(Bewertung!L18=Faktorisierung!$E$63,Faktorisierung!$G$63,(IF(Bewertung!L18=Faktorisierung!$E$64,Faktorisierung!$G$64,IF(Bewertung!L18=Faktorisierung!$E$65,Faktorisierung!$G$65,IF(Bewertung!L18=Faktorisierung!$E$66,Faktorisierung!$G$66,0))))))","v":""},{"$f":"IF(Bewertung!M18=\"\",\"\",IF(Bewertung!M18=Faktorisierung!$E$63,Faktorisierung!$G$63,(IF(Bewertung!M18=Faktorisierung!$E$64,Faktorisierung!$G$64,IF(Bewertung!M18=Faktorisierung!$E$65,Faktorisierung!$G$65,IF(Bewertung!M18=Faktorisierung!$E$66,Faktorisierung!$G$66,0))))))","v":""},{"$f":"IF(Bewertung!N18=\"\",\"\",IF(Bewertung!N18=Faktorisierung!$E$63,Faktorisierung!$G$63,(IF(Bewertung!N18=Faktorisierung!$E$64,Faktorisierung!$G$64,IF(Bewertung!N18=Faktorisierung!$E$65,Faktorisierung!$G$65,IF(Bewertung!N18=Faktorisierung!$E$66,Faktorisierung!$G$66,0))))))","v":""},{"$f":"IF(Bewertung!O18=\"\",\"\",IF(Bewertung!O18=Faktorisierung!$E$63,Faktorisierung!$G$63,(IF(Bewertung!O18=Faktorisierung!$E$64,Faktorisierung!$G$64,IF(Bewertung!O18=Faktorisierung!$E$65,Faktorisierung!$G$65,IF(Bewertung!O18=Faktorisierung!$E$66,Faktorisierung!$G$66,0))))))","v":""},{"$f":"IF(Bewertung!P18=\"\",\"\",IF(Bewertung!P18=Faktorisierung!$E$63,Faktorisierung!$G$63,(IF(Bewertung!P18=Faktorisierung!$E$64,Faktorisierung!$G$64,IF(Bewertung!P18=Faktorisierung!$E$65,Faktorisierung!$G$65,IF(Bewertung!P18=Faktorisierung!$E$66,Faktorisierung!$G$66,0))))))","v":""},{"$f":"IF(Bewertung!Q18=\"\",\"\",IF(Bewertung!Q18=Faktorisierung!$E$63,Faktorisierung!$G$63,(IF(Bewertung!Q18=Faktorisierung!$E$64,Faktorisierung!$G$64,IF(Bewertung!Q18=Faktorisierung!$E$65,Faktorisierung!$G$65,IF(Bewertung!Q18=Faktorisierung!$E$66,Faktorisierung!$G$66,0))))))","v":""},{"$f":"IF(Bewertung!R18=\"\",\"\",IF(Bewertung!R18=Faktorisierung!$E$63,Faktorisierung!$G$63,(IF(Bewertung!R18=Faktorisierung!$E$64,Faktorisierung!$G$64,IF(Bewertung!R18=Faktorisierung!$E$65,Faktorisierung!$G$65,IF(Bewertung!R18=Faktorisierung!$E$66,Faktorisierung!$G$66,0))))))","v":""},{"$f":"IF(Bewertung!S18=\"\",\"\",IF(Bewertung!S18=Faktorisierung!$E$63,Faktorisierung!$G$63,(IF(Bewertung!S18=Faktorisierung!$E$64,Faktorisierung!$G$64,IF(Bewertung!S18=Faktorisierung!$E$65,Faktorisierung!$G$65,IF(Bewertung!S18=Faktorisierung!$E$66,Faktorisierung!$G$66,0))))))","v":""},{"$f":"IF(Bewertung!T18=\"\",\"\",IF(Bewertung!T18=Faktorisierung!$E$63,Faktorisierung!$G$63,(IF(Bewertung!T18=Faktorisierung!$E$64,Faktorisierung!$G$64,IF(Bewertung!T18=Faktorisierung!$E$65,Faktorisierung!$G$65,IF(Bewertung!T18=Faktorisierung!$E$66,Faktorisierung!$G$66,0))))))","v":""},{"$f":"IF(Bewertung!U18=\"\",\"\",IF(Bewertung!U18=Faktorisierung!$E$63,Faktorisierung!$G$63,(IF(Bewertung!U18=Faktorisierung!$E$64,Faktorisierung!$G$64,IF(Bewertung!U18=Faktorisierung!$E$65,Faktorisierung!$G$65,IF(Bewertung!U18=Faktorisierung!$E$66,Faktorisierung!$G$66,0))))))","v":""},{"$f":"IF(Bewertung!V18=\"\",\"\",IF(Bewertung!V18=Faktorisierung!$E$63,Faktorisierung!$G$63,(IF(Bewertung!V18=Faktorisierung!$E$64,Faktorisierung!$G$64,IF(Bewertung!V18=Faktorisierung!$E$65,Faktorisierung!$G$65,IF(Bewertung!V18=Faktorisierung!$E$66,Faktorisierung!$G$66,0))))))","v":""},{"$f":"IF(Bewertung!W18=\"\",\"\",IF(Bewertung!W18=Faktorisierung!$E$63,Faktorisierung!$G$63,(IF(Bewertung!W18=Faktorisierung!$E$64,Faktorisierung!$G$64,IF(Bewertung!W18=Faktorisierung!$E$65,Faktorisierung!$G$65,IF(Bewertung!W18=Faktorisierung!$E$66,Faktorisierung!$G$66,0))))))","v":""},{"$f":"IF(Bewertung!X18=\"\",\"\",IF(Bewertung!X18=Faktorisierung!$E$63,Faktorisierung!$G$63,(IF(Bewertung!X18=Faktorisierung!$E$64,Faktorisierung!$G$64,IF(Bewertung!X18=Faktorisierung!$E$65,Faktorisierung!$G$65,IF(Bewertung!X18=Faktorisierung!$E$66,Faktorisierung!$G$66,0))))))","v":""},{"$f":"IF(Bewertung!Y18=\"\",\"\",IF(Bewertung!Y18=Faktorisierung!$E$63,Faktorisierung!$G$63,(IF(Bewertung!Y18=Faktorisierung!$E$64,Faktorisierung!$G$64,IF(Bewertung!Y18=Faktorisierung!$E$65,Faktorisierung!$G$65,IF(Bewertung!Y18=Faktorisierung!$E$66,Faktorisierung!$G$66,0))))))","v":""},{"$f":"IF(Bewertung!Z18=\"\",\"\",IF(Bewertung!Z18=Faktorisierung!$E$63,Faktorisierung!$G$63,(IF(Bewertung!Z18=Faktorisierung!$E$64,Faktorisierung!$G$64,IF(Bewertung!Z18=Faktorisierung!$E$65,Faktorisierung!$G$65,IF(Bewertung!Z18=Faktorisierung!$E$66,Faktorisierung!$G$66,0))))))","v":""},{"$f":"IF(Bewertung!AA18=\"\",\"\",IF(Bewertung!AA18=Faktorisierung!$E$63,Faktorisierung!$G$63,(IF(Bewertung!AA18=Faktorisierung!$E$64,Faktorisierung!$G$64,IF(Bewertung!AA18=Faktorisierung!$E$65,Faktorisierung!$G$65,IF(Bewertung!AA18=Faktorisierung!$E$66,Faktorisierung!$G$66,0))))))","v":""},{"$f":"IF(Bewertung!AB18=\"\",\"\",IF(Bewertung!AB18=Faktorisierung!$E$63,Faktorisierung!$G$63,(IF(Bewertung!AB18=Faktorisierung!$E$64,Faktorisierung!$G$64,IF(Bewertung!AB18=Faktorisierung!$E$65,Faktorisierung!$G$65,IF(Bewertung!AB18=Faktorisierung!$E$66,Faktorisierung!$G$66,0))))))","v":""},{"$f":"IF(Bewertung!AC18=\"\",\"\",IF(Bewertung!AC18=Faktorisierung!$E$63,Faktorisierung!$G$63,(IF(Bewertung!AC18=Faktorisierung!$E$64,Faktorisierung!$G$64,IF(Bewertung!AC18=Faktorisierung!$E$65,Faktorisierung!$G$65,IF(Bewertung!AC18=Faktorisierung!$E$66,Faktorisierung!$G$66,0))))))","v":""},{"$f":"IF(Bewertung!AD18=\"\",\"\",IF(Bewertung!AD18=Faktorisierung!$E$63,Faktorisierung!$G$63,(IF(Bewertung!AD18=Faktorisierung!$E$64,Faktorisierung!$G$64,IF(Bewertung!AD18=Faktorisierung!$E$65,Faktorisierung!$G$65,IF(Bewertung!AD18=Faktorisierung!$E$66,Faktorisierung!$G$66,0))))))","v":""},{"$f":"IF(Bewertung!AE18=\"\",\"\",IF(Bewertung!AE18=Faktorisierung!$E$63,Faktorisierung!$G$63,(IF(Bewertung!AE18=Faktorisierung!$E$64,Faktorisierung!$G$64,IF(Bewertung!AE18=Faktorisierung!$E$65,Faktorisierung!$G$65,IF(Bewertung!AE18=Faktorisierung!$E$66,Faktorisierung!$G$66,0))))))","v":""},{"$f":"IF(Bewertung!AF18=\"\",\"\",IF(Bewertung!AF18=Faktorisierung!$E$63,Faktorisierung!$G$63,(IF(Bewertung!AF18=Faktorisierung!$E$64,Faktorisierung!$G$64,IF(Bewertung!AF18=Faktorisierung!$E$65,Faktorisierung!$G$65,IF(Bewertung!AF18=Faktorisierung!$E$66,Faktorisierung!$G$66,0))))))","v":""},{"$f":"IF(Bewertung!AG18=\"\",\"\",IF(Bewertung!AG18=Faktorisierung!$E$63,Faktorisierung!$G$63,(IF(Bewertung!AG18=Faktorisierung!$E$64,Faktorisierung!$G$64,IF(Bewertung!AG18=Faktorisierung!$E$65,Faktorisierung!$G$65,IF(Bewertung!AG18=Faktorisierung!$E$66,Faktorisierung!$G$66,0))))))","v":""},{"$f":"IF(Bewertung!AH18=\"\",\"\",IF(Bewertung!AH18=Faktorisierung!$E$63,Faktorisierung!$G$63,(IF(Bewertung!AH18=Faktorisierung!$E$64,Faktorisierung!$G$64,IF(Bewertung!AH18=Faktorisierung!$E$65,Faktorisierung!$G$65,IF(Bewertung!AH18=Faktorisierung!$E$66,Faktorisierung!$G$66,0))))))","v":""},{"$f":"IF(Bewertung!AI18=\"\",\"\",IF(Bewertung!AI18=Faktorisierung!$E$63,Faktorisierung!$G$63,(IF(Bewertung!AI18=Faktorisierung!$E$64,Faktorisierung!$G$64,IF(Bewertung!AI18=Faktorisierung!$E$65,Faktorisierung!$G$65,IF(Bewertung!AI18=Faktorisierung!$E$66,Faktorisierung!$G$66,0))))))","v":""},{"$f":"IF(Bewertung!AJ18=\"\",\"\",IF(Bewertung!AJ18=Faktorisierung!$E$63,Faktorisierung!$G$63,(IF(Bewertung!AJ18=Faktorisierung!$E$64,Faktorisierung!$G$64,IF(Bewertung!AJ18=Faktorisierung!$E$65,Faktorisierung!$G$65,IF(Bewertung!AJ18=Faktorisierung!$E$66,Faktorisierung!$G$66,0))))))","v":""},{"$f":"IF(Bewertung!AK18=\"\",\"\",IF(Bewertung!AK18=Faktorisierung!$E$63,Faktorisierung!$G$63,(IF(Bewertung!AK18=Faktorisierung!$E$64,Faktorisierung!$G$64,IF(Bewertung!AK18=Faktorisierung!$E$65,Faktorisierung!$G$65,IF(Bewertung!AK18=Faktorisierung!$E$66,Faktorisierung!$G$66,0))))))","v":""},{"$f":"IF(Bewertung!AL18=\"\",\"\",IF(Bewertung!AL18=Faktorisierung!$E$63,Faktorisierung!$G$63,(IF(Bewertung!AL18=Faktorisierung!$E$64,Faktorisierung!$G$64,IF(Bewertung!AL18=Faktorisierung!$E$65,Faktorisierung!$G$65,IF(Bewertung!AL18=Faktorisierung!$E$66,Faktorisierung!$G$66,0))))))","v":""},{"$f":"IF(Bewertung!AM18=\"\",\"\",IF(Bewertung!AM18=Faktorisierung!$E$63,Faktorisierung!$G$63,(IF(Bewertung!AM18=Faktorisierung!$E$64,Faktorisierung!$G$64,IF(Bewertung!AM18=Faktorisierung!$E$65,Faktorisierung!$G$65,IF(Bewertung!AM18=Faktorisierung!$E$66,Faktorisierung!$G$66,0))))))","v":""},{"$f":"IF(Bewertung!AN18=\"\",\"\",IF(Bewertung!AN18=Faktorisierung!$E$63,Faktorisierung!$G$63,(IF(Bewertung!AN18=Faktorisierung!$E$64,Faktorisierung!$G$64,IF(Bewertung!AN18=Faktorisierung!$E$65,Faktorisierung!$G$65,IF(Bewertung!AN18=Faktorisierung!$E$66,Faktorisierung!$G$66,0))))))","v":""},{"$f":"IF(Bewertung!AO18=\"\",\"\",IF(Bewertung!AO18=Faktorisierung!$E$63,Faktorisierung!$G$63,(IF(Bewertung!AO18=Faktorisierung!$E$64,Faktorisierung!$G$64,IF(Bewertung!AO18=Faktorisierung!$E$65,Faktorisierung!$G$65,IF(Bewertung!AO18=Faktorisierung!$E$66,Faktorisierung!$G$66,0))))))","v":""},{"$f":"IF(Bewertung!AP18=\"\",\"\",IF(Bewertung!AP18=Faktorisierung!$E$63,Faktorisierung!$G$63,(IF(Bewertung!AP18=Faktorisierung!$E$64,Faktorisierung!$G$64,IF(Bewertung!AP18=Faktorisierung!$E$65,Faktorisierung!$G$65,IF(Bewertung!AP18=Faktorisierung!$E$66,Faktorisierung!$G$66,0))))))","v":""},{"$f":"IF(Bewertung!AQ18=\"\",\"\",IF(Bewertung!AQ18=Faktorisierung!$E$63,Faktorisierung!$G$63,(IF(Bewertung!AQ18=Faktorisierung!$E$64,Faktorisierung!$G$64,IF(Bewertung!AQ18=Faktorisierung!$E$65,Faktorisierung!$G$65,IF(Bewertung!AQ18=Faktorisierung!$E$66,Faktorisierung!$G$66,0))))))","v":""},{"$f":"IF(Bewertung!AR18=\"\",\"\",IF(Bewertung!AR18=Faktorisierung!$E$63,Faktorisierung!$G$63,(IF(Bewertung!AR18=Faktorisierung!$E$64,Faktorisierung!$G$64,IF(Bewertung!AR18=Faktorisierung!$E$65,Faktorisierung!$G$65,IF(Bewertung!AR18=Faktorisierung!$E$66,Faktorisierung!$G$66,0))))))","v":""},{"$f":"IF(Bewertung!AS18=\"\",\"\",IF(Bewertung!AS18=Faktorisierung!$E$63,Faktorisierung!$G$63,(IF(Bewertung!AS18=Faktorisierung!$E$64,Faktorisierung!$G$64,IF(Bewertung!AS18=Faktorisierung!$E$65,Faktorisierung!$G$65,IF(Bewertung!AS18=Faktorisierung!$E$66,Faktorisierung!$G$66,0))))))","v":""},{"$f":"IF(Bewertung!AT18=\"\",\"\",IF(Bewertung!AT18=Faktorisierung!$E$63,Faktorisierung!$G$63,(IF(Bewertung!AT18=Faktorisierung!$E$64,Faktorisierung!$G$64,IF(Bewertung!AT18=Faktorisierung!$E$65,Faktorisierung!$G$65,IF(Bewertung!AT18=Faktorisierung!$E$66,Faktorisierung!$G$66,0))))))","v":""},{"$f":"IF(Bewertung!AU18=\"\",\"\",IF(Bewertung!AU18=Faktorisierung!$E$63,Faktorisierung!$G$63,(IF(Bewertung!AU18=Faktorisierung!$E$64,Faktorisierung!$G$64,IF(Bewertung!AU18=Faktorisierung!$E$65,Faktorisierung!$G$65,IF(Bewertung!AU18=Faktorisierung!$E$66,Faktorisierung!$G$66,0))))))","v":""},{"$f":"IF(Bewertung!AV18=\"\",\"\",IF(Bewertung!AV18=Faktorisierung!$E$63,Faktorisierung!$G$63,(IF(Bewertung!AV18=Faktorisierung!$E$64,Faktorisierung!$G$64,IF(Bewertung!AV18=Faktorisierung!$E$65,Faktorisierung!$G$65,IF(Bewertung!AV18=Faktorisierung!$E$66,Faktorisierung!$G$66,0))))))","v":""}]
[{"$nulls":3},"12. medizinische Absicherung",{"$f":"IF(Bewertung!I19=\"\",\"\",IF(Bewertung!I19=Faktorisierung!$A$71,Faktorisierung!$C$71,(IF(Bewertung!I19=Faktorisierung!$A$72,Faktorisierung!$C$72,IF(Bewertung!I19=Faktorisierung!$A$73,Faktorisierung!$C$73,IF(Bewertung!I19=Faktorisierung!$A$74,Faktorisierung!$C$74,0))))))","v":0.5},{"$f":"IF(Bewertung!J19=\"\",\"\",IF(Bewertung!J19=Faktorisierung!$A$71,Faktorisierung!$C$71,(IF(Bewertung!J19=Faktorisierung!$A$72,Faktorisierung!$C$72,IF(Bewertung!J19=Faktorisierung!$A$73,Faktorisierung!$C$73,IF(Bewertung!J19=Faktorisierung!$A$74,Faktorisierung!$C$74,0))))))","v":""},{"$f":"IF(Bewertung!#REF!=\"\",\"\",IF(Bewertung!#REF!=Faktorisierung!$A$71,Faktorisierung!$C$71,(IF(Bewertung!#REF!=Faktorisierung!$A$72,Faktorisierung!$C$72,IF(Bewertung!#REF!=Faktorisierung!$A$73,Faktorisierung!$C$73,IF(Bewertung!#REF!=Faktorisierung!$A$74,Faktorisierung!$C$74,0))))))","v":{"$error":"#REF!"}},{"$f":"IF(Bewertung!#REF!=\"\",\"\",IF(Bewertung!#REF!=Faktorisierung!$A$71,Faktorisierung!$C$71,(IF(Bewertung!#REF!=Faktorisierung!$A$72,Faktorisierung!$C$72,IF(Bewertung!#REF!=Faktorisierung!$A$73,Faktorisierung!$C$73,IF(Bewertung!#REF!=Faktorisierung!$A$74,Faktorisierung!$C$74,0))))))","v":{"$error":"#REF!"}},{"$f":"IF(Bewertung!#REF!=\"\",\"\",IF(Bewertung!#REF!=Faktorisierung!$A$71,Faktorisierung!$C$71,(IF(Bewertung!#REF!=Faktorisierung!$A$72,Faktorisierung!$C$72,IF(Bewertung!#REF!=Faktorisierung!$A$73,Faktorisierung!$C$73,IF(Bewertung!#REF!=Faktorisierung!$A$74,Faktorisierung!$C$74,0))))))","v":{"$error":"#REF!"}},{"$f":"IF(Bewertung!#REF!=\"\",\"\",IF(Bewertung!#REF!=Faktorisierung!$A$71,Faktorisierung!$C$71,(IF(Bewertung!#REF!=Faktorisierung!$A$72,Faktorisierung!$C$72,IF(Bewertung!#REF!=Faktorisierung!$A$73,Faktorisierung!$C$73,IF(Bewertung!#REF!=Faktorisierung!$A$74,Faktorisierung!$C$74,0))))))","v":{"$error":"#REF!"}},{"$f":"IF(Bewertung!#REF!=\"\",\"\",IF(Bewertung!#REF!=Faktorisierung!$A$71,Faktorisierung!$C$71,(IF(Bewertung!#REF!=Faktorisierung!$A$72,Faktorisierung!$C$72,IF(Bewertung!#REF!=Faktorisierung!$A$73,Faktorisierung!$C$73,IF(Bewertung!#REF!=Faktorisierung!$A$74,Faktorisierung!$C$74,0))))))","v":{"$error":"#REF!"}},{"$f":"IF(Bewertung!#REF!=\"\",\"\",IF(Bewertung!#REF!=Faktorisierung!$A$71,Faktorisierung!$C$71,(IF(Bewertung!#REF!=Faktorisierung!$A$72,Faktorisierung!$C$72,IF(Bewertung!#REF!=Faktorisierung!$A$73,Faktorisierung!$C$73,IF(Bewertung!#REF!=Faktorisierung!$A$74,Faktorisierung!$C$74,0))))))","v":{"$error":"#REF!"}},{"$f":"IF(Bewertung!K19=\"\",\"\",IF(Bewertung!K19=Faktorisierung!$A$71,Faktorisierung!$C$71,(IF(Bewertung!K19=Faktorisierung!$A$72,Faktorisierung!$C$72,IF(Bewertung!K19=Faktorisierung!$A$73,Faktorisierung!$C$73,IF(Bewertung!K19=Faktorisierung!$A$74,Faktorisierung!$C$74,0))))))","v":""},{"$f":"IF(Bewertung!L19=\"\",\"\",IF(Bewertung!L19=Faktorisierung!$A$71,Faktorisierung!$C$71,(IF(Bewertung!L19=Faktorisierung!$A$72,Faktorisierung!$C$72,IF(Bewertung!L19=Faktorisierung!$A$73,Faktorisierung!$C$73,IF(Bewertung!L19=Faktorisierung!$A$74,Faktorisierung!$C$74,0))))))","v":""},{"$f":"IF(Bewertung!M19=\"\",\"\",IF(Bewertung!M19=Faktorisierung!$A$71,Faktorisierung!$C$71,(IF(Bewertung!M19=Faktorisierung!$A$72,Faktorisierung!$C$72,IF(Bewertung!M19=Faktorisierung!$A$73,Faktorisierung!$C$73,IF(Bewertung!M19=Faktorisierung!$A$74,Faktorisierung!$C$74,0))))))","v":""},{"$f":"IF(Bewertung!N19=\"\",\"\",IF(Bewertung!N19=Faktorisierung!$A$71,Faktorisierung!$C$71,(IF(Bewertung!N19=Faktorisierung!$A$72,Faktorisierung!$C$72,IF(Bewertung!N19=Faktorisierung!$A$73,Faktorisierung!$C$73,IF(Bewertung!N19=Faktorisierung!$A$74,Faktorisierung!$C$74,0))))))","v":""},{"$f":"IF(Bewertung!O19=\"\",\"\",IF(Bewertung!O19=Faktorisierung!$A$71,Faktorisierung!$C$71,(IF(Bewertung!O19=Faktorisierung!$A$72,Faktorisierung!$C$72,IF(Bewertung!O19=Faktorisierung!$A$73,Faktorisierung!$C$73,IF(Bewertung!O19=Faktorisierung!$A$74,Faktorisierung!$C$74,0))))))","v":""},{"$f":"IF(Bewertung!P19=\"\",\"\",IF(Bewertung!P19=Faktorisierung!$A$71,Faktorisierung!$C$71,(IF(Bewertung!P19=Faktorisierung!$A$72,Faktorisierung!$C$72,IF(Bewertung!P19=Faktorisierung!$A$73,Faktorisierung!$C$73,IF(Bewertung!P19=Faktorisierung!$A$74,Faktorisierung!$C$74,0))))))","v":""},{"$f":"IF(Bewertung!Q19=\"\",\"\",IF(Bewertung!Q19=Faktorisierung!$A$71,Faktorisierung!$C$71,(IF(Bewertung!Q19=Faktorisierung!$A$72,Faktorisierung!$C$72,IF(Bewertung!Q19=Faktorisierung!$A$73,Faktorisierung!$C$73,IF(Bewertung!Q19=Faktorisierung!$A$74,Faktorisierung!$C$74,0))))))","v":""},{"$f":"IF(Bewertung!R19=\"\",\"\",IF(Bewertung!R19=Faktorisierung!$A$71,Faktorisierung!$C$71,(IF(Bewertung!R19=Faktorisierung!$A$72,Faktorisierung!$C$72,IF(Bewertung!R19=Faktorisierung!$A$73,Faktorisierung!$C$73,IF(Bewertung!R19=Faktorisierung!$A$74,Faktorisierung!$C$74,0))))))","v":""},{"$f":"IF(Bewertung!S19=\"\",\"\",IF(Bewertung!S19=Faktorisierung!$A$71,Faktorisierung!$C$71,(IF(Bewertung!S19=Faktorisierung!$A$72,Faktorisierung!$C$72,IF(Bewertung!S19=Faktorisierung!$A$73,Faktorisierung!$C$73,IF(Bewertung!S19=Faktorisierung!$A$74,Faktorisierung!$C$74,0))))))","v":""},{"$f":"IF(Bewertung!T19=\"\",\"\",IF(Bewertung!T19=Faktorisierung!$A$71,Faktorisierung!$C$71,(IF(Bewertung!T19=Faktorisierung!$A$72,Faktorisierung!$C$72,IF(Bewertung!T19=Faktorisierung!$A$73,Faktorisierung!$C$73,IF(Bewertung!T19=Faktorisierung!$A$74,Faktorisierung!$C$74,0))))))","v":""},{"$f":"IF(Bewertung!U19=\"\",\"\",IF(Bewertung!U19=Faktorisierung!$A$71,Faktorisierung!$C$71,(IF(Bewertung!U19=Faktorisierung!$A$72,Faktorisierung!$C$72,IF(Bewertung!U19=Faktorisierung!$A$73,Faktorisierung!$C$73,IF(Bewertung!U19=Faktorisierung!$A$74,Faktorisierung!$C$74,0))))))","v":""},{"$f":"IF(Bewertung!V19=\"\",\"\",IF(Bewertung!V19=Faktorisierung!$A$71,Faktorisierung!$C$71,(IF(Bewertung!V19=Faktorisierung!$A$72,Faktorisierung!$C$72,IF(Bewertung!V19=Faktorisierung!$A$73,Faktorisierung!$C$73,IF(Bewertung!V19=Faktorisierung!$A$74,Faktorisierung!$C$74,0))))))","v":""},{"$f":"IF(Bewertung!W19=\"\",\"\",IF(Bewertung!W19=Faktorisierung!$A$71,Faktorisierung!$C$71,(IF(Bewertung!W19=Faktorisierung!$A$72,Faktorisierung!$C$72,IF(Bewertung!W19=Faktorisierung!$A$73,Faktorisierung!$C$73,IF(Bewertung!W19=Faktorisierung!$A$74,Faktorisierung!$C$74,0))))))","v":""},{"$f":"IF(Bewertung!X19=\"\",\"\",IF(Bewertung!X19=Faktorisierung!$A$71,Faktorisierung!$C$71,(IF(Bewertung!X19=Faktorisierung!$A$72,Faktorisierung!$C$72,IF(Bewertung!X19=Faktorisierung!$A$73,Faktorisierung!$C$73,IF(Bewertung!X19=Faktorisierung!$A$74,Faktorisierung!$C$74,0))))))","v":""},{"$f":"IF(Bewertung!Y19=\"\",\"\",IF(Bewertung!Y19=Faktorisierung!$A$71,Faktorisierung!$C$71,(IF(Bewertung!Y19=Faktorisierung!$A$72,Faktorisierung!$C$72,IF(Bewertung!Y19=Faktorisierung!$A$73,Faktorisierung!$C$73,IF(Bewertung!Y19=Faktorisierung!$A$74,Faktorisierung!$C$74,0))))))","v":""},{"$f":"IF(Bewertung!Z19=\"\",\"\",IF(Bewertung!Z19=Faktorisierung!$A$71,Faktorisierung!$C$71,(IF(Bewertung!Z19=Faktorisierung!$A$72,Faktorisierung!$C$72,IF(Bewertung!Z19=Faktorisierung!$A$73,Faktorisierung!$C$73,IF(Bewertung!Z19=Faktorisierung!$A$74,Faktorisierung!$C$74,0))))))","v":""},{"$f":"IF(Bewertung!AA19=\"\",\"\",IF(Bewertung!AA19=Faktorisierung!$A$71,Faktorisierung!$C$71,(IF(Bewertung!AA19=Faktorisierung!$A$72,Faktorisierung!$C$72,IF(Bewertung!AA19=Faktorisierung!$A$73,Faktorisierung!$C$73,IF(Bewertung!AA19=Faktorisierung!$A$74,Faktorisierung!$C$74,0))))))","v":""},{"$f":"IF(Bewertung!AB19=\"\",\"\",IF(Bewertung!AB19=Faktorisierung!$A$71,Faktorisierung!$C$71,(IF(Bewertung!AB19=Faktorisierung!$A$72,Faktorisierung!$C$72,IF(Bewertung!AB19=Faktorisierung!$A$73,Faktorisierung!$C$73,IF(Bewertung!AB19=Faktorisierung!$A$74,Faktorisierung!$C$74,0))))))","v":""},{"$f":"IF(Bewertung!AC19=\"\",\"\",IF(Bewertung!AC19=Faktorisierung!$A$71,Faktorisierung!$C$71,(IF(Bewertung!AC19=Faktorisierung!$A$72,Faktorisierung!$C$72,IF(Bewertung!AC19=Faktorisierung!$A$73,Faktorisierung!$C$73,IF(Bewertung!AC19=Faktorisierung!$A$74,Faktorisierung!$C$74,0))))))","v":""},{"$f":"IF(Bewertung!AD19=\"\",\"\",IF(Bewertung!AD19=Faktorisierung!$A$71,Faktorisierung!$C$71,(IF(Bewertung!AD19=Faktorisierung!$A$72,Faktorisierung!$C$72,IF(Bewertung!AD19=Faktorisierung!$A$73,Faktorisierung!$C$73,IF(Bewertung!AD19=Faktorisierung!$A$74,Faktorisierung!$C$74,0))))))","v":""},{"$f":"IF(Bewertung!AE19=\"\",\"\",IF(Bewertung!AE19=Faktorisierung!$A$71,Faktorisierung!$C$71,(IF(Bewertung!AE19=Faktorisierung!$A$72,Faktorisierung!$C$72,IF(Bewertung!AE19=Faktorisierung!$A$73,Faktorisierung!$C$73,IF(Bewertung!AE19=Faktorisierung!$A$74,Faktorisierung!$C$74,0))))))","v":""},{"$f":"IF(Bewertung!AF19=\"\",\"\",IF(Bewertung!AF19=Faktorisierung!$A$71,Faktorisierung!$C$71,(IF(Bewertung!AF19=Faktorisierung!$A$72,Faktorisierung!$C$72,IF(Bewertung!AF19=Faktorisierung!$A$73,Faktorisierung!$C$73,IF(Bewertung!AF19=Faktorisierung!$A$74,Faktorisierung!$C$74,0))))))","v":""},{"$f":"IF(Bewertung!AG19=\"\",\"\",IF(Bewertung!AG19=Faktorisierung!$A$71,Faktorisierung!$C$71,(IF(Bewertung!AG19=Faktorisierung!$A$72,Faktorisierung!$C$72,IF(Bewertung!AG19=Faktorisierung!$A$73,Faktorisierung!$C$73,IF(Bewertung!AG19=Faktorisierung!$A$74,Faktorisierung!$C$74,0))))))","v":""},{"$f":"IF(Bewertung!AH19=\"\",\"\",IF(Bewertung!AH19=Faktorisierung!$A$71,Faktorisierung!$C$71,(IF(Bewertung!AH19=Faktorisierung!$A$72,Faktorisierung!$C$72,IF(Bewertung!AH19=Faktorisierung!$A$73,Faktorisierung!$C$73,IF(Bewertung!AH19=Faktorisierung!$A$74,Faktorisierung!$C$74,0))))))","v":""},{"$f":"IF(Bewertung!AI19=\"\",\"\",IF(Bewertung!AI19=Faktorisierung!$A$71,Faktorisierung!$C$71,(IF(Bewertung!AI19=Faktorisierung!$A$72,Faktorisierung!$C$72,IF(Bewertung!AI19=Faktorisierung!$A$73,Faktorisierung!$C$73,IF(Bewertung!AI19=Faktorisierung!$A$74,Faktorisierung!$C$74,0))))))","v":""},{"$f":"IF(Bewertung!AJ19=\"\",\"\",IF(Bewertung!AJ19=Faktorisierung!$A$71,Faktorisierung!$C$71,(IF(Bewertung!AJ19=Faktorisierung!$A$72,Faktorisierung!$C$72,IF(Bewertung!AJ19=Faktorisierung!$A$73,Faktorisierung!$C$73,IF(Bewertung!AJ19=Faktorisierung!$A$74,Faktorisierung!$C$74,0))))))","v":""},{"$f":"IF(Bewertung!AK19=\"\",\"\",IF(Bewertung!AK19=Faktorisierung!$A$71,Faktorisierung!$C$71,(IF(Bewertung!AK19=Faktorisierung!$A$72,Faktorisierung!$C$72,IF(Bewertung!AK19=Faktorisierung!$A$73,Faktorisierung!$C$73,IF(Bewertung!AK19=Faktorisierung!$A$74,Faktorisierung!$C$74,0))))))","v":""},{"$f":"IF(Bewertung!AL19=\"\",\"\",IF(Bewertung!AL19=Faktorisierung!$A$71,Faktorisierung!$C$71,(IF(Bewertung!AL19=Faktorisierung!$A$72,Faktorisierung!$C$72,IF(Bewertung!AL19=Faktorisierung!$A$73,Faktorisierung!$C$73,IF(Bewertung!AL19=Faktorisierung!$A$74,Faktorisierung!$C$74,0))))))","v":""},{"$f":"IF(Bewertung!AM19=\"\",\"\",IF(Bewertung!AM19=Faktorisierung!$A$71,Faktorisierung!$C$71,(IF(Bewertung!AM19=Faktorisierung!$A$72,Faktorisierung!$C$72,IF(Bewertung!AM19=Faktorisierung!$A$73,Faktorisierung!$C$73,IF(Bewertung!AM19=Faktorisierung!$A$74,Faktorisierung!$C$74,0))))))","v":""},{"$f":"IF(Bewertung!AN19=\"\",\"\",IF(Bewertung!AN19=Faktorisierung!$A$71,Faktorisierung!$C$71,(IF(Bewertung!AN19=Faktorisierung!$A$72,Faktorisierung!$C$72,IF(Bewertung!AN19=Faktorisierung!$A$73,Faktorisierung!$C$73,IF(Bewertung!AN19=Faktorisierung!$A$74,Faktorisierung!$C$74,0))))))","v":""},{"$f":"IF(Bewertung!AO19=\"\",\"\",IF(Bewertung!AO19=Faktorisierung!$A$71,Faktorisierung!$C$71,(IF(Bewertung!AO19=Faktorisierung!$A$72,Faktorisierung!$C$72,IF(Bewertung!AO19=Faktorisierung!$A$73,Faktorisierung!$C$73,IF(Bewertung!AO19=Faktorisierung!$A$74,Faktorisierung!$C$74,0))))))","v":""},{"$f":"IF(Bewertung!AP19=\"\",\"\",IF(Bewertung!AP19=Faktorisierung!$A$71,Faktorisierung!$C$71,(IF(Bewertung!AP19=Faktorisierung!$A$72,Faktorisierung!$C$72,IF(Bewertung!AP19=Faktorisierung!$A$73,Faktorisierung!$C$73,IF(Bewertung!AP19=Faktorisierung!$A$74,Faktorisierung!$C$74,0))))))","v":""},{"$f":"IF(Bewertung!AQ19=\"\",\"\",IF(Bewertung!AQ19=Faktorisierung!$A$71,Faktorisierung!$C$71,(IF(Bewertung!AQ19=Faktorisierung!$A$72,Faktorisierung!$C$72,IF(Bewertung!AQ19=Faktorisierung!$A$73,Faktorisierung!$C$73,IF(Bewertung!AQ19=Faktorisierung!$A$74,Faktorisierung!$C$74,0))))))","v":""},{"$f":"IF(Bewertung!AR19=\"\",\"\",IF(Bewertung!AR19=Faktorisierung!$A$71,Faktorisierung!$C$71,(IF(Bewertung!AR19=Faktorisierung!$A$72,Faktorisierung!$C$72,IF(Bewertung!AR19=Faktorisierung!$A$73,Faktorisierung!$C$73,IF(Bewertung!AR19=Faktorisierung!$A$74,Faktorisierung!$C$74,0))))))","v":""},{"$f":"IF(Bewertung!AS19=\"\",\"\",IF(Bewertung!AS19=Faktorisierung!$A$71,Faktorisierung!$C$71,(IF(Bewertung!AS19=Faktorisierung!$A$72,Faktorisierung!$C$72,IF(Bewertung!AS19=Faktorisierung!$A$73,Faktorisierung!$C$73,IF(Bewertung!AS19=Faktorisierung!$A$74,Faktorisierung!$C$74,0))))))","v":""},{"$f":"IF(Bewertung!AT19=\"\",\"\",IF(Bewertung!AT19=Faktorisierung!$A$71,Faktorisierung!$C$71,(IF(Bewertung!AT19=Faktorisierung!$A$72,Faktorisierung!$C$72,IF(Bewertung!AT19=Faktorisierung!$A$73,Faktorisierung!$C$73,IF(Bewertung!AT19=Faktorisierung!$A$74,Faktorisierung!$C$74,0))))))","v":""},{"$f":"IF(Bewertung!AU19=\"\",\"\",IF(Bewertung!AU19=Faktorisierung!$A$71,Faktorisierung!$C$71,(IF(Bewertung!AU19=Faktorisierung!$A$72,Faktorisierung!$C$72,IF(Bewertung!AU19=Faktorisierung!$A$73,Faktorisierung!$C$73,IF(Bewertung!AU19=Faktorisierung!$A$74,Faktorisierung!$C$74,0))))))","v":""},{"$f":"IF(Bewertung!AV19=\"\",\"\",IF(Bewertung!AV19=Faktorisierung!$A$71,Faktorisierung!$C$71,(IF(Bewertung!AV19=Faktorisierung!$A$72,Faktorisierung!$C$72,IF(Bewertung!AV19=Faktorisierung!$A$73,Faktorisierung!$C$73,IF(Bewertung!AV19=Faktorisierung!$A$74,Faktorisierung!$C$74,0))))))","v":""}]
[{"$nulls":3},"13. Beeinflussung des Regelrettungsdienstes",{"$f":"IF(Bewertung!I20=\"\",\"\",IF(Bewertung!I20=Faktorisierung!$E$71,Faktorisierung!$G$71,(IF(Bewertung!I20=Faktorisierung!$E$72,Faktorisierung!$G$72,IF(Bewertung!I20=Faktorisierung!$E$73,Faktorisierung!$G$73,IF(Bewertung!I20=Faktorisierung!$E$74,Faktorisierung!$G$74,0))))))","v":0.5},{"$f":"IF(Bewertung!J20=\"\",\"\",IF(Bewertung!J20=Faktorisierung!$E$71,Faktorisierung!$G$71,(IF(Bewertung!J20=Faktorisierung!$E$72,Faktorisierung!$G$72,IF(Bewertung!J20=Faktorisierung!$E$73,Faktorisierung!$G$73,IF(Bewertung!J20=Faktorisierung!$E$74,Faktorisierung!$G$74,0))))))","v":""},{"$f":"IF(Bewertung!#REF!=\"\",\"\",IF(Bewertung!#REF!=Faktorisierung!$E$71,Faktorisierung!$G$71,(IF(Bewertung!#REF!=Faktorisierung!$E$72,Faktorisierung!$G$72,IF(Bewertung!#REF!=Faktorisierung!$E$73,Faktorisierung!$G$73,IF(Bewertung!#REF!=Faktorisierung!$E$74,Faktorisierung!$G$74,0))))))","v":{"$error":"#REF!"}},{"$f":"IF(Bewertung!#REF!=\"\",\"\",IF(Bewertung!#REF!=Faktorisierung!$E$71,Faktorisierung!$G$71,(IF(Bewertung!#REF!=Faktorisierung!$E$72,Faktorisierung!$G$72,IF(Bewertung!#REF!=Faktorisierung!$E$73,Faktorisierung!$G$73,IF(Bewertung!#REF!=Faktorisierung!$E$74,Faktorisierung!$G$74,0))))))","v":{"$error":"#REF!"}},{"$f":"IF(Bewertung!#REF!=\"\",\"\",IF(Bewertung!#REF!=Faktorisierung!$E$71,Faktorisierung!$G$71,(IF(Bewertung!#REF!=Faktorisierung!$E$72,Faktorisierung!$G$72,IF(Bewertung!#REF!=Faktorisierung!$E$73,Faktorisierung!$G$73,IF(Bewertung!#REF!=Faktorisierung!$E$74,Faktorisierung!$G$74,0))))))","v":{"$error":"#REF!"}},{"$f":"IF(Bewertung!#REF!=\"\",\"\",IF(Bewertung!#REF!=Faktorisierung!$E$71,Faktorisierung!$G$71,(IF(Bewertung!#REF!=Faktorisierung!$E$72,Faktorisierung!$G$72,IF(Bewertung!#REF!=Faktorisierung!$E$73,Faktorisierung!$G$73,IF(Bewertung!#REF!=Faktorisierung!$E$74,Faktorisierung!$G$74,0))))))","v":{"$error":"#REF!"}},{"$f":"IF(Bewertung!#REF!=\"\",\"\",IF(Bewertung!#REF!=Faktorisierung!$E$71,Faktorisierung!$G$71,(IF(Bewertung!#REF!=Faktorisierung!$E$72,Faktorisierung!$G$72,IF(Bewertung!#REF!=Faktorisierung!$E$73,Faktorisierung!$G$73,IF(Bewertung!#REF!=Faktorisierung!$E$74,Faktorisierung!$G$74,0))))))","v":{"$error":"#REF!"}},{"$f":"IF(Bewertung!#REF!=\"\",\"\",IF(Bewertung!#REF!=Faktorisierung!$E$71,Faktorisierung!$G$71,(IF(Bewertung!#REF!=Faktorisierung!$E$72,Faktorisierung!$G$72,IF(Bewertung!#REF!=Faktorisierung!$E$73,Faktorisierung!$G$73,IF(Bewertung!#REF!=Faktorisierung!$E$74,Faktorisierung!$G$74,0))))))","v":{"$error":"#REF!"}},{"$f":"IF(Bewertung!K20=\"\",\"\",IF(Bewertung!K20=Faktorisierung!$E$71,Faktorisierung!$G$71,(IF(Bewertung!K20=Faktorisierung!$E$72,Faktorisierung!$G$72,IF(Bewertung!K20=Faktorisierung!$E$73,Faktorisierung!$G$73,IF(Bewertung!K20=Faktorisierung!$E$74,Faktorisierung!$G$74,0))))))","v":""},{"$f":"IF(Bewertung!L20=\"\",\"\",IF(Bewertung!L20=Faktorisierung!$E$71,Faktorisierung!$G$71,(IF(Bewertung!L20=Faktorisierung!$E$72,Faktorisierung!$G$72,IF(Bewertung!L20=Faktorisierung!$E$73,Faktorisierung!$G$73,IF(Bewertung!L20=Faktorisierung!$E$74,Faktorisierung!$G$74,0))))))","v":""},{"$f":"IF(Bewertung!M20=\"\",\"\",IF(Bewertung!M20=Faktorisierung!$E$71,Faktorisierung!$G$71,(IF(Bewertung!M20=Faktorisierung!$E$72,Faktorisierung!$G$72,IF(Bewertung!M20=Faktorisierung!$E$73,Faktorisierung!$G$73,IF(Bewertung!M20=Faktorisierung!$E$74,Faktorisierung!$G$74,0))))))","v":""},{"$f":"IF(Bewertung!N20=\"\",\"\",IF(Bewertung!N20=Faktorisierung!$E$71,Faktorisierung!$G$71,(IF(Bewertung!N20=Faktorisierung!$E$72,Faktorisierung!$G$72,IF(Bewertung!N20=Faktorisierung!$E$73,Faktorisierung!$G$73,IF(Bewertung!N20=Faktorisierung!$E$74,Faktorisierung!$G$74,0))))))","v":""},{"$f":"IF(Bewertung!O20=\"\",\"\",IF(Bewertung!O20=Faktorisierung!$E$71,Faktorisierung!$G$71,(IF(Bewertung!O20=Faktorisierung!$E$72,Faktorisierung!$G$72,IF(Bewertung!O20=Faktorisierung!$E$73,Faktorisierung!$G$73,IF(Bewertung!O20=Faktorisierung!$E$74,Faktorisierung!$G$74,0))))))","v":""},{"$f":"IF(Bewertung!P20=\"\",\"\",IF(Bewertung!P20=Faktorisierung!$E$71,Faktorisierung!$G$71,(IF(Bewertung!P20=Faktorisierung!$E$72,Faktorisierung!$G$72,IF(Bewertung!P20=Faktorisierung!$E$73,Faktorisierung!$G$73,IF(Bewertung!P20=Faktorisierung!$E$74,Faktorisierung!$G$74,0))))))","v":""},{"$f":"IF(Bewertung!Q20=\"\",\"\",IF(Bewertung!Q20=Faktorisierung!$E$71,Faktorisierung!$G$71,(IF(Bewertung!Q20=Faktorisierung!$E$72,Faktorisierung!$G$72,IF(Bewertung!Q20=Faktorisierung!$E$73,Faktorisierung!$G$73,IF(Bewertung!Q20=Faktorisierung!$E$74,Faktorisierung!$G$74,0))))))","v":""},{"$f":"IF(Bewertung!R20=\"\",\"\",IF(Bewertung!R20=Faktorisierung!$E$71,Faktorisierung!$G$71,(IF(Bewertung!R20=Faktorisierung!$E$72,Faktorisierung!$G$72,IF(Bewertung!R20=Faktorisierung!$E$73,Faktorisierung!$G$73,IF(Bewertung!R20=Faktorisierung!$E$74,Faktorisierung!$G$74,0))))))","v":""},{"$f":"IF(Bewertung!S20=\"\",\"\",IF(Bewertung!S20=Faktorisierung!$E$71,Faktorisierung!$G$71,(IF(Bewertung!S20=Faktorisierung!$E$72,Faktorisierung!$G$72,IF(Bewertung!S20=Faktorisierung!$E$73,Faktorisierung!$G$73,IF(Bewertung!S20=Faktorisierung!$E$74,Faktorisierung!$G$74,0))))))","v":""},{"$f":"IF(Bewertung!T20=\"\",\"\",IF(Bewertung!T20=Faktorisierung!$E$71,Faktorisierung!$G$71,(IF(Bewertung!T20=Faktorisierung!$E$72,Faktorisierung!$G$72,IF(Bewertung!T20=Faktorisierung!$E$73,Faktorisierung!$G$73,IF(Bewertung!T20=Faktorisierung!$E$74,Faktorisierung!$G$74,0))))))","v":""},{"$f":"IF(Bewertung!U20=\"\",\"\",IF(Bewertung!U20=Faktorisierung!$E$71,Faktorisierung!$G$71,(IF(Bewertung!U20=Faktorisierung!$E$72,Faktorisierung!$G$72,IF(Bewertung!U20=Faktorisierung!$E$73,Faktorisierung!$G$73,IF(Bewertung!U20=Faktorisierung!$E$74,Faktorisierung!$G$74,0))))))","v":""},{"$f":"IF(Bewertung!V20=\"\",\"\",IF(Bewertung!V20=Faktorisierung!$E$71,Faktorisierung!$G$71,(IF(Bewertung!V20=Faktorisierung!$E$72,Faktorisierung!$G$72,IF(Bewertung!V20=Faktorisierung!$E$73,Faktorisierung!$G$73,IF(Bewertung!V20=Faktorisierung!$E$74,Faktorisierung!$G$74,0))))))","v":""},{"$f":"IF(Bewertung!W20=\"\",\"\",IF(Bewertung!W20=Faktorisierung!$E$71,Faktorisierung!$G$71,(IF(Bewertung!W20=Faktorisierung!$E$72,Faktorisierung!$G$72,IF(Bewertung!W20=Faktorisierung!$E$73,Faktorisierung!$G$73,IF(Bewertung!W20=Faktorisierung!$E$74,Faktorisierung!$G$74,0))))))","v":""},{"$f":"IF(Bewertung!X20=\"\",\"\",IF(Bewertung!X20=Faktorisierung!$E$71,Faktorisierung!$G$71,(IF(Bewertung!X20=Faktorisierung!$E$72,Faktorisierung!$G$72,IF(Bewertung!X20=Faktorisierung!$E$73,Faktorisierung!$G$73,IF(Bewertung!X20=Faktorisierung!$E$74,Faktorisierung!$G$74,0))))))","v":""},{"$f":"IF(Bewertung!Y20=\"\",\"\",IF(Bewertung!Y20=Faktorisierung!$E$71,Faktorisierung!$G$71,(IF(Bewertung!Y20=Faktorisierung!$E$72,Faktorisierung!$G$72,IF(Bewertung!Y20=Faktorisierung!$E$73,Faktorisierung!$G$73,IF(Bewertung!Y20=Faktorisierung!$E$74,Faktorisierung!$G$74,0))))))","v":""},{"$f":"IF(Bewertung!Z20=\"\",\"\",IF(Bewertung!Z20=Faktorisierung!$E$71,Faktorisierung!$G$71,(IF(Bewertung!Z20=Faktorisierung!$E$72,Faktorisierung!$G$72,IF(Bewertung!Z20=Faktorisierung!$E$73,Faktorisierung!$G$73,IF(Bewertung!Z20=Faktorisierung!$E$74,Faktorisierung!$G$74,0))))))","v":""},{"$f":"IF(Bewertung!AA20=\"\",\"\",IF(Bewertung!AA20=Faktorisierung!$E$71,Faktorisierung!$G$71,(IF(Bewertung!AA20=Faktorisierung!$E$72,Faktorisierung!$G$72,IF(Bewertung!AA20=Faktorisierung!$E$73,Faktorisierung!$G$73,IF(Bewertung!AA20=Faktorisierung!$E$74,Faktorisierung!$G$74,0))))))","v":""},{"$f":"IF(Bewertung!AB20=\"\",\"\",IF(Bewertung!AB20=Faktorisierung!$E$71,Faktorisierung!$G$71,(IF(Bewertung!AB20=Faktorisierung!$E$72,Faktorisierung!$G$72,IF(Bewertung!AB20=Faktorisierung!$E$73,Faktorisierung!$G$73,IF(Bewertung!AB20=Faktorisierung!$E$74,Faktorisierung!$G$74,0))))))","v":""},{"$f":"IF(Bewertung!AC20=\"\",\"\",IF(Bewertung!AC20=Faktorisierung!$E$71,Faktorisierung!$G$71,(IF(Bewertung!AC20=Faktorisierung!$E$72,Faktorisierung!$G$72,IF(Bewertung!AC20=Faktorisierung!$E$73,Faktorisierung!$G$73,IF(Bewertung!AC20=Faktorisierung!$E$74,Faktorisierung!$G$74,0))))))","v":""},{"$f":"IF(Bewertung!AD20=\"\",\"\",IF(Bewertung!AD20=Faktorisierung!$E$71,Faktorisierung!$G$71,(IF(Bewertung!AD20=Faktorisierung!$E$72,Faktorisierung!$G$72,IF(Bewertung!AD20=Faktorisierung!$E$73,Faktorisierung!$G$73,IF(Bewertung!AD20=Faktorisierung!$E$74,Faktorisierung!$G$74,0))))))","v":""},{"$f":"IF(Bewertung!AE20=\"\",\"\",IF(Bewertung!AE20=Faktorisierung!$E$71,Faktorisierung!$G$71,(IF(Bewertung!AE20=Faktorisierung!$E$72,Faktorisierung!$G$72,IF(Bewertung!AE20=Faktorisierung!$E$73,Faktorisierung!$G$73,IF(Bewertung!AE20=Faktorisierung!$E$74,Faktorisierung!$G$74,0))))))","v":""},{"$f":"IF(Bewertung!AF20=\"\",\"\",IF(Bewertung!AF20=Faktorisierung!$E$71,Faktorisierung!$G$71,(IF(Bewertung!AF20=Faktorisierung!$E$72,Faktorisierung!$G$72,IF(Bewertung!AF20=Faktorisierung!$E$73,Faktorisierung!$G$73,IF(Bewertung!AF20=Faktorisierung!$E$74,Faktorisierung!$G$74,0))))))","v":""},{"$f":"IF(Bewertung!AG20=\"\",\"\",IF(Bewertung!AG20=Faktorisierung!$E$71,Faktorisierung!$G$71,(IF(Bewertung!AG20=Faktorisierung!$E$72,Faktorisierung!$G$72,IF(Bewertung!AG20=Faktorisierung!$E$73,Faktorisierung!$G$73,IF(Bewertung!AG20=Faktorisierung!$E$74,Faktorisierung!$G$74,0))))))","v":""},{"$f":"IF(Bewertung!AH20=\"\",\"\",IF(Bewertung!AH20=Faktorisierung!$E$71,Faktorisierung!$G$71,(IF(Bewertung!AH20=Faktorisierung!$E$72,Faktorisierung!$G$72,IF(Bewertung!AH20=Faktorisierung!$E$73,Faktorisierung!$G$73,IF(Bewertung!AH20=Faktorisierung!$E$74,Faktorisierung!$G$74,0))))))","v":""},{"$f":"IF(Bewertung!AI20=\"\",\"\",IF(Bewertung!AI20=Faktorisierung!$E$71,Faktorisierung!$G$71,(IF(Bewertung!AI20=Faktorisierung!$E$72,Faktorisierung!$G$72,IF(Bewertung!AI20=Faktorisierung!$E$73,Faktorisierung!$G$73,IF(Bewertung!AI20=Faktorisierung!$E$74,Faktorisierung!$G$74,0))))))","v":""},{"$f":"IF(Bewertung!AJ20=\"\",\"\",IF(Bewertung!AJ20=Faktorisierung!$E$71,Faktorisierung!$G$71,(IF(Bewertung!AJ20=Faktorisierung!$E$72,Faktorisierung!$G$72,IF(Bewertung!AJ20=Faktorisierung!$E$73,Faktorisierung!$G$73,IF(Bewertung!AJ20=Faktorisierung!$E$74,Faktorisierung!$G$74,0))))))","v":""},{"$f":"IF(Bewertung!AK20=\"\",\"\",IF(Bewertung!AK20=Faktorisierung!$E$71,Faktorisierung!$G$71,(IF(Bewertung!AK20=Faktorisierung!$E$72,Faktorisierung!$G$72,IF(Bewertung!AK20=Faktorisierung!$E$73,Faktorisierung!$G$73,IF(Bewertung!AK20=Faktorisierung!$E$74,Faktorisierung!$G$74,0))))))","v":""},{"$f":"IF(Bewertung!AL20=\"\",\"\",IF(Bewertung!AL20=Faktorisierung!$E$71,Faktorisierung!$G$71,(IF(Bewertung!AL20=Faktorisierung!$E$72,Faktorisierung!$G$72,IF(Bewertung!AL20=Faktorisierung!$E$73,Faktorisierung!$G$73,IF(Bewertung!AL20=Faktorisierung!$E$74,Faktorisierung!$G$74,0))))))","v":""},{"$f":"IF(Bewertung!AM20=\"\",\"\",IF(Bewertung!AM20=Faktorisierung!$E$71,Faktorisierung!$G$71,(IF(Bewertung!AM20=Faktorisierung!$E$72,Faktorisierung!$G$72,IF(Bewertung!AM20=Faktorisierung!$E$73,Faktorisierung!$G$73,IF(Bewertung!AM20=Faktorisierung!$E$74,Faktorisierung!$G$74,0))))))","v":""},{"$f":"IF(Bewertung!AN20=\"\",\"\",IF(Bewertung!AN20=Faktorisierung!$E$71,Faktorisierung!$G$71,(IF(Bewertung!AN20=Faktorisierung!$E$72,Faktorisierung!$G$72,IF(Bewertung!AN20=Faktorisierung!$E$73,Faktorisierung!$G$73,IF(Bewertung!AN20=Faktorisierung!$E$74,Faktorisierung!$G$74,0))))))","v":""},{"$f":"IF(Bewertung!AO20=\"\",\"\",IF(Bewertung!AO20=Faktorisierung!$E$71,Faktorisierung!$G$71,(IF(Bewertung!AO20=Faktorisierung!$E$72,Faktorisierung!$G$72,IF(Bewertung!AO20=Faktorisierung!$E$73,Faktorisierung!$G$73,IF(Bewertung!AO20=Faktorisierung!$E$74,Faktorisierung!$G$74,0))))))","v":""},{"$f":"IF(Bewertung!AP20=\"\",\"\",IF(Bewertung!AP20=Faktorisierung!$E$71,Faktorisierung!$G$71,(IF(Bewertung!AP20=Faktorisierung!$E$72,Faktorisierung!$G$72,IF(Bewertung!AP20=Faktorisierung!$E$73,Faktorisierung!$G$73,IF(Bewertung!AP20=Faktorisierung!$E$74,Faktorisierung!$G$74,0))))))","v":""},{"$f":"IF(Bewertung!AQ20=\"\",\"\",IF(Bewertung!AQ20=Faktorisierung!$E$71,Faktorisierung!$G$71,(IF(Bewertung!AQ20=Faktorisierung!$E$72,Faktorisierung!$G$72,IF(Bewertung!AQ20=Faktorisierung!$E$73,Faktorisierung!$G$73,IF(Bewertung!AQ20=Faktorisierung!$E$74,Faktorisierung!$G$74,0))))))","v":""},{"$f":"IF(Bewertung!AR20=\"\",\"\",IF(Bewertung!AR20=Faktorisierung!$E$71,Faktorisierung!$G$71,(IF(Bewertung!AR20=Faktorisierung!$E$72,Faktorisierung!$G$72,IF(Bewertung!AR20=Faktorisierung!$E$73,Faktorisierung!$G$73,IF(Bewertung!AR20=Faktorisierung!$E$74,Faktorisierung!$G$74,0))))))","v":""},{"$f":"IF(Bewertung!AS20=\"\",\"\",IF(Bewertung!AS20=Faktorisierung!$E$71,Faktorisierung!$G$71,(IF(Bewertung!AS20=Faktorisierung!$E$72,Faktorisierung!$G$72,IF(Bewertung!AS20=Faktorisierung!$E$73,Faktorisierung!$G$73,IF(Bewertung!AS20=Faktorisierung!$E$74,Faktorisierung!$G$74,0))))))","v":""},{"$f":"IF(Bewertung!AT20=\"\",\"\",IF(Bewertung!AT20=Faktorisierung!$E$71,Faktorisierung!$G$71,(IF(Bewertung!AT20=Faktorisierung!$E$72,Faktorisierung!$G$72,IF(Bewertung!AT20=Faktorisierung!$E$73,Faktorisierung!$G$73,IF(Bewertung!AT20=Faktorisierung!$E$74,Faktorisierung!$G$74,0))))))","v":""},{"$f":"IF(Bewertung!AU20=\"\",\"\",IF(Bewertung!AU20=Faktorisierung!$E$71,Faktorisierung!$G$71,(IF(Bewertung!AU20=Faktorisierung!$E$72,Faktorisierung!$G$72,IF(Bewertung!AU20=Faktorisierung!$E$73,Faktorisierung!$G$73,IF(Bewertung!AU20=Faktorisierung!$E$74,Faktorisierung!$G$74,0))))))","v":""},{"$f":"IF(Bewertung!AV20=\"\",\"\",IF(Bewertung!AV20=Faktorisierung!$E$71,Faktorisierung!$G$71,(IF(Bewertung!AV20=Faktorisierung!$E$72,Faktorisierung!$G$72,IF(Bewertung!AV20=Faktorisierung!$E$73,Faktorisierung!$G$73,IF(Bewertung!AV20=Faktorisierung!$E$74,Faktorisierung!$G$74,0))))))","v":""}]
[{"$nulls":4},{"$f":"IF(Bewertung!I21=\"\",\"\",IF(Bewertung!I21=Faktorisierung!$A$80,Faktorisierung!$C$80,(IF(Bewertung!I21=Faktorisierung!$A$81,Faktorisierung!$C$81,IF(Bewertung!I21=Faktorisierung!$A$82,Faktorisierung!$C$82,IF(Bewertung!I21=Faktorisierung!$A$83,Faktorisierung!$C$83,0))))))","v":""},{"$f":"IF(Bewertung!J21=\"\",\"\",IF(Bewertung!J21=Faktorisierung!$A$80,Faktorisierung!$C$80,(IF(Bewertung!J21=Faktorisierung!$A$81,Faktorisierung!$C$81,IF(Bewertung!J21=Faktorisierung!$A$82,Faktorisierung!$C$82,IF(Bewertung!J21=Faktorisierung!$A$83,Faktorisierung!$C$83,0))))))","v":""},{"$f":"IF(Bewertung!#REF!=\"\",\"\",IF(Bewertung!#REF!=Faktorisierung!$A$80,Faktorisierung!$C$80,(IF(Bewertung!#REF!=Faktorisierung!$A$81,Faktorisierung!$C$81,IF(Bewertung!#REF!=Faktorisierung!$A$82,Faktorisierung!$C$82,IF(Bewertung!#REF!=Faktorisierung!$A$83,Faktorisierung!$C$83,0))))))","v":{"$error":"#REF!"}},{"$f":"IF(Bewertung!#REF!=\"\",\"\",IF(Bewertung!#REF!=Faktorisierung!$A$80,Faktorisierung!$C$80,(IF(Bewertung!#REF!=Faktorisierung!$A$81,Faktorisierung!$C$81,IF(Bewertung!#REF!=Faktorisierung!$A$82,Faktorisierung!$C$82,IF(Bewertung!#REF!=Faktorisierung!$A$83,Faktorisierung!$C$83,0))))))","v":{"$error":"#REF!"}},{"$f":"IF(Bewertung!#REF!=\"\",\"\",IF(Bewertung!#REF!=Faktorisierung!$A$80,Faktorisierung!$C$80,(IF(Bewertung!#REF!=Faktorisierung!$A$81,Faktorisierung!$C$81,IF(Bewertung!#REF!=Faktorisierung!$A$82,Faktorisierung!$C$82,IF(Bewertung!#REF!=Faktorisierung!$A$83,Faktorisierung!$C$83,0))))))","v":{"$error":"#REF!"}},{"$f":"IF(Bewertung!#REF!=\"\",\"\",IF(Bewertung!#REF!=Faktorisierung!$A$80,Faktorisierung!$C$80,(IF(Bewertung!#REF!=Faktorisierung!$A$81,Faktorisierung!$C$81,IF(Bewertung!#REF!=Faktorisierung!$A$82,Faktorisierung!$C$82,IF(Bewertung!#REF!=Faktorisierung!$A$83,Faktorisierung!$C$83,0))))))","v":{"$error":"#REF!"}},{"$f":"IF(Bewertung!#REF!=\"\",\"\",IF(Bewertung!#REF!=Faktorisierung!$A$80,Faktorisierung!$C$80,(IF(Bewertung!#REF!=Faktorisierung!$A$81,Faktorisierung!$C$81,IF(Bewertung!#REF!=Faktorisierung!$A$82,Faktorisierung!$C$82,IF(Bewertung!#REF!=Faktorisierung!$A$83,Faktorisierung!$C$83,0))))))","v":{"$error":"#REF!"}},{"$f":"IF(Bewertung!#REF!=\"\",\"\",IF(Bewertung!#REF!=Faktorisierung!$A$80,Faktorisierung!$C$80,(IF(Bewertung!#REF!=Faktorisierung!$A$81,Faktorisierung!$C$81,IF(Bewertung!#REF!=Faktorisierung!$A$82,Faktorisierung!$C$82,IF(Bewertung!#REF!=Faktorisierung!$A$83,Faktorisierung!$C$83,0))))))","v":{"$error":"#REF!"}},{"$f":"IF(Bewertung!K21=\"\",\"\",IF(Bewertung!K21=Faktorisierung!$A$80,Faktorisierung!$C$80,(IF(Bewertung!K21=Faktorisierung!$A$81,Faktorisierung!$C$81,IF(Bewertung!K21=Faktorisierung!$A$82,Faktorisierung!$C$82,IF(Bewertung!K21=Faktorisierung!$A$83,Faktorisierung!$C$83,0))))))","v":""},{"$f":"IF(Bewertung!L21=\"\",\"\",IF(Bewertung!L21=Faktorisierung!$A$80,Faktorisierung!$C$80,(IF(Bewertung!L21=Faktorisierung!$A$81,Faktorisierung!$C$81,IF(Bewertung!L21=Faktorisierung!$A$82,Faktorisierung!$C$82,IF(Bewertung!L21=Faktorisierung!$A$83,Faktorisierung!$C$83,0))))))","v":""},{"$f":"IF(Bewertung!M21=\"\",\"\",IF(Bewertung!M21=Faktorisierung!$A$80,Faktorisierung!$C$80,(IF(Bewertung!M21=Faktorisierung!$A$81,Faktorisierung!$C$81,IF(Bewertung!M21=Faktorisierung!$A$82,Faktorisierung!$C$82,IF(Bewertung!M21=Faktorisierung!$A$83,Faktorisierung!$C$83,0))))))","v":""},{"$f":"IF(Bewertung!N21=\"\",\"\",IF(Bewertung!N21=Faktorisierung!$A$80,Faktorisierung!$C$80,(IF(Bewertung!N21=Faktorisierung!$A$81,Faktorisierung!$C$81,IF(Bewertung!N21=Faktorisierung!$A$82,Faktorisierung!$C$82,IF(Bewertung!N21=Faktorisierung!$A$83,Faktorisierung!$C$83,0))))))","v":""},{"$f":"IF(Bewertung!O21=\"\",\"\",IF(Bewertung!O21=Faktorisierung!$A$80,Faktorisierung!$C$80,(IF(Bewertung!O21=Faktorisierung!$A$81,Faktorisierung!$C$81,IF(Bewertung!O21=Faktorisierung!$A$82,Faktorisierung!$C$82,IF(Bewertung!O21=Faktorisierung!$A$83,Faktorisierung!$C$83,0))))))","v":""},{"$f":"IF(Bewertung!P21=\"\",\"\",IF(Bewertung!P21=Faktorisierung!$A$80,Faktorisierung!$C$80,(IF(Bewertung!P21=Faktorisierung!$A$81,Faktorisierung!$C$81,IF(Bewertung!P21=Faktorisierung!$A$82,Faktorisierung!$C$82,IF(Bewertung!P21=Faktorisierung!$A$83,Faktorisierung!$C$83,0))))))","v":""},{"$f":"IF(Bewertung!Q21=\"\",\"\",IF(Bewertung!Q21=Faktorisierung!$A$80,Faktorisierung!$C$80,(IF(Bewertung!Q21=Faktorisierung!$A$81,Faktorisierung!$C$81,IF(Bewertung!Q21=Faktorisierung!$A$82,Faktorisierung!$C$82,IF(Bewertung!Q21=Faktorisierung!$A$83,Faktorisierung!$C$83,0))))))","v":""},{"$f":"IF(Bewertung!R21=\"\",\"\",IF(Bewertung!R21=Faktorisierung!$A$80,Faktorisierung!$C$80,(IF(Bewertung!R21=Faktorisierung!$A$81,Faktorisierung!$C$81,IF(Bewertung!R21=Faktorisierung!$A$82,Faktorisierung!$C$82,IF(Bewertung!R21=Faktorisierung!$A$83,Faktorisierung!$C$83,0))))))","v":""},{"$f":"IF(Bewertung!S21=\"\",\"\",IF(Bewertung!S21=Faktorisierung!$A$80,Faktorisierung!$C$80,(IF(Bewertung!S21=Faktorisierung!$A$81,Faktorisierung!$C$81,IF(Bewertung!S21=Faktorisierung!$A$82,Faktorisierung!$C$82,IF(Bewertung!S21=Faktorisierung!$A$83,Faktorisierung!$C$83,0))))))","v":""},{"$f":"IF(Bewertung!T21=\"\",\"\",IF(Bewertung!T21=Faktorisierung!$A$80,Faktorisierung!$C$80,(IF(Bewertung!T21=Faktorisierung!$A$81,Faktorisierung!$C$81,IF(Bewertung!T21=Faktorisierung!$A$82,Faktorisierung!$C$82,IF(Bewertung!T21=Faktorisierung!$A$83,Faktorisierung!$C$83,0))))))","v":""},{"$f":"IF(Bewertung!U21=\"\",\"\",IF(Bewertung!U21=Faktorisierung!$A$80,Faktorisierung!$C$80,(IF(Bewertung!U21=Faktorisierung!$A$81,Faktorisierung!$C$81,IF(Bewertung!U21=Faktorisierung!$A$82,Faktorisierung!$C$82,IF(Bewertung!U21=Faktorisierung!$A$83,Faktorisierung!$C$83,0))))))","v":""},{"$f":"IF(Bewertung!V21=\"\",\"\",IF(Bewertung!V21=Faktorisierung!$A$80,Faktorisierung!$C$80,(IF(Bewertung!V21=Faktorisierung!$A$81,Faktorisierung!$C$81,IF(Bewertung!V21=Faktorisierung!$A$82,Faktorisierung!$C$82,IF(Bewertung!V21=Faktorisierung!$A$83,Faktorisierung!$C$83,0))))))","v":""},{"$f":"IF(Bewertung!W21=\"\",\"\",IF(Bewertung!W21=Faktorisierung!$A$80,Faktorisierung!$C$80,(IF(Bewertung!W21=Faktorisierung!$A$81,Faktorisierung!$C$81,IF(Bewertung!W21=Faktorisierung!$A$82,Faktorisierung!$C$82,IF(Bewertung!W21=Faktorisierung!$A$83,Faktorisierung!$C$83,0))))))","v":""},{"$f":"IF(Bewertung!X21=\"\",\"\",IF(Bewertung!X21=Faktorisierung!$A$80,Faktorisierung!$C$80,(IF(Bewertung!X21=Faktorisierung!$A$81,Faktorisierung!$C$81,IF(Bewertung!X21=Faktorisierung!$A$82,Faktorisierung!$C$82,IF(Bewertung!X21=Faktorisierung!$A$83,Faktorisierung!$C$83,0))))))","v":""},{"$f":"IF(Bewertung!Y21=\"\",\"\",IF(Bewertung!Y21=Faktorisierung!$A$80,Faktorisierung!$C$80,(IF(Bewertung!Y21=Faktorisierung!$A$81,Faktorisierung!$C$81,IF(Bewertung!Y21=Faktorisierung!$A$82,Faktorisierung!$C$82,IF(Bewertung!Y21=Faktorisierung!$A$83,Faktorisierung!$C$83,0))))))","v":""},{"$f":"IF(Bewertung!Z21=\"\",\"\",IF(Bewertung!Z21=Faktorisierung!$A$80,Faktorisierung!$C$80,(IF(Bewertung!Z21=Faktorisierung!$A$81,Faktorisierung!$C$81,IF(Bewertung!Z21=Faktorisierung!$A$82,Faktorisierung!$C$82,IF(Bewertung!Z21=Faktorisierung!$A$83,Faktorisierung!$C$83,0))))))","v":""},{"$f":"IF(Bewertung!AA21=\"\",\"\",IF(Bewertung!AA21=Faktorisierung!$A$80,Faktorisierung!$C$80,(IF(Bewertung!AA21=Faktorisierung!$A$81,Faktorisierung!$C$81,IF(Bewertung!AA21=Faktorisierung!$A$82,Faktorisierung!$C$82,IF(Bewertung!AA21=Faktorisierung!$A$83,Faktorisierung!$C$83,0))))))","v":""},{"$f":"IF(Bewertung!AB21=\"\",\"\",IF(Bewertung!AB21=Faktorisierung!$A$80,Faktorisierung!$C$80,(IF(Bewertung!AB21=Faktorisierung!$A$81,Faktorisierung!$C$81,IF(Bewertung!AB21=Faktorisierung!$A$82,Faktorisierung!$C$82,IF(Bewertung!AB21=Faktorisierung!$A$83,Faktorisierung!$C$83,0))))))","v":""},{"$f":"IF(Bewertung!AC21=\"\",\"\",IF(Bewertung!AC21=Faktorisierung!$A$80,Faktorisierung!$C$80,(IF(Bewertung!AC21=Faktorisierung!$A$81,Faktorisierung!$C$81,IF(Bewertung!AC21=Faktorisierung!$A$82,Faktorisierung!$C$82,IF(Bewertung!AC21=Faktorisierung!$A$83,Faktorisierung!$C$83,0))))))","v":""},{"$f":"IF(Bewertung!AD21=\"\",\"\",IF(Bewertung!AD21=Faktorisierung!$A$80,Faktorisierung!$C$80,(IF(Bewertung!AD21=Faktorisierung!$A$81,Faktorisierung!$C$81,IF(Bewertung!AD21=Faktorisierung!$A$82,Faktorisierung!$C$82,IF(Bewertung!AD21=Faktorisierung!$A$83,Faktorisierung!$C$83,0))))))","v":""},{"$f":"IF(Bewertung!AE21=\"\",\"\",IF(Bewertung!AE21=Faktorisierung!$A$80,Faktorisierung!$C$80,(IF(Bewertung!AE21=Faktorisierung!$A$81,Faktorisierung!$C$81,IF(Bewertung!AE21=Faktorisierung!$A$82,Faktorisierung!$C$82,IF(Bewertung!AE21=Faktorisierung!$A$83,Faktorisierung!$C$83,0))))))","v":""},{"$f":"IF(Bewertung!AF21=\"\",\"\",IF(Bewertung!AF21=Faktorisierung!$A$80,Faktorisierung!$C$80,(IF(Bewertung!AF21=Faktorisierung!$A$81,Faktorisierung!$C$81,IF(Bewertung!AF21=Faktorisierung!$A$82,Faktorisierung!$C$82,IF(Bewertung!AF21=Faktorisierung!$A$83,Faktorisierung!$C$83,0))))))","v":""},{"$f":"IF(Bewertung!AG21=\"\",\"\",IF(Bewertung!AG21=Faktorisierung!$A$80,Faktorisierung!$C$80,(IF(Bewertung!AG21=Faktorisierung!$A$81,Faktorisierung!$C$81,IF(Bewertung!AG21=Faktorisierung!$A$82,Faktorisierung!$C$82,IF(Bewertung!AG21=Faktorisierung!$A$83,Faktorisierung!$C$83,0))))))","v":""},{"$f":"IF(Bewertung!AH21=\"\",\"\",IF(Bewertung!AH21=Faktorisierung!$A$80,Faktorisierung!$C$80,(IF(Bewertung!AH21=Faktorisierung!$A$81,Faktorisierung!$C$81,IF(Bewertung!AH21=Faktorisierung!$A$82,Faktorisierung!$C$82,IF(Bewertung!AH21=Faktorisierung!$A$83,Faktorisierung!$C$83,0))))))","v":""},{"$f":"IF(Bewertung!AI21=\"\",\"\",IF(Bewertung!AI21=Faktorisierung!$A$80,Faktorisierung!$C$80,(IF(Bewertung!AI21=Faktorisierung!$A$81,Faktorisierung!$C$81,IF(Bewertung!AI21=Faktorisierung!$A$82,Faktorisierung!$C$82,IF(Bewertung!AI21=Faktorisierung!$A$83,Faktorisierung!$C$83,0))))))","v":""},{"$f":"IF(Bewertung!AJ21=\"\",\"\",IF(Bewertung!AJ21=Faktorisierung!$A$80,Faktorisierung!$C$80,(IF(Bewertung!AJ21=Faktorisierung!$A$81,Faktorisierung!$C$81,IF(Bewertung!AJ21=Faktorisierung!$A$82,Faktorisierung!$C$82,IF(Bewertung!AJ21=Faktorisierung!$A$83,Faktorisierung!$C$83,0))))))","v":""},{"$f":"IF(Bewertung!AK21=\"\",\"\",IF(Bewertung!AK21=Faktorisierung!$A$80,Faktorisierung!$C$80,(IF(Bewertung!AK21=Faktorisierung!$A$81,Faktorisierung!$C$81,IF(Bewertung!AK21=Faktorisierung!$A$82,Faktorisierung!$C$82,IF(Bewertung!AK21=Faktorisierung!$A$83,Faktorisierung!$C$83,0))))))","v":""},{"$f":"IF(Bewertung!AL21=\"\",\"\",IF(Bewertung!AL21=Faktorisierung!$A$80,Faktorisierung!$C$80,(IF(Bewertung!AL21=Faktorisierung!$A$81,Faktorisierung!$C$81,IF(Bewertung!AL21=Faktorisierung!$A$82,Faktorisierung!$C$82,IF(Bewertung!AL21=Faktorisierung!$A$83,Faktorisierung!$C$83,0))))))","v":""},{"$f":"IF(Bewertung!AM21=\"\",\"\",IF(Bewertung!AM21=Faktorisierung!$A$80,Faktorisierung!$C$80,(IF(Bewertung!AM21=Faktorisierung!$A$81,Faktorisierung!$C$81,IF(Bewertung!AM21=Faktorisierung!$A$82,Faktorisierung!$C$82,IF(Bewertung!AM21=Faktorisierung!$A$83,Faktorisierung!$C$83,0))))))","v":""},{"$f":"IF(Bewertung!AN21=\"\",\"\",IF(Bewertung!AN21=Faktorisierung!$A$80,Faktorisierung!$C$80,(IF(Bewertung!AN21=Faktorisierung!$A$81,Faktorisierung!$C$81,IF(Bewertung!AN21=Faktorisierung!$A$82,Faktorisierung!$C$82,IF(Bewertung!AN21=Faktorisierung!$A$83,Faktorisierung!$C$83,0))))))","v":""},{"$f":"IF(Bewertung!AO21=\"\",\"\",IF(Bewertung!AO21=Faktorisierung!$A$80,Faktorisierung!$C$80,(IF(Bewertung!AO21=Faktorisierung!$A$81,Faktorisierung!$C$81,IF(Bewertung!AO21=Faktorisierung!$A$82,Faktorisierung!$C$82,IF(Bewertung!AO21=Faktorisierung!$A$83,Faktorisierung!$C$83,0))))))","v":""},{"$f":"IF(Bewertung!AP21=\"\",\"\",IF(Bewertung!AP21=Faktorisierung!$A$80,Faktorisierung!$C$80,(IF(Bewertung!AP21=Faktorisierung!$A$81,Faktorisierung!$C$81,IF(Bewertung!AP21=Faktorisierung!$A$82,Faktorisierung!$C$82,IF(Bewertung!AP21=Faktorisierung!$A$83,Faktorisierung!$C$83,0))))))","v":""},{"$f":"IF(Bewertung!AQ21=\"\",\"\",IF(Bewertung!AQ21=Faktorisierung!$A$80,Faktorisierung!$C$80,(IF(Bewertung!AQ21=Faktorisierung!$A$81,Faktorisierung!$C$81,IF(Bewertung!AQ21=Faktorisierung!$A$82,Faktorisierung!$C$82,IF(Bewertung!AQ21=Faktorisierung!$A$83,Faktorisierung!$C$83,0))))))","v":""},{"$f":"IF(Bewertung!AR21=\"\",\"\",IF(Bewertung!AR21=Faktorisierung!$A$80,Faktorisierung!$C$80,(IF(Bewertung!AR21=Faktorisierung!$A$81,Faktorisierung!$C$81,IF(Bewertung!AR21=Faktorisierung!$A$82,Faktorisierung!$C$82,IF(Bewertung!AR21=Faktorisierung!$A$83,Faktorisierung!$C$83,0))))))","v":""},{"$f":"IF(Bewertung!AS21=\"\",\"\",IF(Bewertung!AS21=Faktorisierung!$A$80,Faktorisierung!$C$80,(IF(Bewertung!AS21=Faktorisierung!$A$81,Faktorisierung!$C$81,IF(Bewertung!AS21=Faktorisierung!$A$82,Faktorisierung!$C$82,IF(Bewertung!AS21=Faktorisierung!$A$83,Faktorisierung!$C$83,0))))))","v":""},{"$f":"IF(Bewertung!AT21=\"\",\"\",IF(Bewertung!AT21=Faktorisierung!$A$80,Faktorisierung!$C$80,(IF(Bewertung!AT21=Faktorisierung!$A$81,Faktorisierung!$C$81,IF(Bewertung!AT21=Faktorisierung!$A$82,Faktorisierung!$C$82,IF(Bewertung!AT21=Faktorisierung!$A$83,Faktorisierung!$C$83,0))))))","v":""},{"$f":"IF(Bewertung!AU21=\"\",\"\",IF(Bewertung!AU21=Faktorisierung!$A$80,Faktorisierung!$C$80,(IF(Bewertung!AU21=Faktorisierung!$A$81,Faktorisierung!$C$81,IF(Bewertung!AU21=Faktorisierung!$A$82,Faktorisierung!$C$82,IF(Bewertung!AU21=Faktorisierung!$A$83,Faktorisierung!$C$83,0))))))","v":""},{"$f":"IF(Bewertung!AV21=\"\",\"\",IF(Bewertung!AV21=Faktorisierung!$A$80,Faktorisierung!$C$80,(IF(Bewertung!AV21=Faktorisierung!$A$81,Faktorisierung!$C$81,IF(Bewertung!AV21=Faktorisierung!$A$82,Faktorisierung!$C$82,IF(Bewertung!AV21=Faktorisierung!$A$83,Faktorisierung!$C$83,0))))))","v":""}]
[{"$nulls":4},{"$f":"IF(Bewertung!I22=\"\",\"\",IF(Bewertung!I22=Faktorisierung!$E$80,Faktorisierung!$G$80,(IF(Bewertung!I22=Faktorisierung!$E$81,Faktorisierung!$G$81,IF(Bewertung!I22=Faktorisierung!$E$82,Faktorisierung!$G$82,IF(Bewertung!I22=Faktorisierung!$E$83,Faktorisierung!$G$83,0))))))","v":""},{"$f":"IF(Bewertung!J22=\"\",\"\",IF(Bewertung!J22=Faktorisierung!$E$80,Faktorisierung!$G$80,(IF(Bewertung!J22=Faktorisierung!$E$81,Faktorisierung!$G$81,IF(Bewertung!J22=Faktorisierung!$E$82,Faktorisierung!$G$82,IF(Bewertung!J22=Faktorisierung!$E$83,Faktorisierung!$G$83,0))))))","v":""},{"$f":"IF(Bewertung!#REF!=\"\",\"\",IF(Bewertung!#REF!=Faktorisierung!$E$80,Faktorisierung!$G$80,(IF(Bewertung!#REF!=Faktorisierung!$E$81,Faktorisierung!$G$81,IF(Bewertung!#REF!=Faktorisierung!$E$82,Faktorisierung!$G$82,IF(Bewertung!#REF!=Faktorisierung!$E$83,Faktorisierung!$G$83,0))))))","v":{"$error":"#REF!"}},{"$f":"IF(Bewertung!#REF!=\"\",\"\",IF(Bewertung!#REF!=Faktorisierung!$E$80,Faktorisierung!$G$80,(IF(Bewertung!#REF!=Faktorisierung!$E$81,Faktorisierung!$G$81,IF(Bewertung!#REF!=Faktorisierung!$E$82,Faktorisierung!$G$82,IF(Bewertung!#REF!=Faktorisierung!$E$83,Faktorisierung!$G$83,0))))))","v":{"$error":"#REF!"}},{"$f":"IF(Bewertung!#REF!=\"\",\"\",IF(Bewertung!#REF!=Faktorisierung!$E$80,Faktorisierung!$G$80,(IF(Bewertung!#REF!=Faktorisierung!$E$81,Faktorisierung!$G$81,IF(Bewertung!#REF!=Faktorisierung!$E$82,Faktorisierung!$G$82,IF(Bewertung!#REF!=Faktorisierung!$E$83,Faktorisierung!$G$83,0))))))","v":{"$error":"#REF!"}},{"$f":"IF(Bewertung!#REF!=\"\",\"\",IF(Bewertung!#REF!=Faktorisierung!$E$80,Faktorisierung!$G$80,(IF(Bewertung!#REF!=Faktorisierung!$E$81,Faktorisierung!$G$81,IF(Bewertung!#REF!=Faktorisierung!$E$82,Faktorisierung!$G$82,IF(Bewertung!#REF!=Faktorisierung!$E$83,Faktorisierung!$G$83,0))))))","v":{"$error":"#REF!"}},{"$f":"IF(Bewertung!#REF!=\"\",\"\",IF(Bewertung!#REF!=Faktorisierung!$E$80,Faktorisierung!$G$80,(IF(Bewertung!#REF!=Faktorisierung!$E$81,Faktorisierung!$G$81,IF(Bewertung!#REF!=Faktorisierung!$E$82,Faktorisierung!$G$82,IF(Bewertung!#REF!=Faktorisierung!$E$83,Faktorisierung!$G$83,0))))))","v":{"$error":"#REF!"}},{"$f":"IF(Bewertung!#REF!=\"\",\"\",IF(Bewertung!#REF!=Faktorisierung!$E$80,Faktorisierung!$G$80,(IF(Bewertung!#REF!=Faktorisierung!$E$81,Faktorisierung!$G$81,IF(Bewertung!#REF!=Faktorisierung!$E$82,Faktorisierung!$G$82,IF(Bewertung!#REF!=Faktorisierung!$E$83,Faktorisierung!$G$83,0))))))","v":{"$error":"#REF!"}},{"$f":"IF(Bewertung!K22=\"\",\"\",IF(Bewertung!K22=Faktorisierung!$E$80,Faktorisierung!$G$80,(IF(Bewertung!K22=Faktorisierung!$E$81,Faktorisierung!$G$81,IF(Bewertung!K22=Faktorisierung!$E$82,Faktorisierung!$G$82,IF(Bewertung!K22=Faktorisierung!$E$83,Faktorisierung!$G$83,0))))))","v":""},{"$f":"IF(Bewertung!L22=\"\",\"\",IF(Bewertung!L22=Faktorisierung!$E$80,Faktorisierung!$G$80,(IF(Bewertung!L22=Faktorisierung!$E$81,Faktorisierung!$G$81,IF(Bewertung!L22=Faktorisierung!$E$82,Faktorisierung!$G$82,IF(Bewertung!L22=Faktorisierung!$E$83,Faktorisierung!$G$83,0))))))","v":""},{"$f":"IF(Bewertung!M22=\"\",\"\",IF(Bewertung!M22=Faktorisierung!$E$80,Faktorisierung!$G$80,(IF(Bewertung!M22=Faktorisierung!$E$81,Faktorisierung!$G$81,IF(Bewertung!M22=Faktorisierung!$E$82,Faktorisierung!$G$82,IF(Bewertung!M22=Faktorisierung!$E$83,Faktorisierung!$G$83,0))))))","v":""},{"$f":"IF(Bewertung!N22=\"\",\"\",IF(Bewertung!N22=Faktorisierung!$E$80,Faktorisierung!$G$80,(IF(Bewertung!N22=Faktorisierung!$E$81,Faktorisierung!$G$81,IF(Bewertung!N22=Faktorisierung!$E$82,Faktorisierung!$G$82,IF(Bewertung!N22=Faktorisierung!$E$83,Faktorisierung!$G$83,0))))))","v":""},{"$f":"IF(Bewertung!O22=\"\",\"\",IF(Bewertung!O22=Faktorisierung!$E$80,Faktorisierung!$G$80,(IF(Bewertung!O22=Faktorisierung!$E$81,Faktorisierung!$G$81,IF(Bewertung!O22=Faktorisierung!$E$82,Faktorisierung!$G$82,IF(Bewertung!O22=Faktorisierung!$E$83,Faktorisierung!$G$83,0))))))","v":""},{"$f":"IF(Bewertung!P22=\"\",\"\",IF(Bewertung!P22=Faktorisierung!$E$80,Faktorisierung!$G$80,(IF(Bewertung!P22=Faktorisierung!$E$81,Faktorisierung!$G$81,IF(Bewertung!P22=Faktorisierung!$E$82,Faktorisierung!$G$82,IF(Bewertung!P22=Faktorisierung!$E$83,Faktorisierung!$G$83,0))))))","v":""},{"$f":"IF(Bewertung!Q22=\"\",\"\",IF(Bewertung!Q22=Faktorisierung!$E$80,Faktorisierung!$G$80,(IF(Bewertung!Q22=Faktorisierung!$E$81,Faktorisierung!$G$81,IF(Bewertung!Q22=Faktorisierung!$E$82,Faktorisierung!$G$82,IF(Bewertung!Q22=Faktorisierung!$E$83,Faktorisierung!$G$83,0))))))","v":""},{"$f":"IF(Bewertung!R22=\"\",\"\",IF(Bewertung!R22=Faktorisierung!$E$80,Faktorisierung!$G$80,(IF(Bewertung!R22=Faktorisierung!$E$81,Faktorisierung!$G$81,IF(Bewertung!R22=Faktorisierung!$E$82,Faktorisierung!$G$82,IF(Bewertung!R22=Faktorisierung!$E$83,Faktorisierung!$G$83,0))))))","v":""},{"$f":"IF(Bewertung!S22=\"\",\"\",IF(Bewertung!S22=Faktorisierung!$E$80,Faktorisierung!$G$80,(IF(Bewertung!S22=Faktorisierung!$E$81,Faktorisierung!$G$81,IF(Bewertung!S22=Faktorisierung!$E$82,Faktorisierung!$G$82,IF(Bewertung!S22=Faktorisierung!$E$83,Faktorisierung!$G$83,0))))))","v":""},{"$f":"IF(Bewertung!T22=\"\",\"\",IF(Bewertung!T22=Faktorisierung!$E$80,Faktorisierung!$G$80,(IF(Bewertung!T22=Faktorisierung!$E$81,Faktorisierung!$G$81,IF(Bewertung!T22=Faktorisierung!$E$82,Faktorisierung!$G$82,IF(Bewertung!T22=Faktorisierung!$E$83,Faktorisierung!$G$83,0))))))","v":""},{"$f":"IF(Bewertung!U22=\"\",\"\",IF(Bewertung!U22=Faktorisierung!$E$80,Faktorisierung!$G$80,(IF(Bewertung!U22=Faktorisierung!$E$81,Faktorisierung!$G$81,IF(Bewertung!U22=Faktorisierung!$E$82,Faktorisierung!$G$82,IF(Bewertung!U22=Faktorisierung!$E$83,Faktorisierung!$G$83,0))))))","v":""},{"$f":"IF(Bewertung!V22=\"\",\"\",IF(Bewertung!V22=Faktorisierung!$E$80,Faktorisierung!$G$80,(IF(Bewertung!V22=Faktorisierung!$E$81,Faktorisierung!$G$81,IF(Bewertung!V22=Faktorisierung!$E$82,Faktorisierung!$G$82,IF(Bewertung!V22=Faktorisierung!$E$83,Faktorisierung!$G$83,0))))))","v":""},{"$f":"IF(Bewertung!W22=\"\",\"\",IF(Bewertung!W22=Faktorisierung!$E$80,Faktorisierung!$G$80,(IF(Bewertung!W22=Faktorisierung!$E$81,Faktorisierung!$G$81,IF(Bewertung!W22=Faktorisierung!$E$82,Faktorisierung!$G$82,IF(Bewertung!W22=Faktorisierung!$E$83,Faktorisierung!$G$83,0))))))","v":""},{"$f":"IF(Bewertung!X22=\"\",\"\",IF(Bewertung!X22=Faktorisierung!$E$80,Faktorisierung!$G$80,(IF(Bewertung!X22=Faktorisierung!$E$81,Faktorisierung!$G$81,IF(Bewertung!X22=Faktorisierung!$E$82,Faktorisierung!$G$82,IF(Bewertung!X22=Faktorisierung!$E$83,Faktorisierung!$G$83,0))))))","v":""},{"$f":"IF(Bewertung!Y22=\"\",\"\",IF(Bewertung!Y22=Faktorisierung!$E$80,Faktorisierung!$G$80,(IF(Bewertung!Y22=Faktorisierung!$E$81,Faktorisierung!$G$81,IF(Bewertung!Y22=Faktorisierung!$E$82,Faktorisierung!$G$82,IF(Bewertung!Y22=Faktorisierung!$E$83,Faktorisierung!$G$83,0))))))","v":""},{"$f":"IF(Bewertung!Z22=\"\",\"\",IF(Bewertung!Z22=Faktorisierung!$E$80,Faktorisierung!$G$80,(IF(Bewertung!Z22=Faktorisierung!$E$81,Faktorisierung!$G$81,IF(Bewertung!Z22=Faktorisierung!$E$82,Faktorisierung!$G$82,IF(Bewertung!Z22=Faktorisierung!$E$83,Faktorisierung!$G$83,0))))))","v":""},{"$f":"IF(Bewertung!AA22=\"\",\"\",IF(Bewertung!AA22=Faktorisierung!$E$80,Faktorisierung!$G$80,(IF(Bewertung!AA22=Faktorisierung!$E$81,Faktorisierung!$G$81,IF(Bewertung!AA22=Faktorisierung!$E$82,Faktorisierung!$G$82,IF(Bewertung!AA22=Faktorisierung!$E$83,Faktorisierung!$G$83,0))))))","v":""},{"$f":"IF(Bewertung!AB22=\"\",\"\",IF(Bewertung!AB22=Faktorisierung!$E$80,Faktorisierung!$G$80,(IF(Bewertung!AB22=Faktorisierung!$E$81,Faktorisierung!$G$81,IF(Bewertung!AB22=Faktorisierung!$E$82,Faktorisierung!$G$82,IF(Bewertung!AB22=Faktorisierung!$E$83,Faktorisierung!$G$83,0))))))","v":""},{"$f":"IF(Bewertung!AC22=\"\",\"\",IF(Bewertung!AC22=Faktorisierung!$E$80,Faktorisierung!$G$80,(IF(Bewertung!AC22=Faktorisierung!$E$81,Faktorisierung!$G$81,IF(Bewertung!AC22=Faktorisierung!$E$82,Faktorisierung!$G$82,IF(Bewertung!AC22=Faktorisierung!$E$83,Faktorisierung!$G$83,0))))))","v":""},{"$f":"IF(Bewertung!AD22=\"\",\"\",IF(Bewertung!AD22=Faktorisierung!$E$80,Faktorisierung!$G$80,(IF(Bewertung!AD22=Faktorisierung!$E$81,Faktorisierung!$G$81,IF(Bewertung!AD22=Faktorisierung!$E$82,Faktorisierung!$G$82,IF(Bewertung!AD22=Faktorisierung!$E$83,Faktorisierung!$G$83,0))))))","v":""},{"$f":"IF(Bewertung!AE22=\"\",\"\",IF(Bewertung!AE22=Faktorisierung!$E$80,Faktorisierung!$G$80,(IF(Bewertung!AE22=Faktorisierung!$E$81,Faktorisierung!$G$81,IF(Bewertung!AE22=Faktorisierung!$E$82,Faktorisierung!$G$82,IF(Bewertung!AE22=Faktorisierung!$E$83,Faktorisierung!$G$83,0))))))","v":""},{"$f":"IF(Bewertung!AF22=\"\",\"\",IF(Bewertung!AF22=Faktorisierung!$E$80,Faktorisierung!$G$80,(IF(Bewertung!AF22=Faktorisierung!$E$81,Faktorisierung!$G$81,IF(Bewertung!AF22=Faktorisierung!$E$82,Faktorisierung!$G$82,IF(Bewertung!AF22=Faktorisierung!$E$83,Faktorisierung!$G$83,0))))))","v":""},{"$f":"IF(Bewertung!AG22=\"\",\"\",IF(Bewertung!AG22=Faktorisierung!$E$80,Faktorisierung!$G$80,(IF(Bewertung!AG22=Faktorisierung!$E$81,Faktorisierung!$G$81,IF(Bewertung!AG22=Faktorisierung!$E$82,Faktorisierung!$G$82,IF(Bewertung!AG22=Faktorisierung!$E$83,Faktorisierung!$G$83,0))))))","v":""},{"$f":"IF(Bewertung!AH22=\"\",\"\",IF(Bewertung!AH22=Faktorisierung!$E$80,Faktorisierung!$G$80,(IF(Bewertung!AH22=Faktorisierung!$E$81,Faktorisierung!$G$81,IF(Bewertung!AH22=Faktorisierung!$E$82,Faktorisierung!$G$82,IF(Bewertung!AH22=Faktorisierung!$E$83,Faktorisierung!$G$83,0))))))","v":""},{"$f":"IF(Bewertung!AI22=\"\",\"\",IF(Bewertung!AI22=Faktorisierung!$E$80,Faktorisierung!$G$80,(IF(Bewertung!AI22=Faktorisierung!$E$81,Faktorisierung!$G$81,IF(Bewertung!AI22=Faktorisierung!$E$82,Faktorisierung!$G$82,IF(Bewertung!AI22=Faktorisierung!$E$83,Faktorisierung!$G$83,0))))))","v":""},{"$f":"IF(Bewertung!AJ22=\"\",\"\",IF(Bewertung!AJ22=Faktorisierung!$E$80,Faktorisierung!$G$80,(IF(Bewertung!AJ22=Faktorisierung!$E$81,Faktorisierung!$G$81,IF(Bewertung!AJ22=Faktorisierung!$E$82,Faktorisierung!$G$82,IF(Bewertung!AJ22=Faktorisierung!$E$83,Faktorisierung!$G$83,0))))))","v":""},{"$f":"IF(Bewertung!AK22=\"\",\"\",IF(Bewertung!AK22=Faktorisierung!$E$80,Faktorisierung!$G$80,(IF(Bewertung!AK22=Faktorisierung!$E$81,Faktorisierung!$G$81,IF(Bewertung!AK22=Faktorisierung!$E$82,Faktorisierung!$G$82,IF(Bewertung!AK22=Faktorisierung!$E$83,Faktorisierung!$G$83,0))))))","v":""},{"$f":"IF(Bewertung!AL22=\"\",\"\",IF(Bewertung!AL22=Faktorisierung!$E$80,Faktorisierung!$G$80,(IF(Bewertung!AL22=Faktorisierung!$E$81,Faktorisierung!$G$81,IF(Bewertung!AL22=Faktorisierung!$E$82,Faktorisierung!$G$82,IF(Bewertung!AL22=Faktorisierung!$E$83,Faktorisierung!$G$83,0))))))","v":""},{"$f":"IF(Bewertung!AM22=\"\",\"\",IF(Bewertung!AM22=Faktorisierung!$E$80,Faktorisierung!$G$80,(IF(Bewertung!AM22=Faktorisierung!$E$81,Faktorisierung!$G$81,IF(Bewertung!AM22=Faktorisierung!$E$82,Faktorisierung!$G$82,IF(Bewertung!AM22=Faktorisierung!$E$83,Faktorisierung!$G$83,0))))))","v":""},{"$f":"IF(Bewertung!AN22=\"\",\"\",IF(Bewertung!AN22=Faktorisierung!$E$80,Faktorisierung!$G$80,(IF(Bewertung!AN22=Faktorisierung!$E$81,Faktorisierung!$G$81,IF(Bewertung!AN22=Faktorisierung!$E$82,Faktorisierung!$G$82,IF(Bewertung!AN22=Faktorisierung!$E$83,Faktorisierung!$G$83,0))))))","v":""},{"$f":"IF(Bewertung!AO22=\"\",\"\",IF(Bewertung!AO22=Faktorisierung!$E$80,Faktorisierung!$G$80,(IF(Bewertung!AO22=Faktorisierung!$E$81,Faktorisierung!$G$81,IF(Bewertung!AO22=Faktorisierung!$E$82,Faktorisierung!$G$82,IF(Bewertung!AO22=Faktorisierung!$E$83,Faktorisierung!$G$83,0))))))","v":""},{"$f":"IF(Bewertung!AP22=\"\",\"\",IF(Bewertung!AP22=Faktorisierung!$E$80,Faktorisierung!$G$80,(IF(Bewertung!AP22=Faktorisierung!$E$81,Faktorisierung!$G$81,IF(Bewertung!AP22=Faktorisierung!$E$82,Faktorisierung!$G$82,IF(Bewertung!AP22=Faktorisierung!$E$83,Faktorisierung!$G$83,0))))))","v":""},{"$f":"IF(Bewertung!AQ22=\"\",\"\",IF(Bewertung!AQ22=Faktorisierung!$E$80,Faktorisierung!$G$80,(IF(Bewertung!AQ22=Faktorisierung!$E$81,Faktorisierung!$G$81,IF(Bewertung!AQ22=Faktorisierung!$E$82,Faktorisierung!$G$82,IF(Bewertung!AQ22=Faktorisierung!$E$83,Faktorisierung!$G$83,0))))))","v":""},{"$f":"IF(Bewertung!AR22=\"\",\"\",IF(Bewertung!AR22=Faktorisierung!$E$80,Faktorisierung!$G$80,(IF(Bewertung!AR22=Faktorisierung!$E$81,Faktorisierung!$G$81,IF(Bewertung!AR22=Faktorisierung!$E$82,Faktorisierung!$G$82,IF(Bewertung!AR22=Faktorisierung!$E$83,Faktorisierung!$G$83,0))))))","v":""},{"$f":"IF(Bewertung!AS22=\"\",\"\",IF(Bewertung!AS22=Faktorisierung!$E$80,Faktorisierung!$G$80,(IF(Bewertung!AS22=Faktorisierung!$E$81,Faktorisierung!$G$81,IF(Bewertung!AS22=Faktorisierung!$E$82,Faktorisierung!$G$82,IF(Bewertung!AS22=Faktorisierung!$E$83,Faktorisierung!$G$83,0))))))","v":""},{"$f":"IF(Bewertung!AT22=\"\",\"\",IF(Bewertung!AT22=Faktorisierung!$E$80,Faktorisierung!$G$80,(IF(Bewertung!AT22=Faktorisierung!$E$81,Faktorisierung!$G$81,IF(Bewertung!AT22=Faktorisierung!$E$82,Faktorisierung!$G$82,IF(Bewertung!AT22=Faktorisierung!$E$83,Faktorisierung!$G$83,0))))))","v":""},{"$f":"IF(Bewertung!AU22=\"\",\"\",IF(Bewertung!AU22=Faktorisierung!$E$80,Faktorisierung!$G$80,(IF(Bewertung!AU22=Faktorisierung!$E$81,Faktorisierung!$G$81,IF(Bewertung!AU22=Faktorisierung!$E$82,Faktorisierung!$G$82,IF(Bewertung!AU22=Faktorisierung!$E$83,Faktorisierung!$G$83,0))))))","v":""},{"$f":"IF(Bewertung!AV22=\"\",\"\",IF(Bewertung!AV22=Faktorisierung!$E$80,Faktorisierung!$G$80,(IF(Bewertung!AV22=Faktorisierung!$E$81,Faktorisierung!$G$81,IF(Bewertung!AV22=Faktorisierung!$E$82,Faktorisierung!$G$82,IF(Bewertung!AV22=Faktorisierung!$E$83,Faktorisierung!$G$83,0))))))","v":""}]
[{"$nulls":3},"Flächendurchschnitt:",{"$f":"IF(AND(Bewertung!I14=\"\",Bewertung!I15=\"\",Bewertung!I16=\"\",Bewertung!I17=\"\",Bewertung!I18=\"\"),\"\",SUM(E18:E22)/COUNTA(Bewertung!I14:I18))","v":0.5},{"$f":"IF(AND(Bewertung!J14=\"\",Bewertung!J15=\"\",Bewertung!J16=\"\",Bewertung!J17=\"\",Bewertung!J18=\"\"),\"\",SUM(F18:F22)/COUNTA(Bewertung!J14:J18))","v":""},{"$f":"IF(AND(Bewertung!#REF!=\"\",Bewertung!#REF!=\"\",Bewertung!#REF!=\"\",Bewertung!#REF!=\"\",Bewertung!#REF!=\"\"),\"\",SUM(G18:G22)/COUNTA(Bewertung!#REF!))","v":{"$error":"#REF!"}},{"$f":"IF(AND(Bewertung!#REF!=\"\",Bewertung!#REF!=\"\",Bewertung!#REF!=\"\",Bewertung!#REF!=\"\",Bewertung!#REF!=\"\"),\"\",SUM(H18:H22)/COUNTA(Bewertung!#REF!))","v":{"$error":"#REF!"}},{"$f":"IF(AND(Bewertung!#REF!=\"\",Bewertung!#REF!=\"\",Bewertung!#REF!=\"\",Bewertung!#REF!=\"\",Bewertung!#REF!=\"\"),\"\",SUM(I18:I22)/COUNTA(Bewertung!#REF!))","v":{"$error":"#REF!"}},{"$f":"IF(AND(Bewertung!#REF!=\"\",Bewertung!#REF!=\"\",Bewertung!#REF!=\"\",Bewertung!#REF!=\"\",Bewertung!#REF!=\"\"),\"\",SUM(J18:J22)/COUNTA(Bewertung!#REF!))","v":{"$error":"#REF!"}},{"$f":"IF(AND(Bewertung!#REF!=\"\",Bewertung!#REF!=\"\",Bewertung!#REF!=\"\",Bewertung!#REF!=\"\",Bewertung!#REF!=\"\"),\"\",SUM(K18:K22)/COUNTA(Bewertung!#REF!))","v":{"$error":"#REF!"}},{"$f":"IF(AND(Bewertung!#REF!=\"\",Bewertung!#REF!=\"\",Bewertung!#REF!=\"\",Bewertung!#REF!=\"\",Bewertung!#REF!=\"\"),\"\",SUM(L18:L22)/COUNTA(Bewertung!#REF!))","v":{"$error":"#REF!"}},{"$f":"IF(AND(Bewertung!K14=\"\",Bewertung!K15=\"\",Bewertung!K16=\"\",Bewertung!K17=\"\",Bewertung!K18=\"\"),\"\",SUM(M18:M22)/COUNTA(Bewertung!K14:K18))","v":""},{"$f":"IF(AND(Bewertung!L14=\"\",Bewertung!L15=\"\",Bewertung!L16=\"\",Bewertung!L17=\"\",Bewertung!L18=\"\"),\"\",SUM(N18:N22)/COUNTA(Bewertung!L14:L18))","v":""},{"$f":"IF(AND(Bewertung!M14=\"\",Bewertung!M15=\"\",Bewertung!M16=\"\",Bewertung!M17=\"\",Bewertung!M18=\"\"),\"\",SUM(O18:O22)/COUNTA(Bewertung!M14:M18))","v":""},{"$f":"IF(AND(Bewertung!N14=\"\",Bewertung!N15=\"\",Bewertung!N16=\"\",Bewertung!N17=\"\",Bewertung!N18=\"\"),\"\",SUM(P18:P22)/COUNTA(Bewertung!N14:N18))","v":""},{"$f":"IF(AND(Bewertung!O14=\"\",Bewertung!O15=\"\",Bewertung!O16=\"\",Bewertung!O17=\"\",Bewertung!O18=\"\"),\"\",SUM(Q18:Q22)/COUNTA(Bewertung!O14:O18))","v":""},{"$f":"IF(AND(Bewertung!P14=\"\",Bewertung!P15=\"\",Bewertung!P16=\"\",Bewertung!P17=\"\",Bewertung!P18=\"\"),\"\",SUM(R18:R22)/COUNTA(Bewertung!P14:P18))","v":""},{"$f":"IF(AND(Bewertung!Q14=\"\",Bewertung!Q15=\"\",Bewertung!Q16=\"\",Bewertung!Q17=\"\",Bewertung!Q18=\"\"),\"\",SUM(S18:S22)/COUNTA(Bewertung!Q14:Q18))","v":""},{"$f":"IF(AND(Bewertung!R14=\"\",Bewertung!R15=\"\",Bewertung!R16=\"\",Bewertung!R17=\"\",Bewertung!R18=\"\"),\"\",SUM(T18:T22)/COUNTA(Bewertung!R14:R18))","v":""},{"$f":"IF(AND(Bewertung!S14=\"\",Bewertung!S15=\"\",Bewertung!S16=\"\",Bewertung!S17=\"\",Bewertung!S18=\"\"),\"\",SUM(U18:U22)/COUNTA(Bewertung!S14:S18))","v":""},{"$f":"IF(AND(Bewertung!T14=\"\",Bewertung!T15=\"\",Bewertung!T16=\"\",Bewertung!T17=\"\",Bewertung!T18=\"\"),\"\",SUM(V18:V22)/COUNTA(Bewertung!T14:T18))","v":""},{"$f":"IF(AND(Bewertung!U14=\"\",Bewertung!U15=\"\",Bewertung!U16=\"\",Bewertung!U17=\"\",Bewertung!U18=\"\"),\"\",SUM(W18:W22)/COUNTA(Bewertung!U14:U18))","v":""},{"$f":"IF(AND(Bewertung!V14=\"\",Bewertung!V15=\"\",Bewertung!V16=\"\",Bewertung!V17=\"\",Bewertung!V18=\"\"),\"\",SUM(X18:X22)/COUNTA(Bewertung!V14:V18))","v":""},{"$f":"IF(AND(Bewertung!W14=\"\",Bewertung!W15=\"\",Bewertung!W16=\"\",Bewertung!W17=\"\",Bewertung!W18=\"\"),\"\",SUM(Y18:Y22)/COUNTA(Bewertung!W14:W18))","v":""},{"$f":"IF(AND(Bewertung!X14=\"\",Bewertung!X15=\"\",Bewertung!X16=\"\",Bewertung!X17=\"\",Bewertung!X18=\"\"),\"\",SUM(Z18:Z22)/COUNTA(Bewertung!X14:X18))","v":""},{"$f":"IF(AND(Bewertung!Y14=\"\",Bewertung!Y15=\"\",Bewertung!Y16=\"\",Bewertung!Y17=\"\",Bewertung!Y18=\"\"),\"\",SUM(AA18:AA22)/COUNTA(Bewertung!Y14:Y18))","v":""},{"$f":"IF(AND(Bewertung!Z14=\"\",Bewertung!Z15=\"\",Bewertung!Z16=\"\",Bewertung!Z17=\"\",Bewertung!Z18=\"\"),\"\",SUM(AB18:AB22)/COUNTA(Bewertung!Z14:Z18))","v":""},{"$f":"IF(AND(Bewertung!AA14=\"\",Bewertung!AA15=\"\",Bewertung!AA16=\"\",Bewertung!AA17=\"\",Bewertung!AA18=\"\"),\"\",SUM(AC18:AC22)/COUNTA(Bewertung!AA14:AA18))","v":""},{"$f":"IF(AND(Bewertung!AB14=\"\",Bewertung!AB15=\"\",Bewertung!AB16=\"\",Bewertung!AB17=\"\",Bewertung!AB18=\"\"),\"\",SUM(AD18:AD22)/COUNTA(Bewertung!AB14:AB18))","v":""},{"$f":"IF(AND(Bewertung!AC14=\"\",Bewertung!AC15=\"\",Bewertung!AC16=\"\",Bewertung!AC17=\"\",Bewertung!AC18=\"\"),\"\",SUM(AE18:AE22)/COUNTA(Bewertung!AC14:AC18))","v":""},{"$f":"IF(AND(Bewertung!AD14=\"\",Bewertung!AD15=\"\",Bewertung!AD16=\"\",Bewertung!AD17=\"\",Bewertung!AD18=\"\"),\"\",SUM(AF18:AF22)/COUNTA(Bewertung!AD14:AD18))","v":""},{"$f":"IF(AND(Bewertung!AE14=\"\",Bewertung!AE15=\"\",Bewertung!AE16=\"\",Bewertung!AE17=\"\",Bewertung!AE18=\"\"),\"\",SUM(AG18:AG22)/COUNTA(Bewertung!AE14:AE18))","v":""},{"$f":"IF(AND(Bewertung!AF14=\"\",Bewertung!AF15=\"\",Bewertung!AF16=\"\",Bewertung!AF17=\"\",Bewertung!AF18=\"\"),\"\",SUM(AH18:AH22)/COUNTA(Bewertung!AF14:AF18))","v":""},{"$f":"IF(AND(Bewertung!AG14=\"\",Bewertung!AG15=\"\",Bewertung!AG16=\"\",Bewertung!AG17=\"\",Bewertung!AG18=\"\"),\"\",SUM(AI18:AI22)/COUNTA(Bewertung!AG14:AG18))","v":""},{"$f":"IF(AND(Bewertung!AH14=\"\",Bewertung!AH15=\"\",Bewertung!AH16=\"\",Bewertung!AH17=\"\",Bewertung!AH18=\"\"),\"\",SUM(AJ18:AJ22)/COUNTA(Bewertung!AH14:AH18))","v":""},{"$f":"IF(AND(Bewertung!AI14=\"\",Bewertung!AI15=\"\",Bewertung!AI16=\"\",Bewertung!AI17=\"\",Bewertung!AI18=\"\"),\"\",SUM(AK18:AK22)/COUNTA(Bewertung!AI14:AI18))","v":""},{"$f":"IF(AND(Bewertung!AJ14=\"\",Bewertung!AJ15=\"\",Bewertung!AJ16=\"\",Bewertung!AJ17=\"\",Bewertung!AJ18=\"\"),\"\",SUM(AL18:AL22)/COUNTA(Bewertung!AJ14:AJ18))","v":""},{"$f":"IF(AND(Bewertung!AK14=\"\",Bewertung!AK15=\"\",Bewertung!AK16=\"\",Bewertung!AK17=\"\",Bewertung!AK18=\"\"),\"\",SUM(AM18:AM22)/COUNTA(Bewertung!AK14:AK18))","v":""},{"$f":"IF(AND(Bewertung!AL14=\"\",Bewertung!AL15=\"\",Bewertung!AL16=\"\",Bewertung!AL17=\"\",Bewertung!AL18=\"\"),\"\",SUM(AN18:AN22)/COUNTA(Bewertung!AL14:AL18))","v":""},{"$f":"IF(AND(Bewertung!AM14=\"\",Bewertung!AM15=\"\",Bewertung!AM16=\"\",Bewertung!AM17=\"\",Bewertung!AM18=\"\"),\"\",SUM(AO18:AO22)/COUNTA(Bewertung!AM14:AM18))","v":""},{"$f":"IF(AND(Bewertung!AN14=\"\",Bewertung!AN15=\"\",Bewertung!AN16=\"\",Bewertung!AN17=\"\",Bewertung!AN18=\"\"),\"\",SUM(AP18:AP22)/COUNTA(Bewertung!AN14:AN18))","v":""},{"$f":"IF(AND(Bewertung!AO14=\"\",Bewertung!AO15=\"\",Bewertung!AO16=\"\",Bewertung!AO17=\"\",Bewertung!AO18=\"\"),\"\",SUM(AQ18:AQ22)/COUNTA(Bewertung!AO14:AO18))","v":""},{"$f":"IF(AND(Bewertung!AP14=\"\",Bewertung!AP15=\"\",Bewertung!AP16=\"\",Bewertung!AP17=\"\",Bewertung!AP18=\"\"),\"\",SUM(AR18:AR22)/COUNTA(Bewertung!AP14:AP18))","v":""},{"$f":"IF(AND(Bewertung!AQ14=\"\",Bewertung!AQ15=\"\",Bewertung!AQ16=\"\",Bewertung!AQ17=\"\",Bewertung!AQ18=\"\"),\"\",SUM(AS18:AS22)/COUNTA(Bewertung!AQ14:AQ18))","v":""},{"$f":"IF(AND(Bewertung!AR14=\"\",Bewertung!AR15=\"\",Bewertung!AR16=\"\",Bewertung!AR17=\"\",Bewertung!AR18=\"\"),\"\",SUM(AT18:AT22)/COUNTA(Bewertung!AR14:AR18))","v":""},{"$f":"IF(AND(Bewertung!AS14=\"\",Bewertung!AS15=\"\",Bewertung!AS16=\"\",Bewertung!AS17=\"\",Bewertung!AS18=\"\"),\"\",SUM(AU18:AU22)/COUNTA(Bewertung!AS14:AS18))","v":""},{"$f":"IF(AND(Bewertung!AT14=\"\",Bewertung!AT15=\"\",Bewertung!AT16=\"\",Bewertung!AT17=\"\",Bewertung!AT18=\"\"),\"\",SUM(AV18:AV22)/COUNTA(Bewertung!AT14:AT18))","v":""},{"$f":"IF(AND(Bewertung!AU14=\"\",Bewertung!AU15=\"\",Bewertung!AU16=\"\",Bewertung!AU17=\"\",Bewertung!AU18=\"\"),\"\",SUM(AW18:AW22)/COUNTA(Bewertung!AU14:AU18))","v":""},{"$f":"IF(AND(Bewertung!AV14=\"\",Bewertung!AV15=\"\",Bewertung!AV16=\"\",Bewertung!AV17=\"\",Bewertung!AV18=\"\"),\"\",SUM(AX18:AX22)/COUNTA(Bewertung!AV14:AV18))","v":""}]
[{"$nulls":3},"Summe Gesamt",{"$f":"SUM(E8:E17,E23:E26,E27)","v":7},{"$f":"SUM(F8:F17,F23:F26,F27)","v":{"$error":"#REF!"}},{"$error":"#REF!"},{"$error":"#REF!"},{"$error":"#REF!"},{"$error":"#REF!"},{"$error":"#REF!"},{"$error":"#REF!"},0,0,0,0,0,0,0,0,0,0,0,0,0,0,0,0,0,0,0,0,0,0,0,0,0,0,0,0,0,0,0,0,0,0,0,0,0,0,0,0,0,0,0,0,0,0,0,0,0,0]
[]
[{"$nulls":4},{"$f":"IF(Bewertung!D26=\"\",\"\",IF(Bewertung!D26=Faktorisierung!$A$48,Faktorisierung!$C$48,(IF(Bewertung!D26=Faktorisierung!$A$49,Faktorisierung!$C$49,IF(Bewertung!D26=Faktorisierung!$A$50,Faktorisierung!$C$50,IF(Bewertung!D26=Faktorisierung!$A$51,Faktorisierung!$C$51,0))))))","v":""}]
[]
[]
[{"$nulls":4},{"$f":"IF(Bewertung!D35=\"\",\"\",IF(Bewertung!D35=Faktorisierung!$A$56,Faktorisierung!$G$56,(IF(Bewertung!D35=Faktorisierung!$A$57,Faktorisierung!$G$57,IF(Bewertung!D35=Faktorisierung!$A$58,Faktorisierung!$G$58,IF(Bewertung!D35=Faktorisierung!$A$59,Faktorisierung!$G$59,0))))))","v":""}]
[{"$nulls":4},{"$f":"IF(Bewertung!D36=\"\",\"\",IF(Bewertung!D36=Faktorisierung!$A$56,Faktorisierung!$G$56,(IF(Bewertung!D36=Faktorisierung!$A$57,Faktorisierung!$G$57,IF(Bewertung!D36=Faktorisierung!$A$58,Faktorisierung!$G$58,IF(Bewertung!D36=Faktorisierung!$A$59,Faktorisierung!$G$59,0))))))","v":""}]
[{"$nulls":4},{"$f":"IF(Bewertung!D37=\"\",\"\",IF(Bewertung!D37=Faktorisierung!$A$56,Faktorisierung!$G$56,(IF(Bewertung!D37=Faktorisierung!$A$57,Faktorisierung!$G$57,IF(Bewertung!D37=Faktorisierung!$A$58,Faktorisierung!$G$58,IF(Bewertung!D37=Faktorisierung!$A$59,Faktorisierung!$G$59,0))))))","v":""}]

{"sheet":"Erläuterungen","index":2,"n_rows":106,"n_cols":3,"rows_kept":106,"merged":[[6,2,8,2],[10,2,11,2],[12,2,14,2],[16,2,17,2],[18,2,19,2],[22,2,23,2],[31,0,34,0],[35,0,37,0],[38,0,43,0],[41,1,42,1],[41,2,42,2],[45,2,46,2],[47,2,48,2],[49,2,50,2],[62,0,65,0],[66,0,69,0],[70,0,74,0],[75,0,79,0],[80,0,83,0],[85,0,87,0],[88,0,105,0]]}
["Einflussfaktor","Bewertung","Beschreibung"]
["1. Anfahrtswege","günstig","kurze, ausreichend befestigte, breite und geradlinige bzw. mehrere Anfahrstwege, unabhängig von Besucher- und\nIndividualverkehr (Hilfeleistungsfristen können deutlich unterboten werden), optimale Nutzung möglich"]
[null,"normal","Anfahrt ohne Probleme möglich, Hilfsfristen werden eingehalten"]
[null,"ungünstig","schwierige Wegeführung, Verzögerungen sind möglich, starke Belastung durch Besucher- und Individualverkehr,\ngegebenenfalls abgelegene Örtlichkeit, gegebenenfalls unbefestigte Straßen, Anfahrtswege durch mobiles Mobilar eingeschränkt"]
[null,"sehr ungünstig","schwierige, unübersichtliche Wegeführung, Verzögerungen sind zu erwarten, gegebenenfalls abgelegene \nÖrtlichkeit, Hilfsfristen werden überschritten, Belastbarkeit für Großfahrzeuge nicht sichergestellt, kein von den \nRettungswegen für Besucher unabhängiger Anfahrtsweg (Überlagerung mit Rettungswegen für Besucher)"]
[null,null,"KANN AUSCHLUSSKRITERIUM SEIN"]
["2. Zu- und Durchfahrten","günstig","uneingeschränkte Nutzbarkeit, Veranstaltungsbereich und Nachbarbebauung für Einsatzkräfte jederzeit zugänglich, Flächen für die Feuerwehr (Bewegungs- und Aufstellflächen) werden eingehalten, mehrere Anfahrtmöglichkeiten, kurze Wege von den Fahrzeugen zu potentiellen Schadensorten, Zufahrten gekennzeichnet, Einsatzpläne vorhanden"]
[]
[]
[null,"normal","Zu- und Durchfahrt ohne Probleme möglich"]
[null,"ungünstig","Zu- und Durchfahrten schwierig zu nutzen, hohe Personendichte zu erwarten, Verzögerungen möglich, Zugang zu Nachbarbebauung für Einsatzkräfte schwierig, Flächen für Feuerwehr und Rettungsdienst eingeschränkt"]
[]
[null,"sehr ungünstig","Zu- und Durchfahrten sehr schwierig zu nutzen, hohe Personendichte bei engen Platzverhältnissen zu erwarten, Verzögerungen zu erwarten, Flächen für Feuerwehr und Rettungsdienst stark eingeschränkt, lange Wege zu potentiellen Schadensorten"]
[]
[]
[null,null,"KANN AUSCHLUSSKRITERIUM SEIN"]
["3. Löschwasser-","günstig","leistungsfähiges Rohrnetz (leistungsfähiger als notwendig) mit zahlreichen Hydranten in engen Abständen und guter Kennzeichnung, frei zugänglich/unverbaut, Ringleitungen"]
["    versorgung"]
[null,"normal","reguläre Löschwasserversorgung nach dem Deutschen Verein des Gas- und Wasserfaches e. V. (DVGW 405, Abstand bis zu 300 m)"]
[]
[null,"ungünstig","große Abstände der Hydranten, schwierig auffindbar, Stichleitungen, geringe Durchmesser"]
[null,"sehr ungünstig","keine Hydranten, lange Schlauchstrecken erforderlich, abgelegene Örtlichkeit, Aufstauen von Gewässern erforderlich"]
["4. Flucht- und","günstig","die Kapazität der Flucht- und Rettungswege übersteigt die Höchstbesucherzahl deutlich (z. B. freies Feld ohne bauliche Begrenzungen) bestenfalls befestigt, falls notwendig ausgeleuchtet"]
["    Rettungswege"]
[null,null,"Begrenzung des Veranstaltungsgeländes besteht aus für den Veranstaltungstyp geeigneten Absperrmitteln und wird auf das notwendige Maß geplant"]
[null,"normal","Flucht- und Rettungswege stehen in ausreichender Anzahl und Breite für die gesamtzulässige Höchstbesucherzahl zur Verfügung, die Rettungswegführung erfolgt in zwei entgegengesetzten Richtungen, deutliche Kennzeichnung, Begrenzung des Veranstaltungsgeländes besteht aus für den Veranstaltungstyp geeigneten Absperrmitteln und wird auf das notwendige Maß geplant"]
[null,"ungünstig","Flucht- und Rettungswege stehen nicht während der kompletten Veranstaltung oder alle Bereiche des Veranstaltungsgeländes in ausreichender Anzahl und Breite für die gesamtzulässige Höchstbesucherzahl zur Verfügung; es können nicht zwei entgegengesetzte Richtungen in der Rettungswegführung sichergestellt werden, lange Rettungsweglängen, Rettungswegführung über Stauflächen von beispielsweise WC- oder Gastroeinrichtungen, Rettungswege enden an befahrbaren Straßen"]
[null,null,"Absperrmittel nicht geeignet"]
[null,null,"KANN AUSCHLUSSKRITERIUM SEIN"]
[null,"sehr ungünstig","Flucht- und Rettungswege stehen nicht in ausreichender Anzahl zur Verfügung bzw. die Wegeführung in zwei entgegengesetzte Richtungen ist nicht sichergestellt, Ein-/Ausgang nicht unabhängig mit möglicher Staubildung, Trichterbildung im Rettungswegverlauf, nur verzögert und gegebenenfalls nur mit Hilfsmitteln zu öffnen (z. B. bei Verwendung von Kabelbindern, organisatorischen Regelungen usw.)"]
[null,null,"AUSCHLUSSKRITERIUM"]
["5. Kommunikationswege","günstig","es liegt eine stets aktuelle Kommunikationsliste mit den Ansprechpartnern der Veranstaltung für alle Kommunikationswege vor, die Kommunikation ist über mindestens zwei Wege gesichert (in der Regel  Mobil und Funk (eigener Kanal) bzw. Festnetzanschluss; Mobilfunk hat eine hohe Ausfallquote!), alle benannten Mitglieder des Koordinierungskreises sind vor Ort und kennen sich seit längerem, Veranstalter verfügt über Festnetzanschluss"]
[null,"normal","es liegt eine stets aktuelle Kommunikationsliste mit den Ansprechpartnern der Veranstaltung vor, die Kommunikation ist über mindestens zwei Wege gesichert (in der Regel Mobil und Funk bzw. Festnetzanschluss; Mobilfunk hat hohe Ausfallquote!)"]
[null,"ungünstig","eine Kommunikation mit dem Veranstalter bzw. dessen Dienstleistern bzw. der Einsatzkräfte untereinander ist erschwert , aber möglich (z. B. durch Meldeläufer usw.), nur ein Kommunikationsweg"]
[null,"sehr ungünstig","Die Erreichbarkeit des Veranstalters und dessen Dienstleistern sowie die Kommunikation der Einsatzkräfte untereinander ist nicht sicher gestellt, da Verantwortliche nicht benannt sind bzw. keine Kommunikationslisten o. Ä. vorliegen."]
["6. Brandszenarien","günstig"," keine Verwendung von offenem Feuer, pyrotechnischen Gegenständen, brennbaren Flüssigkeiten oder Gasen, Prüfzeugnis/Zulassung für Schwerentflammbarkeit der Dekoration und Ausstattung liegt vor, geringe Brandlast, Abstandsflächen zwischen den einzelnen Ständen sowie der vorhandenen Bebauung sind deutlich größer als vorgeschrieben"]
[null,"normal","Verwendung von brennbaren Flüssigkeiten und Gasen durch Fachkräfte (an abgenommenen Anlagen und Einrichtungen), Prüfbescheinigungen liegen vor, ausreichende Abstände bei Verwendung von offenem Feuer zu brennbaren Stoffen, Abstand zu Publikum und Akteuren durch Abschrankung, Bundesanstalt für Materialforschung und -prüfung (BAM)-Vorgaben bei Pyrotechnik werden eingehalten, genehmigte (d.h. abgenommene) feuergefährliche Handlungen durch Fachkräfte, ausreichend Löschgeräte vorhanden"]
[null,"ungünstig","kritische Umgebung beispielsweise wegen Waldbrandgefahrenstufe, Verwendung von brennbaren Flüssigkeiten und Gasen, offenem Feuer und/oder Pyrotechnik durch \"Amateure\" (an abgenommenen Anlagen und Einrichtungen), geringe Abstände zu brennbaren Stoffen, Verwendung von entflammbaren Stoffen, hohe Brandlasten (z. B. viel Holz), enge Belegung des Geländes mit Kommunikationsmaßnahmen"]
["7. Zuschauerverhalten","sehr ungünstig","Verwendung von brennbaren Flüssigkeiten und Gasen, offenem Feuer und/oder Pyrotechnik durch Amateure mit nicht abgenommenen Einrichtungen, Verwendung leicht entflammbarer Materialien, sehr hohe Brandlasten, Verwendung von brennbaren Stoffen in großen Mengen, (z. B. Verpackungsmaterial), enge Belegung des Geländes/geringe Abstände der Aufbauten ohne Kompensationsmaßnahmen (z. B. Nichteinhaltung der Abstände von brandlastfreien Streifen), schwierige Erreichbarkeit"]
[null,"günstig","keine Störungen der öffentlichen Ordnung und Sicherheit der Veranstaltung zu erwarten\nüberwiegend im Tagzeitraum und familienorientiert"]
[null,"normal","etwaige Störungen der öffentlichen Ordnung und Sicherheit weitestgehend vernachlässigbar, friedlich\nnormale für die Art der Veranstaltung durch die Besucher geplante Verweildauer "]
[null,"ungünstig","Störungen der öffentlichen Ordnung und Sicherheit nicht ausgeschlossen, aber beherrschbar, z. B. hoher Alkoholkonsum, Gewaltpotential vorhanden, Gegenveranstaltungen"]
[]
[null,"sehr ungünstig","Störungen der öffentlichen Ordnung und Sicherheit zu erwarten und schwierig zu beherrschen, z. B. sehr hoher Alkoholkonsum, Drogenkonsum, besondere politische Lage, hohes Gewaltpotential und hohe Gewaltbereitschaft vorhanden, Hooligans, gewaltebereite rivalisierende Gruppen"]
["8. Feuergefährliche","günstig","ausgeschlossen (finden nicht statt)"]
["    Handlungen","normal                                               ","weitestgehend vernachlässigbar (z. B. einzelne Feuerzeuge im Publikum oder abgenommene, genehmigte feuergefährliche Handlungen durch Fachkräfte)"]
[]
[null,"ungünstig","nicht ausgeschlossen, aber beherrschbar (z. B. einzelne Wunderkerzen u.ä., kritische Umgebung beispielsweise durch Waldbrandgefahrenstufen"]
[]
[null,"sehr ungünstig","zu erwarten und schwierig zu beherrschen (Feuerzeuge, Wunderkerzen u.ä. in großer Zahl, hohe Belegungsdichte, schwierige Erreichbarkeit für Einsatzkräfte, hohe Brandlasten, kritische Umgebung)"]
[]
["9. Veranstalter","günstig","hoher Grad der Vorbereitung, es wird ein für die Art der Veranstaltung umfassendes Konzept vorgelegt, welches\nschlüssig eine sichere Veranstaltung gewährleisten kann"]
[null,"normal","mittlerer Grad der Vorbereitung, es wird ein für die Art der Veranstaltung umfassendes Konzept vorgelegt, welches\nschlüssig eine sichere Veranstaltung gewährleisten kann"]
[null,"ungünstig","niedriger Grad der Vorbereitung, für die Art der Veranstaltung ist kein geeigneter Ordnerdienst geplant, ebenso kein\ngeeigneter Sanitätsdienst geplant\nfür die Art der Veranstaltung wurden keine geeigneten Vorkehrungen des vorbeugenden Brandschutzes getroffen "]
[null,"sehr ungünstig","wenig/keine Vorbereitung\nfür die Art der Veranstaltung wurden keine Angaben zu Ordnerdienst, Sanitätsdienst und Brandschutz gemacht"]
["10. Anfahrtswege","günstig","keine Beeinträchtigung für ÖPNV; befestigte, breite und geradlinige bzw. mehrere Anfahrtswege; ausreichend "]
["    für die Besucher",null,"Parkplätze für Besucher"]
[null,"normal","geringe Beeinträchigung für ÖPNV (mind. 2 Monate vorher bekannt); Anfahrt ohne Probleme möglich; keine\nverkehrsregelnden Maßnahmen notwendig bzw. nur in geringem Umfang; zusätzliche Parkplätze können mit \ngeringem Aufwand zur Verfügung gestellt werden (z. B. Shuttle)"]
[null,"ungünstig","erhebliche Beeinträchtigung für ÖPNV (mind. 2 Monate vorher bekannt); Anfahrt nur über schwierige Wegführung \nbzw. enge und wenige Straßen oder unbefestigte Straßen möglich; Verkehrsregelung durch Polizei notwendig; "]
[null,null,"zusätzliche Parkplätze können nur mit hohem Aufwand zur Verfügung gestellt werden"]
[null,"sehr ungünstig","keine ÖPNV Anbindung möglich; Anfahrt nur mit umfangreichen polizeilichen Maßnahmen möglich;\nzusätzliche Parkplätze stehen nicht zur Verfügung"]
["11. Veranstaltungsfläche"]
["11a) \nOrientierung/Einschränkungen \nfür Besucher/Besucherströme","günstig","gute Orientierung, keine Einschränkungen, übersichtliches Veranstaltungsgelände, Fläche ist für die Anzahl der \nBesucher mehr als ausreichend, Rollstuhlfahrer können das Veranstaltungsgelände schnell verlassen"]
[null,"normal","gute Orientierung, kleinere Einschränkungen zu erwarten, gut strukturiertes Veranstaltungsgelände, Fläche ist für \nAnzahl der Besucher ausreichend, Rollstuhlfahrer können das Veranstaltungsgelände ohne Verzögerungen verlassen"]
[null,"ungünstig","mäßige Orientierung, Einschränkungen wahrscheinlich, z. B. Veranstaltungsgelände erstreckt sich über mehrere Teilflächen,  Fläche ist für die Anzahl der Besucher ausreichend bei Planung mit 3 m³ pro Besucher flächen, Rollstuhlfahrer können das Veranstaltungsgelände mit leichten Verzögerungen, z. B. Unebenheiten, verlassen"]
[null,"sehr ungünstig","schlechte Orientierung, fortwährende Einschränkungen, unübersiichtliches  Veranstaltungsgelände ist für die\nAnzahl der Besucher nicht ausreichend, Rollstuhlfahrer können das Veranstaltungsgelände nur mit erheblicher Hilfe verlassen"]
["11b)                             Behinderung des normalen Lebens außerhalb der Veranstaltung, Straßenverkehr kreuzt Veranstaltungsgelände","günstig","keine Behinderung des normalen Lebens außerh. des VA-Geländes und keine Kreuzung des Straßenverkehrs"]
[null,"normal","leichte Behinderung des normalen Lebens außerhalb des Veranstaltungsgeländes, Infrastruktur außerhalb des Veranstaltungsgeländes ist noch gegeben\nkeine Kreuzung des Straßenverkehrs"]
[null,"ungünstig","Behinderung des normalen Lebens außerhalb des Veranstaltungsgeländes\nohne verkehrsrechtliche Anordnung ist die Gewährleistung der Sicherheit der Besucher nicht gewährleistet"]
[null,"sehr ungünstig","Behinderung des normalen Lebens außerhalb des Veranstaltungsgeländes nicht vermeidbar\nohne verkehrsrechtliche Anordnung ist die Gewährleistung der Sicherheit der Besucher nicht gegeben"]
["11c) Flächenbeschaffenheit","günstig","Fläche für die Art der Veranstaltung geeignet und geplant\nFläche ist wetterunabhängig nutzbar, gute Infrastruktur vorhanden und nutzbar"]
[null,"normal","Fläche für die Art der Veranstaltung geeignet,Infrastruktur vorhanden und nutzbar"]
[null,"ungünstig","Fläche für die Art der Veranstaltung eingeschränkt geeignet, teilweise Infrastruktur vorhanden und nutzbar"]
[null,"sehr ungünstig","Fläche für die Art der Veranstaltung nicht geeignet, keine Infrastruktur vorhanden"]
[null,null,"AUSCHLUSSKRITERIUM"]
["11d)                              Beeinträchtigung der Anlieger innerhalb des Veranstaltungesgeländes","günstig","keine Behinderung der Anlieger"]
[null,"normal","leichte Behinderung der Anlieger"]
[null,"ungünstig","Behinderung der Anlieger"]
[null,"sehr ungünstig","Behinderung der Anlieger nicht zumutbar"]
[null,null,"KANN AUSCHLUSSKRITERIUM SEIN"]
["11e)                               Besucher der Veranstaltung außerhalb des Veransatltungsgeländes zu erwarten","günstig","keine Veranstaltungsbesucher außerhalb der Veranstaltung zu erwarten"]
[null,"normal","wenige Veranstaltungsbesucher außerhalb der Veranstaltung zu erwarten"]
[null,"ungünstig","Veranstaltungsbesucher außerhalb des Veranstaltung zu erwarten, Beeinträchtigungen zu erwarten"]
[null,"sehr ungünstig","Veranstaltungsbesucher außerhalb des Veranstaltung zu erwarten, starke Beeinträchtigungen zu erwarten"]
["12. ","günstig","nach Maurer-Algorithmus geprüft und dementsprechende Bereitstsellung"]
["sanitätsdienstliche Absicherung der Veranstaltung","normal","geprüft und entstprechend der Art der Veranstaltung vorgehalten"]
[null,"ungünstig","Absicherung entsprechend der Art der Veranstaltung reicht nicht aus"]
[null,"sehr ungünstig","keine Angaben vom Veranstalter zur sanitätsdienstlichen Absicherung"]
["13.                             Beeinflussung des Regelrettungsdienstes","günstig","Veranstaltung hat kein über das allgemeine Lebensrisiko hinausgehendes Potential für Verletzte oder Erkrankte."]
[null,null,"Anzahl der Besucher nicht so hoch, dass höhere Anzahl von Verletzten oder Erkrankten allein durch Besucherzahl"]
[null,null,"zu erwarten.                             "]
[null,null,"Konsequenz:"]
[null,null,"►     Rettungsdienst: mit Regelvorhaltung"]
[null,null,"        ►     Krankenhäuser: mit Normalbetrieb"]
[null,"normal","Veranstaltungsassoziiert Verletzte oder Erkrankte in geringer Zahl zu erwarten.\nSanitätsdienst als gut erkennbare Anlaufstelle, meist ambulante Behandlung durch Sanitätsdienst ausreichend,\nkein erhöhter Bedarf an Transporten in KHS\nKonsequenz:"]
[null,null,"►     Rettungsdienst: mit Regelvorhaltung"]
[null,null,"        ►     Krankenhäuser: mit Normalbetrieb"]
[null,"ungünstig","Veranstaltungsassoziiert Verletzte oder Erkrankte in geringer Zahl zu erwarten."]
[null,null,"Kein Sanitätsdienst oder Notrufe am Sanitätsdienst vorbei oder erhöhte Notwendigkeit von RD-Transporten."]
[null,null,"Konsequenz:"]
[null,null,"►     Rettungsdienst: Anpassung der Vorhaltung"]
[null,null,"         ►     Krankenhäuser: Vorinformation über erhöhtes Patientenaufkommen "]
[null,"sehr ungünstig","Relevante Zahl von Verletzten und Erkrankten mit Notwendigkeit eines Transports in ein Krankenhaus."]
[null,null,"Konsequenz:"]
[null,null,"►     Rettungsdienst: erhöhte Vorhaltung nötig"]
[null,null,"         ►     Krankenhäuser: verstärkte Personalbesetzung nötig "]

{"sheet":"Faktorisierung","index":3,"n_rows":83,"n_cols":15,"rows_kept":83,"merged":[[2,0,3,6],[2,10,3,14],[4,0,5,1],[4,2,5,2],[4,4,5,5],[4,6,5,6],[12,0,13,1],[12,2,13,2],[12,4,13,5],[12,6,13,6],[20,0,21,1],[20,2,21,2],[20,4,21,5],[20,6,21,6],[28,0,29,1],[28,2,29,2],[28,4,29,5],[28,6,29,6],[37,0,38,1],[37,2,38,2],[37,4,38,5],[37,6,38,6],[45,0,46,1],[45,2,46,2],[45,4,46,5],[45,6,46,6],[53,6,54,6],[60,0,61,1],[60,2,61,2],[60,4,61,5],[60,6,61,6],[68,0,69,1],[68,2,69,2],[68,4,69,5],[68,6,69,6],[76,0,77,1],[76,2,77,2],[76,4,77,5],[76,6,77,6]]}
[]
[]
["Einflussfaktoren/Sicherheitsfaktoren",{"$nulls":9},"Risikofaktoren"]
[]
[{"$f":"Bewertung!H4","v":"1. Anfahrtswege"},null,"Faktor",null,{"$f":"Bewertung!H5","v":"2. Zu- und Durchfahrten"},null,"Faktor",{"$nulls":3},"Risikofaktor Veranstaltungen im Freien in Chemnitz"]
[]
["günstig",null,0.5,null,"günstig",null,0.5,{"$nulls":3},"Risikogruppe 1 ",{"$nulls":3},"Anwesende"]
["normal",null,1,null,"normal",null,1,{"$nulls":3},"Risikofaktor:",null,null,1,"(Besucher, Teilnehmer, Akteure)"]
["ungünstig",null,2,null,"ungünstig",null,2,{"$nulls":3},"Veranstaltungen auf abgegrenzten Flächen",{"$nulls":3},"< 1.000"]
["sehr ungünstig",null,4,null,"sehr ungünstig",null,4,{"$nulls":3},"Stehplatzkonzerte",{"$nulls":3},"< 1.000"]
[{"$nulls":10},"Umzüge",{"$nulls":3},"< 1.000"]
[{"$nulls":10},"Sportveranstaltungen im öffentlichen Verkehrsraum",{"$nulls":3},"< 1.000"]
[{"$f":"Bewertung!H6","v":"3. Löschwasserversorgung"},null,"Faktor",null,{"$f":"Bewertung!H7","v":"4. Flucht- und Rettungswege"},null,"Faktor",{"$nulls":3},"Sonstige Veranstaltungen, nicht abgegrenzt",{"$nulls":3},"< 1.000"]
[{"$nulls":10},"Straßenfeste ",{"$nulls":3},"<    500"]
["günstig",null,0.5,null,"günstig",null,0.5,{"$nulls":3},"Messen, Ausstellungen außerhalb von Gebäuden",{"$nulls":3},"< 1.000"]
["normal",null,1,null,"normal",null,1,{"$nulls":3},"Sportveranstaltungen ",{"$nulls":3},"< 1.000"]
["ungünstig",null,2,null,"ungünstig",null,2,{"$nulls":3},"Sitzplatzkonzerte",{"$nulls":3},"< 2.000"]
["sehr ungünstig",null,4,null,"sehr ungünstig",null,4,{"$nulls":3},"Märkte",{"$nulls":3},"< 1.000"]
[{"$nulls":10},"(Motorsport erst ab Gr. 3)"]
[{"$nulls":10},"…"]
[{"$f":"Bewertung!H8","v":"5. Kommunikationswege"},null,"Faktor",null,{"$f":"Bewertung!H9","v":"6. Brandszenarien"},null,"Faktor",{"$nulls":3},"…"]
[]
["günstig",null,0.5,null,"günstig",null,0.5]
["normal",null,1,null,"normal",null,1,{"$nulls":3},"Risikogruppe 2",{"$nulls":3},"Anwesende"]
["ungünstig",null,2,null,"ungünstig",null,2,{"$nulls":3},"Risikofaktor:",null,null,2,"(Besucher, Teilnehmer, Akteure)"]
["sehr ungünstig",null,4,null,"sehr ungünstig",null,4,{"$nulls":3},"Veranstaltungen auf abgegrenzten Flächen",{"$nulls":3},"> 1.000"]
[{"$nulls":10},"Stehplatzkonzerte",{"$nulls":3},"> 1.000"]
[{"$nulls":10},"Umzüge",{"$nulls":3},"> 1.000"]
[{"$f":"Bewertung!H10","v":"7. Zuschauerverhalten"},null,"Faktor",null,{"$f":"Bewertung!H11","v":"8. Feuergefährliche Handlungen"},null,"Faktor",{"$nulls":3},"Sportveranstaltungen im öffentlichen Verkehrsraum",{"$nulls":3},"> 1.000"]
[{"$nulls":10},"Sonstige Veranstaltungen, nicht abgegrenzt",{"$nulls":3},"> 1.000"]
[{"$nulls":10},"Straßenfeste ",{"$nulls":3},">    500"]
["günstig",null,0.5,null,"günstig",null,1,{"$nulls":3},"Messen, Ausstellungen außerhalb von Gebäuden",{"$nulls":3},"> 1.000"]
["normal",null,1,null,"normal",null,1.5,{"$nulls":3},"Sportveranstaltungen",{"$nulls":3},"> 1.000"]
["ungünstig",null,2,null,"ungünstig",null,2,{"$nulls":3},"Sitzplatzkonzerte",{"$nulls":3},"> 2.000"]
["sehr ungünstig",null,4,null,"sehr ungünstig",null,4,{"$nulls":3},"Märkte",{"$nulls":3},"> 1.000"]
[{"$nulls":10},"(Motorsport erst ab Gr. 3)"]
[{"$nulls":10},"…"]
[{"$f":"Bewertung!H12","v":"9. Veranstalter"},null,"Faktor",null,{"$f":"Bewertung!H13","v":"10. Anfahrtswege für die Besucher"},null,"Faktor",{"$nulls":3},"…"]
[]
["günstig",null,0.5,null,"günstig",null,0.5]
["normal",null,1,null,"normal",null,1,{"$nulls":3},"Risikogruppe 3",{"$nulls":3},"Anwesende"]
["ungünstig",null,2,null,"ungünstig",null,2,{"$nulls":3},"Risikofaktor:",null,null,3,"(Besucher, Teilnehmer, Akteure)"]
["sehr ungünstig",null,4,null,"sehr ungünstig",null,4,{"$nulls":3},"Veranstaltungen auf abgegrenzten Flächen",{"$nulls":3},"> 5.000"]
[{"$nulls":10},"Stehplatzkonzerte",{"$nulls":3},"> 5.000"]
[{"$nulls":10},"Umzüge",{"$nulls":3},"> 5.000"]
[{"$f":"Bewertung!H14","v":"11a) Orientierung/Einschränkung für Besucher/ Besucherströme"},null,"Faktor",null,{"$f":"Bewertung!H15","v":"11b) Behinderung des norm. Lebens außerhalb der VA, Verkehr kreuzt VA Fläche"},null,"Faktor",{"$nulls":3},"Sportveranstaltungen im öffentlichen Verkehrsraum",{"$nulls":3},"> 5.000"]
[{"$nulls":10},"Sonstige Veranstaltungen, nicht abgegrenzt",{"$nulls":3},"> 5.000"]
["günstig",null,0.5,null,"günstig",null,0.5,{"$nulls":3},"Straßenfeste ",{"$nulls":3},"> 5.000"]
["normal",null,1,null,"normal",null,1,{"$nulls":3},"Messen, Ausstellungen außerhalb von Gebäuden",{"$nulls":3},"> 5.000"]
["ungünstig",null,2,null,"ungünstig",null,2,{"$nulls":3},"Sportveranstaltungen",{"$nulls":3},"> 5.000"]
["sehr ungünstig",null,4,null,"sehr ungünstig",null,4,{"$nulls":3},"Sitzplatzkonzerte",{"$nulls":3},"> 5.000"]
[{"$nulls":10},"Märkte",{"$nulls":3},"> 5.000"]
[{"$nulls":10},"Motorsportveranstaltung",{"$nulls":3},"alle"]
[{"$f":"Bewertung!H16","v":"11c) Flächenbeschaffenheit"},{"$nulls":5},"Faktor",{"$nulls":3},"…"]
[{"$nulls":10},"…"]
["günstig",{"$nulls":5},0.5]
["normal",{"$nulls":5},1]
["ungünstig",{"$nulls":5},2]
["sehr ungünstig",{"$nulls":5},4]
[]
[{"$f":"Bewertung!H17","v":"11d) Beeinträchtigung der Anlieger innerhalb der VA-Fläche"},null,"Faktor",null,{"$f":"Bewertung!H18","v":"11e) Besucher der VA außerhalb der VA-Fläche zu erwarten"},null,"Faktor"]
[]
["günstig",null,0.5,null,"günstig",null,0.5]
["normal",null,1,null,"normal",null,1]
["ungünstig",null,2,null,"ungünstig",null,2]
["sehr ungünstig",null,4,null,"sehr ungünstig",null,4]
[]
[]
[{"$f":"Bewertung!H19","v":"12. medizinische Absicherung"},null,"Faktor",null,{"$f":"Bewertung!H20","v":"13. Beeinflussung des Regelrettungsdienstes"},null,"Faktor"]
[]
["günstig",null,0.5,null,"günstig",null,0.5]
["normal",null,1,null,"normal",null,1]
["ungünstig",null,2,null,"ungünstig",null,2]
["sehr ungünstig",null,4,null,"sehr ungünstig",null,4]
[]
[]
[{"$f":"Bewertung!H21","v":0},null,"Faktor",null,{"$f":"Bewertung!H22","v":0},null,"Faktor"]
[]
[]
["günstig",null,1,null,"günstig",null,0.5]
["normal",null,1.5,null,"normal",null,1]
["ungünstig",null,2,null,"ungünstig",null,2]
["sehr ungünstig",null,4,null,"sehr ungünstig",null,4]